Workbook

Sheet Disclaimer
B4: Disclaimer
B5: 1 | C5: Neither the U.S. Department of Energy (DOE) National Energy Technology Laboratory (NETL) nor any person acting on behalf of these organizations:
C6: A. Makes any warranty or representation, express or implied, with respect to the accuracy, completeness, or usefulness of the information contained in this document, or that the use of any information, apparatus, method, or process disclosed in this document may not infringe on privately owned rights; or
C7: B. Assumes any liability with this report as to its use, or damages resulting from the use of any information, apparatus, method, or process disclosed in this document.
B8: 2 | C8: Reference herein to any specific commercial product, process, or service by trade name, trademark, manufacturer, or otherwise, does not necessarily constitute or imply its endorsement, recommendation, or favoring by NETL. The views and opinions of the authors expressed herein do not necessarily state or reflect those of NETL.
B9: 3 | C9: Developed by the U.S. Department of Energy (DOE) National Energy Technology Laboratory (NETL) for the Connecticut Center for Advanced Technology, Inc. (CCAT) with funding from the Defense Logistics Agency (DLA) Energy
B10: Contact Information

Sheet Instructions
A1: Model Dashboard Instructions

Sheet F-T Black Box Dashboard
B2: User Inputs | F2: Model Options | K2: Model Outputs
B3: Raw Syngas Composition | C3: Mole Fraction | F3: Percentage Captured CO₂ Vented | H3: 0 | K3: CO₂ Emissions
B4: H₂O | C4: 0.33133935 | K4: F-T Plant | L4: Stack Gas | M4: =(GT!$G$5+'FT Vent'!$E$5)*('Mole-Mass Frac Convert'!$M$3+2*'Mole-Mass Frac Convert'!$M$4) -> 158356.0102 | N4: lb CO₂/hr
B5: Ar | C5: 0.0066663 | F5: Percentage of Recycle Gas to F-T | H5: 0.8 | L5: Vented | M5: =($H$3)*Syngas!$T$20*('Mole-Mass Frac Convert'!$M$3+2*'Mole-Mass Frac Convert'!$M$4) -> 0 | N5: lb CO₂/hr
B6: CO₂ | C6: 0.01899284
B7: O₂ | C7: 1.5141e-13 | F7: Power Generation | G7: Gas Turbine | K7: Supplemental Utilities | L7: Electricity | M7: ='Electricity Summary'!C19*H10 -> 0 | N7: lb CO₂e/hr
B8: N₂ | C8: 0.0057186 | L8: Natural Gas | M8: =H13*Syngas!$B$38*'Life Cycle Adders'!$D$15 -> 0 | N8: lb CO₂e/hr
B9: CH₄ | C9: 0.00022281 | F9: Supplmental Utilities Required for Gasifier Island: | L9: Hydrogen | M9: =H14*Syngas!$B$38*'Life Cycle Adders'!$B$22 -> 0 | N9: lb CO₂e/hr
B10: CO | C10: 0.42601313 | F10: Electricity | G10: Grid Mix | H10: =VLOOKUP(G10,'Life Cycle Adders'!$A$3:$C$8,3,FALSE) -> 1331 | I10: lb CO₂e/MWh
B11: COS | C11: 0.00053156 | H11: 0 | I11: kWh/lb-mol Raw Syngas | K11: Total | M11: =SUM(M7:M9,M4:M5) -> 158356.0102 | N11: lb CO₂e/hr
B12: H₂ | C12: 0.20356556
B13: H₂S | C13: 0.00572667 | F13: Natural Gas | H13: 0 | I13: lb/lb-mol Raw Syngas | K13: Product Flows
B14: HCl | C14: 0.00101775 | F14: Hydrogen | H14: 0 | I14: lb/lb-mol Raw Syngas | L14: Jet | M14: =FT!S98/'Product Properties'!B22*24 -> 36949.83301 | N14: bbl/day
B15: NH₃ | C15: 0 | L15: Diesel | M15: =FT!T98/'Product Properties'!C22*24 -> 8614.792431 | N15: bbl/day
B16: SO₂ | C16: 0.0002054 | L16: Naphtha | M16: =FT!U98/'Product Properties'!D22*24 -> 1177.839868 | N16: bbl/day
B17: Total | C17: =SUM(C4:C16) -> 0.99999997 | D17: =IF(OR(C17<0.99,C17>1.01),"Sum of mole/mass fractions is <0.99 or >1.01. Adjust inputs.","") ->  | L17: LPG | M17: =FT!J98/'Product Properties'!$E$22*24 -> 3222.56522 | N17: bbl/day
L18: Total | M18: =SUM(M14:M17) -> 49965.03053 | N18: bbl/day
K20: Pipeline CO₂ | M20: =(1-$H$3)*Syngas!$T$20*('Mole-Mass Frac Convert'!$M$3+2*'Mole-Mass Frac Convert'!$M$4) -> 2419743.475 | N20: lb/hr
B22: Gasifier Island Steam Balance | C22: Btu/lb-mol Raw Syngas | D22: Surplus/Deficit | K22: Net Export Power | M22: ='Electricity Summary'!C18 -> 251.7737787 | N22: MWe
B23: Steam @ 1,815 psia | C23: 0 | D23: Surplus
B24: Steam @ 840 psia | C24: 0 | D24: Deficit | K24: Syngas Requirement | M24: =Syngas!B38 -> 214070.3222 | N24: lb-mol/hr
B25: Steam @ 615 psia | C25: 0 | D25: Deficit
B26: Steam @ 375 psia | C26: 0 | D26: Deficit
B27: Steam @ 65 psia | C27: 0 | D27: Deficit
B28: Steam @ 25 psia | C28: 0 | D28: Deficit
B30: Sour Water Flow from Gasifier | C30: lb-mol/lb-mol Raw Syngas
C31: 0
B32: Gasifier Oxygen Requirement | C32: lb/lb-mol Raw Syngas
C33: 0
B35: Input
B36: Output | L36: F-T Reactor Inlet
K37: Syngas Composition | L37: Fresh Feed | M37: Recycle | N37: Fresh + Recycle
K38: H₂O | L38: =INDIRECT("'FT'!"&"B"&VLOOKUP($K38,$P$38:$Q$51,2,FALSE))/FT!B$98 -> 0 | M38: =INDIRECT("'FT'!"&"C"&VLOOKUP($K38,$P$38:$Q$51,2,FALSE))/FT!C$98 -> 0 | N38: =INDIRECT("'FT'!"&"E"&VLOOKUP($K38,$P$38:$Q$51,2,FALSE))/FT!E$98 -> 0.04571372012 | P38: H₂ | Q38: 6
K39: CO₂ | L39: =INDIRECT("'FT'!"&"B"&VLOOKUP($K39,$P$38:$Q$51,2,FALSE))/FT!B$98 -> 0.01007019445 | M39: =INDIRECT("'FT'!"&"C"&VLOOKUP($K39,$P$38:$Q$51,2,FALSE))/FT!C$98 -> 0.001936967703 | N39: =INDIRECT("'FT'!"&"E"&VLOOKUP($K39,$P$38:$Q$51,2,FALSE))/FT!E$98 -> 0.007876857708 | P39: N₂ | Q39: 7
K40: O₂ | L40: =INDIRECT("'FT'!"&"B"&VLOOKUP($K40,$P$38:$Q$51,2,FALSE))/FT!B$98 -> 2.330700984e-13 | M40: =INDIRECT("'FT'!"&"C"&VLOOKUP($K40,$P$38:$Q$51,2,FALSE))/FT!C$98 -> 0 | N40: =INDIRECT("'FT'!"&"E"&VLOOKUP($K40,$P$38:$Q$51,2,FALSE))/FT!E$98 -> 1.727540885e-13 | P40: O₂ | Q40: 8
K41: N₂ | L41: =INDIRECT("'FT'!"&"B"&VLOOKUP($K41,$P$38:$Q$51,2,FALSE))/FT!B$98 -> 0.01999341854 | M41: =INDIRECT("'FT'!"&"C"&VLOOKUP($K41,$P$38:$Q$51,2,FALSE))/FT!C$98 -> 0.1749638556 | N41: =INDIRECT("'FT'!"&"E"&VLOOKUP($K41,$P$38:$Q$51,2,FALSE))/FT!E$98 -> 0.05209983568 | P41: H₂S | Q41: 9
K42: CH₄ | L42: =INDIRECT("'FT'!"&"B"&VLOOKUP($K42,$P$38:$Q$51,2,FALSE))/FT!B$98 -> 0.0003430726848 | M42: =INDIRECT("'FT'!"&"C"&VLOOKUP($K42,$P$38:$Q$51,2,FALSE))/FT!C$98 -> 0.06196248148 | N42: =INDIRECT("'FT'!"&"E"&VLOOKUP($K42,$P$38:$Q$51,2,FALSE))/FT!E$98 -> 0.01345697086 | P42: CO | Q42: 10
K43: CO | L43: =INDIRECT("'FT'!"&"B"&VLOOKUP($K43,$P$38:$Q$51,2,FALSE))/FT!B$98 -> 0.5487642595 | M43: =INDIRECT("'FT'!"&"C"&VLOOKUP($K43,$P$38:$Q$51,2,FALSE))/FT!C$98 -> 0.04731999384 | N43: =INDIRECT("'FT'!"&"E"&VLOOKUP($K43,$P$38:$Q$51,2,FALSE))/FT!E$98 -> 0.4168327571 | P43: CO₂ | Q43: 11
K44: COS | L44: =INDIRECT("'FT'!"&"B"&VLOOKUP($K44,$P$38:$Q$51,2,FALSE))/FT!B$98 -> 0 | M44: =INDIRECT("'FT'!"&"C"&VLOOKUP($K44,$P$38:$Q$51,2,FALSE))/FT!C$98 -> 0 | N44: =INDIRECT("'FT'!"&"E"&VLOOKUP($K44,$P$38:$Q$51,2,FALSE))/FT!E$98 -> 0 | P44: H₂O | Q44: 12
K45: H₂ | L45: =INDIRECT("'FT'!"&"B"&VLOOKUP($K45,$P$38:$Q$51,2,FALSE))/FT!B$98 -> 0.4208290538 | M45: =INDIRECT("'FT'!"&"C"&VLOOKUP($K45,$P$38:$Q$51,2,FALSE))/FT!C$98 -> 0.6879863993 | N45: =INDIRECT("'FT'!"&"E"&VLOOKUP($K45,$P$38:$Q$51,2,FALSE))/FT!E$98 -> 0.4585160554 | P45: NH₃ | Q45: 13
K46: H₂S | L46: =INDIRECT("'FT'!"&"B"&VLOOKUP($K46,$P$38:$Q$51,2,FALSE))/FT!B$98 -> 9.693188434e-10 | M46: =INDIRECT("'FT'!"&"C"&VLOOKUP($K46,$P$38:$Q$51,2,FALSE))/FT!C$98 -> 8.022720456e-09 | N46: =INDIRECT("'FT'!"&"E"&VLOOKUP($K46,$P$38:$Q$51,2,FALSE))/FT!E$98 -> 2.427914171e-09 | P46: HCl | Q46: 14
K47: HCl | L47: =INDIRECT("'FT'!"&"B"&VLOOKUP($K47,$P$38:$Q$51,2,FALSE))/FT!B$98 -> 0 | M47: =INDIRECT("'FT'!"&"C"&VLOOKUP($K47,$P$38:$Q$51,2,FALSE))/FT!C$98 -> 0 | N47: =INDIRECT("'FT'!"&"E"&VLOOKUP($K47,$P$38:$Q$51,2,FALSE))/FT!E$98 -> 0 | P47: C | Q47: 15
K48: NH₃ | L48: =INDIRECT("'FT'!"&"B"&VLOOKUP($K48,$P$38:$Q$51,2,FALSE))/FT!B$98 -> 0 | M48: =INDIRECT("'FT'!"&"C"&VLOOKUP($K48,$P$38:$Q$51,2,FALSE))/FT!C$98 -> 0 | N48: =INDIRECT("'FT'!"&"E"&VLOOKUP($K48,$P$38:$Q$51,2,FALSE))/FT!E$98 -> 0 | P48: HCN | Q48: 16
K49: SO₂ | L49: 0 | M49: 0 | N49: 0 | P49: SULFUR | Q49: 17
K50: C2+ | L50: =SUM(FT!B20:B97)/FT!B98 -> 0 | M50: =SUM(FT!C20:C97)/FT!C98 -> 0.02583029408 | N50: =SUM(FT!E20:E97)/FT!E98 -> 0.005503800715 | P50: COS | Q50: 18
K51: Total | L51: =SUM(L38:L50) -> 1 | M51: =SUM(M38:M50) -> 1 | N51: =SUM(N38:N50) -> 1 | P51: CH₄ | Q51: 19

Sheet Model Validation Cases
A1: Reference Case: CCAT TRIG 100% Coal Validated Scenario | F1: Recycle Rate = 51%
A2: Compound | B2: CCAT | C2: Model Default | F2: Model Output | I2: Units | J2: F-T Black Box Model | K2: CCAT TRIG Model | L2: % Difference
A3: H₂O | B3: 0.146575 | C3: 0.33133935 | F3: CO₂ Emissions | G3: F-T Plant Stack Gas | I3: lb CO₂/hr | J3: 360229.3406 | K3: 360313.59 | L3: =J3/K3-1 -> -0.000233822486
A4: Ar | B4: 0.00732842 | C4: 0.0066663 | G4: F-T Plant Vented | I4: lb CO₂/hr | J4: 0 | K4: 0 | L4: =IFERROR(J4/K4-1,0) -> 0
A5: CO₂ | B5: 0.1223967 | C5: 0.01899284 | G5: Utility Inputs | H5: Electricity | I5: lb CO₂e/hr | J5: 0 | K5: 0 | L5: =IFERROR(J5/K5-1,0) -> 0
A6: O₂ | B6: 0 | C6: 1.5141e-13 | H6: Natural Gas | I6: lb CO₂e/hr | J6: 0 | K6: 0 | L6: 0
A7: N₂ | B7: 0.00551511 | C7: 0.0057186 | H7: Hydrogen | I7: lb CO₂e/hr | J7: 0 | K7: 0 | L7: 0
A8: CH₄ | B8: 0.0189795 | C8: 0.00022281 | G8: Total | I8: lb CO₂e/hr | J8: =SUM(J3:J7) -> 360229.3406 | K8: =SUM(K3:K7) -> 360313.59 | L8: =J8/K8-1 -> -0.000233822486
A9: CO | B9: 0.4008719 | C9: 0.42601313 | F9: Product Flows | G9: Jet | I9: bbl/day | J9: 36917.7296 | K9: 24646.86789 | L9: 0.4978669813
A10: COS | B10: 6.69992e-05 | C10: 0.00053156 | G10: Diesel | I10: bbl/day | J10: 8607.307573 | K10: 4766.753162 | L10: 0.8056960958
A11: H₂ | B11: 0.2928816 | C11: 0.20356556 | G11: Naphtha | I11: bbl/day | J11: 1176.816516 | K11: 16971.52935 | L11: -0.9306593712
A12: H₂S | B12: 0.00143882 | C12: 0.00572667 | G12: LPG | I12: bbl/day | J12: 3219.765334 | K12: 3615.422952 | L12: -0.1094360531
A13: HCl | B13: 2.77955e-05 | C13: 0.00101775 | G13: Total | I13: bbl/day | J13: =SUM(J9:J12) -> 49921.61903 | K13: =SUM(K9:K12) -> 50000.57335 | L13: -0.00157906837
A14: NH₃ | B14: 0.00391813 | C14: 0 | F14: Pipeline CO₂ | I14: lb/hr | J14: 2973419.815 | K14: 2587866.44 | L14: 0.148985036
A15: SO₂ | B15: 0 | C15: 0.0002054 | F15: Net Export Power | I15: MWe | J15: 414.6684716 | K15: 221.6999754 | L15: 0.8704037776
F16: Syngas Requirement | I16: lb-mol/hr | J16: 209450.2683 | K16: 191727 | L16: 0.09244012732
F18: Recycle Rate = 75%
F19: Model Output | I19: Units | J19: F-T Black Box Model | K19: CCAT TRIG Model | L19: % Difference
F20: CO₂ Emissions | G20: F-T Plant Stack Gas | I20: lb CO₂/hr | J20: 323644.2438 | K20: 360313.59 | L20: =J20/K20-1 -> -0.1017706444
G21: F-T Plant Vented | I21: lb CO₂/hr | J21: 0 | K21: 0 | L21: =IFERROR(J21/K21-1,0) -> 0
G22: Utility Inputs | H22: Electricity | I22: lb CO₂e/hr | J22: 0 | K22: 0 | L22: =IFERROR(J22/K22-1,0) -> 0
H23: Natural Gas | I23: lb CO₂e/hr | J23: 0 | K23: 0 | L23: 0
H24: Hydrogen | I24: lb CO₂e/hr | J24: 0 | K24: 0 | L24: 0
G25: Total | I25: lb CO₂e/hr | J25: =SUM(J20:J24) -> 323644.2438 | K25: =SUM(K20:K24) -> 360313.59 | L25: =J25/K25-1 -> -0.1017706444
F26: Product Flows | G26: Jet | I26: bbl/day | J26: 36944.91739 | K26: 24646.86789 | L26: 0.4989700744 | S26: `
G27: Diesel | I27: bbl/day | J27: 8613.646362 | K27: 4766.753162 | L27: 0.8070258874
G28: Naphtha | I28: bbl/day | J28: 1177.683174 | K28: 16971.52935 | L28: -0.9306083058
G29: LPG | I29: bbl/day | J29: 3222.136507 | K29: 3615.422952 | L29: -0.1087802038
G30: Total | I30: bbl/day | J30: 49958.38344 | K30: =SUM(K26:K29) -> 50000.57335 | L30: -0.0008437885966
F31: Pipeline CO₂ | I31: lb/hr | J31: 2727609.684 | K31: 2587866.44 | L31: 0.05399940361
F32: Net Export Power | I32: MWe | J32: 171.9311928 | K32: 221.6999754 | L32: -0.2244870915
F33: Syngas Requirement | I33: lb-mol/hr | J33: 196900.1396 | K33: 191727 | L33: 0.02698180023

Sheet Life Cycle Adders
L1: CO2 | M1: 1
A2: Electricity | B2: kg CO2e/MWh | C2: lb CO2e/MWh | L2: N2O | M2: 298
A3: Grid Mix | B3: 603.6321094 | C3: =ROUND(CONVERT(B3,"kg","lbm"),0) -> 1331 | E3: Source: | F3: NETL Grid Mix Explorer | L3: CH4 | M3: 25
A4: NGCC | B4: 475.8215263 | C4: =ROUND(CONVERT(B4,"kg","lbm"),0) -> 1049 | L4: SF6 | M4: 22800
A5: Fleet Gas | B5: 524.8608542 | C5: 1157
A6: SCPC | B6: 963.3893816 | C6: 2124
A7: Fleet Coal | B7: 1112.939378 | C7: 2454
A8: Custom | C8: =CONVERT(B8,"kg","lbm") -> 0
A10: Natural Gas | B10: lb/scf | C10: g/MJ | D10: lb/lb | E10: Source: | F10: NETL LCA of Natural Gas and Power Generation
A11: CO2 | B11: 0.00689 | C11: 2.88 | D11: 0.164
A12: N2O | B12: 1.9e-07 | C12: 7.96e-05 | D12: 4.53e-06
A13: CH4 | B13: 0.000524 | C13: 0.219 | D13: 0.0125
A14: SF6 | B14: 6.92e-11 | C14: 2.9e-08 | D14: 1.65e-09
A15: CO2e | B15: =SUMPRODUCT(B11:B14,$M$1:$M$4) -> 0.02004819776 | C15: =SUMPRODUCT(C11:C14,$M$1:$M$4) -> 8.379382 | D15: =SUMPRODUCT(D11:D14,$M$1:$M$4) -> 0.47788756
A17: Hydrogen | B17: lb/lb | E17: Source: | F17: NETL Petroleum Baseline
A18: CO2 | B18: 7.090842483
A19: N2O | B19: -2.367077292e-06
A20: CH4 | B20: 0.03072713322
A21: SF6 | B21: 3.341457081e-08
A22: CO2e | B22: =SUMPRODUCT(B18:B21,$M$1:$M$4) -> 7.859077277

Sheet Cradle-to-Grave LC Adders
A1: LCA Stage | B1: Process Operation | C1: Units | D1: CO₂ | E1: CH₄ | F1: N₂O | G1: SF₆ | H1: Notes
A2: Raw Material Acquisition | B2: Coal Mining, Sub-Bituminous (Montana Rosebud) | C2: kg/kg coal mined | D2: 0.006413673283 | E2: 0.0001800217305 | F2: 6.73499675e-06 | G2: 2.056492445e-10 | H2: Coal Mine Methane - 8 scf/ton
B3: Coal Mining, Bituminous (I-6) | C3: kg/kg coal mined | D3: 0.02292063372 | E3: 0.007605752652 | F3: 4.269303991e-07 | G3: 4.76699808e-09 | H3: Coal Mine Methane - 360 scf/ton
B4: Coal Mining, Lignite (North Dakota) | C4: kg/kg coal mined | D4: 0.006413114089 | E4: 6.105617602e-05 | F4: 6.734379141e-06 | G4: 2.059087599e-10 | H4: Coal Mine Methane - 2.4 scf/ton
B5: Biomass Production, Southern Pine | C5: kg/kg biomass harvested | D5: -0.9432416059 | E5: 6.417512809e-05 | F5: 9.901680983e-05 | G5: 6.960601265e-10 | H5: Biomass Yield - 6350 kg/acre-yr
B6: Biomass Production, Switchgrass | C6: kg/kg biomass harvested | D6: -1.156542382 | E6: 0.0002515764892 | F6: 0.0009194729094 | G6: 1.06885433e-09 | H6: Biomass Yield - 2430 kg/acre-yr
B7: Biomass Direct Land Use Change | C7: kg/kg biomass harvested | D7: 0.02244296504 | E7: 0 | F7: 0 | G7: 0
B8: Biomass Indirect Land Use Change | C8: kg/kg biomass harvested | D8: 0.08282729822 | E8: 0 | F8: 3.027140615e-06 | G8: 0
A9: Raw Material Transport | B9: Rail Transport of Coal to CBTL Plant | C9: kg/kg coal transported | D9: 0.05129805157 | E9: 6.024202151e-05 | F9: 1.261087912e-06 | G9: 3.400400579e-15 | H9: Coal Rail Distance - 1600 miles
B10: Transport of Chipped Biomass to CBTL Plant or Torrefaction | C10: kg/kg biomass transported | D10: 0.006264015176 | E10: 8.439641455e-06 | F10: 1.580545507e-07 | G10: 4.325887108e-16 | H10: Biomass Truck Transport Distance - 40 miles
B11: Biomass Transport Torrefaction Facility to CBTL Plant | C11: kg/kg biomass transported | D11: 0.008044080829 | E11: 1.059623893e-05 | F11: 2.018076339e-07 | G11: 5.610307072e-16 | H11: Biomass Truck Transport Distance - 50 miles
B12: Biomass Torrefaction | C12: kg/kg torrefied biomass | D12: 0.07283124754 | E12: 6.838572212e-06 | F12: 5.883318254e-07 | G12: 7.197367809e-10
B13: Biomass Drying | C13: kg/kg dried biomass | D13: 0.2617594605 | E13: 0.0009635480632 | F13: 2.232512873e-06 | G13: 3.001843682e-07 | L13: CO₂ Pipe Loss Rate | M13: kg/mi-yr | N13: 3843
A14: Energy Conversion | B14: CBTL Facility Construction | C14: kg/kg F-T jet | D14: 0.000654248344 | E14: 7.580540614e-07 | F14: 2.118495698e-08 | G14: 2.171659356e-11
A15: Product Transport | B15: CO₂ Pipeline Transport to EOR/Saline Aquifer | C15: kg/kg CO₂ | D15: 0.02240174901 | E15: 9.48322515e-06 | F15: 4.998855085e-07 | G15: 0 | H15: CO₂ Pipeline Transport Distance - 775 miles
B16: Transport of F-T Jet to Blending Facility | C16: kg/kg F-T jet | D16: 0.004591903827 | E16: 9.083067704e-06 | F16: 8.726614548e-08 | G16: 9.975258106e-10 | H16: F-T Pipeline Transport Distance - 225 miles
B17: Blending of F-T and Conv. Jet (includes Conv. Jet Fuel Profile) | C17: kg/kg blended jet fuel | D17: 0.2438130837 | E17: 0.002193591333 | F17: 5.121644476e-06 | G17: 5.61866107e-11 | H17: 50/50 Volume Blend with Conventional Jet Fuel
B18: Pipeline Transport of Blended Jet Fuel to Airport | C18: kg/kg blended jet fuel | D18: 0.004964748751 | E18: 9.849047276e-06 | F18: 9.340856088e-08 | G18: 1.085434359e-09 | H18: Blended Jet Pipeline Transport Distance - 225 miles
A19: End Use | B19: Airplane Operation (Fuel Use) | C19: kg/kg blended jet fuel combusted | D19: 3.138666667 | E19: 2.061759198e-05 | F19: 8.247045492e-05 | G19: 0
A20: ECF Product Displacements | B20: LPG Displacement | C20: kg/kg LPG | D20: 1.256569905 | E20: 0.004826736405 | F20: 2.383896114e-05 | G20: 2.853688865e-13
B21: Naphtha Displacement | C21: kg/kg naphtha | D21: 0.5008409082 | E21: 0.004755954318 | F21: 1.201784227e-05 | G21: 1.069570731e-13
B22: Electricity Displacement - 2010 Mix | C22: kg/MWh | D22: 567.7809006 | E22: 1.166738159 | F22: 0.009353631744 | G22: 5.798881837e-07
B23: Electricity Displacement - Fleet Coal | C23: kg/MWh | D23: 996.2968804 | E23: 1.588218409 | F23: 0.01893087758 | G23: 1.008083563e-06
B24: Electricity Displacement - 2035 Mix | C24: kg/MWh | D24: 521.6739948 | E24: 1.130671609 | F24: 0.008269167099 | G24: 5.487637842e-07
B25: Diesel Displacement - U.S. Consumption Mix | C25: kg/kg diesel | D25: 0.62035317 | E25: 0.004181108569 | F25: 1.239888463e-05 | G25: 2.524547702e-13
B26: Diesel Displacement - U.S. Import Mix | C26: kg/kg diesel | D26: 0.6147801003 | E26: 0.006355984908 | F26: 1.192748202e-05 | G26: 1.273129044e-13
B27: CO₂ Displacement - Natural Dome | C27: kg/kg CO₂ | D27: 0.08821521321 | E27: 0.0001434235035 | F27: 1.579515373e-06 | G27: 1.532737834e-08

Sheet Mole-Mass Frac Convert
A1: Compound | B1: Mass Fraction | C1: Mole Fraction | E1: Mass Fraction - Calc | F1: Mole Fraction - Calc | H1: Moles for 1 kg | I1: kg for 1 Mole | J1: Molecular Weight | L1: Element | M1: Molecular Weight
A2: H2O | B2: =IF('F-T Black Box Dashboard'!$C$3="Mass Fraction",'F-T Black Box Dashboard'!$C4,E2) -> 0.3010207726 | C2: =IF('F-T Black Box Dashboard'!$C$3="Mole Fraction",'F-T Black Box Dashboard'!$C4,F2) -> 0.33133935 | E2: =I2/$I$15 -> 0.3010207726 | F2: =H2/$H$15 -> 0.3313393599 | H2: =B2/J2 -> 0.0167097207 | I2: =C2*J2 -> 5.968982302 | J2: =M2*2+M4 -> 18.01471 | L2: H | M2: 1.00784
A3: AR | B3: =IF('F-T Black Box Dashboard'!$C$3="Mass Fraction",'F-T Black Box Dashboard'!$C5,E3) -> 0.01343000178 | C3: =IF('F-T Black Box Dashboard'!$C$3="Mole Fraction",'F-T Black Box Dashboard'!$C5,F3) -> 0.0066663 | E3: =I3/$I$15 -> 0.01343000178 | F3: =H3/$H$15 -> 0.0066663002 | H3: =B3/J3 -> 0.0003361870877 | I3: =C3*J3 -> 0.2663053524 | J3: =M8 -> 39.948 | L3: C | M3: 12.0096
A4: CO2 | B4: =IF('F-T Black Box Dashboard'!$C$3="Mass Fraction",'F-T Black Box Dashboard'!$C6,E4) -> 0.04215162882 | C4: =IF('F-T Black Box Dashboard'!$C$3="Mole Fraction",'F-T Black Box Dashboard'!$C6,F4) -> 0.01899284 | E4: 0.04215162882 | F4: 0.01899284057 | H4: 0.0009578248154 | I4: 0.8358304452 | J4: =M3+2*M4 -> 44.00766 | L4: O | M4: 15.99903
A5: O2 | B5: =IF('F-T Black Box Dashboard'!$C$3="Mass Fraction",'F-T Black Box Dashboard'!$C7,E5) -> 2.443286429e-13 | C5: =IF('F-T Black Box Dashboard'!$C$3="Mole Fraction",'F-T Black Box Dashboard'!$C7,F5) -> 1.5141e-13 | E5: 2.443286429e-13 | F5: 1.514100045e-13 | H5: 7.635733008e-15 | I5: 4.844826265e-12 | J5: =M4*2 -> 31.99806 | L5: N | M5: 14.00643
A6: N2 | B6: =IF('F-T Black Box Dashboard'!$C$3="Mass Fraction",'F-T Black Box Dashboard'!$C8,E6) -> 0.008078734686 | C6: =IF('F-T Black Box Dashboard'!$C$3="Mole Fraction",'F-T Black Box Dashboard'!$C8,F6) -> 0.0057186 | E6: 0.008078734686 | F6: 0.005718600172 | H6: 0.0002883937836 | I6: 0.1601943412 | J6: =M5*2 -> 28.01286 | L6: S | M6: 32.059
A7: CH4 | B7: =IF('F-T Black Box Dashboard'!$C$3="Mass Fraction",'F-T Black Box Dashboard'!$C9,E7) -> 0.000180244163 | C7: =IF('F-T Black Box Dashboard'!$C$3="Mole Fraction",'F-T Black Box Dashboard'!$C9,F7) -> 0.00022281 | E7: 0.000180244163 | F7: 0.0002228100067 | H7: 1.123649476e-05 | I7: 0.003574086298 | J7: =M3+M2*4 -> 16.04096 | L7: Cl | M7: 35.446
A8: CO | B8: =IF('F-T Black Box Dashboard'!$C$3="Mass Fraction",'F-T Black Box Dashboard'!$C10,E8) -> 0.601742971 | C8: =IF('F-T Black Box Dashboard'!$C$3="Mole Fraction",'F-T Black Box Dashboard'!$C10,F8) -> 0.42601313 | E8: 0.601742971 | F8: 0.4260131428 | H8: 0.02148419866 | I8: 11.93204413 | J8: =M3+M4 -> 28.00863 | L8: Ar | M8: 39.948
A9: COS | B9: =IF('F-T Black Box Dashboard'!$C$3="Mass Fraction",'F-T Black Box Dashboard'!$C11,E9) -> 0.001610233897 | C9: =IF('F-T Black Box Dashboard'!$C$3="Mole Fraction",'F-T Black Box Dashboard'!$C11,F9) -> 0.00053156 | E9: 0.001610233897 | F9: 0.0005315600159 | H9: 2.680701564e-05 | I9: 0.0319295494 | J9: =M3+M4+M6 -> 60.06763
A10: H2 | B10: =IF('F-T Black Box Dashboard'!$C$3="Mass Fraction",'F-T Black Box Dashboard'!$C12,E10) -> 0.02069293368 | C10: =IF('F-T Black Box Dashboard'!$C$3="Mole Fraction",'F-T Black Box Dashboard'!$C12,F10) -> 0.20356556 | E10: 0.02069293368 | F10: 0.2035655661 | H10: 0.01026598155 | I10: 0.410323028 | J10: =M2*2 -> 2.01568
A11: H2S | B11: =IF('F-T Black Box Dashboard'!$C$3="Mass Fraction",'F-T Black Box Dashboard'!$C13,E11) -> 0.009840793497 | C11: =IF('F-T Black Box Dashboard'!$C$3="Mole Fraction",'F-T Black Box Dashboard'!$C13,F11) -> 0.00572667 | E11: 0.009840793497 | F11: 0.005726670172 | H11: 0.0002888007605 | I11: 0.1951344477 | J11: =M2*2+M6 -> 34.07468
A12: NH3 | B12: =IF('F-T Black Box Dashboard'!$C$3="Mass Fraction",'F-T Black Box Dashboard'!$C14,E12) -> 0.0008740789448 | C12: =IF('F-T Black Box Dashboard'!$C$3="Mole Fraction",'F-T Black Box Dashboard'!$C14,F12) -> 0.00101775 | E12: 0.0008740789448 | F12: 0.001017750031 | H12: =B12/J12 -> 5.132598421e-05 | I12: =C12*J12 -> 0.01733223161 | J12: =M5+M2*3 -> 17.02995
A13: SO2 | B13: =IF('F-T Black Box Dashboard'!$C$3="Mass Fraction",'F-T Black Box Dashboard'!$C15,E13) -> 0 | C13: =IF('F-T Black Box Dashboard'!$C$3="Mole Fraction",'F-T Black Box Dashboard'!$C15,F13) -> 0 | E13: 0 | F13: 0 | H13: =B13/J13 -> 0 | I13: =C13*J13 -> 0 | J13: =M6+2*M4 -> 64.05706
A14: HCL | B14: =IF('F-T Black Box Dashboard'!$C$3="Mass Fraction",'F-T Black Box Dashboard'!$C16,E14) -> 0.0003776068789 | C14: =IF('F-T Black Box Dashboard'!$C$3="Mole Fraction",'F-T Black Box Dashboard'!$C16,F14) -> 0.0002054 | E14: 0.0003776068789 | F14: 0.0002054000062 | H14: =B14/J14 -> 1.035849389e-05 | I14: =C14*J14 -> 0.007487618736 | J14: =M2+M7 -> 36.45384
B15: =SUM(B2:B14) -> 1 | C15: =SUM(C2:C14) -> 0.99999997 | E15: =SUM(E2:E14) -> 1 | F15: =SUM(F2:F14) -> 1 | H15: =SUM(H2:H14) -> 0.05043083534 | I15: =SUM(I2:I14) -> 19.82913754
A16: Dashboard User Selections:
A17: Mass Fraction
A18: Mole Fraction
A20: Surplus
A21: Deficit
A23: Gas Turbine
A24: Boiler

Sheet Electricity Summary
A1: Source/Sink | B1: hp | C1: MW | D1: Comments
A2: Power Generation | B2: =SUM(B3:B4) -> 622978.5028 | C2: =SUM(C3:C4) -> 464.5549898
A3: Gas Turbines | B3: =GT!B29 -> 206281.4025 | C3: =B3*$B$22/10^6 -> 153.8240154
A4: Steam Turbine | B4: =SC!C8 -> 416697.1003 | C4: =B4*$B$22/10^6 -> 310.7309744
A5: Auxiliary Load Summary | B5: =SUM(B6:B17) -> 258657.9645 | C5: =SUM(C6:C17) -> 212.781211
A6: Gasifier Island (User-Input) | B6: =C6*10^6/$B$22 -> 0 | C6: ='F-T Black Box Dashboard'!$H$11/1000*Syngas!$B$38 -> 0
A7: Air Separation Mac | B7: =ASU!$B$6 -> 9813.312376 | C7: =B7*$B$22/10^6 -> 7.317785783
A8: Oxygen Compressor | B8: =ASU!$B$11 -> 0 | C8: 0
A9: Nitrogen Compressor | B9: =ASU!$B$7 -> 86.15017992 | C9: 0.06424217814
A10: CO₂ Compressor | B10: =Syngas!$T$15+Syngas!$R$15 -> 59007.76772 | C10: 44.00208483
A11: BFW & Circulating Water Pumps | C11: 19.9
A12: Cooling Tower Fans | B12: =C12*10^6/$B$22 -> 15599.50808 | C12: =SC!B12 -> 11.63255118 | D12: Calculated from JetFuelUpgrading Template
A13: Claus Plant | B13: =Syngas!$AU$15 -> 1125.704778 | C13: 0.8394379091
A14: Selexol | B14: =C14*10^6/$B$22 -> 19460.76974 | C14: =ASU!H11/1000 -> 14.5118935
A15: HC Recovery Refrigeration | B15: =C15*10^6/$B$22 -> 60967.52289 | C15: =FT!$K$111*FT!$J$98 -> 45.46347402 | D15: Based on scaled CCAT power demand
A16: FT Processing | B16: =C16*10^6/$B$22 -> 65776.78698 | C16: =FT!AD3/1000 -> 49.04974163
A17: Other | B17: =C17*10^6/$B$22 -> 26820.44178 | C17: 20
A18: Net Power | B18: =SUM(B3:B4)-SUM(B6:B17) -> 364320.5383 | C18: =SUM(C3:C4)-SUM(C6:C17) -> 251.7737787
A19: Supplemental Grid Power | C19: =IF($C$18<0,ABS($C$18),0) -> 0
A22: 1 hp = | B22: 745.699872 | C22: watts

Sheet Product Properties
A1: Property | B1: Jet | C1: Diesel | D1: Naphtha
A2: Enthalpy Btu/lbmol | B2: -157240 | C2: -150050 | D2: -125210
A3: Enthalpy Btu/lb | B3: -874.1484 | C3: -770.7286 | D3: -906.1749
A4: Enthalpy Btu/hr | B4: -442360000 | C4: -286080000 | D4: -11752000
A5: Entropy Btu/lbmol-R | B5: -318.4364 | C5: -314.4023 | D5: -245.1959
A6: Entropy Btu/lb-R | B6: -1.77033 | C6: -1.614971 | D6: -1.774486
A7: Density lbmol/cuft | B7: 0.2598785 | C7: 0.2183183 | D7: 0.3252397
A8: Density lb/cuft | B8: 46.7454 | C8: 42.50219 | D8: 44.94114
A9: Average MW | B9: 179.8741 | C9: 194.6799 | D9: 138.1785
A10: Liq Vol 60F cuft/hr | B10: 10529.35 | C10: 7830.368 | D10: 291.1979
A11: *** ALL PHASES ***
A12: CPMX Btu/lb-R | B12: 0.4912764 | C12: 0.5910255 | D12: 0.4701813
A13: *** LIQUID PHASE ***
A14: MUMX cP | B14: 1.536427 | C14: 0.5129835 | D14: 0.7885537
A15: KMX Btu-ft/hr-sqft | B15: 0.0786656 | C15: 0.0671444 | D15: 0.0758248
A18: 1 cubic foot = | B18: 7.48052 | C18: gallons
A19: 1 barrel = | B19: 42 | C19: gallons
B21: Jet | C21: Diesel | D21: Naphtha | E21: LPG
A22: Density (lbmol/bbl) | B22: =B7/$B$18*$B$19 -> 1.459109393 | C22: =C7/$B$18*$B$19 -> 1.225766203 | D22: =D7/$B$18*$B$19 -> 1.826085272 | E22: =C28/$B$18*$B$19 -> 5.024376133
A24: LPG Data:
A25: Temperature F | B25: -100
A26: Pressure psia | B26: 240
A27: Vapor Frac | B27: 0
A28: Mole Flow lbmol/hr | B28: 639.5688 | C28: =B28/B30 -> 0.8948796702
A29: Mass Flow lb/hr | B29: 31235.87
A30: Volume Flow cuft/hr | B30: 714.6981
A31: Enthalpy MMBtu/hr | B31: -36.0329

Sheet Syngas
A1: Raw Syngas | D1: To Shift | E1: Shift Steam | F1: RX1 Feed | G1: RX1 Product | H1: RX2 Product | I1: LHTR Feed | J1: LTHR Vapor | K1: LTHR Effluent | L1: Carbon Bed Product | M1: Feed to AGR | N1: AGR Steam | O1: Total Treated Syngas | P1: Treated Syngas | Q1: Syngas to GT | R1: To Compression From AGR | S1: To Compression From F-T | T1: Total Compression Flow | U1: To Claus | V1: Bypass | W1: Oxygen Requirement | X1: SWS Gas | Y1: Reacted | Z1: Claus Product | AA1: Combined Stream | AB1: TG RX1 Prod | AC1: TG RX2 Prod | AD1: TG RX3 Prod | AE1: Sulf Prod 1 | AF1: To RX4 | AG1: TG RX4 Prod | AH1: TG RX5 Prod | AI1: Sulf Prod 2 | AJ1: To RX6 | AK1: TG RX6 Prod | AL1: TG RX7 Prod | AM1: Sulf Prod 3 | AN1: To RX8 | AO1: TG RX8 Prod | AP1: TG RX9 Prod | AQ1: Sulf Prod 4 | AR1: To RX10 | AS1: TG RX10 Prod | AT1: KO Prod Eff | AU1: KO Prod Vap | AV1: TG Recycle | AW1: Vapor Recycle | AX1: Sour Water From Claus | AY1: Sour Water from Claus | AZ1: Sour Water from Gasifier | BA1: SWS Total Feed | BB1: After HCl Scrub | BC1: SWS Steam Requirement
A2: Heat Requirement, Btu/hr | U2: =U38*5068.40012586112 -> 9011001.034 | W2: =2589.38481787048*W38 -> 2137668.913 | AF2: =758.688264539061*AF38 -> 1892475.307 | AJ2: =659.988485385667*AJ38 -> 1611418.553 | AN2: =447.704978363232*AN38 -> 1086626.158 | AR2: =1389.60330230554*AR38 -> 3366790.642
A3: Heat Produced, Btu/hr (878-400) | G3: =(-0.13008254*(((B24*(100-D16)/100)/(B26+(B24*(100-D16)/100)))*F38)^2+10061.40870388*(((B24*(100-D16)/100)/(B26+(B24*(100-D16)/100)))*F38)+22900436.9392837)*(-1.16927516*(O24/O26)^2 + 2.86533602*(O24/O26) - 0.73651763) -> 135424864.7
A4: Heat Produced, Btu/hr (401-380) | J4: =(-0.13572483*((((B24*(100-D16)/100)/(B26+(B24*(100-D16)/100)))*F38)*(I18/I38))^2+4250.29086941*((((B24*(100-D16)/100)/(B26+(B24*(100-D16)/100)))*F38)*(I18/I38))+5884395.67765694)/(4.14417875*(O24/O26)^2 - 9.50936397*(O24/O26) + 6.25579392) -> 23491130.5
A5: Heat Produced, Btu/hr (380-290) | J5: =(1.61259722*((((B24*(100-D16)/100)/(B26+(B24*(100-D16)/100)))*F38)*(I18/I38))^2+1316.08312711*((((B24*(100-D16)/100)/(B26+(B24*(100-D16)/100)))*F38)*(I18/I38))+257920273.417978)/(0.09062094*(O24/O26)^2 - 0.31650747*(O24/O26) + 1.26284358) -> 289996595.8 | N5: 1800 | O5: 900 | P5: 850
A6: Heat Produced, Btu/hr (290-150) | J6: =(-0.7948155*((((B24*(100-D16)/100)/(B26+(B24*(100-D16)/100)))*F38)*(I18/I38))^2+29457.31350076*((((B24*(100-D16)/100)/(B26+(B24*(100-D16)/100)))*F38)*(I18/I38))+113222754.629576)/(0.33233527*(O24/O26)^2 - 1.28247071*(O24/O26) + 2.13257142) -> 216396928.8 | N6: 900 | O6: 500
A7: Heat Produced, Btu/hr (2637-1200) | AB7: =242673.038659365*((AA27-AB27)+(AA28-AB28)+(AA26-AB26)) -> 48129811.77
A8: Heat Produced, Btu/hr (1200-650) | AC8: =71607.0665217873*(AB34-AC34) -> 40598910.83
A9: Heat Produced, Btu/hr (650-365) | AD9: =301931.653452632*((AC34-AD34)+(AC35-AD35)) -> 12311146.97
A10: Heat Produced, Btu/hr (548-340) | AH10: =1092203.04956855*((AG34-AH34)+(AG35-AH35)) -> 5236821.175
A11: Heat Produced, Btu/hr (455-320) | AL11: =1989967.58654677*((AK34-AL34)+(AK35-AL35)) -> 2820661.333 | AP11: =5313881.94099519*((AO34-AP34)+(AO35-AP35)) -> 2061197.222
A12: Heat Produced, Btu/hr (388-280)
A13: Heat Produced, Btu/hr (550-120) | AT13: =19336.4284059765*AS38 -> 44708758.24
A14: Cooling Water Load, Btu/hr | J14: =(-0.12380712*((((B24*(100-D16)/100)/(B26+(B24*(100-D16)/100)))*F38)*(I18/I38))^2+4615.05807884*((((B24*(100-D16)/100)/(B26+(B24*(100-D16)/100)))*F38)*(I18/I38))+17214852.8341922)/(0.33233527*(O24/O26)^2 - 1.28247071*(O24/O26) + 2.13257142) -> 33404075.97 | R14: =1687.95780903661*R42 -> 29851481.17 | T14: =5533.61697445116*T42 -> 304263702.4 | AU14: =10112.1997756051*AU38 -> 4414143.028 | BB14: =-1487991.20182419*BB27^2+10526911.7787319*BB27+26613521.8193591 -> -963985.8556
A15: Power Requirement, hp | R15: =1.00363406682087*R42 -> 17749.23715 | T15: =0.750365236789251*T42 -> 41258.53057 | AU15: =2.57883614909954*AU38 -> 1125.704778
A16: Bypass, % | D16: =FT!B1 -> 83.27535807 | V16: 0.01
A17: Syngas Slip, % | P17: 100
A18: H2O | B18: =$B$38*VLOOKUP(A18,'Mole-Mass Frac Convert'!$A$2:$C$14,3,FALSE) -> 70929.92142 | C18: =B18 -> 70929.92142 | D18: =C18*(100-$D$16)/100 -> 11862.77538 | E18: =(1.8*D24-D18) -> 15591.42384 | F18: =D18+E18 -> 27454.19922 | G18: =F18-((F24-G24)+(F25-G25)) -> 14950.56301 | H18: =G18-((G24-H24)+(G25-H25)) -> 12535.79277 | I18: =H18+(C18-D18) -> 71602.93882 | J18: =I18*(-0.0000000000555262*((((B24*(100-D16)/100)/(B26+(B24*(100-D16)/100)))*F38)*(I18/I38))^2 + 6.4651421392828E-07*((((B24*(100-D16)/100)/(B26+(B24*(100-D16)/100)))*F38)*(I18/I38)) + 0.00294156913206361) -> 334.3207862 | K18: =I18-J18 -> 71268.61803 | L18: =J18 -> 334.3207862 | M18: =L18+AV18 -> 335.1108215 | N18: =61*1000*(U27*2+U20)/(-5687.4143--6598.7739)/18.01528 -> 10013.92726 | O18: =M18*0 -> 0 | P18: =O18*($P$17/100) -> 0 | Q18: =O18*((100-$P$17)/100) -> 0 | R18: =M18*0 -> 0 | S18: 0 | T18: =S18+R18 -> 0 | U18: =M18-O18-R18 -> 335.1108215 | V18: =U18*$V$16 -> 3.351108215 | W18: 0 | X18: =BB18*0.002 -> 131.7906914 | Y18: =U18-V18+X18+W18 -> 463.5504047 | Z18: =Y18+Y25*-1*(1-$W$68)+Y28*-1/2*3*-1+(Y20+Y25*-1*(1-$W$68)*-1)*-1*(1-$W$78)*-1+(((Y27+Y25*-1*(1-$W$68)*-1)*-1-(Y27+Y25*-1*(1-$W$68)*-1)*-1*W94)-((Y27+Y25*-1*(1-$W$68)*-1)*-1-(Y27+Y25*-1*(1-$W$68)*-1)*-1*W94)*W83)*(1-$W$88)*-1+((Y27+Y25*-1*(1-$W$68)*-1)*-1*$W$94)*-1 -> 1445.191893 | AA18: =Z18+V18 -> 1448.543001 | AB18: =AA18+AA27*0.30098+AA27*0.04089+AA27*0.00813+AA26*0.2941 -> 1647.427846 | AC18: =AB18 -> 1647.427846 | AD18: 1647.427846 | AE18: =0*AD18 -> 0 | AF18: =AD18-AE18 -> 1647.427846 | AG18: =AF18+0.14923*AF27++AF27*0.57719-AF25*0.85621 -> 1737.078886 | AH18: =AG18 -> 1737.078886 | AI18: =0*AH18 -> 0 | AJ18: =AH18-AI18 -> 1737.078886 | AK18: =AJ18+0.14923*AJ27++AJ27*0.57719-AJ25*0.85621 -> 1764.17994 | AL18: =AK18 -> 1764.17994 | AM18: =0*AL18 -> 0 | AN18: =AL18-AM18 -> 1764.17994 | AO18: =AN18+0.14923*AN27++AN27*0.57719-AN25*0.85621 -> 1771.280196 | AP18: =AO18 -> 1771.280196 | AQ18: =0*AP18 -> 0 | AR18: =AP18-AQ18 -> 1771.280196 | AS18: =AR18*1.09506495185249 -> 1939.666863 | AT18: =AS18*0.966906534026791 -> 1875.476563 | AU18: =AS18-AT18 -> 64.19029932 | AV18: 0.7900353 | AW18: =AU18*0.0122426979670296 -> 0.7858624469 | AX18: =AT18-AW18+AU18 -> 1938.881 | AY18: 1948.432764 | AZ18: =BA43*$AZ$38 -> 0 | BA18: =AY18+AZ18+K18 -> 73217.0508 | BB18: =BA18*0.9 -> 65895.34572 | BC18: =(3672373.86378479*BB27^2-25391537.9138363*BB27+114986989.27911)/(-5687.4143--6598.7739)/18.01528 -> 11475.75075
A19: AR | B19: =$B$38*VLOOKUP(A19,'Mole-Mass Frac Convert'!$A$2:$C$14,3,FALSE) -> 1427.056989 | C19: 1427.056989 | D19: =C19*(100-$D$16)/100 -> 238.6701716 | E19: 0 | F19: 238.6701716 | G19: =F19 -> 238.6701716 | H19: =G19 -> 238.6701716 | I19: 1427.056989 | J19: =I19*0.999753651028616 -> 1426.705435 | K19: 0.3515540214 | L19: 1426.705435 | M19: 1453.354279 | N19: 0 | O19: =M19*1 -> 1453.354279 | P19: 1453.354279 | Q19: =O19*((100-$P$17)/100) -> 0 | R19: =M19*0 -> 0 | S19: 0 | T19: 0 | U19: 0 | V19: 0 | W19: =W21*0.0334616275545071 -> 26.25458699 | X19: =BB19 -> 0.3518584964 | Y19: 26.60644549 | Z19: =Y19 -> 26.60644549 | AA19: 26.60644549 | AB19: =AA19 -> 26.60644549 | AC19: 26.60644549 | AD19: 26.60644549 | AE19: 0 | AF19: 26.60644549 | AG19: =AF19 -> 26.60644549 | AH19: 26.60644549 | AI19: 0 | AJ19: 26.60644549 | AK19: =AJ19 -> 26.60644549 | AL19: 26.60644549 | AM19: 0 | AN19: 26.60644549 | AO19: =AN19 -> 26.60644549 | AP19: 26.60644549 | AQ19: 0 | AR19: 26.60644549 | AS19: =AR19*1 -> 26.60644549 | AT19: =AS19*0.0000114310648273243 -> 0.0003041400032 | AU19: 26.60614135 | AV19: 26.64884437 | AW19: =AU19*1 -> 26.60614135 | AX19: 0.0003041400032 | AY19: 0.0003044750182 | AZ19: =BA44*$AZ$38 -> 0 | BA19: 0.3518584964 | BB19: =BA19 -> 0.3518584964 | BC19: 0
A20: CO2 | B20: =$B$38*VLOOKUP(A20,'Mole-Mass Frac Convert'!$A$2:$C$14,3,FALSE) -> 4065.803379 | C20: 4065.803379 | D20: 679.9910567 | E20: 0 | F20: 679.9910567 | G20: =F20+((F24-G24)+(F25-G25)) -> 13183.62727 | H20: =G20+((G24-H24)+(G25-H25)) -> 15598.39751 | I20: 18984.20983 | J20: =I20*1 -> 18984.20983 | K20: 0 | L20: 18984.20983 | M20: 19085.02875 | N20: 0 | O20: =M20*0.07335907 -> 1400.05996 | P20: 1400.05996 | Q20: 0 | R20: =$M$20*0.92664093 -> 17684.96879 | S20: =SUM(FT!X11:Y11) -> 37299.62877 | T20: 54984.59756 | U20: 0 | V20: 0 | W20: 0 | X20: 0.006184778544 | Y20: 0.006184778544 | Z20: =Y20+Y25*-1*(1-$W$68)*-1+W78*(Y20+Y25*-1*(1-$W$68)*-1)*-1 -> 46.51065006 | AA20: 46.51065006 | AB20: =AA20-AA27*0.00813 -> 44.91524538 | AC20: 44.91524538 | AD20: 44.91524538 | AE20: 0 | AF20: 44.91524538 | AG20: =AF20+0.85621*AF25 -> 47.92189429 | AH20: 47.92189429 | AI20: 0 | AJ20: 47.92189429 | AK20: 47.92189429 | AL20: 47.92189429 | AM20: 0 | AN20: 47.92189429 | AO20: 47.92189429 | AP20: 47.92189429 | AQ20: 0 | AR20: 47.92189429 | AS20: =AR20*2.09858079544133 -> 100.567967 | AT20: =AS20*0.0000522929117898556 -> 0.005258991829 | AU20: 100.562708 | AV20: 100.8189203 | AW20: =AU20*0.999990950939387 -> 100.561798 | AX20: 0.006168989869 | AY20: 0.006184778544 | AZ20: 0 | BA20: 0.006184778544 | BB20: 0.006184778544 | BC20: 0
A21: O2 | B21: =$B$38*VLOOKUP(A21,'Mole-Mass Frac Convert'!$A$2:$C$14,3,FALSE) -> 3.241238749e-08 | C21: 3.241238749e-08 | D21: 5.420855748e-09 | E21: 0 | F21: 5.420855748e-09 | G21: =F21 -> 5.420855748e-09 | H21: 5.420855748e-09 | I21: 3.241238749e-08 | J21: =I21*0.999733663702822 -> 3.240375489e-08 | K21: 8.632595267e-12 | L21: 3.240375489e-08 | M21: 3.240375489e-08 | N21: 0 | O21: =M21*1 -> 3.240375489e-08 | P21: 3.240375489e-08 | Q21: 0 | R21: =M21*0 -> 0 | S21: 0 | T21: 0 | U21: 0 | V21: 0 | W21: =(Y28*-1*(1-$W$73)/2*1.5+(((Y27+Y25*-1*(1-$W$68)*-1)*-1-(Y27+Y25*-1*(1-$W$68)*-1)*-1*W94)-((Y27+Y25*-1*(1-$W$68)*-1)*-1-(Y27+Y25*-1*(1-$W$68)*-1)*-1*W94)*W83)*(1-$W$88)/2+(Y27+Y25*-1*(1-$W$68)*-1)*-1*1.5*$W$94)*-1 -> 784.6177521 | X21: 8.632595267e-12 | Y21: 784.6177521 | Z21: =Y21+Y28*-1*(1-$W$73)/2*1.5+(((Y27+Y25*-1*(1-$W$68)*-1)*-1-(Y27+Y25*-1*(1-$W$68)*-1)*-1*W94)-((Y27+Y25*-1*(1-$W$68)*-1)*-1-(Y27+Y25*-1*(1-$W$68)*-1)*-1*W94)*W83)*(1-$W$88)/2+(Y27+Y25*-1*(1-$W$68)*-1)*-1*1.5*$W$94 -> 8.697043086e-12 | AA21: 8.697043086e-12 | AB21: =AA21 -> 8.697043086e-12 | AC21: 8.697043086e-12 | AD21: 8.697043086e-12 | AE21: 0 | AF21: 8.697043086e-12 | AG21: =AF21 -> 8.697043086e-12 | AH21: 8.697043086e-12 | AI21: 0 | AJ21: 8.697043086e-12 | AK21: 8.697043086e-12 | AL21: 8.697043086e-12 | AM21: 0 | AN21: 8.697043086e-12 | AO21: 8.697043086e-12 | AP21: 8.697043086e-12 | AQ21: 0 | AR21: 8.697043086e-12 | AS21: =AR21*8.4168998267032E-30 -> 7.320214044e-41 | AT21: =AS21*0 -> 0 | AU21: 7.320214044e-41 | AV21: 7.320214044e-41 | AW21: =AU21*1 -> 7.320214044e-41 | AX21: 0 | AY21: 0 | AZ21: 0 | BA21: 8.632595267e-12 | BB21: 8.632595267e-12 | BC21: 0
A22: N2 | B22: =$B$38*VLOOKUP(A22,'Mole-Mass Frac Convert'!$A$2:$C$14,3,FALSE) -> 1224.182545 | C22: 1224.182545 | D22: 204.7401472 | E22: 0 | F22: 204.7401472 | G22: 204.7401472 | H22: 204.7401472 | I22: 1224.182545 | J22: =I22*0.999961391008572 -> 1224.13528 | K22: 0.04726445338 | L22: 1224.13528 | M22: 1326.33234 | N22: 0 | O22: =M22*1 -> 1326.33234 | P22: 1326.33234 | Q22: 0 | R22: 0 | S22: 0 | T22: 0 | U22: 0 | V22: 0 | W22: =W21*0.0187078868928013 -> 14.67854016 | X22: 0.04733784496 | Y22: 14.725878 | Z22: =Y22+Y28*-1*(1-$W$73)*-1/2 -> 101.32099 | AA22: 101.32099 | AB22: =AA22+AA28*1/2 -> 101.8739062 | AC22: 101.8739062 | AD22: 101.8739062 | AE22: 0 | AF22: 101.8739062 | AG22: =AF22 -> 101.8739062 | AH22: 101.8739062 | AI22: 0 | AJ22: 101.8739062 | AK22: 101.8739062 | AL22: 101.8739062 | AM22: 0 | AN22: 101.8739062 | AO22: 101.8739062 | AP22: 101.8739062 | AQ22: 0 | AR22: 101.8739062 | AS22: =AR22*1 -> 101.8739062 | AT22: =AS22*7.18190008782431E-07 -> 7.316482158e-05 | AU22: 101.873833 | AV22: 102.1970602 | AW22: =AU22*1 -> 101.873833 | AX22: 7.316482159e-05 | AY22: 7.339158134e-05 | AZ22: 0 | BA22: 0.04733784496 | BB22: 0.04733784496 | BC22: 0
A23: CH4 | B23: =$B$38*VLOOKUP(A23,'Mole-Mass Frac Convert'!$A$2:$C$14,3,FALSE) -> 47.6970085 | C23: 47.6970085 | D23: 7.977153882 | E23: 0 | F23: 7.977153882 | G23: 7.977153882 | H23: 7.977153882 | I23: 47.6970085 | J23: =I23*0.999821471711865 -> 47.68849323 | K23: 0.008515265276 | L23: 47.68849323 | M23: 47.6974235 | N23: 0 | O23: =M23*1 -> 47.6974235 | P23: 47.6974235 | Q23: 0 | R23: 0 | S23: 0 | T23: 0 | U23: 0 | V23: 0 | W23: 0 | X23: 0.008515265276 | Y23: 0.008515265276 | Z23: =Y23 -> 0.008515265276 | AA23: 0.008515265276 | AB23: =AA23 -> 0.008515265276 | AC23: 0.008515265276 | AD23: 0.008515265276 | AE23: 0 | AF23: 0.008515265276 | AG23: =AF23 -> 0.008515265276 | AH23: 0.008515265276 | AI23: 0 | AJ23: 0.008515265276 | AK23: 0.008515265276 | AL23: 0.008515265276 | AM23: 0 | AN23: 0.008515265276 | AO23: 0.008515265276 | AP23: 0.008515265276 | AQ23: 0 | AR23: 0.008515265276 | AS23: =AR23*1 -> 0.008515265276 | AT23: =AS23*0 -> 0 | AU23: 0.008515265276 | AV23: 0.008930268992 | AW23: =AU23*1 -> 0.008515265276 | AX23: 0 | AY23: 0 | AZ23: 0 | BA23: 0.008515265276 | BB23: 0.008515265276 | BC23: 0
A24: CO | B24: =$B$38*VLOOKUP(A24,'Mole-Mass Frac Convert'!$A$2:$C$14,3,FALSE) -> 91196.76802 | C24: 91196.76802 | D24: 15252.3329 | E24: 0 | F24: 15252.3329 | G24: =F24*(1-0.81866) -> 2765.858048 | H24: =G24*(1-0.872515) -> 352.6054133 | I24: 76297.04053 | J24: =I24*0.999969394747119 -> 76294.70544 | K24: 2.335090219 | L24: 76294.70544 | M24: 76294.74001 | N24: 0 | O24: =M24*1 -> 76294.74001 | P24: 76294.74001 | Q24: =O24*((100-$P$17)/100) -> 0 | R24: 0 | S24: 0 | T24: 0 | U24: 0 | V24: 0 | W24: 0 | X24: 2.335090522 | Y24: 2.335090522 | Z24: =Y24+(Y20+Y25*-1*(1-$W$68)*-1)*-1*(1-$W$78)*-1 -> 48.84574058 | AA24: 48.84574058 | AB24: =AA24 -> 48.84574058 | AC24: 48.84574058 | AD24: 48.84574058 | AE24: 0 | AF24: 48.84574058 | AG24: =AF24 -> 48.84574058 | AH24: 48.84574058 | AI24: 0 | AJ24: 48.84574058 | AK24: 48.84574058 | AL24: 48.84574058 | AM24: 0 | AN24: 48.84574058 | AO24: 48.84574058 | AP24: 48.84574058 | AQ24: 0 | AR24: 48.84574058 | AS24: =AR24*(0.01548478*(AR24/AR26)-0.00175256) -> 0.03199119718 | AT24: =AS24*5.72783458082612E-07 -> 1.832402855e-08 | AU24: 0.03199117886 | AV24: 0.034571596 | AW24: =AU24*0.999991846452391 -> 0.03199091801 | AX24: 2.791656284e-07 | AY24: 3.02394893e-07 | AZ24: 0 | BA24: 2.335090522 | BB24: 2.335090522 | BC24: 0
A25: COS | B25: =$B$38*VLOOKUP(A25,'Mole-Mass Frac Convert'!$A$2:$C$14,3,FALSE) -> 113.7912205 | C25: 113.7912205 | D25: 19.03117417 | E25: 0 | F25: 19.03117417 | G25: =F25*(1-0.90175) -> 1.869812863 | H25: =G25*(1-0.811633) -> 0.3522110395 | I25: 95.11225735 | J25: =I25*1 -> 95.11225735 | K25: 0 | L25: 95.11225735 | M25: 95.12331067 | N25: 0 | O25: =M25*0 -> 0 | P25: 0 | Q25: 0 | R25: 0 | S25: 0 | T25: 0 | U25: 95.12331067 | V25: 0.9512331067 | W25: 0 | X25: 1.609027076e-06 | Y25: 94.17207917 | Z25: =Y25+Y25*-1*(1-W68) -> 0.9649410425 | AA25: 1.916174149 | AB25: =AA25+AA27*0.00813 -> 3.511578821 | AC25: 3.511578821 | AD25: 3.511578821 | AE25: 0 | AF25: 3.511578821 | AG25: =AF25*(1-0.85621) -> 0.5049299186 | AH25: 0.5049299186 | AI25: 0 | AJ25: 0.5049299186 | AK25: 0.5049299186 | AL25: 0.5049299186 | AM25: 0 | AN25: 0.5049299186 | AO25: 0.5049299186 | AP25: 0.5049299186 | AQ25: 0 | AR25: 0.5049299186 | AS25: =AR25*0.0218861821211535 -> 0.01105098816 | AT25: =AS25*0.000128110492756866 -> 1.415747538e-06 | AU25: 0.01104957241 | AV25: 0.0110533153 | AW25: =AU25*0.999982519132809 -> 0.01104937925 | AX25: 1.608903646e-06 | AY25: 1.609027076e-06 | AZ25: 0 | BA25: 1.609027076e-06 | BB25: 1.609027076e-06 | BC25: 0
A26: H2 | B26: =$B$38*VLOOKUP(A26,'Mole-Mass Frac Convert'!$A$2:$C$14,3,FALSE) -> 43577.34503 | C26: 43577.34503 | D26: 7288.154918 | E26: 0 | F26: 7288.154918 | G26: =F26+(F24-G24) -> 19774.62977 | H26: =G26+(G24-H24) -> 22187.88241 | I26: 58477.07251 | J26: =I26*0.999959072257041 -> 58474.67918 | K26: 2.393334593 | L26: 58474.67918 | M26: 58507.89787 | N26: 0 | O26: =M26*1 -> 58507.89787 | P26: 58507.89787 | Q26: 0 | R26: 0 | S26: 0 | T26: 0 | U26: 0 | V26: 0 | W26: 0 | X26: 2.393644867 | Y26: 2.393644867 | Z26: =Y26+(Y20+Y25*-1*(1-$W$68)*-1)*-1*(1-$W$78)+((Y27+Y25*-1*(1-$W$68)*-1)*-1-(Y27+Y25*-1*(1-$W$68)*-1)*-1*W94)*W83*-1 -> 442.7133181 | AA26: 442.7133181 | AB26: =AA26-AA26*0.2941+AA28*1/2*3 -> 314.1700798 | AC26: 314.1700798 | AD26: 314.1700798 | AE26: 0 | AF26: 314.1700798 | AG26: =AF26 -> 314.1700798 | AH26: 314.1700798 | AI26: 0 | AJ26: 314.1700798 | AK26: 314.1700798 | AL26: 314.1700798 | AM26: 0 | AN26: 314.1700798 | AO26: 314.1700798 | AP26: 314.1700798 | AQ26: 0 | AR26: 314.1700798 | AS26: =AR26*(2.28940183*(AR24/AR26) - 0.25631604) -> 31.30069712 | AT26: =AS26*1.04425866596494E-06 -> 3.268602421e-05 | AU26: 31.30066443 | AV26: 33.21868737 | AW26: =AU26*0.999991719089431 -> 31.30040523 | AX26: 0.0002918840271 | AY26: 0.0003102742699 | AZ26: 0 | BA26: 2.393644867 | BB26: 2.393644867 | BC26: 0
A27: H2S | B27: =$B$38*VLOOKUP(A27,'Mole-Mass Frac Convert'!$A$2:$C$14,3,FALSE) -> 1225.910092 | C27: 1225.910092 | D27: 205.0290733 | E27: 0 | F27: 205.0290733 | G27: =F27+(F25-G25) -> 222.1904346 | H27: =G27+(G25-H25) -> 223.7080364 | I27: 1244.589055 | J27: =I27*0.992825624256985 -> 1235.659906 | K27: 8.929149529 | L27: 1235.659906 | M27: 1347.644783 | N27: 0 | O27: =M27*0.0000001 -> 0.0001347644783 | P27: 0.0001347644783 | Q27: 0 | R27: 0 | S27: 0 | T27: 0 | U27: 1347.644648 | V27: 13.47644648 | W27: 0 | X27: 9.109165374 | Y27: 1343.277367 | Z27: =Y27+Y25*-1*(1-$W$68)*-1+((Y27+Y25*-1*(1-$W$68)*-1)*-1-(Y27+Y25*-1*(1-$W$68)*-1)*-1*W94)*W83+(((Y27+Y25*-1*(1-$W$68)*-1)*-1-(Y27+Y25*-1*(1-$W$68)*-1)*-1*W94)-((Y27+Y25*-1*(1-$W$68)*-1)*-1-(Y27+Y25*-1*(1-$W$68)*-1)*-1*W94)*W83)*(1-W88)+(Y27+Y25*-1*(1-$W$68)*-1)*-1*W94 -> 182.7602905 | AA27: 196.236737 | AB27: =AA27-AA27*0.30098-AA27*0.04089-AA27*0.00813 -> 127.553879 | AC27: 127.553879 | AD27: 127.553879 | AE27: 0 | AF27: 127.553879 | AG27: =AF27-AF27*0.14923-AF27*0.57719+AF25*0.85621 -> 37.90283913 | AH27: 37.90283913 | AI27: 0 | AJ27: 37.90283913 | AK27: =AJ27-AJ27*0.14923-AJ27*0.57719 -> 10.36945873 | AL27: 10.36945873 | AM27: 0 | AN27: 10.36945873 | AO27: =AN27-AN27*0.14923-AN27*0.57719 -> 2.836876519 | AP27: 2.836876519 | AQ27: 0 | AR27: 2.836876519 | AS27: =AR27*39.5097879180144 -> 112.0843896 | AT27: =AS27*0.00136500220499607 -> 0.152995439 | AU27: 111.9313942 | AV27: 111.9848771 | AW27: =AU27*0.999758809298668 -> 111.9043974 | AX27: 0.1799922504 | AY27: 0.180015845 | AZ27: 0 | BA27: 9.109165374 | BB27: 9.109165374 | BC27: 0
A28: NH3 | B28: =$B$38*VLOOKUP(A28,'Mole-Mass Frac Convert'!$A$2:$C$14,3,FALSE) -> 217.8700705 | C28: 217.8700705 | D28: 36.43798916 | E28: 0 | F28: 36.43798916 | G28: =F28 -> 36.43798916 | H28: 36.43798916 | I28: 217.8700705 | J28: =I28*0 -> 0 | K28: 217.8700705 | L28: 0 | M28: 0 | N28: 0 | O28: =M28*0 -> 0 | P28: 0 | Q28: 0 | R28: 0 | S28: 0 | T28: 0 | U28: 0 | V28: 0 | W28: 0 | X28: =BB28*0.8 -> 174.2960564 | Y28: 174.2960564 | Z28: =Y28+Y28*-1*(1-W73) -> 1.105832402 | AA28: 1.105832402 | AB28: =AA28-AA28*1 -> 0 | AC28: 0 | AD28: 0 | AE28: 0 | AF28: 0 | AG28: =AF28 -> 0 | AH28: 0 | AI28: 0 | AJ28: 0 | AK28: =AJ28 -> 0 | AL28: 0 | AM28: 0 | AN28: 0 | AO28: =AN28 -> 0 | AP28: 0 | AQ28: 0 | AR28: 0 | AS28: =AR28*1 -> 0 | AT28: =AS28*0 -> 0 | AU28: 0 | AV28: 0 | AW28: =AU28*1 -> 0 | AX28: 0 | AY28: 0 | AZ28: 0 | BA28: 217.8700705 | BB28: 217.8700705 | BC28: 0
A29: SO2 | B29: =$B$38*VLOOKUP(A29,'Mole-Mass Frac Convert'!$A$2:$C$14,3,FALSE) -> 0 | C29: 0 | D29: 0 | E29: 0 | F29: 0 | G29: 0 | H29: 0 | I29: 0 | J29: 0 | K29: 0 | L29: 0 | M29: 1.142381532e-09 | N29: 0 | O29: 0 | P29: 0 | Q29: 0 | R29: 0 | S29: 0 | T29: 0 | U29: 1.142381532e-09 | V29: 1.142381532e-11 | W29: 0 | X29: =BB29 -> 5.823292543e-12 | Y29: 1.136781009e-09 | Z29: =Y29+(Y27+Y25*-1*(1-$W$68)*-1)*-1*$W$94*-1 -> 271.2781384 | AA29: 271.2781384 | AB29: =AA29-(AA27*0.30098)/2-AA27*0.04089/2-AA26*0.2941/2 -> 172.6334183 | AC29: 172.6334183 | AD29: 172.6334183 | AE29: 0 | AF29: 172.6334183 | AG29: =AF29-0.14923*AF27/2-AF27*0.57719/2 -> 126.3045739 | AH29: 126.3045739 | AI29: 0 | AJ29: 126.3045739 | AK29: =AJ29-0.14923*AJ27/2-AJ27*0.57719/2 -> 112.5378837 | AL29: 112.5378837 | AM29: 0 | AN29: 112.5378837 | AO29: =AN29-0.14923*AN27/2-AN27*0.57719/2 -> 108.7715926 | AP29: 108.7715926 | AQ29: 0 | AR29: 108.7715926 | AS29: =AR29*1.05546168722946E-11 -> 1.148042487e-09 | AT29: =AS29*0.00429150211085387 -> 4.926826755e-12 | AU29: 1.14311566e-09 | AV29: 1.142381532e-09 | AW29: =AU29*0.999213567667373 -> 1.142216677e-09 | AX29: 5.82580987e-12 | AY29: 5.823292543e-12 | AZ29: 0 | BA29: 5.823292543e-12 | BB29: 5.823292543e-12 | BC29: 0
A30: SULFU-01 | B30: =B38*0 -> 0 | C30: 0 | D30: 0 | E30: 0 | F30: 0 | G30: 0 | H30: 0 | I30: 0 | J30: 0 | K30: 0 | L30: 0 | M30: 0 | N30: 0 | O30: 0 | P30: 0 | Q30: 0 | R30: 0 | S30: 0 | T30: 0 | U30: 0 | V30: 0 | W30: 0 | X30: 0 | Y30: 0 | Z30: =Y30 -> 0 | AA30: 0 | AB30: =AA30 -> 0 | AC30: 0 | AD30: 0 | AE30: 0 | AF30: 0 | AG30: =AF30 -> 0 | AH30: 0 | AI30: 0 | AJ30: 0 | AK30: =AJ30 -> 0 | AL30: 0 | AM30: 0 | AN30: 0 | AO30: =AN30 -> 0 | AP30: 0 | AQ30: 0 | AR30: 0 | AS30: =AR30*1 -> 0 | AT30: =AS30*0 -> 0 | AU30: 0 | AV30: 0 | AW30: =AU30*1 -> 0 | AX30: 0 | AY30: 0 | AZ30: 0 | BA30: 0 | BB30: 0 | BC30: 0
A31: SO3 | B31: =B38*0 -> 0 | C31: 0 | D31: 0 | E31: 0 | F31: 0 | G31: 0 | H31: 0 | I31: 0 | J31: 0 | K31: 0 | L31: 0 | M31: 0 | N31: 0 | O31: 0 | P31: 0 | Q31: 0 | R31: 0 | S31: 0 | T31: 0 | U31: 0 | V31: 0 | W31: 0 | X31: 0 | Y31: 0 | Z31: =Y31 -> 0 | AA31: 0 | AB31: =AA31 -> 0 | AC31: 0 | AD31: 0 | AE31: 0 | AF31: 0 | AG31: =AF31 -> 0 | AH31: 0 | AI31: 0 | AJ31: 0 | AK31: =AJ31 -> 0 | AL31: 0 | AM31: 0 | AN31: 0 | AO31: =AN31 -> 0 | AP31: 0 | AQ31: 0 | AR31: 0 | AS31: =AR31*1 -> 0 | AT31: 0 | AU31: 0 | AV31: 0 | AW31: 0 | AX31: 0 | AY31: 0 | AZ31: 0 | BA31: 0 | BB31: 0 | BC31: 0
A32: C | B32: =B38*0 -> 0 | C32: 0 | D32: 0 | E32: 0 | F32: 0 | G32: 0 | H32: 0 | I32: 0 | J32: 0 | K32: 0 | L32: 0 | M32: 0 | N32: 0 | O32: 0 | P32: 0 | Q32: 0 | R32: 0 | S32: 0 | T32: 0 | U32: 0 | V32: 0 | W32: 0 | X32: 0 | Y32: 0 | Z32: =Y32 -> 0 | AA32: 0 | AB32: =AA32 -> 0 | AC32: 0 | AD32: 0 | AE32: 0 | AF32: 0 | AG32: =AF32 -> 0 | AH32: 0 | AI32: 0 | AJ32: 0 | AK32: =AJ32 -> 0 | AL32: 0 | AM32: 0 | AN32: 0 | AO32: =AN32 -> 0 | AP32: 0 | AQ32: 0 | AR32: 0 | AS32: =AR32*1 -> 0 | AT32: 0 | AU32: 0 | AV32: 0 | AW32: 0 | AX32: 0 | AY32: 0 | AZ32: 0 | BA32: 0 | BB32: 0 | BC32: 0
A33: S | B33: =B38*0 -> 0 | C33: 0 | D33: 0 | E33: 0 | F33: 0 | G33: 0 | H33: 0 | I33: 0 | J33: 0 | K33: 0 | L33: 0 | M33: 0 | N33: 0 | O33: 0 | P33: 0 | Q33: 0 | R33: 0 | S33: 0 | T33: 0 | U33: 0 | V33: 0 | W33: 0 | X33: 0 | Y33: 0 | Z33: =Y33 -> 0 | AA33: 0 | AB33: =AA33 -> 0 | AC33: 0 | AD33: 0 | AE33: 0 | AF33: 0 | AG33: =AF33 -> 0 | AH33: 0 | AI33: 0 | AJ33: 0 | AK33: =AJ33 -> 0 | AL33: 0 | AM33: 0 | AN33: 0 | AO33: =AN33 -> 0 | AP33: 0 | AQ33: 0 | AR33: 0 | AS33: =AR33*1 -> 0 | AT33: 0 | AU33: 0 | AV33: 0 | AW33: 0 | AX33: 0 | AY33: 0 | AZ33: 0 | BA33: 0 | BB33: 0 | BC33: 0
A34: S2 | B34: =B38*0 -> 0 | C34: 0 | D34: 0 | E34: 0 | F34: 0 | G34: 0 | H34: 0 | I34: 0 | J34: 0 | K34: 0 | L34: 0 | M34: 1.226057563e-12 | N34: 0 | O34: 0 | P34: 0 | Q34: 0 | R34: 0 | S34: 0 | T34: 0 | U34: 1.226057563e-12 | V34: 1.226057563e-14 | W34: 0 | X34: 0 | Y34: 1.213796988e-12 | Z34: =Y34+((Y27+Y25*-1*(1-$W$68)*-1)*-1-(Y27+Y25*-1*(1-$W$68)*-1)*-1*W94)*W83/2*-1+(((Y27+Y25*-1*(1-$W$68)*-1)*-1-(Y27+Y25*-1*(1-$W$68)*-1)*-1*W94)-((Y27+Y25*-1*(1-$W$68)*-1)*-1-(Y27+Y25*-1*(1-$W$68)*-1)*-1*W94)*W83)*(1-$W$88)/2*-1 -> 491.2230381 | AA34: 491.2230381 | AB34: =AA34+(AA27*0.30098)/2*1.5+(AA26+AA28*1/2*3)*0.2941/2*0.5 -> 568.1929942 | AC34: =AB34*0.002156057 -> 1.225056482 | AD34: =AC34-AC34*0.999 -> 0.001225056482 | AE34: 0 | AF34: 0.001225056482 | AG34: =AF34 -> 0.001225056482 | AH34: =AG34-AG34*0.999 -> 1.225056482e-06 | AI34: 0 | AJ34: 1.225056482e-06 | AK34: =AJ34 -> 1.225056482e-06 | AL34: =AK34-AK34*0.999 -> 1.225056482e-09 | AM34: 0 | AN34: 1.225056482e-09 | AO34: =AN34 -> 1.225056482e-09 | AP34: =AO34-AO34*0.999 -> 1.225056482e-12 | AQ34: 0 | AR34: 1.225056482e-12 | AS34: =AR34*1 -> 1.225056482e-12 | AT34: 0 | AU34: 1.225056482e-12 | AV34: 1.226057563e-12 | AW34: 1.225056482e-12 | AX34: 0 | AY34: 0 | AZ34: 0 | BA34: 0 | BB34: 0 | BC34: 0
A35: S6 | B35: =B38*0 -> 0 | C35: 0 | D35: 0 | E35: 0 | F35: 0 | G35: 0 | H35: 0 | I35: 0 | J35: 0 | K35: 0 | L35: 0 | M35: 4.698169839e-20 | N35: 0 | O35: 0 | P35: 0 | Q35: 0 | R35: 0 | S35: 0 | T35: 0 | U35: 4.698169839e-20 | V35: 4.698169839e-22 | W35: 0 | X35: 0 | Y35: 4.65118814e-20 | Z35: =Y35 -> 4.65118814e-20 | AA35: 4.698169839e-20 | AB35: =AA27*0.04089/2*0.5 -> 2.006030044 | AC35: =(AB34-AC34)*0.0698282415270602 -> 39.59037409 | AD35: =AC35-AC35*0.999 -> 0.03959037409 | AE35: 0 | AF35: 0.03959037409 | AG35: =AF35+0.14923*AF27/2*0.5 -> 4.798306716 | AH35: =AG35-AG35*0.999 -> 0.004798306716 | AI35: 0 | AJ35: 0.004798306716 | AK35: =AJ35+0.14923*AJ27/2*0.5 -> 1.418858477 | AL35: =AK35-AK35*0.999 -> 0.001418858477 | AM35: 0 | AN35: 0.001418858477 | AO35: =AN35+0.14923*AN27/2*0.5 -> 0.38827744 | AP35: =AO35-AO35*0.999 -> 0.00038827744 | AQ35: 0 | AR35: 0.00038827744 | AS35: =AR35*1.2091337120626E-16 -> 4.694793423e-20 | AT35: 0 | AU35: 4.694793423e-20 | AV35: 4.698169839e-20 | AW35: 4.694793423e-20 | AX35: 0 | AY35: 0 | AZ35: 0 | BA35: 0 | BB35: 0 | BC35: 0
A36: S8 | B36: =B38*0 -> 0 | C36: 0 | D36: 0 | E36: 0 | F36: 0 | G36: 0 | H36: 0 | I36: 0 | J36: 0 | K36: 0 | L36: 0 | M36: 1.712741139e-26 | N36: 0 | O36: 0 | P36: 0 | Q36: 0 | R36: 0 | S36: 0 | T36: 0 | U36: 1.712741139e-26 | V36: 1.712741139e-28 | W36: 0 | X36: 0 | Y36: 1.695613727e-26 | Z36: =Y36 -> 1.695613727e-26 | AA36: 1.712741139e-26 | AB36: =AA36 -> 1.712741139e-26 | AC36: =(AB34-AC34)*0.197628818854705 -> 112.0492039 | AD36: =AC36+(AC34-AD34)/4+(AC35-AD35)/1.33333 -> 142.0183237 | AE36: =0.952*AD36 -> 135.2014441 | AF36: 6.816879536 | AG36: =AF36++AF27*0.57719/2*0.375 -> 20.62115893 | AH36: =AG36+(AG34-AH34)/4+(AG35-AH35)/1.33333 -> 24.21660518 | AI36: =0.985*AH36 -> 23.8533561 | AJ36: 0.3632490777 | AK36: =AJ36++AJ27*0.57719/2*0.375 -> 4.465212774 | AL36: =AK36+(AK34-AL34)/4+(AK35-AL35)/1.33333 -> 5.528295452 | AM36: =0.985*AL36 -> 5.445371021 | AN36: 0.08292443179 | AO36: =AN36++AN27*0.57719/2*0.375 -> 1.20513966 | AP36: =AO36+(AO34-AP34)/4+(AO35-AP35)/1.33333 -> 1.496057259 | AQ36: =0.985*AP36 -> 1.473616401 | AR36: 0.02244085889 | AS36: =AR36*7.62675771098182E-25 -> 1.711509936e-26 | AT36: 0 | AU36: 1.711509936e-26 | AV36: 1.712741139e-26 | AW36: 1.711509936e-26 | AX36: 0 | AY36: 0 | AZ36: 0 | BA36: 0 | BB36: 0 | BC36: 0
A37: HCL | B37: =$B$38*VLOOKUP(A37,'Mole-Mass Frac Convert'!$A$2:$C$14,3,FALSE) -> 43.97004419 | C37: 43.97004419 | D37: 7.353832447 | E37: 0 | F37: 7.353832447 | G37: 7.353832447 | H37: 7.353832447 | I37: 43.97004419 | J37: 0 | K37: 43.97004419 | L37: 0 | M37: 0 | N37: 0 | O37: 0 | P37: 0 | Q37: 0 | R37: 0 | S37: 0 | T37: 0 | U37: 0 | V37: 0 | W37: 0 | X37: 0 | Y37: 0 | Z37: =Y37 -> 0 | AA37: 0 | AB37: =AA37 -> 0 | AC37: =AB37 -> 0 | AD37: =AC37 -> 0 | AE37: =0*AD37 -> 0 | AF37: 0 | AG37: =AF37 -> 0 | AH37: =AG37 -> 0 | AI37: =0*AH37 -> 0 | AJ37: 0 | AK37: =AJ37 -> 0 | AL37: =AK37 -> 0 | AM37: =0*AL37 -> 0 | AN37: 0 | AO37: =AN37 -> 0 | AP37: =AO37 -> 0 | AQ37: =0*AP37 -> 0 | AR37: 0 | AS37: =AR37*1 -> 0 | AT37: 0 | AU37: 0 | AV37: 0 | AW37: 0 | AX37: 0 | AY37: 0 | AZ37: 0 | BA37: 43.97004419 | BB37: 0 | BC37: 0
A38: Total Flow lbmol/hr | B38: 214070.3222 | C38: =SUM(C18:C37) -> 214070.3158 | D38: 35802.4938 | E38: 15591.42384 | F38: 51393.91764 | G38: 51393.91764 | H38: 51393.91764 | I38: 229661.7397 | J38: 158117.2166 | K38: 71544.52305 | L38: 158117.2166 | M38: 158492.9296 | N38: =SUM(N18:N37) -> 10013.92726 | O38: =SUM(O18:O37) -> 139030.082 | P38: 139030.082 | Q38: 0 | R38: 17684.96879 | S38: 37299.62877 | T38: 54984.59756 | U38: 1777.87878 | V38: 17.7787878 | W38: =SUM(W18:W37) -> 825.5508792 | X38: 320.3385466 | Y38: 2905.989418 | Z38: 3058.529793 | AA38: 3076.30858 | AB38: 3057.745679 | AC38: 2640.411289 | AD38: 2629.605794 | AE38: 135.2014441 | AF38: 2494.404349 | AG38: 2466.638501 | AH38: 2465.439215 | AI38: 23.8533561 | AJ38: 2441.585859 | AK38: 2432.902866 | AL38: 2432.548508 | AM38: 5.445371021 | AN38: 2427.103137 | AO38: 2424.413594 | AP38: 2424.316622 | AQ38: 1.473616401 | AR38: 2422.843006 | AS38: 2312.151825 | AT38: 1875.635229 | AU38: 436.5165963 | AV38: 375.7129798 | AW38: =SUM(AW18:AW37) -> 373.083993 | AX38: 1939.067832 | AY38: 1948.619655 | AZ38: ='F-T Black Box Dashboard'!$C$31*Syngas!$B$38 -> 0 | BA38: =SUM(BA18:BA37) -> 73493.14271 | BB38: =SUM(BB18:BB37) -> 66127.46758 | BC38: =SUM(BC18:BC37) -> 11475.75075
A39: Temperature F | B39: 378.726468 | D39: =C39 -> 0 | E39: 550 | F39: 426 | G39: 400 | I39: =4666.63127974*(I18/I38)^2-4194.83809394*(I18/I38)+1256.63499507 -> 402.402106 | J39: 95 | K39: 249 | L39: =J39 -> 95 | M39: =L39 -> 95 | N39: 298 | O39: =M39 -> 95 | P39: =O39 -> 95 | Q39: =P39 -> 95 | R39: 60 | S39: 100 | T39: N/A | U39: 119 | W39: 450 | AE39: 365 | AF39: 450 | AI39: 340 | AJ39: 420 | AM39: 320 | AN39: 375 | AQ39: 280 | AR39: 450 | AS39: 550 | AT39: 120 | AU39: 120 | AV39: 103 | AW39: 103 | AY39: 120 | AZ39: 379 | BA39: 271 | BB39: =BA39 -> 271 | BC39: 298
A40: Pressure psia | B40: 580 | C40: 560 | D40: 575 | E40: 800 | F40: 575 | G40: 575 | H40: 560 | I40: 560 | J40: 525 | K40: 530 | L40: 520 | M40: =L40 -> 520 | N40: 65 | O40: =M40 -> 520 | P40: =O40 -> 520 | Q40: =P40 -> 520 | R40: 135 | S40: 265 | T40: N/A | U40: 23.7 | AV40: 799.5 | AW40: 799.5 | AY40: 375 | AZ40: 580 | BA40: 580 | BB40: =BA40 -> 580 | BC40: 65
R42: =R20*(1-'F-T Black Box Dashboard'!$H$3) -> 17684.96879 | S42: =S20*(1-'F-T Black Box Dashboard'!$H$3) -> 37299.62877 | T42: =T20*(1-'F-T Black Box Dashboard'!$H$3) -> 54984.59756 | AY42: SWS Composition
AY43: H2O | AZ43: 4048.33447 | BA43: =AZ43/$AZ$63 -> 0.9993595866
AY44: AR | AZ44: 0.01156049 | BA44: =AZ44/$AZ$63 -> 2.85378755e-06
AY45: CO2 | AZ45: 0.24978597 | BA45: 6.166140806e-05
AY46: O2 | AZ46: 0 | BA46: 0
AY47: N2 | AZ47: 0.00869444 | BA47: 2.146283127e-06
AY48: CH4 | AZ48: 0.0004264 | BA48: 1.052598126e-07
AY49: CO | AZ49: 0.80020262 | BA49: 0.0001975355953
AY50: COS | AZ50: 0.00019681 | BA50: 4.858392055e-08
AY51: H2 | AZ51: 0.56635068 | BA51: 0.0001398076136
AY52: H2S | AZ52: 0.19366716 | BA52: 4.780808858e-05
AY53: NH3 | AZ53: 0.76338452 | BA53: 0.0001884467906
AY54: SO2 | AZ54: 0 | BA54: 0
AY55: SULFU-01 | AZ55: 0 | BA55: 0
AY56: SO3 | AZ56: 0 | BA56: 0
AY57: C | AZ57: 0 | BA57: 0
AY58: S | AZ58: 0 | BA58: 0
AY59: S2 | AZ59: 0 | BA59: 0
AY60: S6 | AZ60: 0 | BA60: 0
AY61: S8 | AZ61: 0 | BA61: 0
AY62: HCL | AZ62: 0 | BA62: 0
AY63: Total Flow lbmol/hr | AZ63: =SUM(AZ43:AZ62) -> 4050.928739
AZ64: 0.01841759547 | BA64: lb-mol sour water/lb-mol raw syngas
W66: COS | X66: H2O | Y66: = | Z66: CO2 | AA66: H2S
W67: =Y25*-1 -> -94.17207917 | X67: =$W$67*(1-$W$68) -> -93.20713813 | Z67: =$W$67*(1-$W$68)*-1 -> 93.20713813 | AA67: =$W$67*(1-$W$68)*-1 -> 93.20713813
V68: Extent | W68: 0.01024657256
V69: RX | W69: 6
W71: 2NH3 | X71: 1.5O2 | Y71: = | Z71: N2 | AA71: 3H2O
W72: =Y28*-1 -> -174.2960564 | X72: =$W$72*(1-$W$73)/2*1.5 -> -129.892668 | Z72: =$W$72*(1-$W$73)*-1/2 -> 86.59511198 | AA72: =$W$72*(1-$W$73)*-1/2*3 -> 259.7853359
V73: Extent | W73: 0.006344563525
V74: RX | W74: 5
W76: CO2 | X76: H2 | Y76: = | Z76: CO | AA76: H2O
W77: =(Y20+Y25*-1*(1-$W$68)*-1)*-1 -> -93.21332291 | X77: =$W$77*(1-$W$78) -> -46.51065006 | Z77: =$W$77*(1-$W$78)*-1 -> 46.51065006 | AA77: =$W$77*(1-$W$78)*-1 -> 46.51065006
V78: Extent | W78: 0.501030018
V79: RX | W79: 4
W81: 2 H2S | Y81: = | Z81: S2 | AA81: H2
W82: =((Y27+Y25*-1*(1-$W$68)*-1)*-1-(Y27+Y25*-1*(1-$W$68)*-1)*-1*W94) -> -1165.206367 | Z82: =W82*W83/2*-1 -> 243.4151616 | AA82: =W82*W83*-1 -> 486.8303233
V83: Extent | W83: 0.4178060961
V84: RX | W84: 3
W86: 2 H2S | X86: O2 | Y86: = | Z86: S2 | AA86: 2 H2O
W87: =(((Y27+Y25*-1*(1-$W$68)*-1)*-1-(Y27+Y25*-1*(1-$W$68)*-1)*-1*W94)-((Y27+Y25*-1*(1-$W$68)*-1)*-1-(Y27+Y25*-1*(1-$W$68)*-1)*-1*W94)*W83) -> -678.3760435 | X87: =$W$87*(1-$W$88)/2 -> -247.8078765 | Z87: =$W$87*(1-$W$88)/2*-1 -> 247.8078765 | AA87: =$W$87*(1-$W$88)*-1 -> 495.615753
V88: Extent | W88: 0.2694085268
V89: RX | W89: 2
W92: H2S | X92: 1.5 O2 | Y92: = | Z92: SO2 | AA92: H2O
W93: =(Y27+Y25*-1*(1-$W$68)*-1)*-1 -> -1436.484505 | X93: =$W$93*1.5*$W$94 -> -406.9172076 | Z93: =$W$93*$W$94*-1 -> 271.2781384 | AA93: =($W$93*$W$94)*-1 -> 271.2781384
V94: Extent | W94: 0.1888486353
V95: RX | W95: 1

Sheet FT
A1: Hydrogen Needed | B1: 83.27535807 | E1: Boiler = 2 | F1: =IF('F-T Black Box Dashboard'!$G$7="Gas Turbine",1,2) -> 1 | G1: =(1091.82524+2653.73468)/2813.36716*(S98+T98) -> 3576.521261
A2: Total Liquid Product Flow Goal over actual | B2: =(2775/(S98+T98+U98)) -> 0.9996336795 | E2: GT = 1 | O2: =3.648/15.768 -> 0.2313546423
A3: Recycle Percent | B3: ='F-T Black Box Dashboard'!H5*100 -> 80 | AC3: Power, kW | AD3: =12842/81881.3092*$E$10*4 -> 49049.74163
A4: H2:CO | B4: =E6/E10 -> 1.100000054 | Z4: =640.35/81881.3092*$E$10 -> 611.4507486 | AC4: 360 psig, lb/hr | AD4: =497910/81881.3092*$E$10*4 -> 1901756.491
B5: Syngas In | C5: Recycle In | D5: Steam In | E5: Mixed Syngas | F5: Hydro Recov Gas | G5: To Hydrogen | H5: Recycle Out | I5: From Hydrogen | J5: LPG Flow | K5: Fuel Gas 1 | L5: Fuel Gas 2 | M5: Raw Fuel Gas Total | N5: O2 to WGS | O5: Steam to WGS | P5: Total WGS | Q5: WGS Product | R5: AGR Product | S5: JetFuel | T5: Diesel | U5: Naphtha | V5: Water 1 | W5: Water 2 | X5: CO2 1 | Y5: CO2 2 | Z5: Fuel Gas to Plant | AA5: Fuel Gas Export | AC5: 600 psig, lb/hr | AD5: =-54492.5/81881.3092*$E$10*4 -> -208132.9268
A6: H2 | B6: =Syngas!P26 -> 58507.89787 | C6: 27496.67665 | D6: 0 | E6: =D6+C6+B6 -> 86004.57451 | F6: =0.999998510167178*(E6+-0.630434510871698*0.96628425949707*$E$10) -> 38375.26884 | G6: =($G$1/0.9)/$F$6*F6 -> 3973.912513 | H6: =(F6-G6)*$B$3/100 -> 27521.08506 | I6: =G6*0.1 -> 397.3912513 | J6: =($S$98+T98)*0.000268780809118666 -> 0.722052428 | K6: =F6-H6-G6+I6 -> 7277.662516 | L6: =$E$6*0.0000750201683795779 -> 6.452077661 | M6: =L6+K6 -> 7284.114594 | N6: 0 | O6: 0 | P6: =O6+N6+M6 -> 7284.114594 | Q6: =E112 -> 7741.892679 | R6: =Q6 -> 7741.892679 | S6: =(1-0.163783724642702)*$E$10*0 -> 0 | T6: =0.163783724642702*$E$10*0 -> 0 | U6: =$E$10*0 -> 0 | V6: =$E$10*2.75087806973289E-07 -> 0.02150800785 | W6: =$E$10*8.1263111203277E-08 -> 0.006353635418 | X6: =$E$10*0 -> 0 | Y6: 0 | Z6: =(LHV!$G$43/LHV!$E$39)*FT!R6 -> 2507.865708 | AA6: =R6-Z6 -> 5234.026971 | AC6: 50 psig, lb/hr | AD6: =-22557.5/81881.3092*$E$10*4 -> -86157.88404
A7: N2 | B7: =(Syngas!P22+Syngas!P19) -> 2779.68662 | C7: 6992.761145 | D7: 0 | E7: 9772.447765 | F7: =1.0000014761703*(E7+-0.0000395977680711051*0.96628425949707*$E$10) -> 9769.47058 | G7: 1011.667737 | H7: 7006.242274 | I7: =G7 -> 1011.667737 | J7: =($S$98+T98)*0.00018093084625527 -> 0.4860523981 | K7: =F7-H7-(G7-I7) -> 2763.228305 | L7: =$E$6*0.0000342008147634363 -> 2.941426522 | M7: =L7+K7 -> 2766.169732 | N7: =(500/11300.6327)*M98*0.05 -> 28.14161121 | O7: 0 | P7: =O7+N7+M7 -> 2794.311343 | Q7: =E113 -> 2786.659147 | R7: =Q7 -> 2786.659147 | S7: =(1-0.163783724642702)*$E$10*0 -> 0 | T7: =0.163783724642702*$E$10*0 -> 0 | U7: 0 | V7: =$E$10*5.56803500090558E-08 -> 0.004353422342 | W7: =$E$10*3.53565422927406E-08 -> 0.002764385661 | X7: 0 | Y7: 0 | Z7: =(LHV!$G$43/LHV!$E$39)*FT!R7 -> 902.6948839 | AA7: =R7-Z7 -> 1883.964263 | AC7: Cooling water, lb/hr | AD7: =871797.5/81881.3092*$E$10*4 -> 3329811.722
A8: O2 | B8: =Syngas!P21 -> 3.240375489e-08 | C8: 0 | D8: 0 | E8: 3.240375489e-08 | F8: =0*(E8+0*0.96628425949707*$E$10) -> 0 | G8: 0 | H8: 0 | I8: =G8 -> 0 | J8: =($S$98+T98)*0 -> 0 | K8: 0 | L8: =$E$6*0 -> 0 | M8: 0 | N8: =(500/11300.6327)*M98*0.95 -> 534.690613 | O8: 0 | P8: 534.690613 | Q8: 1.716188018e-19 | R8: 1.716188018e-19 | S8: 0 | T8: 0 | U8: 0 | V8: =$E$10*0 -> 0 | W8: =$E$10*0 -> 0 | X8: 0 | Y8: 0 | Z8: =(LHV!$G$43/LHV!$E$39)*FT!R8 -> 5.55932413e-20 | AA8: 1.160255605e-19 | AC8: 825 psig, lb/hr | AD8: =((M98+N98+O98)*(139643551/17400.5989)/861.9-(O12*18)) -> 74780.07838
A9: H2S | B9: =Syngas!P27 -> 0.0001347644783 | C9: 0.0003206431848 | D9: 0 | E9: 0.0004554076631 | F9: =0.988291632959667*(E9+-5.58640711376647E-12*0.96628425949707*$E$10) -> 0.0004496584722 | G9: 4.656393253e-05 | H9: 0.0003224756318 | I9: 4.656393253e-05 | J9: =($S$98+T98)*5.82966925475096E-11 -> 1.566081616e-07 | K9: 0.0001271828405 | L9: =$E$6*3.62918749646483E-12 -> 3.121267265e-07 | M9: 0.0001274949672 | N9: 0 | O9: 0 | P9: 0.0001274949672 | Q9: 0 | R9: 0 | S9: 0 | T9: 0 | U9: 0 | V9: =$E$10*6.66330326175778E-12 -> 5.209768489e-07 | W9: =$E$10*0 -> 0 | X9: 0 | Y9: 0 | Z9: =(LHV!$G$43/LHV!$E$39)*FT!R9 -> 0 | AA9: 0
A10: CO | B10: =Syngas!P24 -> 76294.74001 | C10: 1891.232982 | D10: 0 | E10: 78185.97299 | F10: =(1-0.96628425949707)*$E$10 -> 2636.097976 | G10: 272.9784846 | H10: 1890.495593 | I10: 272.9784846 | J10: =($S$98+T98)*0.0000529697482918719 -> 0.1422978653 | K10: 745.6023829 | L10: =$E$6*0.0000103962620661648 -> 0.8941260955 | M10: 746.496509 | N10: 0 | O10: 0 | P10: 746.496509 | Q10: 631.7899058 | R10: 631.7899058 | S10: 0 | T10: 0 | U10: 0 | V10: =$E$10*1.39671678433088E-08 -> 0.001092036608 | W10: =$E$10*7.48852210596045E-09 -> 0.0005854973871 | X10: 0 | Y10: 0 | Z10: =(LHV!$G$43/LHV!$E$39)*FT!R10 -> 204.6585124 | AA10: 427.1313933
A11: CO2 | B11: =Syngas!P20 -> 1400.05996 | C11: 77.41457485 | D11: 0 | E11: 1477.474535 | F11: =0.00296417979298404*(E11+0.462332582045836*0.96628425949707*$E$10) -> 107.9158365 | G11: 11.17511631 | H11: 77.39257613 | I11: 11.17511631 | J11: =($S$98+T98)*0.00276331299274137 -> 7.423360552 | K11: 30.52326035 | L11: =$E$6*0.000257202164187683 -> 22.12056269 | M11: 52.64382304 | N11: 0 | O11: 0 | P11: 52.64382304 | Q11: 691.5133134 | R11: =Q11*(1-0.995) -> 3.457566567 | S11: 0 | T11: 0 | U11: 0 | V11: =$E$10*0.0000444891099079876 -> 3.478424346 | W11: =$E$10*1.30584977206642E-06 -> 0.102099135 | X11: =$E$10*0.462419303013105 -> 36154.70314 | Y11: =$E$10*0.0146436194047213 -> 1144.925631 | Z11: =(LHV!$G$43/LHV!$E$39)*FT!R11 -> 1.120024907 | AA11: 2.33754166
A12: H2O | B12: =Syngas!P18 -> 0 | C12: 0 | D12: =(B10+C10)*(11087.4875/101099.363)-(B12+C12) -> 8574.594068 | E12: 8574.594068 | F12: =0*(E12+0.0677767051398649*0.96628425949707*$E$10) -> 0 | G12: 0 | H12: 0 | I12: 0 | J12: =($S$98+T98)*0.00330516654990421 -> 8.878995267 | K12: 0 | L12: =$E$6*5.08042980348244E-06 -> 0.4369402036 | M12: 0.4369402036 | N12: 0 | O12: =(5000/11300.6327)*M98 -> 5628.322242 | P12: 5628.759183 | Q12: =E118*0.01 -> 42.86883913 | R12: 42.86883913 | S12: 0 | T12: 0 | U12: 0 | V12: =$E$10*0.172902568363892 -> 13518.55554 | W12: =$E$10*0.0497181475235313 -> 3887.261739 | X12: =$E$10*0 -> 0 | Y12: 0 | Z12: =(LHV!$G$43/LHV!$E$39)*FT!R12 -> 13.88669361 | AA12: 28.98214552
A13: NH3 | B13: =Syngas!P28 -> 0 | C13: 0 | D13: 0 | E13: 0 | F13: =0*(E13+0*0.96628425949707*$E$10) -> 0 | G13: 0 | H13: 0 | I13: 0 | J13: =($S$98+T98)*0 -> 0 | K13: 0 | L13: =$E$6*0 -> 0 | M13: 0 | N13: 0 | O13: 0 | P13: 0 | Q13: =E119*0.23 -> 3.520010304 | R13: 3.520010304 | S13: 0 | T13: 0 | U13: 0 | V13: =$E$10*0 -> 0 | W13: =$E$10*0.000148011963902385 -> 11.57245941 | X13: 0 | Y13: 0 | Z13: =(LHV!$G$43/LHV!$E$39)*FT!R13 -> 1.140252584 | AA13: 2.37975772
A14: HCL | B14: =Syngas!P37 -> 0 | C14: 0 | D14: 0 | E14: 0 | F14: 0 | G14: 0 | H14: 0 | I14: 0 | J14: =($S$98+T98)*0 -> 0 | K14: 0 | L14: 0 | M14: 0 | N14: 0 | O14: 0 | P14: 0 | Q14: 0 | R14: 0 | S14: 0 | T14: 0 | U14: 0 | V14: 0 | W14: =$E$10*0 -> 0 | X14: 0 | Y14: 0 | Z14: =(LHV!$G$43/LHV!$E$39)*FT!R14 -> 0 | AA14: 0
A15: C | B15: =Syngas!P32 -> 0 | C15: 0 | D15: 0 | E15: 0 | F15: 0 | G15: 0 | H15: 0 | I15: 0 | J15: =($S$98+T98)*0 -> 0 | K15: 0 | L15: 0 | M15: 0 | N15: 0 | O15: 0 | P15: 0 | Q15: 0 | R15: 0 | S15: 0 | T15: 0 | U15: 0 | V15: 0 | W15: =$E$10*0 -> 0 | X15: 0 | Y15: 0 | Z15: =(LHV!$G$43/LHV!$E$39)*FT!R15 -> 0 | AA15: 0
A16: HCN | B16: 0 | C16: 0 | D16: 0 | E16: 0 | F16: 0 | G16: 0 | H16: 0 | I16: 0 | J16: =($S$98+T98)*0 -> 0 | K16: 0 | L16: 0 | M16: 0 | N16: 0 | O16: 0 | P16: 0 | Q16: 0 | R16: 0 | S16: 0 | T16: 0 | U16: 0 | V16: 0 | W16: =$E$10*7.43014492562466E-11 -> 5.809331105e-06 | X16: 0 | Y16: 0 | Z16: =(LHV!$G$43/LHV!$E$39)*FT!R16 -> 0 | AA16: 0
A17: SULFUR | B17: =Syngas!P33 -> 0 | C17: 0 | D17: 0 | E17: 0 | F17: 0 | G17: 0 | H17: 0 | I17: 0 | J17: =($S$98+T98)*0 -> 0 | K17: 0 | L17: 0 | M17: 0 | N17: 0 | O17: 0 | P17: 0 | Q17: 0 | R17: 0 | S17: 0 | T17: 0 | U17: 0 | V17: 0 | W17: =$E$10*0 -> 0 | X17: 0 | Y17: 0 | Z17: =(LHV!$G$43/LHV!$E$39)*FT!R17 -> 0 | AA17: 0
A18: COS | B18: =Syngas!P25 -> 0 | C18: 0 | D18: 0 | E18: 0 | F18: 0 | G18: 0 | H18: 0 | I18: 0 | J18: =($S$98+T98)*0 -> 0 | K18: 0 | L18: 0 | M18: 0 | N18: 0 | O18: 0 | P18: 0 | Q18: 0 | R18: 0 | S18: 0 | T18: 0 | U18: 0 | V18: 0 | W18: =$E$10*0 -> 0 | X18: 0 | Y18: 0 | Z18: =(LHV!$G$43/LHV!$E$39)*FT!R18 -> 0 | AA18: 0
A19: CH4 | B19: =Syngas!P23 -> 47.6974235 | C19: 2476.447673 | D19: 0 | E19: 2524.145096 | F19: =0.999982120452449*(E19+0.0112908112791481*0.96628425949707*$E$10) -> 3377.104095 | G19: 349.7126307 | H19: 2421.913171 | I19: 349.7126307 | J19: =($S$98+T98)*0.00012372160864433 -> 0.332365574 | K19: 955.1909236 | L19: =$E$6*0.00051683209299428 -> 44.44992425 | M19: 999.6408478 | N19: 0 | O19: 0 | P19: 999.6408478 | Q19: 2912.621816 | R19: 2912.621816 | S19: 0 | T19: 0 | U19: 0 | V19: =$E$10*1.51978882604589E-07 -> 0.01188261681 | W19: =$E$10*4.71601028366547E-07 -> 0.03687258527 | X19: 0 | Y19: 0 | Z19: =(LHV!$G$43/LHV!$E$39)*FT!R19 -> 943.4985312 | AA19: 1969.123285
A20: C2H4 | B20: 0 | C20: 840.6256523 | D20: 0 | E20: 840.6256523 | F20: =0.997355349562249*(E20+0.00444833338706985*0.96628425949707*$E$10) -> 1173.584732 | G20: 121.529391 | H20: 841.644273 | I20: 121.529391 | J20: =($S$98+T98)*0.00108987486956351 -> 2.92783848 | K20: 331.9404593 | L20: =$E$6*7.89244669096517E-06 -> 0.6787865195 | M20: 332.6192458 | N20: 0 | O20: 0 | P20: 332.6192458 | Q20: 0.01317958083 | R20: 0.01317958083 | S20: 0 | T20: 0 | U20: 0 | V20: =$E$10*8.4385801839272E-08 -> 0.006597786023 | W20: =$E$10*2.15336076083785E-12 -> 1.683626063e-07 | X20: 0 | Y20: 0 | Z20: =(LHV!$G$43/LHV!$E$39)*FT!R20 -> 0.004269320202 | AA20: 0.008910260632
A21: C2H6 | B21: 0 | C21: 172.1107078 | D21: 0 | E21: 172.1107078 | F21: =0.937631772799347*(E21+0.00111201351667854*0.96628425949707*$E$10) -> 240.1492407 | G21: 24.86841399 | H21: 172.2246614 | I21: 24.86841399 | J21: =($S$98+T98)*0.00534458308387573 -> 14.35768128 | K21: 67.92457933 | L21: =$E$6*0.00059693824839676 -> 51.33942006 | M21: 119.2639994 | N21: 0 | O21: 0 | P21: 119.2639994 | Q21: 0.5376005087 | R21: 0.5376005087 | S21: 0 | T21: 0 | U21: 0 | V21: =$E$10*1.26991128989021E-08 -> 0.0009928924981 | W21: =$E$10*6.25686130326933E-11 -> 4.891987889e-06 | X21: 0 | Y21: 0 | Z21: =(LHV!$G$43/LHV!$E$39)*FT!R21 -> 0.1741473224 | AA21: 0.3634531863
A22: C3H6 | B22: 0 | C22: 16.22257402 | D22: 0 | E22: 16.22257402 | F22: =0.071453637210575*(E22+0.00397405083562223*0.96628425949707*$E$10) -> 22.61233364 | G22: 2.341597553 | H22: 16.21658887 | I22: 2.341597553 | J22: =($S$98+T98)*0.10911581148004 -> 293.1285789 | K22: 6.39574477 | L22: =$E$6*3.33778797122653E-06 -> 0.2870650343 | M22: 6.682809804 | N22: 0 | O22: 0 | P22: 6.682809804 | Q22: 1.106592212e-06 | R22: 1.106592212e-06 | S22: 0 | T22: 0 | U22: 0 | V22: =$E$10*8.18135420647276E-09 -> 0.000639667139 | W22: =$E$10*2.60547858845932E-15 -> 2.037118785e-10 | X22: 0 | Y22: 0 | Z22: =(LHV!$G$43/LHV!$E$39)*FT!R22 -> 3.584633339e-07 | AA22: 7.481288779e-07
A23: C3H8 | B23: 0 | C23: 2.108007359 | D23: 0 | E23: 2.108007359 | F23: =0.0533385198919231*(E23+0.00070125417746658*0.96628425949707*$E$10) -> 2.938294933 | G23: 0.3042721876 | H23: 2.107218196 | I23: 0.3042721876 | J23: =($S$98+T98)*0.0193815477736256 -> 52.06656559 | K23: 0.8310767366 | L23: =$E$6*0.00171167097012317 -> 147.2115335 | M23: 148.0426102 | N23: 0 | O23: 0 | P23: 148.0426102 | Q23: 0.0001766106133 | R23: 0.0001766106133 | S23: 0 | T23: 0 | U23: 0 | V23: =$E$10*3.76630515559656E-10 -> 2.944722332e-05 | W23: =$E$10*2.94511653514093E-15 -> 2.302668019e-10 | X23: 0 | Y23: 0 | Z23: =(LHV!$G$43/LHV!$E$39)*FT!R23 -> 5.721026098e-05 | AA23: 0.0001194003523
A24: IC4H8 | B24: 0 | C24: 0.04756276211 | D24: 0 | E24: 0.04756276211 | F24: =0.00560501710670921*(E24+0.000155927839595698*0.96628425949707*$E$10) -> 0.0662955345 | G24: 0.006865167647 | H24: 0.04754429348 | I24: 0.006865167647 | J24: =($S$98+T98)*0.00438204017647389 -> 11.77190723 | K24: 0.01875124102 | L24: =$E$6*1.53936541871641E-07 -> 0.01323924679 | M24: 0.0319904878 | N24: 0 | O24: 0 | P24: 0.0319904878 | Q24: 1.06349448e-10 | R24: 1.06349448e-10 | S24: 0 | T24: 0 | U24: 0 | V24: =$E$10*2.63588845855055E-11 -> 2.060895038e-06 | W24: =$E$10*1.87857277808574E-19 -> 1.468780405e-14 | X24: 0 | Y24: 0 | Z24: =(LHV!$G$43/LHV!$E$39)*FT!R24 -> 3.44502494e-11 | AA24: 7.189919858e-11
A25: NC4H8 | B25: 0 | C25: 0.8698789544 | D25: 0 | E25: 0.8698789544 | F25: =0.00539834482594393*(E25+0.00296139516018207*0.96628425949707*$E$10) -> 1.212483974 | G25: 0.125557563 | H25: 0.869541129 | I25: 0.125557563 | J25: =($S$98+T98)*0.0832311298818839 -> 223.5920028 | K25: 0.3429428453 | L25: =$E$6*2.94081040002857E-06 -> 0.2529231472 | M25: 0.5958659925 | N25: 0 | O25: 0 | P25: 0.5958659925 | Q25: 4.71761695e-11 | R25: 4.71761695e-11 | S25: 0 | T25: 0 | U25: 0 | V25: =$E$10*5.69849212231705E-10 -> 4.455421512e-05 | W25: =$E$10*9.58851293414822E-20 -> 7.496872133e-15 | X25: 0 | Y25: 0 | Z25: =(LHV!$G$43/LHV!$E$39)*FT!R25 -> 1.528198628e-11 | AA25: 3.189418322e-11
A26: IC4H10 | B26: 0 | C26: 0.0168927285 | D26: 0 | E26: 0.0168927285 | F26: =0.00795567539829692*(E26+0.0000389511768366934*0.96628425949707*$E$10) -> 0.02354600889 | G26: 0.002438283357 | H26: 0.01688618042 | I26: 0.002438283357 | J26: =($S$98+T98)*0.00109377313075718 -> 2.938310764 | K26: 0.006659828463 | L26: =$E$6*0.00149839923708135 -> 128.8691888 | M26: 128.8758487 | N26: 0 | O26: 0 | P26: 128.8758487 | Q26: 6.215667599e-08 | R26: 6.215667599e-08 | S26: 0 | T26: 0 | U26: 0 | V26: =$E$10*8.05739429425347E-13 -> 6.299752127e-08 | W26: =$E$10*3.12244638001029E-20 -> 2.441315083e-15 | X26: 0 | Y26: 0 | Z26: =(LHV!$G$43/LHV!$E$39)*FT!R26 -> 2.013468833e-08 | AA26: 4.202198765e-08
A27: NC4H10 | B27: 0 | C27: 0.2744666093 | D27: 0 | E27: 0.2744666093 | F27: =0.00680707991252334*(E27+0.000740263171089115*0.96628425949707*$E$10) -> 0.3825664453 | G27: 0.03961628491 | H27: 0.2743601283 | I27: 0.03961628491 | J27: =($S$98+T98)*0.0207984071744089 -> 55.8728149 | K27: 0.108206317 | L27: =$E$6*0.00153657766122909 -> 132.152708 | M27: 132.2609143 | N27: 0 | O27: 0 | P27: 132.2609143 | Q27: 9.193118265e-08 | R27: 9.193118265e-08 | S27: 0 | T27: 0 | U27: 0 | V27: =$E$10*4.04109313834867E-11 -> 3.15956799e-06 | W27: =$E$10*1.80053299098415E-19 -> 1.407764238e-14 | X27: 0 | Y27: 0 | Z27: =(LHV!$G$43/LHV!$E$39)*FT!R27 -> 2.977967662e-08 | AA27: 6.215150603e-08
A28: C5H10 | B28: 0 | C28: 0.06199020784 | D28: 0 | E28: 0.06199020784 | F28: =0.000469441762569979*(E28+0.00243544260604325*0.96628425949707*$E$10) -> 0.08640515728 | G28: 0.008947599484 | H28: 0.06196604623 | I28: 0.008947599484 | J28: =($S$98+T98)*0 -> 0 | K28: 0.02443911104 | L28: =$E$6*2.74732819472997E-06 -> 0.2362827924 | M28: 0.2607219035 | N28: 0 | O28: 0 | P28: 0.2607219035 | Q28: 9.443670588e-12 | R28: 9.443670588e-12 | S28: 0 | T28: 0 | U28: 0 | V28: =$E$10*7.78895696710275E-10 -> 6.089871791e-05 | W28: =$E$10*0 -> 0 | X28: 0 | Y28: 0 | Z28: =(LHV!$G$43/LHV!$E$39)*FT!R28 -> 3.05913019e-12 | AA28: 6.384540398e-12
A29: NC5H12 | B29: 0 | C29: 0.01188152436 | D29: 0 | E29: 0.01188152436 | F29: =0.000300099147127069*(E29+0.000730292244546463*0.96628425949707*$E$10) -> 0.01656108227 | G29: 0.00171496628 | H29: 0.01187689279 | I29: 0.00171496628 | J29: =($S$98+T98)*0 -> 0 | K29: 0.004684189478 | L29: =$E$6*8.74348453818386E-07 -> 0.07519796675 | M29: 0.07988215622 | N29: 0 | O29: 0 | P29: 0.07988215622 | Q29: 4.781348746e-11 | R29: 4.781348746e-11 | S29: 0 | T29: 0 | U29: 0 | V29: =$E$10*1.70905912472578E-12 -> 1.336244506e-07 | W29: =$E$10*3.1984099912422E-24 -> 2.500707972e-19 | X29: 0 | Y29: 0 | Z29: =(LHV!$G$43/LHV!$E$39)*FT!R29 -> 1.548843552e-11 | AA29: 3.232505194e-11
A30: IC5H12 | B30: 0 | C30: 0.002798324186 | D30: 0 | E30: 0.002798324186 | F30: =0.000636106130799887*(E30+0.0000811246890996975*0.96628425949707*$E$10) -> 0.00390044914 | G30: 0.0004039071025 | H30: 0.00279723363 | I30: 0.0004039071025 | J30: =($S$98+T98)*0 -> 0 | K30: 0.00110321551 | L30: =$E$6*9.46468493928373E-08 -> 0.008140062011 | M30: 0.009243277521 | N30: 0 | O30: 0 | P30: 0.009243277521 | Q30: 6.912981768e-11 | R30: 6.912981768e-11 | S30: 0 | T30: 0 | U30: 0 | V30: =$E$10*2.4810301642707E-13 -> 1.939817574e-08 | W30: =$E$10*5.84663337701852E-24 -> 4.571247193e-19 | X30: 0 | Y30: 0 | Z30: =(LHV!$G$43/LHV!$E$39)*FT!R30 -> 2.239352912e-11 | AA30: 4.673628856e-11
A31: C6H12 | B31: 0 | C31: 0.003172029326 | D31: 0 | E31: 0.003172029326 | F31: =0.0000288300729857926*(E31+0.00202985603399144*0.96628425949707*$E$10) -> 0.00442133795 | G31: 0.0004578472212 | H31: 0.003170792583 | I31: 0.0004578472212 | J31: =($S$98+T98)*0 -> 0 | K31: 0.001250545367 | L31: =$E$6*2.66703002332103E-06 -> 0.2293767824 | M31: 0.2306273277 | N31: 0 | O31: 0 | P31: 0.2306273277 | Q31: 3.624974122e-15 | R31: 3.624974122e-15 | S31: 0 | T31: 0 | U31: 0 | V31: =$E$10*6.56022723622766E-13 -> 5.129177495e-08 | W31: =$E$10*0 -> 0 | X31: 0 | Y31: 0 | Z31: =(LHV!$G$43/LHV!$E$39)*FT!R31 -> 1.17425398e-15 | AA31: 2.450720142e-15
A32: NC6H14 | B32: 0 | C32: 0.0006402539667 | D32: 0 | E32: 0.0006402539667 | F32: =0.0000194046011434342*(E32+0.000608729400885263*0.96628425949707*$E$10) -> 0.0008924189728 | G32: 9.241355253e-05 | H32: 0.0006400043363 | I32: 9.241355253e-05 | J32: =($S$98+T98)*0 -> 0 | K32: 0.0002524146366 | L32: =$E$6*8.17372618599846E-07 -> 0.07029778428 | M32: 0.07055019892 | N32: 0 | O32: 0 | P32: 0.07055019892 | Q32: 1.99389297e-14 | R32: 1.99389297e-14 | S32: 0 | T32: 0 | U32: 0 | V32: =$E$10*3.59715788621359E-14 -> 2.812472893e-09 | W32: 0 | X32: =$E$10*0 -> 0 | Y32: 0 | Z32: =(LHV!$G$43/LHV!$E$39)*FT!R32 -> 6.458906126e-15 | AA32: 1.348002358e-14
A33: IC6H14 | B33: 0 | C33: 0.0001560346377 | D33: 0 | E33: 0.0001560346377 | F33: =0.0000425331428845668*(E33+0.0000676804221493661*0.96628425949707*$E$10) -> 0.0002174891204 | G33: 2.252186794e-05 | H33: 0.000155973802 | I33: 2.252186794e-05 | J33: =($S$98+T98)*0 -> 0 | K33: 6.151531842e-05 | L33: =$E$6*8.83451919495388E-08 -> 0.007598090644 | M33: 0.007659605962 | N33: 0 | O33: 0 | P33: 0.007659605962 | Q33: 2.164050081e-14 | R33: 2.164050081e-14 | S33: 0 | T33: 0 | U33: 0 | V33: =$E$10*3.68789898451796E-15 -> 2.883419704e-10 | W33: 0 | X33: 0 | Y33: 0 | Z33: =(LHV!$G$43/LHV!$E$39)*FT!R33 -> 7.010103618e-15 | AA33: 1.463039719e-14
A34: C7H14 | B34: 0 | C34: 8.644066304e-05 | D34: 0 | E34: 8.644066304e-05 | F34: =1.01180195047318E-06*(E34+0.00157617714733811*0.96628425949707*$E$10) -> 0.00012048545 | G34: 1.247675005e-05 | H34: 8.640696e-05 | I34: 1.247675005e-05 | J34: =($S$98+T98)*0 -> 0 | K34: 3.407849005e-05 | L34: =$E$6*2.25821468852333E-06 -> 0.1942167934 | M34: 0.1942508719 | N34: 0 | O34: 0 | P34: 0.1942508719 | Q34: 1.388762813e-18 | R34: 1.388762813e-18 | S34: 0 | T34: 0 | U34: 0 | V34: =$E$10*8.66974404781751E-15 -> 6.77852374e-10 | W34: 0 | X34: 0 | Y34: 0 | Z34: =(LHV!$G$43/LHV!$E$39)*FT!R34 -> 4.49868111e-19 | AA34: 9.388947022e-19
A35: C7H16 | B35: 0 | C35: 4.523097821e-05 | D35: 0 | E35: 4.523097821e-05 | F35: =0.0000012359071024647*(E35+0.000675200152531664*0.96628425949707*$E$10) -> 6.304526798e-05 | G35: 6.528589554e-06 | H35: 4.521334274e-05 | I35: 6.528589554e-06 | J35: =($S$98+T98)*0 -> 0 | K35: 1.783192524e-05 | L35: =$E$6*9.82011760348301E-07 -> 0.08445750362 | M35: 0.08447533554 | N35: 0 | O35: 0 | P35: 0.08447533554 | Q35: 8.123993339e-18 | R35: 8.123993339e-18 | S35: 0 | T35: 0 | U35: 0 | V35: =$E$10*7.66353151897545E-16 -> 5.991806684e-11 | W35: 0 | X35: 0 | Y35: 0 | Z35: =(LHV!$G$43/LHV!$E$39)*FT!R35 -> 2.631641273e-18 | AA35: 5.492352066e-18
A36: C8H16 | B36: 0 | C36: 4.446145e-06 | D36: 0 | E36: 4.446145e-06 | F36: =6.2546631677449E-08*(E36+0.00131148232030042*0.96628425949707*$E$10) -> 6.19726599e-06 | G36: 6.417516699e-07 | H36: 4.444411456e-06 | I36: 6.417516699e-07 | J36: =($S$98+T98)*0 -> 0 | K36: 1.752854534e-06 | L36: =$E$6*1.98843540553496E-06 -> 0.171014541 | M36: 0.1710162939 | N36: 0 | O36: 0 | P36: 0.1710162939 | Q36: 5.224178914e-22 | R36: 5.224178914e-22 | S36: 0 | T36: 0 | U36: 0 | V36: =$E$10*1.38883952882532E-16 -> 1.085877699e-11 | W36: 0 | X36: 0 | Y36: 0 | Z36: =(LHV!$G$43/LHV!$E$39)*FT!R36 -> 1.692291497e-22 | AA36: 3.531887417e-22
A37: C8H18 | B37: 0 | C37: 1.370863366e-06 | D37: 0 | E37: 1.370863366e-06 | F37: =4.50300411800446E-08*(E37+0.00056166139857876*0.96628425949707*$E$10) -> 1.910779993e-06 | G37: 1.978689076e-07 | H37: 1.370328869e-06 | I37: 1.978689076e-07 | J37: =($S$98+T98)*0 -> 0 | K37: 5.404511248e-07 | L37: =$E$6*8.56274457825735E-07 -> 0.07364352041 | M37: 0.07364406086 | N37: 0 | O37: 0 | P37: 0.07364406086 | Q37: 3.011072096e-21 | R37: 3.011072096e-21 | S37: 0 | T37: 0 | U37: 0 | V37: =$E$10*4.5408408829805E-18 -> 3.550300626e-13 | W37: 0 | X37: 0 | Y37: 0 | Z37: =(LHV!$G$43/LHV!$E$39)*FT!R37 -> 9.753899679e-22 | AA37: 2.035682128e-21
A38: C9H18 | B38: 0 | C38: 1.365615817e-07 | D38: 0 | E38: =D38+C38+B38 -> 1.365615817e-07 | F38: =2.31314477476071E-09*(E38+0.00108920214194535*0.96628425949707*$E$10) -> 1.903465689e-07 | G38: =($G$1/0.9)/$F$6*F38 -> 1.971114822e-08 | H38: =(F38-G38)*$B$3/100 -> 1.365083365e-07 | I38: 1.971114822e-08 | J38: =($S$98+T98)*0 -> 0 | K38: 5.383823235e-08 | L38: =$E$6*1.71878645133223E-06 -> 0.1478234974 | M38: 0.1478235513 | N38: 0 | O38: 0 | P38: 0.1478235513 | Q38: 1.91186805e-25 | R38: 1.91186805e-25 | S38: 0 | T38: 0 | U38: =$E$10*0 -> 0 | V38: =$E$10*1.96662706055875E-19 -> 1.537626502e-14 | W38: 0 | X38: 0 | Y38: 0 | Z38: =(LHV!$G$43/LHV!$E$39)*FT!R38 -> 6.193199154e-26 | AA38: 1.292548134e-25
A39: C9H20 | B39: 0 | C39: 3.155899289e-08 | D39: 0 | E39: 3.155899289e-08 | F39: =1.2483618969369E-09*(E39+0.00046640736008453*0.96628425949707*$E$10) -> 4.398855037e-08 | G39: 4.555190257e-09 | H39: 3.154668809e-08 | I39: 4.555190257e-09 | J39: =($S$98+T98)*0 -> 0 | K39: 1.244186228e-08 | L39: =$E$6*7.39310889152501E-07 -> 0.06358411845 | M39: 0.0635841309 | N39: 0 | O39: 0 | P39: 0.0635841309 | Q39: 2.288765519e-25 | R39: 2.288765519e-25 | S39: 0 | T39: 0 | U39: 0 | V39: =$E$10*2.57580148632209E-20 -> 2.013915454e-15 | W39: 0 | X39: 0 | Y39: 0 | Z39: =(LHV!$G$43/LHV!$E$39)*FT!R39 -> 7.414099881e-26 | AA39: 1.547355531e-25
A40: C10H20 | B40: 0 | C40: 1.978695063e-09 | D40: 0 | E40: 1.978695063e-09 | F40: =4.04187577874776E-11*(E40+0.000903189068726438*0.96628425949707*$E$10) -> 2.758007132e-09 | G40: 2.85602665e-10 | H40: 1.977923574e-09 | I40: 2.85602665e-10 | J40: =($S$98+T98)*0 -> 0 | K40: 7.800835584e-10 | L40: =$E$6*1.46070808671869E-06 -> 0.1256275775 | M40: 0.1256275783 | N40: 0 | O40: 0 | P40: 0.1256275783 | Q40: 7.391599751e-29 | R40: 7.391599751e-29 | S40: 0 | T40: 0 | U40: 0 | V40: =$E$10*4.34103948752163E-21 -> 3.394083961e-16 | W40: 0 | X40: 0 | Y40: 0 | Z40: =(LHV!$G$43/LHV!$E$39)*FT!R40 -> 2.394393762e-29 | AA40: 4.997205988e-29
A41: C10H22 | B41: 0 | C41: 1.211148866e-09 | D41: 0 | E41: 1.211148866e-09 | F41: =5.78400702999197E-11*(E41+0.000386323813090457*0.96628425949707*$E$10) -> 1.688161693e-09 | G41: 1.748158926e-10 | H41: 1.210676641e-09 | I41: 1.748158926e-10 | J41: =($S$98+T98)*0 -> 0 | K41: 4.774850528e-10 | L41: =$E$6*6.31699714136842E-07 -> 0.05432906513 | M41: 0.05432906561 | N41: 0 | O41: 0 | P41: 0.05432906561 | Q41: 4.263016343e-28 | R41: 4.263016343e-28 | S41: 0 | T41: 0 | U41: 0 | V41: =$E$10*5.8401605934248E-23 -> 4.566186384e-18 | W41: 0 | X41: 0 | Y41: 0 | Z41: =(LHV!$G$43/LHV!$E$39)*FT!R41 -> 1.380937833e-28 | AA41: 2.88207851e-28
A42: C11H22 | B42: 0 | C42: 5.752571766e-11 | D42: 0 | E42: 5.752571766e-11 | F42: =1.42237381200653E-12*(E42+0.000746158450904262*0.96628425949707*$E$10) -> 8.01823093e-11 | G42: 8.303198697e-12 | H42: 5.750328848e-11 | I42: 8.303198697e-12 | J42: =($S$98+T98)*0 -> 0 | K42: 2.267902082e-11 | L42: =$E$6*0.0000012241535210537 -> 0.1052828027 | M42: 0.1052828027 | N42: 0 | O42: 0 | P42: 0.1052828027 | Q42: 0 | R42: 0 | S42: 0 | T42: 0 | U42: 0 | V42: =$E$10*1.90153284064459E-24 -> 1.486731953e-19 | W42: 0 | X42: 0 | Y42: 0 | Z42: =(LHV!$G$43/LHV!$E$39)*FT!R42 -> 0 | AA42: 0
A43: C11H24 | B43: 0 | C43: 2.492036669e-11 | D43: 0 | E43: 2.492036669e-11 | F43: =1.43968401909975E-12*(E43+0.000319352271008786*0.96628425949707*$E$10) -> 3.473529111e-11 | G43: 3.596978266e-12 | H43: 2.491065028e-11 | I43: 3.596978266e-12 | J43: =($S$98+T98)*0 -> 0 | K43: 9.824640836e-12 | L43: =$E$6*5.24055956924772E-07 -> 0.0450712096 | M43: 0.04507120961 | N43: 0 | O43: 0 | P43: 0.04507120961 | Q43: 0 | R43: 0 | S43: 0 | T43: 0 | U43: 0 | V43: =$E$10*9.93254748855386E-26 -> 7.765858897e-21 | W43: 0 | X43: 0 | Y43: 0 | Z43: =(LHV!$G$43/LHV!$E$39)*FT!R43 -> 0 | AA43: 0
A44: C12H24 | B44: 0 | C44: 1.008337349e-12 | D44: 0 | E44: 1.008337349e-12 | F44: =3.02916614273487E-14*(E44+0.000614137368815634*0.96628425949707*$E$10) -> 1.405472551e-12 | G44: 1.455423017e-13 | H44: 1.007944199e-12 | I44: 1.455423017e-13 | J44: =($S$98+T98)*0 -> 0 | K44: 3.975283516e-13 | L44: =$E$6*1.01476859733123E-06 -> 0.08727474144 | M44: 0.08727474144 | N44: 0 | O44: 0 | P44: 0.08727474144 | Q44: 0 | R44: 0 | S44: 0 | T44: 0 | U44: 0 | V44: =$E$10*4.71450688807983E-27 -> 3.686083082e-22 | W44: 0 | X44: 0 | Y44: 0 | Z44: =(LHV!$G$43/LHV!$E$39)*FT!R44 -> 0 | AA44: 0
A45: C12H26 | B45: 0 | C45: 4.089044636e-13 | D45: 0 | E45: 4.089044636e-13 | F45: =2.87180212571766E-14*(E45+0.000262693969502585*0.96628425949707*$E$10) -> 5.699521102e-13 | G45: 5.902081968e-14 | H45: 4.087450324e-13 | I45: 5.902081968e-14 | J45: =($S$98+T98)*0 -> 0 | K45: 1.612070778e-13 | L45: =$E$6*4.3382021561073E-07 -> 0.03731052306 | M45: 0.03731052306 | N45: 0 | O45: 0 | P45: 0.03731052306 | Q45: 0 | R45: 0 | S45: =(1-0.163783724642702)*$E$10*0.0109987374896664 -> 719.1016709 | T45: =0.163783724642702*$E$10*0.0109987374896664 -> 140.8453214 | U45: 0 | V45: =$E$10*1.9340188866055E-27 -> 1.512131484e-22 | W45: 0 | X45: 0 | Y45: 0 | Z45: =(LHV!$G$43/LHV!$E$39)*FT!R45 -> 0 | AA45: 0
A46: C13H26 | B46: 0 | C46: 2.15930384e-14 | D46: 0 | E46: 2.15930384e-14 | F46: =7.92369521727567E-16*(E46+0.000502769309659488*0.96628425949707*$E$10) -> 3.009748951e-14 | G46: 3.116715368e-15 | H46: 2.158461931e-14 | I46: 3.116715368e-15 | J46: =($S$98+T98)*0 -> 0 | K46: 8.512870197e-15 | L46: =$E$6*8.3173485077745E-07 -> 0.07153300195 | M46: 0.07153300195 | N46: 0 | O46: 0 | P46: 0.07153300195 | Q46: 0 | R46: 0 | S46: =(1-0.163783724642702)*$E$10*0 -> 0 | T46: =0.163783724642702*$E$10*0 -> 0 | U46: 0 | V46: =$E$10*1.59621285980891E-27 -> 1.248014555e-22 | W46: 0 | X46: 0 | Y46: 0 | Z46: =(LHV!$G$43/LHV!$E$39)*FT!R46 -> 0 | AA46: 0
A47: C13H28 | B47: 0 | C47: 2.387565274e-15 | D47: 0 | E47: 2.387565274e-15 | F47: =2.04957149653651E-16*(E47+0.000214919066421382*0.96628425949707*$E$10) -> 3.327911499e-15 | G47: 3.446185407e-16 | H47: 2.386634366e-15 | I47: 3.446185407e-16 | J47: =($S$98+T98)*0 -> 0 | K47: 9.412771323e-16 | L47: =$E$6*3.56086914703198E-07 -> 0.03062510359 | M47: 0.03062510359 | N47: 0 | O47: 0 | P47: 0.03062510359 | Q47: 0 | R47: 0 | S47: =(1-0.163783724642702)*$E$10*0.0233603507320535 -> 1527.308681 | T47: =0.163783724642702*$E$10*0.0233603507320535 -> 299.1430707 | U47: 0 | V47: =$E$10*5.28557738023488E-28 -> 4.132580103e-23 | W47: 0 | X47: 0 | Y47: 0 | Z47: =(LHV!$G$43/LHV!$E$39)*FT!R47 -> 0 | AA47: 0
A48: C14H28 | B48: 0 | C48: 4.242977241e-16 | D48: 0 | E48: 4.242977241e-16 | F48: =1.91633366903826E-17*(E48+0.000408490853478008*0.96628425949707*$E$10) -> 5.914080299e-16 | G48: 6.124266595e-17 | H48: 4.241322912e-16 | I48: 6.124266595e-17 | J48: =($S$98+T98)*0 -> 0 | K48: 1.672757387e-16 | L48: =$E$6*6.73987495213675E-07 -> 0.05796600775 | M48: 0.05796600775 | N48: 0 | O48: 0 | P48: 0.05796600775 | Q48: 0 | R48: 0 | S48: =(1-0.163783724642702)*$E$10*0 -> 0 | T48: =0.163783724642702*$E$10*0 -> 0 | U48: 0 | V48: =$E$10*5.32355918585084E-28 -> 4.162276547e-23 | W48: 0 | X48: 0 | Y48: 0 | Z48: =(LHV!$G$43/LHV!$E$39)*FT!R48 -> 0 | AA48: 0
A49: C14H30 | B49: 0 | C49: 1.493838183e-17 | D49: 0 | E49: 1.493838183e-17 | F49: =1.58536744958392E-18*(E49+0.000173842669915344*0.96628425949707*$E$10) -> 2.08218863e-17 | G49: 2.156189572e-18 | H49: 1.493255738e-17 | I49: 2.156189572e-18 | J49: =($S$98+T98)*0 -> 0 | K49: 5.889328918e-18 | L49: =$E$6*2.87707310741099E-07 -> 0.02474414484 | M49: 0.02474414484 | N49: 0 | O49: 0 | P49: 0.02474414484 | Q49: 0 | R49: 0 | S49: 0 | T49: 0 | U49: 0 | V49: =$E$10*1.41302087130751E-28 -> 1.104784117e-23 | W49: 0 | X49: 0 | Y49: 0 | Z49: =(LHV!$G$43/LHV!$E$39)*FT!R49 -> 0 | AA49: 0
A50: C15H30 | B50: 0 | C50: 9.879226104e-18 | D50: 0 | E50: 9.879226104e-18 | F50: =5.54030987470624E-19*(E50+0.000328981619090174*0.96628425949707*$E$10) -> 1.377017437e-17 | G50: 1.425956609e-18 | H50: 9.87537421e-18 | I50: 1.425956609e-18 | J50: =($S$98+T98)*0 -> 0 | K50: 3.894800162e-18 | L50: =$E$6*5.40391366916976E-07 -> 0.04647612958 | M50: 0.04647612958 | N50: 0 | O50: 0 | P50: 0.04647612958 | Q50: 0 | R50: 0 | S50: 0 | T50: 0 | U50: 0 | V50: =$E$10*1.8335075489144E-28 -> 1.433545717e-23 | W50: 0 | X50: 0 | Y50: 0 | Z50: =(LHV!$G$43/LHV!$E$39)*FT!R50 -> 0 | AA50: 0
A51: C15H32 | B51: 0 | C51: 6.53627849e-19 | D51: 0 | E51: 6.53627849e-19 | F51: =8.59146508377876E-20*(E51+0.000140360880130099*0.96628425949707*$E$10) -> 9.110601742e-19 | G51: 9.434392346e-20 | H51: 6.533730006e-19 | I51: 9.434392346e-20 | J51: =($S$98+T98)*0 -> 0 | K51: 2.576871736e-19 | L51: =$E$6*2.31267126831543E-07 -> 0.01989003084 | M51: 0.01989003084 | N51: 0 | O51: 0 | P51: 0.01989003084 | Q51: 0 | R51: 0 | S51: 0 | T51: 0 | U51: 0 | V51: =$E$10*5.58662288133886E-29 -> 4.367955457e-24 | W51: 0 | X51: 0 | Y51: 0 | Z51: =(LHV!$G$43/LHV!$E$39)*FT!R51 -> 0 | AA51: 0
A52: C16H32 | B52: 0 | C52: 3.387955946e-19 | D52: 0 | E52: 3.387955946e-19 | F52: =2.39080053022546E-20*(E52+0.000261443094588451*0.96628425949707*$E$10) -> 4.722307562e-19 | G52: 4.890138279e-20 | H52: 3.386634988e-19 | I52: 4.890138279e-20 | J52: =($S$98+T98)*0 -> 0 | K52: 1.335672575e-19 | L52: =$E$6*4.26091718622237E-07 -> 0.03664583696 | M52: 0.03664583696 | N52: 0 | O52: 0 | P52: 0.03664583696 | Q52: 0 | R52: 0 | S52: 0 | T52: 0 | U52: 0 | V52: =$E$10*6.64559470286931E-29 -> 5.19592288e-24 | W52: 0 | X52: =$E$10*0 -> 0 | Y52: 0 | Z52: =(LHV!$G$43/LHV!$E$39)*FT!R52 -> 0 | AA52: 0
A53: C16H34 | B53: 0 | C53: 2.991855223e-20 | D53: 0 | E53: 2.991855223e-20 | F53: =4.90495959891485E-21*(E53+0.00011253507476894*0.96628425949707*$E$10) -> 4.170201965e-20 | G53: 4.318410859e-21 | H53: 2.990688703e-20 | I53: 4.318410859e-21 | J53: =($S$98+T98)*0 -> 0 | K53: 1.179513262e-20 | L53: =$E$6*1.84348764000896E-07 -> 0.01585483701 | M53: 0.01585483701 | N53: 0 | O53: 0 | P53: 0.01585483701 | Q53: 0 | R53: 0 | S53: 0 | T53: 0 | U53: 0 | V53: =$E$10*2.24788782690458E-29 -> 1.757532969e-24 | W53: 0 | X53: 0 | Y53: 0 | Z53: =(LHV!$G$43/LHV!$E$39)*FT!R53 -> 0 | AA53: 0
A54: C17H34 | B54: 0 | C54: 1.829516763e-21 | D54: 0 | E54: 1.829516763e-21 | F54: =1.63581971069034E-22*(E54+0.000206340139822714*0.96628425949707*$E$10) -> 2.55007473e-21 | G54: 2.640704335e-22 | H54: 1.828803437e-21 | I54: 2.640704335e-22 | J54: =($S$98+T98)*0 -> 0 | K54: 7.212712927e-22 | L54: =$E$6*3.36696597975577E-07 -> 0.02895744765 | M54: 0.02895744765 | N54: 0 | O54: 0 | P54: 0.02895744765 | Q54: 0 | R54: 0 | S54: 0 | T54: 0 | U54: 0 | V54: =$E$10*1.82398156551233E-29 -> 1.426097734e-24 | W54: 0 | X54: 0 | Y54: 0 | Z54: =(LHV!$G$43/LHV!$E$39)*FT!R54 -> 0 | AA54: 0
A55: C17H36 | B55: 0 | C55: 8.072727301e-22 | D55: 0 | E55: 8.072727301e-22 | F55: =1.70464137218423E-22*(E55+0.0000873715462875348*0.96628425949707*$E$10) -> 1.125218326e-21 | G55: 1.165208563e-22 | H55: 8.069579758e-22 | I55: 1.165208563e-22 | J55: =($S$98+T98)*0 -> 0 | K55: 3.182603502e-22 | L55: =$E$6*1.41849850291324E-07 -> 0.01219973602 | M55: 0.01219973602 | N55: 0 | O55: 0 | P55: 0.01219973602 | Q55: 0 | R55: 0 | S55: 0 | T55: 0 | U55: 0 | V55: =$E$10*7.45835649185388E-30 -> 5.831388592e-25 | W55: 0 | X55: 0 | Y55: 0 | Z55: =(LHV!$G$43/LHV!$E$39)*FT!R55 -> 0 | AA55: 0
A56: C18H36 | B56: 0 | C56: 5.584869488e-22 | D56: 0 | E56: 5.584869488e-22 | F56: =6.52883011379244E-23*(E56+0.000157819413475028*0.96628425949707*$E$10) -> 7.784478854e-22 | G56: 8.061139077e-23 | H56: 5.582691957e-22 | I56: 8.061139077e-23 | J56: =($S$98+T98)*0 -> 0 | K56: 2.201786897e-22 | L56: =$E$6*2.52260487622545E-07 -> 0.0216955559 | M56: 0.0216955559 | N56: 0 | O56: 0 | P56: 0.0216955559 | Q56: 0 | R56: 0 | S56: 0 | T56: 0 | U56: 0 | V56: =$E$10*9.13004445092537E-30 -> 7.138414089e-25 | W56: 0 | X56: 0 | Y56: 0 | Z56: =(LHV!$G$43/LHV!$E$39)*FT!R56 -> 0 | AA56: 0
A57: C18H38 | B57: 0 | C57: 8.446084088e-23 | D57: 0 | E57: 8.446084088e-23 | F57: =2.31901733403856E-23*(E57+0.0000671945686573921*0.96628425949707*$E$10) -> 1.177258719e-22 | G57: 1.21909847e-23 | H57: 8.442790974e-23 | I57: 1.21909847e-23 | J57: =($S$98+T98)*0 -> 0 | K57: 3.329796214e-23 | L57: =$E$6*1.07879261327722E-07 -> 0.009278109969 | M57: 0.009278109969 | N57: 0 | O57: 0 | P57: 0.009278109969 | Q57: 0 | R57: 0 | S57: 0 | T57: 0 | U57: 0 | V57: =$E$10*3.21013427850629E-30 -> 2.50987472e-25 | W57: 0 | X57: 0 | Y57: 0 | Z57: =(LHV!$G$43/LHV!$E$39)*FT!R57 -> 0 | AA57: 0
A58: C19H38 | B58: 0 | C58: 5.527598612e-25 | D58: 0 | E58: 5.527598612e-25 | F58: =8.49882078440299E-26*(E58+0.000119994293270271*0.96628425949707*$E$10) -> 7.704651756e-25 | G58: 7.978474925e-26 | H58: 5.525443411e-25 | I58: 7.978474925e-26 | J58: =($S$98+T98)*0 -> 0 | K58: 2.179208345e-25 | L58: =$E$6*1.93059940033119E-07 -> 0.016604038 | M58: 0.016604038 | N58: 0 | O58: 0 | P58: 0.016604038 | Q58: 0 | R58: 0 | S58: 0 | T58: 0 | U58: 0 | V58: =$E$10*1.83143137304472E-30 -> 1.431922439e-25 | W58: 0 | X58: 0 | Y58: 0 | Z58: =(LHV!$G$43/LHV!$E$39)*FT!R58 -> 0 | AA58: 0
A59: C19H40 | B59: 0 | C59: 4.226124807e-24 | D59: 0 | E59: 4.226124807e-24 | F59: =1.54749601147891E-24*(E59+0.0000503843365941225*0.96628425949707*$E$10) -> 5.890590507e-24 | G59: 6.099941976e-25 | H59: 4.224477048e-24 | I59: 6.099941976e-25 | J59: =($S$98+T98)*0 -> 0 | K59: 1.666113459e-24 | L59: =$E$6*7.99874675839728E-08 -> 0.006879288116 | M59: 0.006879288116 | N59: 0 | O59: 0 | P59: 0.006879288116 | Q59: 0 | R59: 0 | S59: 0 | T59: 0 | U59: 0 | V59: =$E$10*1.19002737010436E-30 -> 9.304344782e-26 | W59: 0 | X59: 0 | Y59: 0 | Z59: =(LHV!$G$43/LHV!$E$39)*FT!R59 -> 0 | AA59: 0
A60: C20H40 | B60: 0 | C60: 6.657944849e-27 | D60: 0 | E60: 6.657944849e-27 | F60: =1.40013109841745E-27*(E60+0.0000877312375998667*0.96628425949707*$E$10) -> 9.280186581e-27 | G60: 9.610004227e-28 | H60: 6.655348927e-27 | I60: 9.610004227e-28 | J60: =($S$98+T98)*0 -> 0 | K60: 2.624837654e-27 | L60: =$E$6*1.40026550580211E-07 -> 0.0120429239 | M60: 0.0120429239 | N60: 0 | O60: 0 | P60: 0.0120429239 | Q60: 0 | R60: 0 | S60: 0 | T60: 0 | U60: 0 | V60: =$E$10*5.21877336842803E-31 -> 4.080348736e-26 | W60: 0 | X60: 0 | Y60: 0 | Z60: =(LHV!$G$43/LHV!$E$39)*FT!R60 -> 0 | AA60: 0
A61: C20H42 | B61: 0 | C61: 4.171388646e-27 | D61: 0 | E61: 4.171388646e-27 | F61: =2.11500006773169E-27*(E61+0.0000363875682927211*0.96628425949707*$E$10) -> 5.814296427e-27 | G61: 6.020936405e-28 | H61: 4.169762229e-27 | I61: 6.020936405e-28 | J61: =($S$98+T98)*0 -> 0 | K61: 1.644534198e-27 | L61: =$E$6*5.75827763732679E-08 -> 0.004952382181 | M61: 0.004952382181 | N61: 0 | O61: 0 | P61: 0.004952382181 | Q61: 0 | R61: 0 | S61: 0 | T61: 0 | U61: 0 | V61: =$E$10*2.19293023035416E-31 -> 1.714563838e-26 | W61: 0 | X61: 0 | Y61: 0 | Z61: =(LHV!$G$43/LHV!$E$39)*FT!R61 -> 0 | AA61: 0
A62: ALKYLATE | B62: 0 | C62: 0 | D62: 0 | E62: 0 | F62: =0*(E62+0*0.96628425949707*$E$10) -> 0 | G62: 0 | H62: 0 | I62: 0 | J62: =($S$98+T98)*0 -> 0 | K62: 0 | L62: =$E$6*0 -> 0 | M62: 0 | N62: 0 | O62: 0 | P62: 0 | Q62: 0 | R62: 0 | S62: 0 | T62: 0 | U62: 0 | V62: =$E$10*0 -> 0 | W62: 0 | X62: 0 | Y62: 0 | Z62: =(LHV!$G$43/LHV!$E$39)*FT!R62 -> 0 | AA62: 0
A63: ISOMERAT | B63: 0 | C63: 0 | D63: 0 | E63: 0 | F63: 0 | G63: 0 | H63: 0 | I63: 0 | J63: =($S$98+T98)*0 -> 0 | K63: 0 | L63: 0 | M63: 0 | N63: 0 | O63: 0 | P63: 0 | Q63: 0 | R63: 0 | S63: 0 | T63: 0 | U63: 0 | V63: 0 | W63: =$E$10*0 -> 0 | X63: 0 | Y63: 0 | Z63: =(LHV!$G$43/LHV!$E$39)*FT!R63 -> 0 | AA63: 0
A64: REFORMAT | B64: 0 | C64: 0 | D64: 0 | E64: 0 | F64: 0 | G64: 0 | H64: 0 | I64: 0 | J64: =($S$98+T98)*0 -> 0 | K64: 0 | L64: 0 | M64: 0 | N64: 0 | O64: 0 | P64: 0 | Q64: 0 | R64: 0 | S64: 0 | T64: 0 | U64: 0 | V64: 0 | W64: 0 | X64: 0 | Y64: 0 | Z64: =(LHV!$G$43/LHV!$E$39)*FT!R64 -> 0 | AA64: 0
A65: C7-300HC | B65: 0 | C65: 0 | D65: 0 | E65: 0 | F65: 0 | G65: 0 | H65: 0 | I65: 0 | J65: =($S$98+T98)*0 -> 0 | K65: 0 | L65: 0 | M65: 0 | N65: 0 | O65: 0 | P65: 0 | Q65: 0 | R65: 0 | S65: 0 | T65: 0 | U65: =$E$10*0.000740913913077356 -> 57.9290752 | V65: 0 | W65: 0 | X65: 0 | Y65: 0 | Z65: =(LHV!$G$43/LHV!$E$39)*FT!R65 -> 0 | AA65: 0
A66: 3-350HC | B66: 0 | C66: 0 | D66: 0 | E66: 0 | F66: 0 | G66: 0 | H66: 0 | I66: 0 | J66: =($S$98+T98)*0 -> 0 | K66: 0 | L66: 0 | M66: 0 | N66: 0 | O66: 0 | P66: 0 | Q66: 0 | R66: 0 | S66: 0 | T66: 0 | U66: =$E$10*0.000405304068779554 -> 31.68909298 | V66: 0 | W66: 0 | X66: 0 | Y66: 0 | Z66: =(LHV!$G$43/LHV!$E$39)*FT!R66 -> 0 | AA66: 0
A67: 350-5HC | B67: 0 | C67: 0 | D67: 0 | E67: 0 | F67: 0 | G67: 0 | H67: 0 | I67: 0 | J67: =($S$98+T98)*0 -> 0 | K67: 0 | L67: 0 | M67: 0 | N67: 0 | O67: 0 | P67: 0 | Q67: 0 | R67: 0 | S67: 0 | T67: 0 | U67: =$E$10*0 -> 0 | V67: 0 | W67: 0 | X67: 0 | Y67: 0 | Z67: =(LHV!$G$43/LHV!$E$39)*FT!R67 -> 0 | AA67: 0
A68: 500+HC | B68: 0 | C68: 0 | D68: 0 | E68: 0 | F68: 0 | G68: 0 | H68: 0 | I68: 0 | J68: =($S$98+T98)*0 -> 0 | K68: 0 | L68: 0 | M68: 0 | N68: 0 | O68: 0 | P68: 0 | Q68: 0 | R68: 0 | S68: 0 | T68: 0 | U68: 0 | V68: 0 | W68: 0 | X68: 0 | Y68: 0 | Z68: =(LHV!$G$43/LHV!$E$39)*FT!R68 -> 0 | AA68: 0
A69: C7-300HT | B69: 0 | C69: 0 | D69: 0 | E69: 0 | F69: 0 | G69: 0 | H69: 0 | I69: 0 | J69: =($S$98+T98)*0 -> 0 | K69: 0 | L69: 0 | M69: 0 | N69: 0 | O69: 0 | P69: 0 | Q69: 0 | R69: 0 | S69: 0 | T69: 0 | U69: 0 | V69: 0 | W69: 0 | X69: 0 | Y69: 0 | Z69: =(LHV!$G$43/LHV!$E$39)*FT!R69 -> 0 | AA69: 0
A70: 3-350HT | B70: 0 | C70: 0 | D70: 0 | E70: =D70+C70+B70 -> 0 | F70: 0 | G70: =($G$1/0.9)/$F$6*F70 -> 0 | H70: =(F70-G70)*$B$3/100 -> 0 | I70: 0 | J70: =($S$98+T98)*0 -> 0 | K70: 0 | L70: 0 | M70: 0 | N70: 0 | O70: 0 | P70: 0 | Q70: 0 | R70: 0 | S70: 0 | T70: 0 | U70: 0 | V70: 0 | W70: 0 | X70: 0 | Y70: 0 | Z70: =(LHV!$G$43/LHV!$E$39)*FT!R70 -> 0 | AA70: 0
A71: 350-5HT | B71: 0 | C71: 0 | D71: 0 | E71: =D71+C71+B71 -> 0 | F71: 0 | G71: 0 | H71: 0 | I71: 0 | J71: =($S$98+T98)*0 -> 0 | K71: =F71-H71-(G71-I71) -> 0 | L71: 0 | M71: =L71+K71 -> 0 | N71: 0 | O71: 0 | P71: =O71+N71+M71 -> 0 | Q71: =E177 -> 0 | R71: =Q71 -> 0 | S71: 0 | T71: 0 | U71: 0 | V71: 0 | W71: 0 | X71: 0 | Y71: 0 | Z71: =(LHV!$G$43/LHV!$E$39)*FT!R71 -> 0 | AA71: =R71-Z71 -> 0
A72: 500+HT | B72: 0 | C72: 0 | D72: 0 | E72: 0 | F72: 0 | G72: 0 | H72: 0 | I72: =G72 -> 0 | J72: =($S$98+T98)*0 -> 0 | K72: 0 | L72: 0 | M72: 0 | N72: 0 | O72: 0 | P72: 0 | Q72: 0 | R72: 0 | S72: 0 | T72: 0 | U72: 0 | V72: 0 | W72: 0 | X72: =$E$10*0 -> 0 | Y72: 0 | Z72: =(LHV!$G$43/LHV!$E$39)*FT!R72 -> 0 | AA72: 0
A73: OXVAP | B73: 0 | C73: 0 | D73: 0 | E73: 0 | F73: 0 | G73: 0 | H73: 0 | I73: 0 | J73: =($S$98+T98)*0 -> 0 | K73: 0 | L73: =$E$6*6.60677016336192E-07 -> 0.05682124568 | M73: 0.05682124568 | N73: 0 | O73: 0 | P73: 0.05682124568 | Q73: 0 | R73: 0 | S73: 0 | T73: 0 | U73: 0 | V73: =$E$10*0.000568533462642452 -> 44.45134196 | W73: 0 | X73: 0 | Y73: 0 | Z73: =(LHV!$G$43/LHV!$E$39)*FT!R73 -> 0 | AA73: 0
A74: OXHC | B74: 0 | C74: 1.497784119e-07 | D74: 0 | E74: 1.497784119e-07 | F74: =1.38769546559799E-09*(E74+0.00199130514726627*0.96628425949707*$E$10) -> 2.087688679e-07 | G74: 2.161885093e-08 | H74: 1.497200136e-07 | I74: 2.161885093e-08 | J74: =($S$98+T98)*0 -> 0 | K74: 5.904885433e-08 | L74: =$E$6*2.99776016948998E-06 -> 0.2578210879 | M74: 0.2578211469 | N74: 0 | O74: 0 | P74: 0.2578211469 | Q74: 0 | R74: 0 | S74: 0 | T74: 0 | U74: 0 | V74: =$E$10*3.15151284218584E-09 -> 0.000246404098 | W74: 0 | X74: 0 | Y74: 0 | Z74: =(LHV!$G$43/LHV!$E$39)*FT!R74 -> 0 | AA74: 0
A75: OXH2O | B75: 0 | C75: 0 | D75: 0 | E75: 0 | F75: =0*(E75+0*0.96628425949707*$E$10) -> 0 | G75: 0 | H75: 0 | I75: 0 | J75: =($S$98+T98)*0 -> 0 | K75: 0 | L75: =$E$6*2.38475611965329E-06 -> 0.2050999354 | M75: 0.2050999354 | N75: 0 | O75: 0 | P75: 0.2050999354 | Q75: 0 | R75: 0 | S75: 0 | T75: 0 | U75: 0 | V75: =$E$10*0.00205215225550251 -> 160.4495208 | W75: 0 | X75: 0 | Y75: 0 | Z75: =(LHV!$G$43/LHV!$E$39)*FT!R75 -> 0 | AA75: 0
A76: C5N | B76: 0 | C76: 0 | D76: 0 | E76: 0 | F76: 0 | G76: 0 | H76: 0 | I76: 0 | J76: =($S$98+T98)*0 -> 0 | K76: 0 | L76: =$E$6*0 -> 0 | M76: 0 | N76: 0 | O76: 0 | P76: 0 | Q76: 0 | R76: 0 | S76: 0 | T76: 0 | U76: 0 | V76: =$E$10*0 -> 0 | W76: 0 | X76: 0 | Y76: 0 | Z76: =(LHV!$G$43/LHV!$E$39)*FT!R76 -> 0 | AA76: 0
A77: C6N | B77: 0 | C77: 0 | D77: 0 | E77: 0 | F77: 0 | G77: 0 | H77: 0 | I77: 0 | J77: =($S$98+T98)*0 -> 0 | K77: 0 | L77: 0 | M77: 0 | N77: 0 | O77: 0 | P77: 0 | Q77: 0 | R77: 0 | S77: 0 | T77: 0 | U77: 0 | V77: 0 | W77: 0 | X77: 0 | Y77: 0 | Z77: =(LHV!$G$43/LHV!$E$39)*FT!R77 -> 0 | AA77: 0
A78: C7N | B78: 0 | C78: 0 | D78: 0 | E78: 0 | F78: 0 | G78: 0 | H78: 0 | I78: 0 | J78: =($S$98+T98)*0 -> 0 | K78: 0 | L78: 0 | M78: 0 | N78: 0 | O78: 0 | P78: 0 | Q78: 0 | R78: 0 | S78: 0 | T78: 0 | U78: 0 | V78: 0 | W78: 0 | X78: 0 | Y78: 0 | Z78: =(LHV!$G$43/LHV!$E$39)*FT!R78 -> 0 | AA78: 0
A79: C8N | B79: 0 | C79: 0 | D79: 0 | E79: 0 | F79: 0 | G79: 0 | H79: 0 | I79: 0 | J79: =($S$98+T98)*0 -> 0 | K79: 0 | L79: 0 | M79: 0 | N79: 0 | O79: 0 | P79: 0 | Q79: 0 | R79: 0 | S79: 0 | T79: 0 | U79: 0 | V79: 0 | W79: 0 | X79: 0 | Y79: 0 | Z79: =(LHV!$G$43/LHV!$E$39)*FT!R79 -> 0 | AA79: 0
A80: C9N | B80: 0 | C80: 0 | D80: 0 | E80: 0 | F80: 0 | G80: 0 | H80: 0 | I80: 0 | J80: =($S$98+T98)*0 -> 0 | K80: 0 | L80: 0 | M80: 0 | N80: 0 | O80: 0 | P80: 0 | Q80: 0 | R80: 0 | S80: =(1-0.163783724642702)*$E$10*0 -> 0 | T80: =0.163783724642702*$E$10*0 -> 0 | U80: 0 | V80: 0 | W80: 0 | X80: 0 | Y80: 0 | Z80: =(LHV!$G$43/LHV!$E$39)*FT!R80 -> 0 | AA80: 0
A81: C10N | B81: 0 | C81: 0 | D81: 0 | E81: 0 | F81: 0 | G81: 0 | H81: 0 | I81: 0 | J81: =($S$98+T98)*0 -> 0 | K81: 0 | L81: 0 | M81: 0 | N81: 0 | O81: 0 | P81: 0 | Q81: 0 | R81: 0 | S81: 0 | T81: 0 | U81: 0 | V81: 0 | W81: 0 | X81: 0 | Y81: 0 | Z81: =(LHV!$G$43/LHV!$E$39)*FT!R81 -> 0 | AA81: 0
A82: C6A | B82: 0 | C82: 0 | D82: 0 | E82: 0 | F82: 0 | G82: 0 | H82: 0 | I82: 0 | J82: =($S$98+T98)*0 -> 0 | K82: 0 | L82: 0 | M82: 0 | N82: 0 | O82: 0 | P82: 0 | Q82: 0 | R82: 0 | S82: 0 | T82: 0 | U82: 0 | V82: 0 | W82: 0 | X82: 0 | Y82: 0 | Z82: =(LHV!$G$43/LHV!$E$39)*FT!R82 -> 0 | AA82: 0
A83: C7A | B83: 0 | C83: 0 | D83: 0 | E83: 0 | F83: 0 | G83: 0 | H83: 0 | I83: 0 | J83: =($S$98+T98)*0 -> 0 | K83: 0 | L83: 0 | M83: 0 | N83: 0 | O83: 0 | P83: 0 | Q83: 0 | R83: 0 | S83: 0 | T83: 0 | U83: 0 | V83: 0 | W83: 0 | X83: 0 | Y83: 0 | Z83: =(LHV!$G$43/LHV!$E$39)*FT!R83 -> 0 | AA83: 0
A84: C8A | B84: 0 | C84: 0 | D84: 0 | E84: 0 | F84: 0 | G84: 0 | H84: 0 | I84: 0 | J84: =($S$98+T98)*0 -> 0 | K84: 0 | L84: 0 | M84: 0 | N84: 0 | O84: 0 | P84: 0 | Q84: 0 | R84: 0 | S84: 0 | T84: 0 | U84: 0 | V84: 0 | W84: 0 | X84: 0 | Y84: 0 | Z84: =(LHV!$G$43/LHV!$E$39)*FT!R84 -> 0 | AA84: 0
A85: C9A | B85: 0 | C85: 0 | D85: 0 | E85: 0 | F85: 0 | G85: 0 | H85: 0 | I85: 0 | J85: =($S$98+T98)*0 -> 0 | K85: 0 | L85: 0 | M85: 0 | N85: 0 | O85: 0 | P85: 0 | Q85: 0 | R85: 0 | S85: 0 | T85: 0 | U85: 0 | V85: 0 | W85: 0 | X85: 0 | Y85: 0 | Z85: =(LHV!$G$43/LHV!$E$39)*FT!R85 -> 0 | AA85: 0
A86: C10AP | B86: 0 | C86: 0 | D86: 0 | E86: 0 | F86: 0 | G86: 0 | H86: 0 | I86: 0 | J86: =($S$98+T98)*0 -> 0 | K86: 0 | L86: 0 | M86: 0 | N86: 0 | O86: 0 | P86: 0 | Q86: 0 | R86: 0 | S86: 0 | T86: 0 | U86: 0 | V86: 0 | W86: 0 | X86: 0 | Y86: 0 | Z86: =(LHV!$G$43/LHV!$E$39)*FT!R86 -> 0 | AA86: 0
A87: C21OP | B87: 0 | C87: 1.353401227e-27 | D87: 0 | E87: 1.353401227e-27 | F87: =2.40044285959378E-28*(E87+0.00010402026546278*0.96628425949707*$E$10) -> 1.886440364e-27 | G87: 1.953484417e-28 | H87: 1.352873538e-27 | I87: 1.953484417e-28 | J87: =($S$98+T98)*0 -> 0 | K87: 5.335668262e-28 | L87: =$E$6*1.63858472322467E-07 -> 0.01409257819 | M87: 0.01409257819 | N87: 0 | O87: 0 | P87: 0.01409257819 | Q87: 0 | R87: 0 | S87: 0 | T87: 0 | U87: 0 | V87: =$E$10*3.61620985301774E-31 -> 2.827368859e-26 | W87: 0 | X87: 0 | Y87: 0 | Z87: =(LHV!$G$43/LHV!$E$39)*FT!R87 -> 0 | AA87: 0
A88: C22OP | B88: 0 | C88: 4.840896147e-29 | D88: 0 | E88: 4.840896147e-29 | F88: =1.04754326022787E-29*(E88+0.0000852582792544058*0.96628425949707*$E$10) -> 6.747490478e-29 | G88: 6.987296155e-30 | H88: 4.83900869e-29 | I88: 6.987296155e-30 | J88: =($S$98+T98)*0 -> 0 | K88: 1.908481788e-29 | L88: =$E$6*1.33245543863326E-07 -> 0.01145972631 | M88: 0.01145972631 | N88: 0 | O88: 0 | P88: 0.01145972631 | Q88: 0 | R88: 0 | S88: 0 | T88: 0 | U88: 0 | V88: =$E$10*1.40667021570612E-31 -> 1.099818795e-26 | W88: 0 | X88: 0 | Y88: 0 | Z88: =(LHV!$G$43/LHV!$E$39)*FT!R88 -> 0 | AA88: 0
A89: C23OP | B89: 0 | C89: 0 | D89: 0 | E89: 0 | F89: =0*(E89+0*0.96628425949707*$E$10) -> 0 | G89: 0 | H89: 0 | I89: 0 | J89: =($S$98+T98)*0 -> 0 | K89: 0 | L89: =$E$6*1.06470146497375E-07 -> 0.009156919648 | M89: 0.009156919648 | N89: 0 | O89: 0 | P89: 0.009156919648 | Q89: 0 | R89: 0 | S89: 0 | T89: 0 | U89: 0 | V89: =$E$10*5.52751293304907E-32 -> 4.321739769e-27 | W89: 0 | X89: 0 | Y89: 0 | Z89: =(LHV!$G$43/LHV!$E$39)*FT!R89 -> 0 | AA89: 0
A90: C24OP | B90: 0 | C90: 0 | D90: 0 | E90: 0 | F90: 0 | G90: 0 | H90: 0 | I90: 0 | J90: =($S$98+T98)*0 -> 0 | K90: 0 | L90: =$E$6*8.39644504777984E-08 -> 0.007221326838 | M90: 0.007221326838 | N90: 0 | O90: 0 | P90: 0.007221326838 | Q90: 0 | R90: 0 | S90: 0 | T90: 0 | U90: 0 | V90: =$E$10*2.20941750931928E-32 -> 1.727454577e-27 | W90: 0 | X90: 0 | Y90: 0 | Z90: =(LHV!$G$43/LHV!$E$39)*FT!R90 -> 0 | AA90: 0
A91: C25OP | B91: 0 | C91: 0 | D91: 0 | E91: 0 | F91: 0 | G91: 0 | H91: 0 | I91: 0 | J91: =($S$98+T98)*0 -> 0 | K91: 0 | L91: =$E$6*6.55433889289867E-08 -> 0.005637031277 | M91: 0.005637031277 | N91: 0 | O91: 0 | P91: 0.005637031277 | Q91: 0 | R91: 0 | S91: 0 | T91: 0 | U91: 0 | V91: =$E$10*8.97897212440788E-33 -> 7.02029672e-28 | W91: 0 | X91: 0 | Y91: 0 | Z91: =(LHV!$G$43/LHV!$E$39)*FT!R91 -> 0 | AA91: 0
A92: C26OP | B92: 0 | C92: 0 | D92: 0 | E92: 0 | F92: 0 | G92: 0 | H92: 0 | I92: 0 | J92: =($S$98+T98)*0 -> 0 | K92: 0 | L92: =$E$6*5.05265152611098E-08 -> 0.004345511447 | M92: 0.004345511447 | N92: 0 | O92: 0 | P92: 0.004345511447 | Q92: 0 | R92: 0 | S92: 0 | T92: 0 | U92: 0 | V92: =$E$10*3.63978055553825E-33 -> 2.845797842e-28 | W92: 0 | X92: 0 | Y92: 0 | Z92: =(LHV!$G$43/LHV!$E$39)*FT!R92 -> 0 | AA92: 0
A93: C27OP | B93: 0 | C93: 0 | D93: 0 | E93: 0 | F93: 0 | G93: 0 | H93: 0 | I93: 0 | J93: =($S$98+T98)*0 -> 0 | K93: 0 | L93: =$E$6*3.88615676311257E-08 -> 0.003342272589 | M93: 0.003342272589 | N93: 0 | O93: 0 | P93: 0.003342272589 | Q93: 0 | R93: 0 | S93: 0 | T93: 0 | U93: 0 | V93: =$E$10*1.51731817676097E-33 -> 1.18632998e-28 | W93: 0 | X93: 0 | Y93: 0 | Z93: =(LHV!$G$43/LHV!$E$39)*FT!R93 -> 0 | AA93: 0
A94: C28OP | B94: 0 | C94: 0 | D94: 0 | E94: 0 | F94: 0 | G94: 0 | H94: 0 | I94: 0 | J94: =($S$98+T98)*0 -> 0 | K94: 0 | L94: =$E$6*2.97961579595308E-08 -> 0.002562605887 | M94: 0.002562605887 | N94: 0 | O94: 0 | P94: 0.002562605887 | Q94: 0 | R94: 0 | S94: 0 | T94: 0 | U94: 0 | V94: =$E$10*6.46716570606894E-34 -> 5.056416432e-29 | W94: 0 | X94: 0 | Y94: 0 | Z94: =(LHV!$G$43/LHV!$E$39)*FT!R94 -> 0 | AA94: 0
A95: C29OP | B95: 0 | C95: 0 | D95: 0 | E95: 0 | F95: 0 | G95: 0 | H95: 0 | I95: 0 | J95: =($S$98+T98)*0 -> 0 | K95: 0 | L95: =$E$6*2.27448493412271E-08 -> 0.00195616109 | M95: 0.00195616109 | N95: 0 | O95: 0 | P95: 0.00195616109 | Q95: 0 | R95: 0 | S95: 0 | T95: 0 | U95: 0 | V95: =$E$10*2.73835384411901E-34 -> 2.141008597e-29 | W95: 0 | X95: 0 | Y95: 0 | Z95: =(LHV!$G$43/LHV!$E$39)*FT!R95 -> 0 | AA95: 0
A96: C30WAX | B96: 0 | C96: 0 | D96: 0 | E96: 0 | F96: 0 | G96: 0 | H96: 0 | I96: 0 | J96: =($S$98+T98)*0 -> 0 | K96: 0 | L96: =$E$6*4.43735629622273E-09 -> 0.0003816329402 | M96: 0.0003816329402 | N96: 0 | O96: 0 | P96: 0.0003816329402 | Q96: 0 | R96: 0 | S96: 0 | T96: 0 | U96: 0 | V96: =$E$10*1.7461860343954E-39 -> 1.365272541e-34 | W96: 0 | X96: 0 | Y96: 0
A98: Total | B98: =SUM(B6:B96) -> 139030.082 | C98: 39966.88986 | D98: 8574.594068 | E98: 187571.5659 | F98: 55706.93986 | G98: 5768.676339 | H98: 39950.61082 | I98: 2192.155077 | J98: 674.6408241 | K98: 12179.80778 | L98: =SUM(L6:L96) -> 540.912694 | M98: 12720.72048 | N98: 562.8322242 | O98: =SUM(O6:O96) -> 5628.322242 | P98: 18911.87494 | Q98: 14811.41667 | R98: 14123.36092 | S98: 2246.410352 | T98: 439.9883921 | U98: =SUM(U6:U96) -> 89.61816817 | V98: =$E$10*0.208977621762275 -> 16339.11869 | W98: =$E$10*0.0498680611854387 -> 3898.982885 | X98: =SUM(X6:X96) -> 36154.70314 | Y98: =SUM(Y6:Y96) -> 1144.925631 | Z98: =SUM(Z6:Z96) -> 4575.043081 | AA98: =SUM(AA6:AA96) -> 9548.317841
J102: LPG Refrigeration Load:
J103: Temperature F | K103: -100
A104: Calculate WGS reaction | J104: Pressure psia | K104: 240
B105: 401S2 | J105: Vapor Frac | K105: 0
B106: P401R1 | J106: Mole Flow lbmol/hr | K106: 639.5688
B107: P401M1 | J107: Mass Flow lb/hr | K107: 31235.87
B108: MIXED | J108: Volume Flow cuft/hr | K108: 714.6981
J109: Enthalpy MMBtu/hr | K109: -36.0329
A110: Substream: MIXED | J110: Refrigeration Power MW | K110: 43.1
A111: Mole Flow lbmol/hr | J111: Refrigeration Power MW/lbmol/hr | K111: =K110/K106 -> 0.06738915344
A112: H2 | B112: =P6 -> 7284.114594 | C112: 4092.865 | D112: 0.8251640107 | E112: =B112-(ABS(SUM(J126:J202)+J125)+E119*3-(B118-E118)*2)/2 -> 7741.892679
A113: N2 | B113: =P7 -> 2794.311343 | D113: 0.9972615091 | E113: =B113*D113 -> 2786.659147
A114: O2 | B114: 534.690613 | D114: 3.209684211e-22 | E114: =B114*D114 -> 1.716188018e-19
A115: H2S | B115: 0.0001274949672 | D115: 0 | E115: =B115*D115 -> 0
A116: CO | B116: 746.496509 | D116: 0.8463400674 | E116: =B116*D116 -> 631.7899058
A117: CO2 | B117: 52.64382304 | D117: 18.83518194 | E117: =(SUM(H126:H202)+H125)+(B116-E116)+B117 -> 691.5133134
A118: H2O | B118: 5628.759183 | D118: 0.7616037166 | E118: =B118*D118 -> 4286.883913
A119: NH3 | B119: 0 | D119: 15.782 | E119: =(B113-E113)*2 -> 15.30439263
A120: HCL | B120: 0 | D120: 0 | E120: =B120*D120 -> 0
A121: C | B121: 0 | D121: 0 | E121: =B121*D121 -> 0
A122: HCN | B122: 0 | D122: 0 | E122: =B122*D122 -> 0
A123: SULFUR | B123: 0 | D123: 0 | E123: =B123*D123 -> 0
A124: COS | B124: 0 | D124: 0 | E124: =B124*D124 -> 0 | F124: Carbon | I124: Hydrogen
A125: CH4 | B125: 999.6408478 | D125: 4.722870129 | E125: =SUM(H126:H202)*0.784927391138132+B125 -> 2912.621816 | F125: =(B125-E125) -> -1912.980968 | G125: 1 | H125: =F125*G125 -> -1912.980968 | I125: 4 | J125: =F125*I125 -> -7651.923872
A126: C2H4 | B126: 332.6192458 | D126: 3.962362671e-05 | E126: =B126*D126 -> 0.01317958083 | F126: =(B126-C126) -> 332.6192458 | G126: 2 | H126: =F126*G126 -> 665.2384916 | I126: 4 | J126: 1330.476983
A127: C2H6 | B127: 119.2639994 | D127: 0.004507651189 | E127: =B127*D127 -> 0.5376005087 | F127: =(B127-C127) -> 119.2639994 | G127: 2 | H127: =F127*G127 -> 238.5279988 | I127: 6 | J127: 715.5839963
A128: C3H6 | B128: 6.682809804 | D128: 1.655878656e-07 | E128: 1.106592212e-06 | F128: 6.682809804 | G128: 3 | H128: 20.04842941 | I128: 6 | J128: 40.09685883
A129: C3H8 | B129: 148.0426102 | D129: 1.19297149e-06 | E129: 0.0001766106133 | F129: 148.0426102 | G129: 3 | H129: 444.1278307 | I129: 8 | J129: 1184.340882
A130: IC4H8 | B130: 0.0319904878 | D130: 3.32440845e-09 | E130: 1.06349448e-10 | F130: 0.0319904878 | G130: 4 | H130: 0.1279619512 | I130: 8 | J130: 0.2559239024
A131: NC4H8 | B131: 0.5958659925 | D131: 7.917244834e-11 | E131: 4.71761695e-11 | F131: 0.5958659925 | G131: 4 | H131: 2.38346397 | I131: 8 | J131: 4.76692794
A132: IC4H10 | B132: 128.8758487 | D132: 4.822988685e-10 | E132: 6.215667599e-08 | F132: 128.8758487 | G132: 4 | H132: 515.5033947 | I132: 10 | J132: 1288.758487
A133: NC4H10 | B133: 132.2609143 | D133: 6.95074453e-10 | E133: 9.193118265e-08 | F133: 132.2609143 | G133: 4 | H133: 529.0436571 | I133: 10 | J133: 1322.609143
A134: C5H10 | B134: 0.2607219035 | D134: 3.62212398e-11 | E134: 9.443670588e-12 | F134: 0.2607219035 | G134: 5 | H134: 1.303609517 | I134: 10 | J134: 2.607219035
A135: NC5H12 | B135: 0.07988215622 | D135: 5.985502861e-10 | E135: 4.781348746e-11 | F135: 0.07988215622 | G135: 5 | H135: 0.3994107811 | I135: 12 | J135: 0.9585858747
A136: IC5H12 | B136: 0.009243277521 | D136: 7.478929149e-09 | E136: 6.912981768e-11 | F136: 0.009243277521 | G136: 5 | H136: 0.04621638761 | I136: 12 | J136: 0.1109193303
A137: C6H12 | B137: 0.2306273277 | D137: 1.571788633e-14 | E137: 3.624974122e-15 | F137: 0.2306273277 | G137: 6 | H137: 1.383763966 | I137: 12 | J137: 2.767527933
A138: NC6H14 | B138: 0.07055019892 | D138: 2.826204605e-13 | E138: 1.99389297e-14 | F138: 0.07055019892 | G138: 6 | H138: 0.4233011935 | I138: 14 | J138: 0.9877027849
A139: IC6H14 | B139: 0.007659605962 | D139: 2.825275989e-12 | E139: 2.164050081e-14 | F139: 0.007659605962 | G139: 6 | H139: 0.04595763577 | I139: 14 | J139: 0.1072344835
A140: C7H14 | B140: 0.1942508719 | D140: 7.14932602e-18 | E140: 1.388762813e-18 | F140: 0.1942508719 | G140: 7 | H140: 1.359756104 | I140: 14 | J140: 2.719512207
A141: C7H16 | B141: 0.08447533554 | D141: 9.617000378e-17 | E141: 8.123993339e-18 | F141: 0.08447533554 | G141: 7 | H141: 0.5913273488 | I141: 16 | J141: 1.351605369
A142: C8H16 | B142: 0.1710162939 | D142: 3.054784311e-21 | E142: 5.224178914e-22 | F142: 0.1710162939 | G142: 8 | H142: 1.368130351 | I142: 16 | J142: 2.736260702
A143: C8H18 | B143: 0.07364406086 | D143: 4.088682862e-20 | E143: 3.011072096e-21 | F143: 0.07364406086 | G143: 8 | H143: 0.5891524869 | I143: 18 | J143: 1.325593096
A144: C9H18 | B144: 0.1478235513 | D144: 1.293344689e-24 | E144: 1.91186805e-25 | F144: 0.1478235513 | G144: 9 | H144: 1.330411961 | I144: 18 | J144: 2.660823923
A145: C9H20 | B145: 0.0635841309 | D145: 3.599586071e-24 | E145: 2.288765519e-25 | F145: 0.0635841309 | G145: 9 | H145: 0.5722571781 | I145: 20 | J145: 1.271682618
A146: C10H20 | B146: 0.1256275783 | D146: 5.883739743e-28 | E146: 7.391599751e-29 | F146: 0.1256275783 | G146: 10 | H146: 1.256275783 | I146: 20 | J146: 2.512551565
A147: C10H22 | B147: 0.05432906561 | D147: 7.84665868e-27 | E147: 4.263016343e-28 | F147: 0.05432906561 | G147: 10 | H147: 0.5432906561 | I147: 22 | J147: 1.195239443
A148: C11H22 | B148: 0.1052828027 | D148: 0 | E148: 0 | F148: 0.1052828027 | G148: 11 | H148: 1.15811083 | I148: 22 | J148: 2.31622166
A149: C11H24 | B149: 0.04507120961 | D149: 0 | E149: 0 | F149: 0.04507120961 | G149: 11 | H149: 0.4957833057 | I149: 24 | J149: 1.081709031
A150: C12H24 | B150: 0.08727474144 | D150: 0 | E150: 0 | F150: 0.08727474144 | G150: 12 | H150: 1.047296897 | I150: 24 | J150: 2.094593795
A151: C12H26 | B151: 0.03731052306 | D151: 0 | E151: 0 | F151: 0.03731052306 | G151: 12 | H151: 0.4477262767 | I151: 26 | J151: 0.9700735995
A152: C13H26 | B152: 0.07153300195 | D152: 0 | E152: 0 | F152: 0.07153300195 | G152: 13 | H152: 0.9299290253 | I152: 26 | J152: 1.859858051
A153: C13H28 | B153: 0.03062510359 | D153: 0 | E153: 0 | F153: 0.03062510359 | G153: 13 | H153: 0.3981263467 | I153: 28 | J153: 0.8575029005
A154: C14H28 | B154: 0.05796600775 | D154: 0 | E154: 0 | F154: 0.05796600775 | G154: 14 | H154: 0.8115241085 | I154: 28 | J154: 1.623048217
A155: C14H30 | B155: 0.02474414484 | D155: 0 | E155: 0 | F155: 0.02474414484 | G155: 14 | H155: 0.3464180278 | I155: 30 | J155: 0.7423243453
A156: C15H30 | B156: 0.04647612958 | D156: 0 | E156: 0 | F156: 0.04647612958 | G156: 15 | H156: 0.6971419437 | I156: 30 | J156: 1.394283887
A157: C15H32 | B157: 0.01989003084 | D157: 0 | E157: 0 | F157: 0.01989003084 | G157: 15 | H157: 0.2983504626 | I157: 32 | J157: =F157*I157 -> 0.6364809869
A158: C16H32 | B158: 0.03664583696 | D158: 0 | E158: 0 | F158: 0.03664583696 | G158: 16 | H158: 0.5863333914 | I158: 32 | J158: 1.172666783
A159: C16H34 | B159: 0.01585483701 | D159: 0 | E159: 0 | F159: 0.01585483701 | G159: 16 | H159: 0.2536773922 | I159: 34 | J159: 0.5390644583
A160: C17H34 | B160: 0.02895744765 | D160: 0 | E160: 0 | F160: 0.02895744765 | G160: 17 | H160: 0.49227661 | I160: 34 | J160: 0.9845532201
A161: C17H36 | B161: 0.01219973602 | D161: 0 | E161: 0 | F161: 0.01219973602 | G161: 17 | H161: 0.2073955123 | I161: 36 | J161: 0.4391904967
A162: C18H36 | B162: 0.0216955559 | D162: 0 | E162: 0 | F162: 0.0216955559 | G162: 18 | H162: 0.3905200063 | I162: 36 | J162: 0.7810400126
A163: C18H38 | B163: 0.009278109969 | D163: 0 | E163: 0 | F163: 0.009278109969 | G163: 18 | H163: 0.1670059794 | I163: 38 | J163: 0.3525681788
A164: C19H38 | B164: 0.016604038 | D164: 0 | E164: 0 | F164: 0.016604038 | G164: 19 | H164: 0.315476722 | I164: 38 | J164: 0.6309534439
A165: C19H40 | B165: 0.006879288116 | D165: 0 | E165: 0 | F165: 0.006879288116 | G165: 19 | H165: 0.1307064742 | I165: 40 | J165: 0.2751715246
A166: C20H40 | B166: 0.0120429239 | D166: 0 | E166: 0 | F166: 0.0120429239 | G166: 20 | H166: 0.2408584781 | I166: 40 | J166: 0.4817169561
A167: C20H42 | B167: 0.004952382181 | D167: 0 | E167: 0 | F167: 0.004952382181 | G167: 20 | H167: 0.09904764363 | I167: 42 | J167: 0.2080000516
A168: ALKYLATE | B168: 0 | D168: 0 | E168: 0 | F168: 0 | G168: 0 | H168: 0 | I168: 0 | J168: 0
A169: ISOMERAT | B169: 0 | D169: 0 | E169: 0 | F169: 0 | G169: 0 | H169: 0 | I169: 0 | J169: 0
A170: REFORMAT | B170: 0 | D170: 0 | E170: 0 | F170: 0 | G170: 0 | H170: 0 | I170: 0 | J170: 0
A171: C7-300HC | B171: 0 | D171: 0 | E171: 0 | F171: 0 | G171: 0 | H171: 0 | I171: 0 | J171: 0
A172: 3-350HC | B172: 0 | D172: 0 | E172: 0 | F172: 0 | G172: 0 | H172: 0 | I172: 0 | J172: 0
A173: 350-5HC | B173: 0 | D173: 0 | E173: 0 | F173: 0 | G173: 0 | H173: 0 | I173: 0 | J173: 0
A174: 500+HC | B174: 0 | D174: 0 | E174: 0 | F174: 0 | G174: 0 | H174: 0 | I174: 0 | J174: 0
A175: C7-300HT | B175: 0 | D175: 0 | E175: 0 | F175: 0 | G175: 0 | H175: 0 | I175: 0 | J175: 0
A176: 3-350HT | B176: 0 | D176: 0 | E176: 0 | F176: 0 | G176: 0 | H176: 0 | I176: 0 | J176: 0
A177: 350-5HT | B177: =P71 -> 0 | D177: 0 | E177: 0 | F177: 0 | G177: 0 | H177: 0 | I177: 0 | J177: 0
A178: 500+HT | B178: 0 | D178: 0 | E178: 0 | F178: 0 | G178: 0 | H178: 0 | I178: 0 | J178: 0
A179: OXVAP | B179: 0.05682124568 | D179: 0 | E179: 0 | F179: 0.05682124568 | G179: 0 | H179: 0 | I179: 0 | J179: 0
A180: OXHC | B180: 0.2578211469 | D180: 0 | E180: 0 | F180: 0.2578211469 | G180: 0 | H180: 0 | I180: 0 | J180: 0
A181: OXH2O | B181: 0.2050999354 | D181: 0 | E181: 0 | F181: 0.2050999354 | G181: 0 | H181: 0 | I181: 0 | J181: 0
A182: C5N | B182: 0 | D182: 0 | E182: 0 | F182: 0 | G182: 5 | H182: 0 | I182: 0 | J182: 0
A183: C6N | B183: 0 | D183: 0 | E183: 0 | F183: 0 | G183: 6 | H183: 0 | I183: 0 | J183: 0
A184: C7N | B184: 0 | D184: 0 | E184: 0 | F184: 0 | G184: 7 | H184: 0 | I184: 0 | J184: 0
A185: C8N | B185: 0 | D185: 0 | E185: 0 | F185: 0 | G185: 8 | H185: 0 | I185: 0 | J185: 0
A186: C9N | B186: 0 | D186: 0 | E186: 0 | F186: 0 | G186: 9 | H186: 0 | I186: 0 | J186: 0
A187: C10N | B187: 0 | D187: 0 | E187: 0 | F187: 0 | G187: 10 | H187: 0 | I187: 0 | J187: 0
A188: C6A | B188: 0 | D188: 0 | E188: 0 | F188: 0 | G188: 6 | H188: 0 | I188: 0 | J188: 0
A189: C7A | B189: 0 | D189: 0 | E189: 0 | F189: 0 | G189: 7 | H189: 0 | I189: 0 | J189: =F189*I189 -> 0
A190: C8A | B190: 0 | D190: 0 | E190: 0 | F190: =(B190-C190) -> 0 | G190: 8 | H190: =F190*G190 -> 0 | I190: 0 | J190: 0
A191: C9A | B191: 0 | D191: 0 | E191: =B191*D191 -> 0 | F191: 0 | G191: 0 | H191: 0 | I191: 0 | J191: 0
A192: C10AP | B192: 0 | D192: 0 | E192: 0 | F192: 0 | G192: 0 | H192: 0 | I192: 0 | J192: 0
A193: C21OP | B193: 0.01409257819 | D193: 0 | E193: 0 | F193: 0.01409257819 | G193: 21 | H193: 0.295944142 | I193: 0 | J193: 0
A194: C22OP | B194: 0.01145972631 | D194: 0 | E194: 0 | F194: 0.01145972631 | G194: 22 | H194: 0.2521139787 | I194: 0 | J194: 0
A195: C23OP | B195: 0.009156919648 | D195: 0 | E195: 0 | F195: 0.009156919648 | G195: 23 | H195: 0.2106091519 | L195: =F195*K195 -> 0
A196: C24OP | B196: 0.007221326838 | D196: 0 | E196: 0 | F196: 0.007221326838 | G196: 24 | H196: 0.1733118441 | K196: 0 | L196: 0
A197: C25OP | B197: 0.005637031277 | D197: 0 | E197: 0 | F197: 0.005637031277 | G197: 25 | H197: 0.1409257819 | K197: 0 | L197: 0
A198: C26OP | B198: 0.004345511447 | D198: 0 | E198: 0 | F198: 0.004345511447 | G198: 26 | H198: 0.1129832976 | K198: 0 | L198: 0
A199: C27OP | B199: 0.003342272589 | D199: 0 | E199: 0 | F199: 0.003342272589 | G199: 27 | H199: 0.0902413599 | K199: 0 | L199: 0
A200: C28OP | B200: 0.002562605887 | D200: 0 | E200: 0 | F200: 0.002562605887 | G200: 28 | H200: 0.07175296485 | K200: 0 | L200: 0
A201: C29OP | B201: 0.00195616109 | D201: 0 | E201: 0 | F201: 0.00195616109 | G201: 29 | H201: 0.05672867161 | K201: 0 | L201: 0
A202: C30WAX | B202: 0.0003816329402 | D202: 0 | E202: 0 | F202: 0.0003816329402 | G202: 30 | H202: 0.01144898821 | K202: 0 | L202: 0

Sheet GT
B1: Treated Syngas | C1: Fuel Gas | D1: Nitrogen | E1: Air | F1: Total Gas | G1: GT Product | H1: TIN | I1: TOUT | J1: BTU/hr
H2: 1030 | I2: 270
A3: =Syngas!A18 -> H2O | B3: =Syngas!Q18 -> 0 | C3: =FT!AA12 -> 28.98214552 | D3: =D23*0.000357075 -> 0.6326992109 | E3: =E23*0.00987032 -> 1348.202738 | F3: =C3+B3+D3+E3 -> 1377.817582 | G3: =F3+F8*2+F11+F12 -> 10550.09112 | J3: =G3*($C$44-$C$45)/0.00094781712 -> 53135654.29 | L3: =SUM(B3:C3) -> 28.98214552 | M3: =L3/$L$23 -> 0.003035432697
A4: =Syngas!A19 -> AR | B4: =Syngas!Q19 -> 0 | C4: 0 | D4: =D23*0.00234928 -> 4.162676195 | E4: =E23*0.00924784 -> 1263.177202 | F4: 1267.339879 | G4: =F4 -> 1267.339879 | J4: =G4*($D$44-$D$45)/0.00094781712 -> 0.2913687217 | L4: =SUM(B4:C4) -> 0 | M4: =L4/$L$23 -> 0
A5: =Syngas!A20 -> CO2 | B5: =Syngas!Q20 -> 0 | C5: =FT!AA11 -> 2.33754166 | D5: =D23*0 -> 0 | E5: =E23*0.000326732 -> 44.62884454 | F5: 46.9663862 | G5: =F5+F8+F9 -> 2443.221064 | J5: =G5*($E$44-$E$45)/0.00094781712 -> 26730661.8 | L5: 2.33754166 | M5: 0.0002448214326
A6: =Syngas!A21 -> O2 | B6: =Syngas!Q21 -> 0 | C6: =FT!AA8 -> 1.160255605e-19 | D6: =D23*0.00542 -> 9.603667922 | E6: =E23*0.2074029 -> 28329.49262 | F6: 28339.09629 | G6: =F6-F8/1*2-F11/2*1-F12/2*3-F9/2*1 -> 21570.27053 | J6: =G6*($F$44-$F$45)/0.00094781712 -> 76323997.76 | L6: 1.160255605e-19 | M6: 1.215188778e-23
A7: =Syngas!A22 -> N2 | B7: =Syngas!Q22 -> 0 | C7: =FT!AA7 -> 1883.964263 | D7: =D23*0.9918736 -> 1757.495327 | E7: =E23*0.7731522 -> 105606.0911 | F7: 109247.5506 | G7: =F7 -> 109247.5506 | J7: =G7*($G$44-$G$45)/0.00094781712 -> 470408678.5 | L7: 1883.964263 | M7: 0.1973161966
A8: =Syngas!A23 -> CH4 | B8: =Syngas!Q23 -> 0 | C8: =FT!AA19 -> 1969.123285 | F8: 1969.123285 | G8: 0 | J8: =G8*($H$44-$H$45)/0.00094781712 -> 0 | L8: 1969.123285 | M8: 0.2062352905
A9: =Syngas!A24 -> CO | B9: =Syngas!Q24 -> 0 | C9: =FT!AA10 -> 427.1313933 | F9: 427.1313933 | G9: 0 | J9: =G9*($I$44-$I$45)/0.00094781712 -> 0 | L9: 427.1313933 | M9: 0.04473542499
A10: =Syngas!A25 -> COS | B10: =Syngas!Q25 -> 0 | C10: =FT!AA18 -> 0 | F10: 0 | G10: =F10 -> 0 | J10: =G10*($J$44-$J$45)/0.00094781712 -> 0 | L10: 0 | M10: 0
A11: =Syngas!A26 -> H2 | B11: =Syngas!Q26 -> 0 | C11: =FT!AA6 -> 5234.026971 | F11: 5234.026971 | G11: 0 | J11: =G11*($K$44-$K$45)/0.00094781712 -> 0 | L11: 5234.026971 | M11: 0.5481835909
A12: =Syngas!A27 -> H2S | B12: =Syngas!Q27 -> 0 | C12: =FT!AA9 -> 0 | F12: 0 | G12: 0 | J12: =G12*($L$44-$L$45)/0.00094781712 -> 0 | L12: 0 | M12: 0
A13: =Syngas!A28 -> NH3 | B13: =Syngas!Q28 -> 0 | C13: =FT!AA13 -> 2.37975772 | F13: 2.37975772 | G13: =F13 -> 2.37975772 | J13: =G13*($M$44-$M$45)/0.00094781712 -> 32881.0711 | L13: 2.37975772 | M13: 0.0002492429137
A14: =Syngas!A29 -> SO2 | B14: =Syngas!Q29 -> 0 | C14: 0 | F14: 0 | G14: =F12 -> 0 | J14: =G14*($N$44-$N$45)/0.00094781712 -> 0 | L14: 0 | M14: 0
A15: =Syngas!A30 -> SULFU-01 | B15: =Syngas!Q30 -> 0 | C15: 0 | F15: 0 | G15: =F15 -> 0 | L15: 0 | M15: 0
A16: =Syngas!A31 -> SO3 | B16: =Syngas!Q31 -> 0 | C16: 0 | F16: 0 | G16: =F16 -> 0 | L16: 0 | M16: 0
A17: =Syngas!A32 -> C | B17: =Syngas!Q32 -> 0 | C17: 0 | F17: 0 | G17: 0 | L17: 0 | M17: 0
A18: =Syngas!A33 -> S | B18: =Syngas!Q33 -> 0 | C18: 0 | F18: 0 | G18: 0 | L18: 0 | M18: 0
A19: =Syngas!A34 -> S2 | B19: =Syngas!Q34 -> 0 | C19: 0 | F19: 0 | G19: 0 | L19: 0 | M19: 0
A20: =Syngas!A35 -> S6 | B20: =Syngas!Q35 -> 0 | C20: 0 | F20: 0 | G20: 0 | L20: 0 | M20: 0
A21: =Syngas!A36 -> S8 | B21: =Syngas!Q36 -> 0 | C21: 0 | F21: 0 | G21: 0 | L21: 0 | M21: 0
A22: =Syngas!A37 -> HCL | B22: =Syngas!Q37 -> 0 | C22: 0 | F22: 0 | G22: 0 | L22: 0 | M22: 0
A23: =Syngas!A38 -> Total Flow lbmol/hr | B23: =Syngas!Q38 -> 0 | C23: =SUM(C3:C22) -> 9547.945357 | D23: =(B8+C8+B9+C9+B11+C11+B12+C12+B13+C13)*0.232146345301576 -> 1771.894451 | E23: =(B8+C8+B9+C9+B11+C11+B12+C12+B13+C13)*17.8956704962653 -> 136591.5935 | F23: =SUM(F3:F22) -> 147911.4322 | G23: =SUM(G3:G22) -> 145080.853 | J23: =SUM(J3:J22) -> 626631873.7 | L23: 9547.945357 | M23: 1
A24: =Syngas!A39 -> Temperature F | B24: =Syngas!Q39 -> 95
A25: =Syngas!A40 -> Pressure psia | B25: =Syngas!Q40 -> 520
A27: Moisture Fraction | G27: =G3/G23 -> 0.07271870067
A29: GT Output, HP | B29: =IF('F-T Black Box Dashboard'!$G$7= "Gas Turbine",ABS((-100.60785*$G$27 - 156.79228)*LHV!R38)*0.985,0) -> 206281.4025
C33: H2O | D33: Ar | E33: CO2 | F33: O2 | G33: N2 | H33: CH4 | I33: CO | J33: COS | K33: H2 | L33: H2S | M33: NH3 | N33: SO2
B34: A | C34: 30.092 | D34: 20.786 | E34: 24.99735 | F34: 31.32234 | G34: 28.98641 | H34: 0 | I34: 0 | J34: 0 | K34: 0 | L34: 0 | M34: 19.99563 | N34: 21.43049
B35: B | C35: 6.832514 | D35: 2.825911e-07 | E35: 55.18696 | F35: -20.23531 | G35: 1.853978 | H35: 0 | I35: 0 | J35: 0 | K35: 0 | L35: 0 | M35: 49.77119 | N35: 74.35094
B36: C | C36: 6.793435 | D36: -1.464191e-07 | E36: -33.69137 | F36: 57.86644 | G36: -9.647459 | H36: 0 | I36: 0 | J36: 0 | K36: 0 | L36: 0 | M36: -15.37599 | N36: -57.75217
B37: D | C37: -2.53448 | D37: 1.092131e-08 | E37: 7.948387 | F37: -36.50624 | G37: 16.63537 | H37: 0 | I37: 0 | J37: 0 | K37: 0 | L37: 0 | M37: 1.921168 | N37: 16.35534
B38: E | C38: 0.082139 | D38: -3.661371e-08 | E38: -0.136638 | F38: -0.007374 | G38: 0.000117 | H38: 0 | I38: 0 | J38: 0 | K38: 0 | L38: 0 | M38: 0.189174 | N38: 0.086731
B39: F | C39: -250.881 | D39: -6.19735 | E39: -403.6075 | F39: -8.903471 | G39: -8.671914 | H39: 0 | I39: 0 | J39: 0 | K39: 0 | L39: 0 | M39: -53.30667 | N39: -305.7688
B40: G | C40: 223.3967 | D40: 179.999 | E40: 228.2431 | F40: 246.7945 | G40: 226.4168 | H40: 0 | I40: 0 | J40: 0 | K40: 0 | L40: 0 | M40: 203.8591 | N40: 254.8872
B41: H | C41: -241.8264 | D41: 0 | E41: -393.5224 | F41: 0 | G41: 0 | H41: 0 | I41: 0 | J41: 0 | K41: 0 | L41: 0 | M41: -45.89806 | N41: -296.8422
A42: T1 | B42: t, K/1000 | C42: =($H$2+459.67)*(5/9)/1000 -> 0.8275944444 | D42: =($H$2+459.67)*(5/9)/1000 -> 0.8275944444 | E42: 0.8275944444 | F42: 0.8275944444 | G42: 0.8275944444 | H42: 0.8275944444 | I42: 0.8275944444 | J42: 0.8275944444 | K42: 0.8275944444 | L42: 0.8275944444 | M42: 0.8275944444 | N42: 0.8275944444
A43: T2 | B43: t, K/1000 | C43: =($I$2+459.67)*(5/9)/1000 -> 0.4053722222 | D43: =($I$2+459.67)*(5/9)/1000 -> 0.4053722222 | E43: 0.4053722222 | F43: 0.4053722222 | G43: 0.4053722222 | H43: 0.4053722222 | I43: 0.4053722222 | J43: 0.4053722222 | K43: 0.4053722222 | L43: 0.4053722222 | M43: 0.4053722222 | N43: 0.4053722222
A44: Cp1 | B44: Cp, J/Mol*K | C44: =C$34+C$35*C$42+C$36*C$42^2+C$37*C$42^3+C$38/C$42^2 -> 39.082767 | D44: =D$34+D$35*D$42+D$36*D$42^2+D$37*D$42^3+D$38/D$42^2 -> 20.78600009 | E44: 51.90001476 | F44: 33.50556941 | G44: 33.34268084 | H44: 0 | I44: 0 | J44: 0 | K44: 0 | L44: 0 | M44: 52.01995861 | N44: 52.80505343
A45: Cp2 | B45: Cp, J/Mol*K | C45: =C$34+C$35*C$43+C$36*C$43^2+C$37*C$43^3+C$38/C$43^2 -> 34.30907526 | D45: =D$34+D$35*D$43+D$36*D$43^2+D$37*D$43^3+D$38/D$43^2 -> 20.78599987 | E45: 41.53018812 | F45: 30.15182419 | G45: 29.26147814 | H45: 0 | I45: 0 | J45: 0 | K45: 0 | L45: 0 | M45: 38.92398592 | N45: 43.69735786
A49: =D7/D23 -> 0.9918736 | B49: 356.971001 | C49: =B49/A49 -> 359.8956571 | E49: =C49/C53 -> 0.2321463453 | F49: 0.2321463453
B50: 27743.5946 | E50: =B50/C53 -> 17.8956705 | F50: 17.8956705
A53: CH4 | B53: 703.786909 | C53: =B53+B54+B56+B57+B58 -> 1550.296459
A54: CO | B54: 178.556378
A55: COS | B55: 0
A56: H2 | B56: 667.401525
A57: H2S | B57: 1.0993e-07
A58: NH3 | B58: 0.55164679

Sheet Boiler
B1: =GT!B1 -> Treated Syngas | C1: =GT!C1 -> Fuel Gas | D1: Air | E1: Total Gas | F1: GT Product | M1: Steam Output | N1: 293 | O1: MMBtu/hr
M2: Fuel Input | N2: 348 | O2: MMBtu/hr
A3: =GT!A3 -> H2O | B3: =GT!B3 -> 0 | C3: =GT!C3 -> 28.98214552 | D3: =D23*0.00987032 -> 370.4482802 | E3: =C3+B3+D3 -> 399.4304258 | F3: =E3+E8*2+E11+E12 -> 9571.703966
A4: =GT!A4 -> AR | B4: =GT!B4 -> 0 | C4: =GT!C4 -> 0 | D4: =D23*0.00924784 -> 347.0856491 | E4: =C4+B4+D4 -> 347.0856491 | F4: =E4 -> 347.0856491 | M4: Steam Production | N4: =LHV!R38*(Boiler!N1/Boiler!N2)*1000000 -> 1074438438 | O4: Btu/hr
A5: =GT!A5 -> CO2 | B5: =GT!B5 -> 0 | C5: =GT!C5 -> 2.33754166 | D5: =D23*0.000326732 -> 12.26275415 | E5: =C5+B5+D5 -> 14.60029581 | F5: =E5+E8+E9 -> 2410.854974
A6: =GT!A6 -> O2 | B6: =GT!B6 -> 0 | C6: =GT!C6 -> 1.160255605e-19 | D6: =D23*0.2074029 -> 7784.149614 | E6: 7784.149614 | F6: =E6-E8/1*2-E11/2*1-E12/2*3-E9/2*1 -> 1015.323863
A7: =GT!A7 -> N2 | B7: =GT!B7 -> 0 | C7: =GT!C7 -> 1883.964263 | D7: =D23*0.7731522 -> 29017.5904 | E7: 30901.55466 | F7: =E7 -> 30901.55466
A8: =GT!A8 -> CH4 | B8: =GT!B8 -> 0 | C8: =GT!C8 -> 1969.123285 | E8: 1969.123285 | F8: 0
A9: =GT!A9 -> CO | B9: =GT!B9 -> 0 | C9: =GT!C9 -> 427.1313933 | E9: 427.1313933 | F9: 0
A10: =GT!A10 -> COS | B10: =GT!B10 -> 0 | C10: =GT!C10 -> 0 | E10: 0 | F10: =E10 -> 0
A11: =GT!A11 -> H2 | B11: =GT!B11 -> 0 | C11: =GT!C11 -> 5234.026971 | E11: 5234.026971 | F11: 0
A12: =GT!A12 -> H2S | B12: =GT!B12 -> 0 | C12: =GT!C12 -> 0 | E12: 0 | F12: 0
A13: =GT!A13 -> NH3 | B13: =GT!B13 -> 0 | C13: =GT!C13 -> 2.37975772 | E13: 2.37975772 | F13: =E13 -> 2.37975772
A14: =GT!A14 -> SO2 | B14: =GT!B14 -> 0 | C14: =GT!C14 -> 0 | E14: 0 | F14: =E12 -> 0
A15: =GT!A15 -> SULFU-01 | B15: =GT!B15 -> 0 | C15: =GT!C15 -> 0 | E15: 0 | F15: =E15 -> 0
A16: =GT!A16 -> SO3 | B16: =GT!B16 -> 0 | C16: =GT!C16 -> 0 | E16: 0 | F16: =E16 -> 0
A17: =GT!A17 -> C | B17: =GT!B17 -> 0 | C17: =GT!C17 -> 0 | E17: 0 | F17: 0
A18: =GT!A18 -> S | B18: =GT!B18 -> 0 | C18: =GT!C18 -> 0 | E18: 0 | F18: 0
A19: =GT!A19 -> S2 | B19: =GT!B19 -> 0 | C19: =GT!C19 -> 0 | E19: 0 | F19: 0
A20: =GT!A20 -> S6 | B20: =GT!B20 -> 0 | C20: =GT!C20 -> 0 | E20: 0 | F20: 0
A21: =GT!A21 -> S8 | B21: =GT!B21 -> 0 | C21: =GT!C21 -> 0 | E21: 0 | F21: 0
A22: =GT!A22 -> HCL | B22: =GT!B22 -> 0 | C22: =GT!C22 -> 0 | E22: 0 | F22: 0
A23: =GT!A23 -> Total Flow lbmol/hr | B23: =GT!B23 -> 0 | C23: =GT!C23 -> 9547.945357 | D23: =((B8+C8)/1*2+(B11+C11)/2*1+(B12+C12)/2*3+(B9+C9)/2*1)/0.2074029*1.15 -> 37531.537 | E23: =SUM(E3:E22) -> 47079.48205 | F23: =SUM(F3:F22) -> 44248.90287
A24: =GT!A24 -> Temperature F | B24: =GT!B24 -> 95 | C24: =GT!C24 -> 0
A25: =GT!A25 -> Pressure psia | B25: =GT!B25 -> 520 | C25: =GT!C25 -> 0

Sheet FT Vent
B1: =GT!C1 -> Fuel Gas | C1: Air | D1: Total Gas | E1: Vent
A3: =GT!A3 -> H2O | B3: =FT!Z12 -> 13.88669361 | C3: =C23*0.00987032 -> 177.4989972 | D3: =B3+C3 -> 191.3856908 | E3: =D3+D8*2+D11+D12 -> 4586.248461
A4: =GT!A4 -> AR | B4: 0 | C4: =C23*0.00924784 -> 166.3048742 | D4: =B4+C4 -> 166.3048742 | E4: =D4 -> 166.3048742
A5: =GT!A5 -> CO2 | B5: =FT!Z11 -> 1.120024907 | C5: =C23*0.000326732 -> 5.875655737 | D5: 6.995680644 | E5: =D5+D8+D9 -> 1155.152724
A6: =GT!A6 -> O2 | B6: =FT!Z8 -> 5.55932413e-20 | C6: =C23*0.2074029 -> 3729.748048 | D6: 3729.748048 | E6: =D6-D8/1*2-D11/2*1-D12/2*3-D9/2*1 -> 486.4888759
A7: =GT!A7 -> N2 | B7: =FT!Z7 -> 902.6948839 | C7: =C23*0.7731522 -> 13903.6769 | D7: 14806.37178 | E7: =D7 -> 14806.37178
A8: =GT!A8 -> CH4 | B8: =FT!Z19 -> 943.4985312 | D8: 943.4985312 | E8: 0
A9: =GT!A9 -> CO | B9: =FT!Z10 -> 204.6585124 | D9: 204.6585124 | E9: 0
A10: =GT!A10 -> COS | B10: =FT!Z18 -> 0 | D10: 0 | E10: =D10 -> 0
A11: =GT!A11 -> H2 | B11: =FT!Z6 -> 2507.865708 | D11: 2507.865708 | E11: 0
A12: =GT!A12 -> H2S | B12: =FT!Z9 -> 0 | D12: 0 | E12: 0
A13: =GT!A13 -> NH3 | B13: =FT!Z13 -> 1.140252584 | D13: 1.140252584 | E13: =D13 -> 1.140252584
A14: =GT!A14 -> SO2 | B14: 0 | D14: 0 | E14: =D12 -> 0
A15: =GT!A15 -> SULFU-01 | B15: 0 | D15: 0 | E15: =D15 -> 0
A16: =GT!A16 -> SO3 | B16: 0 | D16: 0 | E16: =D16 -> 0
A17: =GT!A17 -> C | B17: 0 | D17: 0 | E17: 0
A18: =GT!A18 -> S | B18: 0 | D18: 0 | E18: 0
A19: =GT!A19 -> S2 | B19: 0 | D19: 0 | E19: 0
A20: =GT!A20 -> S6 | B20: 0 | D20: 0 | E20: 0
A21: =GT!A21 -> S8 | B21: 0 | D21: 0 | E21: 0
A22: =GT!A22 -> HCL | B22: 0 | D22: 0 | E22: 0
A23: =GT!A23 -> Total Flow lbmol/hr | B23: =SUM(B3:B22) -> 4574.864606 | C23: =((B8)/1*2+(B11)/2*1+(B12)/2*3+(B9)/2*1)/0.2074029*1.15 -> 17983.10462 | D23: =SUM(D3:D22) -> 22557.96908 | E23: =SUM(E3:E22) -> 21201.70697

Sheet SC
B1: Hp/lb | C1: Hp | Z1: Gasifier Island
A2: Total at 1814.696 | B2: =5376/137364 -> 0.03913689176 | C2: =D2*B2 -> 47047.91087 | D2: =SUM(E2:AE2)+IF(FT!F1=1,GT!J23/SC!O24,0) -> 1202137.133 | E2: =IF(E28=1814.696,E25,0) -> 0 | F2: =IF(F28=1814.696,F25,0) -> 0 | G2: 0 | H2: 0 | I2: 0 | J2: 0 | K2: 0 | L2: 0 | M2: 0 | N2: 0 | O2: 188622.2899 | P2: 0 | Q2: 0 | R2: 0 | S2: 67036.10398 | T2: 56546.92398 | U2: 17147.19626 | V2: 0 | W2: 0 | X2: 0 | Y2: 0 | Z2: =IF(Z$28=$AG2,Z$25,0)*IF('F-T Black Box Dashboard'!$D23="Deficit",-1,"1") -> 0 | AA2: =IF(AA$28=$AG2,AA$25,0)*IF('F-T Black Box Dashboard'!$D23="Deficit",-1,"1") -> 0 | AB2: =IF(AB$28=$AG2,AB$25,0)*IF('F-T Black Box Dashboard'!$D23="Deficit",-1,"1") -> 0 | AC2: =IF(AC$28=$AG2,AC$25,0)*IF('F-T Black Box Dashboard'!$D23="Deficit",-1,"1") -> 0 | AD2: =IF(AD$28=$AG2,AD$25,0)*IF('F-T Black Box Dashboard'!$D23="Deficit",-1,"1") -> 0 | AE2: =IF(AE$28=$AG2,AE$25,0)*IF('F-T Black Box Dashboard'!$D23="Deficit",-1,"1") -> 0 | AG2: 1814.696
A3: Total at 839.696 | B3: =2341/165964 -> 0.01410546866 | C3: =D3*B3 -> 14987.32865 | D3: =SUM(E3:AE3)+D2-Syngas!E38*18.01528 -> 1062519.014 | E3: =IF(E28=839.696,E25,0) -> 74780.07838 | F3: =IF(F28=839.696,F25,0) -> 0 | G3: 0 | H3: 0 | I3: 0 | J3: 0 | K3: 0 | L3: 0 | M3: 0 | N3: 0 | O3: 0 | P3: 0 | Q3: 0 | R3: 0 | S3: 0 | T3: 0 | U3: 0 | V3: 0 | W3: 0 | X3: 0 | Y3: 66485.66897 | Z3: =IF(Z$28=$AG3,Z$25,0)*IF('F-T Black Box Dashboard'!$D24="Deficit",-1,"1") -> 0 | AA3: =IF(AA$28=$AG3,AA$25,0)*IF('F-T Black Box Dashboard'!$D24="Deficit",-1,"1") -> 0 | AB3: =IF(AB$28=$AG3,AB$25,0)*IF('F-T Black Box Dashboard'!$D24="Deficit",-1,"1") -> 0 | AC3: =IF(AC$28=$AG3,AC$25,0)*IF('F-T Black Box Dashboard'!$D24="Deficit",-1,"1") -> 0 | AD3: =IF(AD$28=$AG3,AD$25,0)*IF('F-T Black Box Dashboard'!$D24="Deficit",-1,"1") -> 0 | AE3: =IF(AE$28=$AG3,AE$25,0)*IF('F-T Black Box Dashboard'!$D24="Deficit",-1,"1") -> 0 | AG3: 839.696
A4: Total at 614.696 | B4: =2297/111472 -> 0.02060607148 | C4: 17756.26311 | D4: =SUM(E4:AE4)+D3+IF(FT!F1=2,Boiler!N4/SC!F24,0) -> 861700.5492 | E4: =IF(E28=614.696,E25,0) -> 0 | F4: =IF(F28=614.696,F25,0) -> -208132.9268 | G4: 0 | H4: 0 | I4: 0 | J4: 0 | K4: 0 | L4: 0 | M4: 0 | N4: 0 | O4: 0 | P4: 0 | Q4: 0 | R4: 0 | S4: 0 | T4: 0 | U4: 0 | V4: 7314.461572 | W4: 0 | X4: 0 | Y4: 0 | Z4: =IF(Z$28=$AG4,Z$25,0)*IF('F-T Black Box Dashboard'!$D25="Deficit",-1,"1") -> 0 | AA4: =IF(AA$28=$AG4,AA$25,0)*IF('F-T Black Box Dashboard'!$D25="Deficit",-1,"1") -> 0 | AB4: =IF(AB$28=$AG4,AB$25,0)*IF('F-T Black Box Dashboard'!$D25="Deficit",-1,"1") -> 0 | AC4: =IF(AC$28=$AG4,AC$25,0)*IF('F-T Black Box Dashboard'!$D25="Deficit",-1,"1") -> 0 | AD4: =IF(AD$28=$AG4,AD$25,0)*IF('F-T Black Box Dashboard'!$D25="Deficit",-1,"1") -> 0 | AE4: =IF(AE$28=$AG4,AE$25,0)*IF('F-T Black Box Dashboard'!$D25="Deficit",-1,"1") -> 0 | AG4: 614.696
A5: Total at 374.696 | B5: =31189/609382 -> 0.05118136079 | C5: 126765.5729 | D5: =SUM(E5:AE5)+D4-(ASU!B5+ASU!B9)-(FT!D12+FT!O12)*18.01528 -> 2476791.765 | E5: =IF(E28=374.696,E25,0) -> 0 | F5: =IF(F28=374.696,F25,0) -> 0 | G5: =IF(G28=374.696,G25,0) -> 1901756.491 | H5: 0 | I5: -11483.78616 | J5: -2724.284747 | K5: -2411.805487 | L5: -2053.621568 | M5: 0 | N5: -4290.700181 | O5: 0 | P5: 0 | Q5: 0 | R5: 0 | S5: 0 | T5: 0 | U5: 0 | V5: 0 | W5: 0 | X5: 0 | Y5: 0 | Z5: =IF(Z$28=$AG5,Z$25,0)*IF('F-T Black Box Dashboard'!$D26="Deficit",-1,"1") -> 0 | AA5: =IF(AA$28=$AG5,AA$25,0)*IF('F-T Black Box Dashboard'!$D26="Deficit",-1,"1") -> 0 | AB5: =IF(AB$28=$AG5,AB$25,0)*IF('F-T Black Box Dashboard'!$D26="Deficit",-1,"1") -> 0 | AC5: =IF(AC$28=$AG5,AC$25,0)*IF('F-T Black Box Dashboard'!$D26="Deficit",-1,"1") -> 0 | AD5: =IF(AD$28=$AG5,AD$25,0)*IF('F-T Black Box Dashboard'!$D26="Deficit",-1,"1") -> 0 | AE5: =IF(AE$28=$AG5,AE$25,0)*IF('F-T Black Box Dashboard'!$D26="Deficit",-1,"1") -> 0 | AG5: 374.696
A6: Total at 64.696 | B6: =9154/383825 -> 0.02384941054 | C6: 55976.36685 | D6: =SUM(E6:AE6)+D5-ASU!B4-(Syngas!BC38+Syngas!N38)*18.01528 -> 2347075.487 | E6: =IF(E28=64.696,E25,0) -> 0 | F6: =IF(F28=64.696,F25,0) -> 0 | G6: 0 | H6: -86157.88404 | I6: 0 | J6: 0 | K6: 0 | L6: 0 | M6: -1197.342884 | N6: 0 | O6: 0 | P6: 25884.65015 | Q6: 319544.4523 | R6: 0 | S6: 0 | T6: 0 | U6: 0 | V6: 0 | W6: 3108.059521 | X6: 2271.213342 | Y6: 0 | Z6: =IF(Z$28=$AG6,Z$25,0)*IF('F-T Black Box Dashboard'!$D27="Deficit",-1,"1") -> 0 | AA6: =IF(AA$28=$AG6,AA$25,0)*IF('F-T Black Box Dashboard'!$D27="Deficit",-1,"1") -> 0 | AB6: =IF(AB$28=$AG6,AB$25,0)*IF('F-T Black Box Dashboard'!$D27="Deficit",-1,"1") -> 0 | AC6: =IF(AC$28=$AG6,AC$25,0)*IF('F-T Black Box Dashboard'!$D27="Deficit",-1,"1") -> 0 | AD6: =IF(AD$28=$AG6,AD$25,0)*IF('F-T Black Box Dashboard'!$D27="Deficit",-1,"1") -> 0 | AE6: =IF(AE$28=$AG6,AE$25,0)*IF('F-T Black Box Dashboard'!$D27="Deficit",-1,"1") -> 0 | AG6: 64.696
A7: Total at 25 | B7: =24947/383825 -> 0.0649957663 | C7: 167738.1736 | D7: =SUM(E7:AE7)+D6 -> 2580755.381 | E7: =IF(E28=25,E25,0) -> 0 | F7: =IF(F28=25,F25,0) -> 0 | G7: 0 | H7: 0 | I7: 0 | J7: 0 | K7: 0 | L7: 0 | M7: 0 | N7: 0 | O7: 0 | P7: 0 | Q7: 0 | R7: 233679.8937 | S7: 0 | T7: 0 | U7: 0 | V7: 0 | W7: 0 | X7: 0 | Y7: 0 | Z7: =IF(Z$28=$AG7,Z$25,0)*IF('F-T Black Box Dashboard'!$D28="Deficit",-1,"1") -> 0 | AA7: =IF(AA$28=$AG7,AA$25,0)*IF('F-T Black Box Dashboard'!$D28="Deficit",-1,"1") -> 0 | AB7: =IF(AB$28=$AG7,AB$25,0)*IF('F-T Black Box Dashboard'!$D28="Deficit",-1,"1") -> 0 | AC7: =IF(AC$28=$AG7,AC$25,0)*IF('F-T Black Box Dashboard'!$D28="Deficit",-1,"1") -> 0 | AD7: =IF(AD$28=$AG7,AD$25,0)*IF('F-T Black Box Dashboard'!$D28="Deficit",-1,"1") -> 0 | AE7: =IF(AE$28=$AG7,AE$25,0)*IF('F-T Black Box Dashboard'!$D28="Deficit",-1,"1") -> 0 | AG7: 25
A8: Total | C8: =(SUM(C2:C7)*0.983199276241674)*0.985 -> 416697.1003
A11: Condenser Duty | B11: =1341480360/1602980*D7 -> 2159747880 | C11: Btu/hr
B12: =SLOPE(D34:D38,B34:B38)*B11/10^6+INTERCEPT(D34:D38,B34:B38) -> 11.63255118 | C12: MW
A22: Efficiency | E22: 0.93 | F22: 0.93 | G22: 0.93 | H22: 0.93 | I22: 0.93 | J22: 0.93 | K22: 0.93 | L22: 0.93 | M22: 0.93 | N22: 0.93 | O22: 0.93 | P22: 0.93 | Q22: 0.93 | R22: 0.93 | S22: 0.93 | T22: 0.93 | U22: 0.93 | V22: 0.93 | W22: 0.93 | X22: 0.93 | Y22: 0.93 | Z22: 0.93 | AA22: 0.93 | AB22: 0.93 | AC22: 0.93 | AD22: 0.93 | AE22: 0.93
A23: Btu/hr | E23: =E24*E25 -> 50286392.49 | F23: =F24*F25 -> -149013691.2 | G23: =G24*G25 -> 1492254338 | H23: =H24*H25 -> -78190977.48 | I23: =-Syngas!U2 -> -9011001.034 | J23: =-Syngas!W2 -> -2137668.913 | K23: =-Syngas!AF2 -> -1892475.307 | L23: =-Syngas!AJ2 -> -1611418.553 | M23: =-Syngas!AN2 -> -1086626.158 | N23: =-Syngas!AR2 -> -3366790.642 | O23: =Syngas!G3 -> 135424864.7 | P23: =Syngas!J4 -> 23491130.5 | Q23: =Syngas!J5 -> 289996595.8 | R23: =Syngas!J6 -> 216396928.8 | S23: =Syngas!AB7 -> 48129811.77 | T23: =Syngas!AC8 -> 40598910.83 | U23: =Syngas!AD9 -> 12311146.97 | V23: =Syngas!AH10 -> 5236821.175 | W23: =Syngas!AL11 -> 2820661.333 | X23: =Syngas!AP11 -> 2061197.222 | Y23: =Syngas!AT13 -> 44708758.24 | Z23: ='F-T Black Box Dashboard'!C23*Syngas!$B$38 -> 0 | AA23: ='F-T Black Box Dashboard'!C24*Syngas!$B$38 -> 0 | AB23: ='F-T Black Box Dashboard'!C25*Syngas!$B$38 -> 0 | AC23: ='F-T Black Box Dashboard'!C26*Syngas!$B$38 -> 0 | AD23: ='F-T Black Box Dashboard'!C27*Syngas!$B$38 -> 0 | AE23: ='F-T Black Box Dashboard'!C28*Syngas!$B$38 -> 0
A24: Btu/lb | E24: =0.0002*E28^2-0.4842*E28+938.02 -> 672.4570713 | F24: =0.0002*F28^2-0.4842*F28+938.02 -> 715.9544313 | G24: 784.6716153 | H24: 907.5313113 | I24: 784.6716153 | J24: 784.6716153 | K24: 784.6716153 | L24: 784.6716153 | M24: 907.5313113 | N24: =0.0002*N28^2-0.4842*N28+938.02 -> 784.6716153 | O24: 717.9685113 | P24: 907.5313113 | Q24: 907.5313113 | R24: 926.04 | S24: 717.9685113 | T24: 717.9685113 | U24: 717.9685113 | V24: 715.9544313 | W24: 907.5313113 | X24: 907.5313113 | Y24: 672.4570713 | Z24: 717.9685113 | AA24: 672.4570713 | AB24: 715.9544313 | AC24: 784.6716153 | AD24: 907.5313113 | AE24: 926.04
A25: Total Flow lb/hr | E25: =FT!AD8 -> 74780.07838 | F25: =FT!AD5 -> -208132.9268 | G25: =FT!AD4 -> 1901756.491 | H25: =FT!AD6 -> -86157.88404 | I25: =I23/I24 -> -11483.78616 | J25: -2724.284747 | K25: -2411.805487 | L25: -2053.621568 | M25: -1197.342884 | N25: -4290.700181 | O25: 188622.2899 | P25: 25884.65015 | Q25: 319544.4523 | R25: 233679.8937 | S25: 67036.10398 | T25: 56546.92398 | U25: 17147.19626 | V25: 7314.461572 | W25: 3108.059521 | X25: 2271.213342 | Y25: 66485.66897 | Z25: =Z23/Z24 -> 0 | AA25: =AA23/AA24 -> 0 | AB25: 0 | AC25: 0 | AD25: 0 | AE25: 0
A26: =GT!A23 -> Total Flow lbmol/hr
A27: =GT!A24 -> Temperature F | E27: 523.88 | F27: 488.85 | G27: 438.26 | H27: =EXP(0.2208*LN(H28)+4.7745) -> 297.4272396 | I27: 475 | J27: 475 | K27: 475 | L27: 445 | M27: 400 | N27: 475 | O27: 853 | P27: 376 | Q27: 355 | R27: 265 | S27: 2612 | T27: 1175 | U27: 625 | V27: 523 | W27: 430 | X27: 430 | Y27: 525 | Z27: 525 | AA27: 525 | AB27: 525 | AC27: 525 | AD27: 525 | AE27: 525
A28: =GT!A25 -> Pressure psia | E28: =825+14.696 -> 839.696 | F28: =600+14.696 -> 614.696 | G28: =360+14.696 -> 374.696 | H28: =50+14.696 -> 64.696 | I28: =IF(EXP(4.519*LN(I27)-21.564) > 1814.696, 1814.696, IF(EXP(4.519*LN(I27)-21.564) > 839.696, 839.696,IF(EXP(4.519*LN(I27)-21.564) > 614.696, 614.696,IF(EXP(4.519*LN(I27)-21.564) > 374.696, 374.696,IF(EXP(4.519*LN(I27)-21.564) > 64.696, 64.696, 25))))) -> 374.696 | J28: 374.696 | K28: 374.696 | L28: 374.696 | M28: 64.696 | N28: 374.696 | O28: 1814.696 | P28: 64.696 | Q28: =IF(EXP(4.519*LN(Q27)-21.564) > 1814.696, 1814.696, IF(EXP(4.519*LN(Q27)-21.564) > 839.696, 839.696,IF(EXP(4.519*LN(Q27)-21.564) > 614.696, 614.696,IF(EXP(4.519*LN(Q27)-21.564) > 374.696, 374.696,IF(EXP(4.519*LN(Q27)-21.564) > 64.696, 64.696, 25))))) -> 64.696 | R28: 25 | S28: 1814.696 | T28: 1814.696 | U28: 1814.696 | V28: 614.696 | W28: 64.696 | X28: =IF(EXP(4.519*LN(X27)-21.564) > 1814.696, 1814.696, IF(EXP(4.519*LN(X27)-21.564) > 839.696, 839.696,IF(EXP(4.519*LN(X27)-21.564) > 614.696, 614.696,IF(EXP(4.519*LN(X27)-21.564) > 374.696, 374.696,IF(EXP(4.519*LN(X27)-21.564) > 64.696, 64.696, 25))))) -> 64.696 | Y28: 839.696 | Z28: 1814.696 | AA28: 839.696 | AB28: 614.696 | AC28: 374.696 | AD28: 64.696 | AE28: 25
B31: Source: JetFuelUpgrading Gasifier template rev3; 'Performance' tab
B33: Condenser Duty (MMBtu/hr) | C33: Fan Load (per train) | D33: Fan Load (total - MW)
B34: 200 | C34: 0.87 | D34: =C34*4 -> 3.48
B35: 300 | C35: 0.98 | D35: =C35*4 -> 3.92
B36: 400 | C36: 1.07 | D36: 4.28
B37: 500 | C37: 1.18 | D37: 4.72
B38: 600 | C38: 1.29 | D38: 5.16

Sheet ASU
A1: O2 Requirement, lb/hr | B1: =(FT!N98+Syngas!W38)*32.18074+'F-T Black Box Dashboard'!$C$33*Syngas!$B$38 -> 44679.19567 | G1: CO2 Captured | H1: =Syngas!R38 -> 17684.96879 | I1: lb_mol/h | J1: 40119.72 | K1: SelexLeanSolFlow | L1: 0.29
A2: N2 Production lb/hr | B2: =(B25/B24)*B1 -> 143940.846 | G2: Lean solvent flow rate | H2: =H1*SelexLeanSolFlow -> 5128.640949 | I2: gpm | K2: SelexSolRecFlow | L2: 0.7245
A3: N2 Requirement, lb/hr | B3: =GT!D23*28.05955 -> 49718.56093 | G3: Solvent recycle flow rate | H3: =H1*SelexSolRecFlow -> 12812.75989 | I3: gpm | K3: SelexLoadSolFlow | L3: 0.17
A4: 65 psia Steam Load, lb/hr | B4: =B22/B24*B1 -> 6026.85981 | G4: Loaded solvent flow | H4: =H1*SelexLoadSolFlow -> 3006.444694 | I4: gpm | K4: SelexFrigPwr | L4: 0.98
A5: 250 psia Steam Load, lb/hr | B5: =B23/B24*B1 -> 7476.852578 | G5: Refrigeration power | H5: =SelexFrigPwr*H2 -> 5026.06813 | I5: kW | K5: SelexLeanSolPmpPwr | L5: 0.21
A6: Power Load MAC, hp | B6: =B28/B24*B1 -> 9813.312376 | G6: Lean solvent pump power | H6: =SelexLeanSolPmpPwr*H2 -> 1077.014599 | I6: kW | K6: SelexSolRecPmpPwr | L6: 0.426
A7: Power Load N2, hp | B7: =B29/B25*B3 -> 86.15017992 | G7: Solvent recycle pump power | H7: =SelexSolRecPmpPwr*H3 -> 5458.235713 | I7: kW | K7: SelexLoadSolPmpPwr | L7: 0.071
A8: Cooling Tower Load, btu/hr | B8: =B26/B24*B1 -> 23980508.15 | G8: Loaded solvent pump power | H8: =SelexLoadSolPmpPwr*H4 -> 213.4575733 | I8: kW | K8: SelexCompPwr | L8: 0.826
A9: 277 psia Steam Load, lb/hr | B9: =(B27/B25*B3)/819.2424 -> 354.7103135 | G9: CO2 compressor power | H9: =SelexCompPwr*H4 -> 2483.323318 | I9: kW | K9: SelexMiscPwr | L9: 0.0178
A10: O2 Compressor Load hp/lb | B10: 0.0353 | C10: 125 to 940 psia; 90F inlet 241F outlet | G10: Misc power (1.78% of total) | H10: =SUM(H5:H9)*SelexMiscPwr -> 253.7941681 | I10: kW | K10: SelexCoolWat | L10: 2.46
A11: Power Load O2, hp | B11: ='F-T Black Box Dashboard'!$C$33*Syngas!$B$38*B10 -> 0 | G11: Total power | H11: =SUM(H5:H10) -> 14511.8935 | I11: kW | K11: SelexInven | L11: 11.77
K12: SelexMakeup | L12: 5.1
B21: lb/hr | C21: psia
A22: Steam | B22: 47176 | C22: 65
A23: Steam | B23: 58526 | C23: 250
A24: O2 | B24: 349732
A25: N2 | B25: =137476+989239 -> 1126715
A26: Cooling Tower Load, btu/hr | B26: =187710431 -> 187710431
A27: Heat Load, Btu/hr | B27: 6585394
A28: Power Load MAC, hp | B28: 76814.9317
A29: Power Load N2, hp | B29: 1952.3232

Sheet LHV
A1: Component | B1: LHV, Btu/lb | C1: lb-mol/hr | D1: MW | E1: Flow, lb/hr | G1: MMBtu/hr | K1: Fuel Gas To GT | N1: Syngas to GT | R1: Total
K3: lb-mol/hr | L3: lb/hr | M3: MMBtu/hr | N3: lb-mol/hr | O3: lb/hr | P3: MMBtu/hr | R3: MMBtu/hr
A4: H2 | B4: 51573 | C4: =FT!R6 -> 7741.892679 | D4: 2.015800003 | E4: =C4*D4 -> 15606.10729 | F4: lb/hr | G4: =E4*B4/1000000 -> 804.8537711 | K4: =FT!AA6 -> 5234.026971 | L4: =K4*D4 -> 10550.75159 | M4: =L4*B4/1000000 -> 544.1339115 | N4: =Syngas!Q26 -> 0 | O4: =N4*D4 -> 0 | P4: =O4*B4/1000000 -> 0 | R4: =P4+M4 -> 544.1339115
A5: N2 | B5: 0 | C5: =FT!R7 -> 2786.659147 | D5: 28.0134 | E5: 78063.79735 | F5: lb/hr | G5: 0 | K5: =FT!AA7 -> 1883.964263 | L5: =K5*D5 -> 52776.24449 | M5: 0 | N5: =Syngas!Q22 -> 0 | O5: =N5*D5 -> 0 | P5: 0 | R5: =P5+M5 -> 0
A6: O2 | B6: 0 | C6: =FT!R8 -> 1.716188018e-19 | D6: 31.9988 | E6: 5.491595715e-18 | F6: lb/hr | G6: 0 | K6: =FT!AA8 -> 1.160255605e-19 | L6: 3.712678706e-18 | M6: 0 | N6: =Syngas!Q21 -> 0 | O6: 0 | P6: 0 | R6: 0
A7: H2S | B7: 6534 | C7: =FT!R9 -> 0 | D7: 34.0763144 | E7: 0 | F7: lb/hr | G7: 0 | K7: =FT!AA9 -> 0 | L7: 0 | M7: 0 | N7: =Syngas!Q27 -> 0 | O7: 0 | P7: 0 | R7: 0
A8: CO | B8: 4344 | C8: =FT!R10 -> 631.7899058 | D8: 28.01039996 | E8: 17696.68795 | F8: lb/hr | G8: 76.87441246 | K8: =FT!AA10 -> 427.1313933 | L8: 11964.12116 | M8: 51.97214233 | N8: =Syngas!Q24 -> 0 | O8: 0 | P8: 0 | R8: 51.97214233
A9: CO2 | B9: 0 | C9: =FT!R11 -> 3.457566567 | D9: 44.00980011 | E9: 152.1668135 | F9: lb/hr | G9: 0 | K9: =FT!AA11 -> 2.33754166 | L9: 102.8747412 | M9: 0 | N9: =Syngas!Q20 -> 0 | O9: 0 | P9: 0 | R9: 0
A10: H2O | B10: 0 | C10: =FT!R12 -> 42.86883913 | D10: 18.01519997 | E10: 772.2907093 | F10: lb/hr | G10: 0 | K10: =FT!AA12 -> 28.98214552 | L10: 522.1191471 | M10: 0 | N10: =Syngas!Q18 -> 0 | O10: 0 | P10: 0 | R10: 0
A11: NH3 | B11: 7998 | C11: =FT!R13 -> 3.520010304 | D11: 17.031 | E11: 59.94929549 | F11: lb/hr | G11: 0.4794744654 | K11: =FT!AA13 -> 2.37975772 | L11: 40.52965373 | M11: 0.3241561706 | N11: =Syngas!Q28 -> 0 | O11: 0 | P11: 0 | R11: 0.3241561706
A12: HCL | B12: 0 | C12: =FT!R14 -> 0 | D12: 36.46094 | E12: 0 | F12: lb/hr | G12: 0 | K12: =FT!AA14 -> 0 | L12: 0 | M12: 0 | N12: =Syngas!Q37 -> 0 | O12: 0 | P12: 0 | R12: 0
A13: C | B13: 14650 | C13: =FT!R15 -> 0 | D13: 12.0107 | E13: 0 | F13: lb/hr | G13: 0 | K13: =FT!AA15 -> 0 | L13: 0 | M13: 0 | N13: =Syngas!Q32 -> 0 | O13: 0 | P13: 0 | R13: 0
A14: HCN | B14: 9915 | C14: =FT!R16 -> 0 | D14: 27.0253 | E14: 0 | F14: lb/hr | G14: 0 | K14: =FT!AA16 -> 0 | L14: 0 | M14: 0 | N14: 0 | O14: 0 | P14: 0 | R14: 0
A15: S | B15: 0 | C15: =FT!R17 -> 0 | D15: 32.065 | E15: 0 | F15: lb/hr | G15: 0 | K15: =FT!AA17 -> 0 | L15: 0 | M15: 0 | N15: =Syngas!Q33 -> 0 | O15: 0 | P15: 0 | R15: 0
A16: COS | B16: 0 | C16: =FT!R18 -> 0 | D16: 60.075 | E16: 0 | F16: lb/hr | G16: 0 | K16: =FT!AA18 -> 0 | L16: 0 | M16: 0 | N16: =Syngas!Q25 -> 0 | O16: 0 | P16: 0 | R16: 0
A17: CH4 | B17: 21509 | C17: =FT!R19 -> 2912.621816 | D17: 16.04260003 | E17: 46726.02684 | F17: lb/hr | G17: 1005.030111 | K17: =FT!AA19 -> 1969.123285 | L17: 31589.85727 | M17: 679.4662401 | N17: =Syngas!Q23 -> 0 | O17: 0 | P17: 0 | R17: 679.4662401
A18: C2H4 | B18: 20275 | C18: =FT!R20 -> 0.01317958083 | D18: 28.05359994 | E18: 0.3697346881 | F18: lb/hr | G18: 0.007496370801 | K18: =FT!AA20 -> 0.008910260632 | L18: 0.2499648871 | M18: 0.005068038087 | N18: 0 | O18: 0 | P18: 0 | R18: 0.005068038087
A19: C2H6 | B19: 20424 | C19: =FT!R21 -> 0.5376005087 | D19: 30.06939996 | E19: 16.16532472 | F19: lb/hr | G19: 0.330160592 | K19: =FT!AA21 -> 0.3634531863 | L19: 10.92881923 | M19: 0.2232102039 | N19: 0 | O19: 0 | P19: 0 | R19: 0.2232102039
A20: C3H6 | B20: 19675 | C20: =FT!R22 -> 1.106592212e-06 | D20: 42.08039994 | E20: 4.656584284e-05 | F20: lb/hr | G20: 9.161829578e-07 | K20: =FT!AA22 -> 7.481288779e-07 | L20: 3.148156238e-05 | M20: 6.193997399e-07 | N20: 0 | O20: 0 | P20: 0 | R20: 6.193997399e-07
A21: C3H8 | B21: 19920 | C21: =FT!R23 -> 0.0001766106133 | D21: 44.09619999 | E21: 0.007787856924 | F21: lb/hr | G21: 0.0001551341099 | K21: =FT!AA23 -> 0.0001194003523 | L21: 0.005265101814 | M21: 0.0001048808281 | N21: 0 | O21: 0 | P21: 0 | R21: 0.0001048808281
A22: IC4H8 | B22: 19469 | C22: =FT!R24 -> 1.06349448e-10 | D22: 56.10720701 | E22: 5.966970493e-09 | F22: lb/hr | G22: 1.161709485e-10 | K22: =FT!AA24 -> 7.189919858e-11 | L22: 4.034063219e-09 | M22: 7.853917681e-11 | N22: 0 | O22: 0 | P22: 0 | R22: 7.853917681e-11
A23: NC4H8 | B23: 19342 | C23: =FT!R25 -> 4.71761695e-11 | D23: 56.10720019 | E23: 2.646922787e-09 | F23: lb/hr | G23: 5.119678054e-11 | K23: =FT!AA25 -> 3.189418322e-11 | L23: 1.789493323e-09 | M23: 3.461237985e-11 | N23: 0 | O23: 0 | P23: 0 | R23: 3.461237985e-11
A24: IC4H10 | B24: 19656 | C24: =FT!R26 -> 6.215667599e-08 | D24: 58.1230036 | E24: 3.612732702e-06 | F24: lb/hr | G24: 7.101187399e-08 | K24: =FT!AA26 -> 4.202198765e-08 | L24: 2.44244414e-06 | M24: 4.800868201e-08 | N24: 0 | O24: 0 | P24: 0 | R24: 4.800868201e-08
A25: NC4H10 | B25: 19594 | C25: =FT!R27 -> 9.193118265e-08 | D25: 58.12300052 | E25: 5.343316177e-06 | F25: lb/hr | G25: 1.046969372e-07 | K25: =FT!AA27 -> 6.215150603e-08 | L25: 3.612432017e-06 | M25: 7.078199295e-08 | N25: 0 | O25: 0 | P25: 0 | R25: 7.078199295e-08
A26: C5H10 | B26: 19185 | C26: =FT!R28 -> 9.443670588e-12 | D26: 70.13400588 | E26: 6.623224485e-10 | F26: lb/hr | G26: 1.270665618e-11 | K26: =FT!AA28 -> 6.384540398e-12 | L26: 4.477733938e-10 | M26: 8.59053256e-12 | N26: 0 | O26: 0 | P26: 0 | R26: 8.59053256e-12
A27: NC5H12 | B27: 19366 | C27: =FT!R29 -> 4.781348746e-11 | D27: 72.14983419 | E27: 3.449735192e-09 | F27: lb/hr | G27: 6.680757173e-11 | K27: =FT!AA29 -> 3.232505194e-11 | L27: 2.332247138e-09 | M27: 4.516629807e-11 | N27: 0 | O27: 0 | P27: 0 | R27: 4.516629807e-11
A28: IC5H12 | B28: 19304 | C28: =FT!R30 -> 6.912981768e-11 | D28: 72.14981421 | E28: 4.987703502e-09 | F28: lb/hr | G28: 9.628262841e-11 | K28: =FT!AA30 -> 4.673628856e-11 | L28: 3.372014537e-09 | M28: 6.509336862e-11 | N28: 0 | O28: 0 | P28: 0 | R28: 6.509336862e-11
A29: C6H12 | B29: 19102 | C29: =FT!R31 -> 3.624974122e-15 | D29: 84.16097877 | E29: 3.050813701e-13 | F29: lb/hr | G29: 5.827664333e-15 | K29: =FT!AA31 -> 2.450720142e-15 | L29: 2.062550058e-13 | M29: 3.939883122e-15 | N29: 0 | O29: 0 | P29: 0 | R29: 3.939883122e-15
A30: NC6H14 | B30: 19233 | C30: =FT!R32 -> 1.99389297e-14 | D30: 86.17667542 | E30: 1.718270673e-12 | F30: lb/hr | G30: 3.304749986e-14 | K30: =FT!AA32 -> 1.348002358e-14 | L30: 1.161663617e-12 | M30: 2.234227634e-14 | N30: 0 | O30: 0 | P30: 0 | R30: 2.234227634e-14
A31: IC6H14 | B31: 19203 | C31: =FT!R33 -> 2.164050081e-14 | D31: 86.18193037 | E31: 1.865020134e-12 | F31: lb/hr | G31: 3.581398164e-14 | K31: =FT!AA33 -> 1.463039719e-14 | L31: 1.260875872e-12 | M31: 2.421259937e-14 | N31: 0 | O31: 0 | P31: 0 | R31: 2.421259937e-14
A32: C7H14 | B32: 19042 | C32: =FT!R34 -> 1.388762813e-18 | D32: 98.18704058 | E32: 1.363585107e-16 | F32: lb/hr | G32: 2.596538761e-18 | K32: =FT!AA34 -> 9.388947022e-19 | L32: 9.218729222e-17 | M32: 1.755430418e-18 | N32: 0 | O32: 0 | P32: 0 | R32: 1.755430418e-18
A33: C7H16 | B33: 19156 | C33: =FT!R35 -> 8.123993339e-18 | D33: 100.2043377 | E33: 8.140593719e-16 | F33: lb/hr | G33: 1.559412133e-17 | K33: =FT!AA35 -> 5.492352066e-18 | L33: 5.503575011e-16 | M33: 1.054264829e-17 | N33: 0 | O33: 0 | P33: 0 | R33: 1.054264829e-17
A34: C8H16 | B34: 19005 | C34: =FT!R36 -> 5.224178914e-22 | D34: 112.2125225 | E34: 5.86218294e-20 | F34: lb/hr | G34: 1.114107868e-21 | K34: =FT!AA36 -> 3.531887417e-22 | L34: 3.963219963e-20 | M34: 7.53209954e-22 | N34: 0 | O34: 0 | P34: 0 | R34: 7.53209954e-22
A35: C8H18 | B35: 19098 | C35: =FT!R37 -> 3.011072096e-21 | D35: 114.2307977 | E35: 3.439571673e-19 | F35: lb/hr | G35: 6.568893981e-21 | K35: =FT!AA37 -> 2.035682128e-21 | L35: 2.325375932e-19 | M35: 4.441002956e-21 | N35: 0 | O35: 0 | P35: 0 | R35: 4.441002956e-21
A36: C9H18 | B36: 18964 | C36: =FT!R38 -> 1.91186805e-25 | D36: 126.2486085 | E36: 2.41370681e-23 | F36: lb/hr | G36: 4.577353594e-25 | K36: =FT!AA38 -> 1.292548134e-25 | L36: 1.631824034e-23 | M36: 3.094591098e-25 | N36: 0 | O36: 0 | P36: 0 | R36: 3.094591098e-25
A37: C9H20 | B37: 19055 | C37: =FT!R39 -> 2.288765519e-25 | D37: 128.2585659 | E37: 2.935537832e-23 | F37: lb/hr | G37: 5.593667338e-25 | K37: =FT!AA39 -> 1.547355531e-25 | L37: 1.984616013e-23 | M37: 3.781685814e-25 | N37: 0 | O37: 0 | P37: 0 | R37: 3.781685814e-25
A38: Total | J38: Total | K38: =SUM(K4:K37) -> 9548.317841 | L38: 107557.6821 | M38: 1276.124834 | N38: 0 | O38: 0 | P38: 0 | R38: =SUM(R4:R37) -> 1276.124834
A39: Lb/hr | E39: =SUM(E4:E37) -> 159093.5692 | G39: =SUM(G4:G38) -> 1887.575583
A40: BTU/lb
G41: =G39*1000000/E39 -> 11864.56242
G43: =FT!Z4*1000000/G41 -> 51535.88702 | H43: lb/hr

Sheet Supp Data 1 (hidden)
A1: 95 | B1: TG-2 | C1: TG-3 | D1: 85 | E1: TG-2 | F1: TG-3 | G1: 75 | H1: TG-2 | I1: TG-3 | V1: SG-9A | W1: SG-7 | AB1: CL-6 | AC1: CL-7 | AE1: CL-6 | AF1: CL-7 | AH1: CL-6 | AI1: CL-7
B2: TGCU-HYD | C2: FS-TGWSH | E2: TGCU-HYD | F2: FS-TGWSH | H2: TGCU-HYD | I2: FS-TGWSH | V2: CLR-SG1 | W2: HX-HGREM | AB2: CL-S1 | AC2: MX-CL3 | AE2: CL-S1 | AF2: MX-CL3 | AH2: CL-S1 | AI2: MX-CL3
B3: HTR-TG | C3: TGCU-HYD | E3: HTR-TG | F3: TGCU-HYD | H3: HTR-TG | I3: TGCU-HYD | V3: SP-BURN | W3: CND-NH3 | AB3: MX-CL2 | AC3: CL-S1 | AE3: MX-CL2 | AF3: CL-S1 | AH3: MX-CL2 | AI3: CL-S1
B4: VAPOR | C4: VAPOR | E4: VAPOR | F4: VAPOR | H4: VAPOR | I4: VAPOR | V4: VAPOR | W4: VAPOR | AB4: VAPOR | AC4: VAPOR | AE4: VAPOR | AF4: VAPOR | AH4: VAPOR | AI4: VAPOR | AL4: 75 | AM4: 85 | AN4: 95
A6: Substream: MIXED | D6: Substream: MIXED | G6: Substream: MIXED | U6: Substream: MIXED | AA6: Substream: MIXED | AD6: Substream: MIXED | AG6: Substream: MIXED
A7: Mole Flow lbmol/hr | D7: Mole Flow lbmol/hr | G7: Mole Flow lbmol/hr | U7: Mole Flow lbmol/hr | AA7: Mole Flow lbmol/hr | AD7: Mole Flow lbmol/hr | AG7: Mole Flow lbmol/hr
A8: H2O | B8: 432.1937 | C8: 470.2809 | D8: H2O | E8: 439.4068 | F8: 481.1732 | G8: H2O | H8: 446.6121 | I8: 492.04 | L8: =C8/B8 -> 1.088125301 | M8: =F8/E8 -> 1.095051783 | N8: =I8/H8 -> 1.10171668 | U8: H2O | V8: 18209.78 | W8: 59.56254 | Y8: =W8/V8 -> 0.003270909368 | AA8: H2O | AB8: 108.0829 | AC8: 362.3583 | AD8: H2O | AE8: 104.0294 | AF8: 355.8201 | AG8: H2O | AH8: 99.97156 | AI8: 349.2801 | AK8: H2O | AL8: =AC8/AB8 -> 3.352596017 | AM8: =AF8/AE8 -> 3.4203802 | AN8: =AI8/AH8 -> 3.493794635 | AP8: =AM8/AL8 -> 1.020218417 | AS8: =0.7680132794*(AH17/AH8)+ 0.883634734 -> 3.493792805
A9: AR | B9: 6.789333 | C9: 6.789333 | D9: AR | E9: 6.846561 | F9: 6.846561 | G9: AR | H9: 6.904382 | I9: 6.904382 | L9: =C9/B9 -> 1 | M9: =F9/E9 -> 1 | N9: =I9/H9 -> 1 | P9: 95 | Q9: 85 | R9: 75 | U9: AR | V9: 365.3354 | W9: 365.2329 | Y9: =W9/V9 -> 0.9997194359 | AA9: AR | AB9: 6.904382 | AC9: 6.904382 | AD9: AR | AE9: 6.846561 | AF9: 6.846561 | AG9: AR | AH9: 6.789333 | AI9: 6.789333 | AK9: AR
A10: CO2 | B10: 14.01428 | C10: 29.5115 | D10: CO2 | E10: 12.64282 | F10: 26.53212 | G10: CO2 | H10: 11.26584 | I10: 23.5666 | L10: 2.105816353 | M10: 2.098591928 | N10: 2.091863545 | P10: =B14/B16 -> 0.1927096894 | Q10: =E14/E16 -> 0.1707969899 | R10: =H14/H16 -> 0.1495918312 | U10: CO2 | V10: 2182.883 | W10: 2182.883 | Y10: 1 | AA10: CO2 | AB10: 0.2513151 | AC10: 10.9467 | AD10: CO2 | AE10: 0.2513857 | AF10: 12.27306 | AG10: CO2 | AH10: 0.251444 | AI10: 13.59329 | AK10: CO2 | AL10: =AC10/AB10 -> 43.55766924 | AM10: =AF10/AE10 -> 48.82163146 | AN10: =AI10/AH10 -> 54.06090422 | AP10: =AM10/AL10 -> 1.120850411 | AS10: =57.09764224*(AH17/AH8)-139.91945884 -> 54.13170634
A11: O2 | B11: 1.00806e-05 | C11: 4.4697e-35 | D11: O2 | E11: 1.0329e-05 | F11: 7.9366e-32 | G11: O2 | H11: 1.0579e-05 | I11: 0 | L11: 4.433962264e-30 | M11: 7.683802885e-27 | N11: 0 | P11: =L14 -> 0.001231946155 | Q11: =M14 -> 0.000891291532 | R11: =N14 -> 0.0005642902915 | U11: O2 | V11: 8.29778e-09 | W11: 8.29526e-09 | Y11: 0.9996963043 | AA11: O2 | AB11: 203.2997 | AC11: 1.0579e-05 | AD11: O2 | AE11: 201.3953 | AF11: 1.0329e-05 | AG11: O2 | AH11: 199.4873 | AI11: 1.00806e-05 | AK11: O2 | AL11: =AC11/AB11 -> 5.20364762e-08 | AM11: 5.128719488e-08 | AN11: 5.053254017e-08 | AP11: =AM11/AL11 -> 0.9856008445
A12: N2 | B12: 26.37047 | C12: 26.37047 | D12: N2 | E12: 26.40523 | F12: 26.40523 | G12: N2 | H12: 26.44003 | I12: 26.44003 | L12: 1 | M12: 1 | N12: 1 | P12: =L16 -> 0.1848018961 | Q12: =M16 -> 0.1348532516 | R12: =N16 -> 0.08608539109 | U12: N2 | V12: 313.3985 | W12: 313.3847 | Y12: 0.9999559666 | AA12: N2 | AB12: 3.824068 | AC12: 26.29538 | AD12: N2 | AE12: 3.789273 | AF12: 26.26174 | AG12: N2 | AH12: 3.754509 | AI12: 26.22815 | AK12: N2 | AL12: 6.876284627 | AM12: 6.930548419 | AN12: 6.985773639
A13: CH4 | B13: 0 | C13: 0 | D13: CH4 | E13: 0 | F13: 0 | G13: CH4 | H13: 0 | I13: 0 | P13: =0.01548478*P10-0.00175256 -> 0.001231507144 | Q13: =0.01548478*Q10-0.00175256 -> 0.0008921938129 | R13: =0.01548478*R10-0.00175256 -> 0.0005638365967 | U13: CH4 | V13: 12.21095 | W13: 12.20846 | Y13: 0.9997960847 | AA13: CH4 | AB13: 0.00260322 | AC13: 0 | AD13: CH4 | AE13: 0.00275032 | AF13: 0 | AG13: CH4 | AH13: 0.00291516 | AI13: 0 | AK13: CH4
A14: CO | B14: 15.38038 | C14: 0.0189478 | D14: CO | E14: 13.77372 | F14: 0.0122764 | G14: CO | H14: 12.18761 | I14: 0.00687735 | L14: 0.001231946155 | M14: 0.000891291532 | N14: 0.0005642902915 | P14: =2.28940183*P10 - 0.25631604 -> 0.1848738756 | Q14: =2.28940183*Q10 - 0.25631604 -> 0.1347069012 | R14: =2.28940183*R10 - 0.25631604 -> 0.08615977221 | U14: CO | V14: 22206.35 | W14: 22205.58 | Y14: 0.9999653252 | AA14: CO | AB14: 1.336756 | AC14: 12.18761 | AD14: CO | AE14: 1.447867 | AF14: 13.77372 | AG14: CO | AH14: 1.574097 | AI14: 15.38038 | AK14: CO | AL14: 9.117303382 | AM14: 9.513111356 | AN14: 9.770922631 | AP14: =AM14/AL14 -> 1.043412834 | AS14: =-0.18343412*(AH17/AH15)+12.05480038 -> 9.7825339
A15: COS | B15: 0.1389236 | C15: 0.00313999 | D15: COS | E15: 0.1307166 | F15: 0.00286155 | G15: COS | H15: 0.1226032 | I15: 0.00257468 | L15: 0.02260227924 | M15: 0.02189125176 | N15: 0.0210001044 | U15: COS | V15: 27.70179 | W15: 27.70179 | Y15: 1 | AA15: COS | AB15: 21.76553 | AC15: 0.2218932 | AD15: COS | AE15: 24.59681 | AF15: 0.252033 | AG15: COS | AH15: 27.42808 | AI15: 0.2828596 | AK15: COS | AL15: 0.01019470695 | AM15: 0.01024657262 | AN15: 0.01031277435
A16: H2 | B16: 79.81114 | C16: 14.74925 | D16: H2 | E16: 80.64381 | F16: 10.87508 | G16: H2 | H16: 81.47243 | I16: 7.013586 | L16: 0.1848018961 | M16: 0.1348532516 | N16: 0.08608539109 | U16: H2 | V16: 12296.65 | W16: 12296.08 | Y16: 0.9999536459 | AA16: H2 | AB16: 1.258436 | AC16: 114.8017 | AD16: H2 | AE16: 1.204972 | AF16: 113.6327 | AG16: H2 | AH16: 1.142949 | AI16: 112.4581 | AK16: H2 | AL16: 91.22569602 | AM16: 94.30318713 | AN16: 98.39292917 | AP16: =AM16/AL16 -> 1.033734915 | AS16: =39.03669226*(AH17/AH8)-34.39286042 -> 98.27663907
A17: H2S | B17: 0.7269839 | C17: 27.7016 | D17: H2S | E17: 0.7271711 | F17: 28.72949 | G17: H2S | H17: 0.7273425 | I17: 29.75831 | L17: 38.10483286 | M17: 39.50856958 | N17: 40.91375109 | U17: H2S | V17: 315.2704 | W17: 312.7466 | Y17: 0.9919948083 | AA17: H2S | AB17: 347.4579 | AC17: 47.05844 | AD17: H2S | AE17: 343.6093 | AF17: 46.81376 | AG17: H2S | AH17: 339.7618 | AI17: 46.56488 | AK17: H2S | AL17: 0.1354363795 | AM17: 0.1362412484 | AN17: 0.1370515461
A18: NH3 | B18: 0 | C18: 0 | D18: NH3 | E18: 0 | F18: 0 | G18: NH3 | H18: 0 | I18: 0 | U18: NH3 | V18: 55.77651 | W18: 0 | Y18: 0 | AA18: NH3 | AB18: 45.23192 | AC18: 0.2892896 | AD18: NH3 | AE18: 45.23192 | AF18: 0.2869768 | AG18: NH3 | AH18: 45.23192 | AI18: 0.2846319 | AK18: NH3 | AL18: 0.006395695783 | AM18: 0.006344563751 | AN18: 0.006292722042
A19: SO2 | B19: 26.79223 | C19: 1.0729e-10 | D19: SO2 | E19: 27.82784 | F19: 2.9316e-10 | G19: SO2 | H19: 28.86431 | I19: 1.19411e-09 | L19: 4.004519221e-12 | M19: 1.053477381e-11 | N19: 4.136977465e-11 | U19: SO2 | V19: 0 | W19: 0 | AA19: SO2 | AB19: 1.17571e-09 | AC19: 70.81298 | AD19: SO2 | AE19: 2.8875e-10 | AF19: 69.48775 | AG19: SO2 | AH19: 1.0571e-10 | AI19: 68.16067 | AK19: SO2 | AL19: 6.022997168e+10 | AM19: 2.406502165e+11 | AN19: 6.447892347e+11
A20: SULFU-01 | B20: 0 | C20: 0 | D20: SULFU-01 | E20: 0 | F20: 0 | G20: SULFU-01 | H20: 0 | I20: 0 | U20: SULFU-01 | V20: 0 | W20: 0 | AA20: SULFU-01 | AB20: 0 | AC20: 0 | AD20: SULFU-01 | AE20: 0 | AF20: 0 | AG20: SULFU-01 | AH20: 0 | AI20: 0 | AK20: SULFU-01
A21: SO3 | B21: 0 | C21: 0 | D21: SO3 | E21: 0 | F21: 0 | G21: SO3 | H21: 0 | I21: 0 | U21: SO3 | V21: 0 | W21: 0 | AA21: SO3 | AB21: 0 | AC21: 0 | AD21: SO3 | AE21: 0 | AF21: 0 | AG21: SO3 | AH21: 0 | AI21: 0 | AK21: SO3
A22: C | B22: 0 | C22: 0 | D22: C | E22: 0 | F22: 0 | G22: C | H22: 0 | I22: 0 | U22: C | V22: 0 | W22: 0 | AA22: C | AB22: 0 | AC22: 0 | AD22: C | AE22: 0 | AF22: 0 | AG22: C | AH22: 0 | AI22: 0 | AK22: C
A23: S | B23: 0 | C23: 0 | D23: S | E23: 0 | F23: 0 | G23: S | H23: 0 | I23: 0 | U23: S | V23: 0 | W23: 0 | AA23: S | AB23: 0 | AC23: 0 | AD23: S | AE23: 0 | AF23: 0 | AG23: S | AH23: 0 | AI23: 0 | AK23: S
A24: S2 | B24: 0 | C24: 0 | D24: S2 | E24: 0 | F24: 0 | G24: S2 | H24: 0 | I24: 0 | U24: S2 | V24: 0 | W24: 0 | AA24: S2 | AB24: 0 | AC24: 125.565 | AD24: S2 | AE24: 0 | AF24: 125.8263 | AG24: S2 | AH24: 0 | AI24: 126.0908 | AK24: S2
A25: S6 | B25: 9.95008e-05 | C25: 1.5345e-21 | D25: S6 | E25: 9.95264e-05 | F25: 1.1988e-20 | G25: S6 | H25: 9.95499e-05 | I25: 2.0758e-19 | L25: 1.542198656e-17 | M25: 1.204504533e-16 | N25: 2.08518542e-15 | U25: S6 | V25: 0 | W25: 0 | AA25: S6 | AB25: 0 | AC25: 0 | AD25: S6 | AE25: 0 | AF25: 0 | AG25: S6 | AH25: 0 | AI25: 0 | AK25: S6
A26: S8 | B26: 0.00575099 | C26: 2.8242e-28 | D26: S8 | E26: 0.00575255 | F26: 4.3649e-27 | G26: S8 | H26: 0.00575398 | I26: 1.9495e-25 | L26: 4.910806661e-26 | M26: 7.587765426e-25 | N26: 3.388089635e-23 | U26: S8 | V26: 0 | W26: 0 | AA26: S8 | AB26: 0 | AC26: 0 | AD26: S8 | AE26: 0 | AF26: 0 | AG26: S8 | AH26: 0 | AI26: 0 | AK26: S8
A27: HCL | B27: 0 | C27: 0 | D27: HCL | E27: 0 | F27: 0 | G27: HCL | H27: 0 | I27: 0 | U27: HCL | V27: 11.25693 | W27: 0 | Y27: 0 | AA27: HCL | AB27: 0 | AC27: 0 | AD27: HCL | AE27: 0 | AF27: 0 | AG27: HCL | AH27: 0 | AI27: 0 | AK27: HCL
A28: Mole Frac | D28: Mole Frac | G28: Mole Frac | U28: Mole Frac | AA28: Mole Frac | AD28: Mole Frac | AG28: Mole Frac
A29: H2O | B29: 0.7176635 | C29: 0.8172756 | D29: H2O | E29: 0.7222209 | F29: 0.8287847 | G29: H2O | H29: 0.7266682 | I29: 0.8400424 | U29: H2O | V29: 0.3251943 | W29: 0.00157676 | AA29: H2O | AB29: 0.1461735 | AC29: 0.4660906 | AD29: H2O | AE29: 0.1420379 | AF29: 0.4613403 | AG29: H2O | AH29: 0.1378165 | AI29: 0.4565077
A30: AR | B30: 0.0112737 | C30: 0.0117988 | D30: AR | E30: 0.0112531 | F30: 0.0117926 | G30: AR | H30: 0.0112339 | I30: 0.0117876 | U30: AR | V30: 0.00652424 | W30: 0.00966855 | AA30: AR | AB30: 0.00933762 | AC30: 0.0088809 | AD30: AR | AE30: 0.00934805 | AF30: 0.00887694 | AG30: AR | AH30: 0.00935949 | AI30: 0.00887363
A31: CO2 | B31: 0.0232709 | C31: 0.0512864 | D31: CO2 | E31: 0.02078 | F31: 0.0456995 | G31: CO2 | H31: 0.0183302 | I31: 0.0402344 | U31: CO2 | V31: 0.0389824 | W31: 0.0577858 | AA31: CO2 | AB31: 0.000339884 | AC31: 0.0140804 | AD31: CO2 | AE31: 0.000343233 | AF31: 0.0159126 | AG31: CO2 | AH31: 0.00034663 | AI31: 0.0177663 | AK31: H2S/H2O | AL31: =AB17/AB8 -> 3.214735171 | AM31: =AE17/AE8 -> 3.303001844 | AN31: =AH17/AH8 -> 3.398584557
A32: O2 | B32: 1.6739e-08 | C32: 7.7676e-38 | D32: O2 | E32: 1.6977e-08 | F32: 1.367e-34 | G32: O2 | H32: 1.72127e-08 | I32: 0 | U32: O2 | V32: 1.4818e-13 | W32: 2.1959e-13 | AA32: O2 | AB32: 0.2749465 | AC32: 1.36074e-08 | AD32: O2 | AE32: 0.2749779 | AF32: 1.33921e-08 | AG32: O2 | AH32: 0.2750047 | AI32: 1.31753e-08 | AK32: H2S/COS | AL32: =AB17/AB15 -> 15.96367743 | AM32: =AE17/AE15 -> 13.96966924 | AN32: =AH17/AH15 -> 12.3873709
A33: N2 | B33: 0.0437885 | C33: 0.0458278 | D33: N2 | E33: 0.0434003 | F33: 0.045481 | G33: N2 | H33: 0.0430197 | I33: 0.0451401 | U33: N2 | V33: 0.00559674 | W33: 0.008296 | AA33: N2 | AB33: 0.00517175 | AC33: 0.0338229 | AD33: N2 | AE33: 0.00517374 | AF33: 0.0340497 | AG33: N2 | AH33: 0.00517581 | AI33: 0.03428
A34: CH4 | B34: 0 | C34: 0 | D34: CH4 | E34: 0 | F34: 0 | G34: CH4 | H34: 0 | I34: 0 | U34: CH4 | V34: 0.000218066 | W34: 0.000323186 | AA34: CH4 | AB34: 3.52064e-06 | AC34: 0 | AD34: CH4 | AE34: 3.75519e-06 | AF34: 0 | AG34: CH4 | AH34: 4.01871e-06 | AI34: 0
A35: CO | B35: 0.0255393 | C35: 3.29284e-05 | D35: CO | E35: 0.0226388 | F35: 2.11453e-05 | G35: CO | H35: 0.01983 | I35: 1.17415e-05 | U35: CO | V35: 0.396566 | W35: 0.5878322 | AA35: CO | AB35: 0.00180786 | AC35: 0.0156765 | AD35: CO | AE35: 0.00197687 | AF35: 0.0178583 | AG35: CO | AH35: 0.00216998 | AI35: 0.0201021
A36: COS | B36: 0.000230685 | C36: 5.45681e-06 | D36: COS | E36: 0.000214849 | F36: 4.92881e-06 | G36: COS | H36: 0.000199484 | I36: 4.39565e-06 | U36: COS | V36: 0.000494705 | W36: 0.000733329 | AA36: COS | AB36: 0.0294361 | AC36: 0.000285415 | AD36: COS | AE36: 0.0335835 | AF36: 0.000326775 | AG36: COS | AH36: 0.0378111 | AI36: 0.000369696
A37: H2 | B37: 0.1325275 | C37: 0.0256319 | D37: H2 | E37: 0.1325484 | F37: 0.0187315 | G37: H2 | H37: 0.1325612 | I37: 0.011974 | U37: H2 | V37: 0.2195963 | W37: 0.325505 | AA37: H2 | AB37: 0.00170193 | AC37: 0.1476659 | AD37: H2 | AE37: 0.00164523 | AF37: 0.1473311 | AG37: H2 | AH37: 0.00157562 | AI37: 0.1469823
A38: H2S | B38: 0.00120717 | C38: 0.0481411 | D38: H2S | E38: 0.0011952 | F38: 0.0494843 | G38: H2S | H38: 0.00118344 | I38: 0.0508053 | U38: H2S | V38: 0.00563017 | W38: 0.00827911 | AA38: H2S | AB38: 0.4699088 | AC38: 0.0605298 | AD38: H2S | AE38: 0.4691517 | AF38: 0.0606966 | AG38: H2S | AH38: 0.4683812 | AI38: 0.0608601
A39: NH3 | B39: 0 | C39: 0 | D39: NH3 | E39: 0 | F39: 0 | G39: NH3 | H39: 0 | I39: 0 | U39: NH3 | V39: 0.000996069 | W39: 0 | AA39: NH3 | AB39: 0.0611725 | AC39: 0.000372105 | AD39: NH3 | AE39: 0.061758 | AF39: 0.000372081 | AG39: NH3 | AH39: 0.0623547 | AI39: 0.000372013
A40: SO2 | B40: 0.0444888 | C40: 1.8645e-13 | D40: SO2 | E40: 0.0457386 | F40: 5.0494e-13 | G40: SO2 | H40: 0.0469641 | I40: 2.0387e-12 | U40: SO2 | V40: 0 | W40: 0 | AA40: SO2 | AB40: 1.5901e-12 | AC40: 0.0910846 | AD40: SO2 | AE40: 3.9425e-13 | AF40: 0.0900946 | AG40: SO2 | AH40: 1.4573e-13 | AI40: 0.0890857
A41: SULFU-01 | B41: 0 | C41: 0 | D41: SULFU-01 | E41: 0 | F41: 0 | G41: SULFU-01 | H41: 0 | I41: 0 | U41: SULFU-01 | V41: 0 | W41: 0 | AA41: SULFU-01 | AB41: 0 | AC41: 0 | AD41: SULFU-01 | AE41: 0 | AF41: 0 | AG41: SULFU-01 | AH41: 0 | AI41: 0
A42: SO3 | B42: 0 | C42: 0 | D42: SO3 | E42: 0 | F42: 0 | G42: SO3 | H42: 0 | I42: 0 | U42: SO3 | V42: 0 | W42: 0 | AA42: SO3 | AB42: 0 | AC42: 0 | AD42: SO3 | AE42: 0 | AF42: 0 | AG42: SO3 | AH42: 0 | AI42: 0
A43: C | B43: 0 | C43: 0 | D43: C | E43: 0 | F43: 0 | G43: C | H43: 0 | I43: 0 | U43: C | V43: 0 | W43: 0 | AA43: C | AB43: 0 | AC43: 0 | AD43: C | AE43: 0 | AF43: 0 | AG43: C | AH43: 0 | AI43: 0
A44: S | B44: 0 | C44: 0 | D44: S | E44: 0 | F44: 0 | G44: S | H44: 0 | I44: 0 | U44: S | V44: 0 | W44: 0 | AA44: S | AB44: 0 | AC44: 0 | AD44: S | AE44: 0 | AF44: 0 | AG44: S | AH44: 0 | AI44: 0
A45: S2 | B45: 0 | C45: 0 | D45: S2 | E45: 0 | F45: 0 | G45: S2 | H45: 0 | I45: 0 | U45: S2 | V45: 0 | W45: 0 | AA45: S2 | AB45: 0 | AC45: 0.1615106 | AD45: S2 | AE45: 0 | AF45: 0.1631407 | AG45: S2 | AH45: 0 | AI45: 0.1648001
A46: S6 | B46: 1.65222e-07 | C46: 2.6667e-24 | D46: S6 | E46: 1.63584e-07 | F46: 2.0649e-23 | G46: S6 | H46: 1.61974e-07 | I46: 3.5439e-22 | U46: S6 | V46: 0 | W46: 0 | AA46: S6 | AB46: 0 | AC46: 0 | AD46: S6 | AE46: 0 | AF46: 0 | AG46: S6 | AH46: 0 | AI46: 0
A47: S8 | B47: 9.54959e-06 | C47: 4.908e-31 | D47: S8 | E47: 9.45504e-06 | F47: 7.5182e-30 | G47: S8 | H47: 9.36211e-06 | I47: 3.3282e-28 | U47: S8 | V47: 0 | W47: 0 | AA47: S8 | AB47: 0 | AC47: 0 | AD47: S8 | AE47: 0 | AF47: 0 | AG47: S8 | AH47: 0 | AI47: 0
A48: HCL | B48: 0 | C48: 0 | D48: HCL | E48: 0 | F48: 0 | G48: HCL | H48: 0 | I48: 0 | U48: HCL | V48: 0.000201029 | W48: 0 | AA48: HCL | AB48: 0 | AC48: 0 | AD48: HCL | AE48: 0 | AF48: 0 | AG48: HCL | AH48: 0 | AI48: 0
A49: Mass Flow lb/hr | D49: Mass Flow lb/hr | G49: Mass Flow lb/hr | U49: Mass Flow lb/hr | AA49: Mass Flow lb/hr | AD49: Mass Flow lb/hr | AG49: Mass Flow lb/hr
A50: H2O | B50: 7786.09 | C50: 8472.242 | D50: H2O | E50: 7916.036 | F50: 8668.469 | G50: H2O | H50: 8045.842 | I50: 8864.238 | U50: H2O | V50: 328054 | W50: 1073.036 | AA50: H2O | AB50: 1947.144 | AC50: 6527.986 | AD50: H2O | AE50: 1874.118 | AF50: 6410.198 | AG50: H2O | AH50: 1801.016 | AI50: 6292.379
A51: AR | B51: 271.2203 | C51: 271.2203 | D51: AR | E51: 273.5064 | F51: 273.5064 | G51: AR | H51: 275.8162 | I51: 275.8162 | U51: AR | V51: 14594.42 | W51: 14590.32 | AA51: AR | AB51: 275.8162 | AC51: 275.8162 | AD51: AR | AE51: 273.5064 | AF51: 273.5064 | AG51: AR | AH51: 271.2203 | AI51: 271.2203
A52: CO2 | B52: 616.7655 | C52: 1298.795 | D52: CO2 | E52: 556.4082 | F52: 1167.673 | G52: CO2 | H52: 495.8075 | I52: 1037.162 | U52: CO2 | V52: 96068.23 | W52: 96068.23 | AA52: CO2 | AB52: 11.06033 | AC52: 481.7621 | AD52: CO2 | AE52: 11.06343 | AF52: 540.1348 | AG52: CO2 | AH52: 11.066 | AI52: 598.238
A53: O2 | B53: 0.000322567 | C53: 1.4302e-33 | D53: O2 | E53: 0.000330516 | F53: 2.5396e-30 | G53: O2 | H53: 0.000338515 | I53: 0 | U53: O2 | V53: 2.65519e-07 | W53: 2.65438e-07 | AA53: O2 | AB53: 6505.345 | AC53: 0.000338515 | AD53: O2 | AE53: 6444.409 | AF53: 0.000330516 | AG53: O2 | AH53: 6383.355 | AI53: 0.000322568
A54: N2 | B54: 738.7285 | C54: 738.7285 | D54: N2 | E54: 739.7024 | F54: 739.7024 | G54: N2 | H54: 740.6771 | I54: 740.6771 | U54: N2 | V54: 8779.382 | W54: 8778.995 | AA54: N2 | AB54: 107.1255 | AC54: 736.6251 | AD54: N2 | AE54: 106.1507 | AF54: 735.6828 | AG54: N2 | AH54: 105.1769 | AI54: 734.7418
A55: CH4 | B55: 0 | C55: 0 | D55: CH4 | E55: 0 | F55: 0 | G55: CH4 | H55: 0 | I55: 0 | U55: CH4 | V55: 195.8973 | W55: 195.8574 | AA55: CH4 | AB55: 0.0417628 | AC55: 0 | AD55: CH4 | AE55: 0.0441227 | AF55: 0 | AG55: CH4 | AH55: 0.0467671 | AI55: 0
A56: CO | B56: 430.8107 | C56: 0.5307356 | D56: CO | E56: 385.8074 | F56: 0.3438684 | G56: CO | H56: 341.3799 | I56: 0.1926373 | U56: CO | V56: 622009 | W56: 621987 | AA56: CO | AB56: 37.44308 | AC56: 341.3799 | AD56: CO | AE56: 40.55532 | AF56: 385.8074 | AG56: CO | AH56: 44.09108 | AI56: 430.8107
A57: COS | B57: 8.346032 | C57: 0.188639 | D57: COS | E57: 7.852981 | F57: 0.1719118 | G57: COS | H57: 7.365559 | I57: 0.1546772 | U57: COS | V57: 1664.224 | W57: 1664.224 | AA57: COS | AB57: 1307.595 | AC57: 13.33054 | AD57: COS | AE57: 1477.688 | AF57: 15.14123 | AG57: COS | AH57: 1647.78 | AI57: 16.99319
A58: H2 | B58: 160.8897 | C58: 29.73272 | D58: H2 | E58: 162.5682 | F58: 21.92286 | G58: H2 | H58: 164.2386 | I58: 14.13855 | U58: H2 | V58: 24788.57 | W58: 24787.41 | AA58: H2 | AB58: 2.536857 | AC58: 231.4264 | AD58: H2 | AE58: 2.429079 | AF58: 229.0699 | AG58: H2 | AH58: 2.304049 | AI58: 226.7021
A59: H2S | B59: 24.77698 | C59: 944.1227 | D59: H2S | E59: 24.78336 | F59: 979.155 | G59: H2S | H59: 24.7892 | I59: 1014.219 | U59: H2S | V59: 10745.01 | W59: 10658.99 | AA59: H2S | AB59: 11842.02 | AC59: 1603.84 | AD59: H2S | AE59: 11710.85 | AF59: 1595.501 | AG59: H2S | AH59: 11579.72 | AI59: 1587.019
A60: NH3 | B60: 0 | C60: 0 | D60: NH3 | E60: 0 | F60: 0 | G60: NH3 | H60: 0 | I60: 0 | U60: NH3 | V60: 949.9052 | W60: 0 | AA60: NH3 | AB60: 770.3248 | AC60: 4.926764 | AD60: NH3 | AE60: 770.3248 | AF60: 4.887375 | AG60: NH3 | AH60: 770.3248 | AI60: 4.84744
A61: SO2 | B61: 1716.439 | C61: 6.87351e-09 | D61: SO2 | E61: 1782.785 | F61: 1.8781e-08 | G61: SO2 | H61: 1849.186 | I61: 7.65001e-08 | U61: SO2 | V61: 0 | W61: 0 | AA61: SO2 | AB61: 7.53217e-08 | AC61: 4536.62 | AD61: SO2 | AE61: 1.84987e-08 | AF61: 4451.719 | AG61: SO2 | AH61: 6.77244e-09 | AI61: 4366.7
A62: SULFU-01 | B62: 0 | C62: 0 | D62: SULFU-01 | E62: 0 | F62: 0 | G62: SULFU-01 | H62: 0 | I62: 0 | U62: SULFU-01 | V62: 0 | W62: 0 | AA62: SULFU-01 | AB62: 0 | AC62: 0 | AD62: SULFU-01 | AE62: 0 | AF62: 0 | AG62: SULFU-01 | AH62: 0 | AI62: 0
A63: SO3 | B63: 0 | C63: 0 | D63: SO3 | E63: 0 | F63: 0 | G63: SO3 | H63: 0 | I63: 0 | U63: SO3 | V63: 0 | W63: 0 | AA63: SO3 | AB63: 0 | AC63: 0 | AD63: SO3 | AE63: 0 | AF63: 0 | AG63: SO3 | AH63: 0 | AI63: 0
A64: C | B64: 0 | C64: 0 | D64: C | E64: 0 | F64: 0 | G64: C | H64: 0 | I64: 0 | U64: C | V64: 0 | W64: 0 | AA64: C | AB64: 0 | AC64: 0 | AD64: C | AE64: 0 | AF64: 0 | AG64: C | AH64: 0 | AI64: 0
A65: S | B65: 0 | C65: 0 | D65: S | E65: 0 | F65: 0 | G65: S | H65: 0 | I65: 0 | U65: S | V65: 0 | W65: 0 | AA65: S | AB65: 0 | AC65: 0 | AD65: S | AE65: 0 | AF65: 0 | AG65: S | AH65: 0 | AI65: 0
A66: S2 | B66: 0 | C66: 0 | D66: S2 | E66: 0 | F66: 0 | G66: S2 | H66: 0 | I66: 0 | U66: S2 | V66: 0 | W66: 0 | AA66: S2 | AB66: 0 | AC66: 8052.737 | AD66: S2 | AE66: 0 | AF66: 8069.492 | AG66: S2 | AH66: 0 | AI66: 8086.452
A67: S6 | B67: 0.0191435 | C67: 2.9523e-19 | D67: S6 | E67: 0.0191484 | F67: 2.3065e-18 | G67: S6 | H67: 0.019153 | I67: 3.9937e-17 | U67: S6 | V67: 0 | W67: 0 | AA67: S6 | AB67: 0 | AC67: 0 | AD67: S6 | AE67: 0 | AF67: 0 | AG67: S6 | AH67: 0 | AI67: 0
A68: S8 | B68: 1.475289 | C68: 7.2449e-26 | D68: S8 | E68: 1.475689 | F68: 1.1197e-24 | G68: S8 | H68: 1.476056 | I68: 5.0009e-23 | U68: S8 | V68: 0 | W68: 0 | AA68: S8 | AB68: 0 | AC68: 0 | AD68: S8 | AE68: 0 | AF68: 0 | AG68: S8 | AH68: 0 | AI68: 0
A69: HCL | B69: 0 | C69: 0 | D69: HCL | E69: 0 | F69: 0 | G69: HCL | H69: 0 | I69: 0 | U69: HCL | V69: 410.4349 | W69: 0 | AA69: HCL | AB69: 0 | AC69: 0 | AD69: HCL | AE69: 0 | AF69: 0 | AG69: HCL | AH69: 0 | AI69: 0
A70: Mass Frac | D70: Mass Frac | G70: Mass Frac | U70: Mass Frac | AA70: Mass Frac | AD70: Mass Frac | AG70: Mass Frac
A71: H2O | B71: 0.6623325 | C71: 0.7207008 | D71: H2O | E71: 0.6679666 | F71: 0.7314581 | G71: H2O | H71: 0.673484 | I71: 0.7419885 | U71: H2O | V71: 0.2960087 | W71: 0.00137603 | AA71: H2O | AB71: 0.0853769 | AC71: 0.2862342 | AD71: H2O | AE71: 0.0825197 | AF71: 0.2822491 | AG71: H2O | AH71: 0.0796342 | AI71: 0.2782256
A72: AR | B72: 0.0230716 | C72: 0.0230716 | D72: AR | E72: 0.0230788 | F72: 0.0230788 | G72: AR | H72: 0.0230874 | I72: 0.0230874 | U72: AR | V72: 0.0131687 | W72: 0.0187102 | AA72: AR | AB72: 0.0120937 | AC72: 0.0120937 | AD72: AR | AE72: 0.0120428 | AF72: 0.0120428 | AG72: AR | AH72: 0.0119923 | AI72: 0.0119923
A73: CO2 | B73: 0.0524658 | C73: 0.1104835 | D73: CO2 | E73: 0.0469505 | F73: 0.0985299 | G73: CO2 | H73: 0.0415019 | I73: 0.0868164 | U73: CO2 | V73: 0.0866838 | W73: 0.1231953 | AA73: CO2 | AB73: 0.000484965 | AC73: 0.0211239 | AD73: CO2 | AE73: 0.000487137 | AF73: 0.0237828 | AG73: CO2 | AH73: 0.000489297 | AI73: 0.0264518
A74: O2 | B74: 2.74396e-08 | C74: 1.2166e-37 | D74: O2 | E74: 2.78894e-08 | F74: 2.143e-34 | G74: O2 | H74: 2.83357e-08 | I74: 0 | U74: O2 | V74: 2.3958e-13 | W74: 3.4039e-13 | AA74: O2 | AB74: 0.2852415 | AC74: 1.48429e-08 | AD74: O2 | AE74: 0.2837554 | AF74: 1.4553e-08 | AG74: O2 | AH74: 0.2822482 | AI74: 1.42627e-08
A75: N2 | B75: 0.0628407 | C75: 0.0628407 | D75: N2 | E75: 0.0624171 | F75: 0.0624171 | G75: N2 | H75: 0.061999 | I75: 0.061999 | U75: N2 | V75: 0.00792178 | W75: 0.0112579 | AA75: N2 | AB75: 0.00469716 | AC75: 0.0322989 | AD75: N2 | AE75: 0.00467395 | AF75: 0.032393 | AG75: N2 | AH75: 0.00465053 | AI75: 0.0324875
A76: CH4 | B76: 0 | C76: 0 | D76: CH4 | E76: 0 | F76: 0 | G76: CH4 | H76: 0 | I76: 0 | U76: CH4 | V76: 0.000176761 | W76: 0.000251162 | AA76: CH4 | AB76: 1.83118e-06 | AC76: 0 | AD76: CH4 | AE76: 1.94278e-06 | AF76: 0 | AG76: CH4 | AH76: 2.06787e-06 | AI76: 0
A77: CO | B77: 0.0366474 | C77: 4.51476e-05 | D77: CO | E77: 0.0325549 | F77: 2.90161e-05 | G77: CO | H77: 0.0285754 | I77: 1.61249e-05 | U77: CO | V77: 0.5612485 | W77: 0.7976196 | AA77: CO | AB77: 0.00164178 | AC77: 0.0149685 | AD77: CO | AE77: 0.0017857 | AF77: 0.0169875 | AG77: CO | AH77: 0.00194954 | AI77: 0.0190488
A78: COS | B78: 0.000709965 | C78: 1.60468e-05 | D78: COS | E78: 0.000662646 | F78: 1.45062e-05 | G78: COS | H78: 0.00061654 | I78: 1.29474e-05 | U78: COS | V78: 0.00150166 | W78: 0.00213416 | AA78: COS | AB78: 0.0573344 | AC78: 0.000584508 | AD78: COS | AE78: 0.0650644 | AF78: 0.000666688 | AG78: COS | AH78: 0.0728587 | AI78: 0.000751376
A79: H2 | B79: 0.0136862 | C79: 0.00252925 | D79: H2 | E79: 0.0137177 | F79: 0.00184988 | G79: H2 | H79: 0.0137477 | I79: 0.00118348 | U79: H2 | V79: 0.0223671 | W79: 0.0317867 | AA79: H2 | AB79: 0.000111234 | AC79: 0.0101474 | AD79: H2 | AE79: 0.000106955 | AF79: 0.0100862 | AG79: H2 | AH79: 0.000101877 | AI79: 0.0100239
A80: H2S | B80: 0.00210768 | C80: 0.0803128 | D80: H2S | E80: 0.00209126 | F80: 0.0826225 | G80: H2S | H80: 0.002075 | I80: 0.084896 | U80: H2S | V80: 0.00969539 | W80: 0.0136688 | AA80: H2S | AB80: 0.5192398 | AC80: 0.0703239 | AD80: H2S | AE80: 0.5156435 | AF80: 0.0702519 | AG80: H2S | AH80: 0.5120123 | AI80: 0.070172
A81: NH3 | B81: 0 | C81: 0 | D81: NH3 | E81: 0 | F81: 0 | G81: NH3 | H81: 0 | I81: 0 | U81: NH3 | V81: 0.000857115 | W81: 0 | AA81: NH3 | AB81: 0.0337766 | AC81: 0.000216025 | AD81: NH3 | AE81: 0.0339183 | AF81: 0.000215197 | AG81: NH3 | AH81: 0.0340609 | AI81: 0.000214336
A82: SO2 | B82: 0.1460108 | C82: 5.847e-13 | D82: SO2 | E82: 0.150434 | F82: 1.5848e-12 | G82: SO2 | H82: 0.1547877 | I82: 6.4035e-12 | U82: SO2 | V82: 0 | W82: 0 | AA82: SO2 | AB82: 3.3027e-12 | AC82: 0.1989183 | AD82: SO2 | AE82: 8.1452e-13 | AF82: 0.1960148 | AG82: SO2 | AH82: 2.9945e-13 | AI82: 0.1930792
A83: SULFU-01 | B83: 0 | C83: 0 | D83: SULFU-01 | E83: 0 | F83: 0 | G83: SULFU-01 | H83: 0 | I83: 0 | U83: SULFU-01 | V83: 0 | W83: 0 | AA83: SULFU-01 | AB83: 0 | AC83: 0 | AD83: SULFU-01 | AE83: 0 | AF83: 0 | AG83: SULFU-01 | AH83: 0 | AI83: 0
A84: SO3 | B84: 0 | C84: 0 | D84: SO3 | E84: 0 | F84: 0 | G84: SO3 | H84: 0 | I84: 0 | U84: SO3 | V84: 0 | W84: 0 | AA84: SO3 | AB84: 0 | AC84: 0 | AD84: SO3 | AE84: 0 | AF84: 0 | AG84: SO3 | AH84: 0 | AI84: 0
A85: C | B85: 0 | C85: 0 | D85: C | E85: 0 | F85: 0 | G85: C | H85: 0 | I85: 0 | U85: C | V85: 0 | W85: 0 | AA85: C | AB85: 0 | AC85: 0 | AD85: C | AE85: 0 | AF85: 0 | AG85: C | AH85: 0 | AI85: 0
A86: S | B86: 0 | C86: 0 | D86: S | E86: 0 | F86: 0 | G86: S | H86: 0 | I86: 0 | U86: S | V86: 0 | W86: 0 | AA86: S | AB86: 0 | AC86: 0 | AD86: S | AE86: 0 | AF86: 0 | AG86: S | AH86: 0 | AI86: 0
A87: S2 | B87: 0 | C87: 0 | D87: S2 | E87: 0 | F87: 0 | G87: S2 | H87: 0 | I87: 0 | U87: S2 | V87: 0 | W87: 0 | AA87: S2 | AB87: 0 | AC87: 0.3530903 | AD87: S2 | AE87: 0 | AF87: 0.3553099 | AG87: S2 | AH87: 0 | AI87: 0.3575528
A88: S6 | B88: 1.62847e-06 | C88: 2.5114e-23 | D88: S6 | E88: 1.61578e-06 | F88: 1.9462e-22 | G88: S6 | H88: 1.60322e-06 | I88: 3.3429e-21 | U88: S6 | V88: 0 | W88: 0 | AA88: S6 | AB88: 0 | AC88: 0 | AD88: S6 | AE88: 0 | AF88: 0 | AG88: S6 | AH88: 0 | AI88: 0
A89: S8 | B89: 0.000125497 | C89: 6.1629e-30 | D89: S8 | E89: 0.000124521 | F89: 9.4483e-29 | G89: S8 | H89: 0.000123555 | I89: 4.1861e-27 | U89: S8 | V89: 0 | W89: 0 | AA89: S8 | AB89: 0 | AC89: 0 | AD89: S8 | AE89: 0 | AF89: 0 | AG89: S8 | AH89: 0 | AI89: 0
A90: HCL | B90: 0 | C90: 0 | D90: HCL | E90: 0 | F90: 0 | G90: HCL | H90: 0 | I90: 0 | U90: HCL | V90: 0.000370342 | W90: 0 | AA90: HCL | AB90: 0 | AC90: 0 | AD90: HCL | AE90: 0 | AF90: 0 | AG90: HCL | AH90: 0 | AI90: 0
A91: Total Flow lbmol/hr | B91: 602.2232 | C91: 575.4252 | D91: Total Flow lbmol/hr | E91: 608.4105 | F91: 580.5768 | G91: Total Flow lbmol/hr | H91: 614.6025 | I91: 585.7323 | U91: Total Flow lbmol/hr | V91: 55996.62 | W91: 37775.38 | AA91: Total Flow lbmol/hr | AB91: 739.4155 | AC91: 777.4417 | AD91: Total Flow lbmol/hr | AE91: 732.4055 | AF91: 771.2747 | AG91: Total Flow lbmol/hr | AH91: 725.396 | AI91: 765.1132
A92: Total Flow lb/hr | B92: 11755.56 | C92: 11755.56 | D92: Total Flow lb/hr | E92: 11850.95 | F92: 11850.95 | G92: Total Flow lb/hr | H92: 11946.6 | I92: 11946.6 | U92: Total Flow lb/hr | V92: 1108260 | W92: 779804 | AA92: Total Flow lb/hr | AB92: 22806.45 | AC92: 22806.45 | AD92: Total Flow lb/hr | AE92: 22711.14 | AF92: 22711.14 | AG92: Total Flow lb/hr | AH92: 22616.1 | AI92: 22616.1
A93: Total Flow cuft/hr | B93: 477248 | C93: 558502 | D93: Total Flow cuft/hr | E93: 482141 | F93: 563479 | G93: Total Flow cuft/hr | H93: 487038 | I93: 568460 | U93: Total Flow cuft/hr | V93: 889900 | W93: 428362 | AA93: Total Flow cuft/hr | AB93: 310185 | AC93: 1143280 | AD93: Total Flow cuft/hr | AE93: 307245 | AF93: 1134210 | AG93: Total Flow cuft/hr | AH93: 304305 | AI93: 1125150
A94: Temperature F | B94: 450 | C94: 550 | D94: Temperature F | E94: 450 | F94: 550 | G94: Temperature F | H94: 450 | I94: 550 | U94: Temperature F | V94: 385.8688 | W94: 94.86511 | AA94: Temperature F | AB94: 448.8595 | AC94: 2650 | AD94: Temperature F | AE94: 448.8565 | AF94: 2650 | AG94: Temperature F | AH94: 448.8534 | AI94: 2650
A95: Pressure psia | B95: 12.29595 | C95: 11.14595 | D95: Pressure psia | E95: 12.29595 | F95: 11.14595 | G95: Pressure psia | H95: 12.29595 | I95: 11.14595 | U95: Pressure psia | V95: 560 | W95: 525 | AA95: Pressure psia | AB95: 23.19595 | AC95: 22.69595 | AD95: Pressure psia | AE95: 23.19595 | AF95: 22.69595 | AG95: Pressure psia | AH95: 23.19595 | AI95: 22.69595
A96: Vapor Frac | B96: 1 | C96: 1 | D96: Vapor Frac | E96: 1 | F96: 1 | G96: Vapor Frac | H96: 1 | I96: 1 | U96: Vapor Frac | V96: 1 | W96: 1 | AA96: Vapor Frac | AB96: 1 | AC96: 1 | AD96: Vapor Frac | AE96: 1 | AF96: 1 | AG96: Vapor Frac | AH96: 1 | AI96: 1
A97: Liquid Frac | B97: 0 | C97: 0 | D97: Liquid Frac | E97: 0 | F97: 0 | G97: Liquid Frac | H97: 0 | I97: 0 | U97: Liquid Frac | V97: 0 | W97: 0 | AA97: Liquid Frac | AB97: 0 | AC97: 0 | AD97: Liquid Frac | AE97: 0 | AF97: 0 | AG97: Liquid Frac | AH97: 0 | AI97: 0
A98: Solid Frac | B98: 0 | C98: 0 | D98: Solid Frac | E98: 0 | F98: 0 | G98: Solid Frac | H98: 0 | I98: 0 | U98: Solid Frac | V98: 0 | W98: 0 | AA98: Solid Frac | AB98: 0 | AC98: 0 | AD98: Solid Frac | AE98: 0 | AF98: 0 | AG98: Solid Frac | AH98: 0 | AI98: 0
A99: Enthalpy Btu/lbmol | B99: -82468.64 | C99: -90180.73 | D99: Enthalpy Btu/lbmol | E99: -82540.85 | F99: -90443.84 | G99: Enthalpy Btu/lbmol | H99: -82609.9 | I99: -90701.28 | U99: Enthalpy Btu/lbmol | V99: -57225.2 | W99: -37948.88 | AA99: Enthalpy Btu/lbmol | AB99: -19482.67 | AC99: -30392.95 | AD99: Enthalpy Btu/lbmol | AE99: -19315.13 | AF99: -30109.19 | AG99: Enthalpy Btu/lbmol | AH99: -19144.73 | AI99: -29819.8
A100: Enthalpy Btu/lb | B100: -4224.769 | C100: -4414.273 | D100: Enthalpy Btu/lb | E100: -4237.529 | F100: -4430.836 | G100: Enthalpy Btu/lb | H100: -4249.934 | I100: -4447.013 | U100: Enthalpy Btu/lb | V100: -2891.397 | W100: -1838.324 | AA100: Enthalpy Btu/lb | AB100: -631.6541 | AC100: -1036.055 | AD100: Enthalpy Btu/lb | AE100: -622.8884 | AF100: -1022.514 | AG100: Enthalpy Btu/lb | AH100: -614.0542 | AI100: -1008.818
A101: Enthalpy Btu/hr | B101: -49665000 | C101: -51892000 | D101: Enthalpy Btu/hr | E101: -50219000 | F101: -52510000 | G101: Enthalpy Btu/hr | H101: -50772000 | I101: -53127000 | U101: Enthalpy Btu/hr | V101: -3204400000 | W101: -1433500000 | AA101: Enthalpy Btu/hr | AB101: -14406000 | AC101: -23629000 | AD101: Enthalpy Btu/hr | AE101: -14147000 | AF101: -23222000 | AG101: Enthalpy Btu/hr | AH101: -13888000 | AI101: -22816000
A102: Entropy Btu/lbmol-R | B102: -0.2898194 | C102: -0.9035653 | D102: Entropy Btu/lbmol-R | E102: -0.4302811 | F102: -1.091854 | G102: Entropy Btu/lbmol-R | H102: -0.5683003 | I102: -1.282587 | U102: Entropy Btu/lbmol-R | V102: 3.656026 | W102: 7.609394 | AA102: Entropy Btu/lbmol-R | AB102: 8.586323 | AC102: 20.87699 | AD102: Entropy Btu/lbmol-R | AE102: 8.724689 | AF102: 21.06321 | AG102: Entropy Btu/lbmol-R | AH102: 8.864977 | AI102: 21.25196
A103: Entropy Btu/lb-R | B103: -0.0148471 | C103: -0.0442287 | D103: Entropy Btu/lb-R | E103: -0.02209 | F103: -0.0534898 | G103: Entropy Btu/lb-R | H103: -0.0292366 | I103: -0.0628842 | U103: Entropy Btu/lb-R | V103: 0.1847267 | W103: 0.3686152 | AA103: Entropy Btu/lb-R | AB103: 0.27838 | AC103: 0.711669 | AD103: Entropy Btu/lb-R | AE103: 0.2813602 | AF103: 0.7153108 | AG103: Entropy Btu/lb-R | AH103: 0.284338 | AI103: 0.7189634
A104: Density lbmol/cuft | B104: 0.00126187 | C104: 0.0010303 | D104: Density lbmol/cuft | E104: 0.00126189 | F104: 0.00103034 | G104: Density lbmol/cuft | H104: 0.00126192 | I104: 0.00103038 | U104: Density lbmol/cuft | V104: 0.0629246 | W104: 0.0881856 | AA104: Density lbmol/cuft | AB104: 0.00238379 | AC104: 0.000680012 | AD104: Density lbmol/cuft | AE104: 0.00238379 | AF104: 0.000680011 | AG104: Density lbmol/cuft | AH104: 0.00238378 | AI104: 0.000680011
A105: Density lb/cuft | B105: 0.024632 | C105: 0.0210483 | D105: Density lb/cuft | E105: 0.0245798 | F105: 0.0210317 | G105: Density lb/cuft | H105: 0.024529 | I105: 0.0210157 | U105: Density lb/cuft | V105: 1.245376 | W105: 1.820433 | AA105: Density lb/cuft | AB105: 0.0735254 | AC105: 0.0199483 | AD105: Density lb/cuft | AE105: 0.0739187 | AF105: 0.0200237 | AG105: Density lb/cuft | AH105: 0.0743205 | AI105: 0.0201005
A106: Average MW | B106: 19.52027 | C106: 20.42935 | D106: Average MW | E106: 19.47854 | F106: 20.41236 | G106: Average MW | H106: 19.43793 | I106: 20.396 | U106: Average MW | V106: 19.79154 | W106: 20.64319 | AA106: Average MW | AB106: 30.84389 | AC106: 29.33526 | AD106: Average MW | AE106: 31.00897 | AF106: 29.44624 | AG106: Average MW | AH106: 31.1776 | AI106: 29.55916
A107: Liq Vol 60F | D107: Liq Vol 60F | G107: Liq Vol 60F | U107: Liq Vol 60F cuft/hr | V107: 37682.9 | W107: 32374.13 | AA107: Liq Vol 60F cuft/hr | AB107: 572.8792 | AD107: Liq Vol 60F cuft/hr | AE107: 569.1709 | AG107: Liq Vol 60F cuft/hr | AH107: 565.4652
A108: *** ALL PHASES *** | D108: *** ALL PHASES *** | G108: *** ALL PHASES *** | U108: *** ALL PHASES *** | AA108: *** ALL PHASES *** | AD108: *** ALL PHASES *** | AG108: *** ALL PHASES ***
A109: TDEW F | B109: 271.9084 | C109: 192.6291 | D109: TDEW F | E109: 271.7021 | F109: 193.2716 | G109: TDEW F | H109: 271.4972 | I109: 193.893 | U109: TDEW F | V109: 367.832 | W109: 94.00794 | AA109: TDEW F | AB109: 151.1822 | AC109: 750.5257 | AD109: TDEW F | AE109: 150.0784 | AF109: 751.3693 | AG109: TDEW F | AH109: 148.9233 | AI109: 752.2209
A110: CPMX Btu/lb-R | B110: 0.4252738 | C110: 0.4207316 | D110: CPMX Btu/lb-R | E110: 0.426295 | F110: 0.4210139 | G110: CPMX Btu/lb-R | H110: 0.4272908 | I110: 0.421286 | U110: CPMX Btu/lb-R | V110: 0.4056843 | W110: 0.3577195 | AA110: CPMX Btu/lb-R | AB110: 0.2775397 | AC110: 0.36758 | AD110: CPMX Btu/lb-R | AE110: 0.2765093 | AF110: 0.3659212 | AG110: CPMX Btu/lb-R | AH110: 0.2754667 | AI110: 0.3642433
A111: *** VAPOR PHASE *** | D111: *** VAPOR PHASE *** | G111: *** VAPOR PHASE *** | U111: *** VAPOR PHASE *** | AA111: *** VAPOR PHASE *** | AD111: *** VAPOR PHASE *** | AG111: *** VAPOR PHASE ***
A112: CPIGMX Btu/lb-R | B112: 0.4243086 | C112: 0.4199272 | D112: CPIGMX Btu/lb-R | E112: 0.4253204 | F112: 0.4201942 | G112: CPIGMX Btu/lb-R | H112: 0.4263071 | I112: 0.4204512 | U112: CPIGMX Btu/lb-R | V112: 0.3841733 | W112: 0.3415927 | AA112: CPIGMX Btu/lb-R | AB112: 0.2767712 | AC112: 0.36748 | AD112: CPIGMX Btu/lb-R | AE112: 0.275746 | AF112: 0.3658215 | AG112: CPIGMX Btu/lb-R | AH112: 0.2747087 | AI112: 0.364144
A113: Substream: $TOTAL | D113: Substream: $TOTAL | G113: Substream: $TOTAL | U113: Substream: $TOTAL | AA113: Substream: $TOTAL | AD113: Substream: $TOTAL | AG113: Substream: $TOTAL
A114: Total Flow lb/hr | B114: 11755.56 | C114: 11755.56 | D114: Total Flow lb/hr | E114: 11850.95 | F114: 11850.95 | G114: Total Flow lb/hr | H114: 11946.6 | I114: 11946.6 | U114: Total Flow lb/hr | V114: 1108260 | W114: 779804 | AA114: Total Flow lb/hr | AB114: 22806.45 | AC114: 22806.45 | AD114: Total Flow lb/hr | AE114: 22711.14 | AF114: 22711.14 | AG114: Total Flow lb/hr | AH114: 22616.1 | AI114: 22616.1
A115: Enthalpy Btu/hr | B115: -49665000 | C115: -51892000 | D115: Enthalpy Btu/hr | E115: -50219000 | F115: -52510000 | G115: Enthalpy Btu/hr | H115: -50772000 | I115: -53127000 | U115: Enthalpy Btu/hr | V115: -3204400000 | W115: -1433500000 | AA115: Enthalpy Btu/hr | AB115: -14406000 | AC115: -23629000 | AD115: Enthalpy Btu/hr | AE115: -14147000 | AF115: -23222000 | AG115: Enthalpy Btu/hr | AH115: -13888000 | AI115: -22816000
A116: Substream: CISOLID | D116: Substream: CISOLID | G116: Substream: CISOLID | U116: Substream: CISOLID | AA116: Substream: CISOLID | AD116: Substream: CISOLID | AG116: Substream: CISOLID
A117: Mole Flow lbmol/hr | D117: Mole Flow lbmol/hr | G117: Mole Flow lbmol/hr | U117: Mole Flow lbmol/hr | AA117: Mole Flow lbmol/hr | AD117: Mole Flow lbmol/hr | AG117: Mole Flow lbmol/hr
A118: H2O | B118: 0 | C118: 0 | D118: H2O | E118: 0 | F118: 0 | G118: H2O | H118: 0 | I118: 0 | U118: H2O | V118: 0 | W118: 0 | AA118: H2O | AB118: 0 | AC118: 0 | AD118: H2O | AE118: 0 | AF118: 0 | AG118: H2O | AH118: 0 | AI118: 0
A119: AR | B119: 0 | C119: 0 | D119: AR | E119: 0 | F119: 0 | G119: AR | H119: 0 | I119: 0 | U119: AR | V119: 0 | W119: 0 | AA119: AR | AB119: 0 | AC119: 0 | AD119: AR | AE119: 0 | AF119: 0 | AG119: AR | AH119: 0 | AI119: 0
A120: CO2 | B120: 0 | C120: 0 | D120: CO2 | E120: 0 | F120: 0 | G120: CO2 | H120: 0 | I120: 0 | U120: CO2 | V120: 0 | W120: 0 | AA120: CO2 | AB120: 0 | AC120: 0 | AD120: CO2 | AE120: 0 | AF120: 0 | AG120: CO2 | AH120: 0 | AI120: 0
A121: O2 | B121: 0 | C121: 0 | D121: O2 | E121: 0 | F121: 0 | G121: O2 | H121: 0 | I121: 0 | U121: O2 | V121: 0 | W121: 0 | AA121: O2 | AB121: 0 | AC121: 0 | AD121: O2 | AE121: 0 | AF121: 0 | AG121: O2 | AH121: 0 | AI121: 0
A122: N2 | B122: 0 | C122: 0 | D122: N2 | E122: 0 | F122: 0 | G122: N2 | H122: 0 | I122: 0 | U122: N2 | V122: 0 | W122: 0 | AA122: N2 | AB122: 0 | AC122: 0 | AD122: N2 | AE122: 0 | AF122: 0 | AG122: N2 | AH122: 0 | AI122: 0
A123: CH4 | B123: 0 | C123: 0 | D123: CH4 | E123: 0 | F123: 0 | G123: CH4 | H123: 0 | I123: 0 | U123: CH4 | V123: 0 | W123: 0 | AA123: CH4 | AB123: 0 | AC123: 0 | AD123: CH4 | AE123: 0 | AF123: 0 | AG123: CH4 | AH123: 0 | AI123: 0
A124: CO | B124: 0 | C124: 0 | D124: CO | E124: 0 | F124: 0 | G124: CO | H124: 0 | I124: 0 | U124: CO | V124: 0 | W124: 0 | AA124: CO | AB124: 0 | AC124: 0 | AD124: CO | AE124: 0 | AF124: 0 | AG124: CO | AH124: 0 | AI124: 0
A125: COS | B125: 0 | C125: 0 | D125: COS | E125: 0 | F125: 0 | G125: COS | H125: 0 | I125: 0 | U125: COS | V125: 0 | W125: 0 | AA125: COS | AB125: 0 | AC125: 0 | AD125: COS | AE125: 0 | AF125: 0 | AG125: COS | AH125: 0 | AI125: 0
A126: H2 | B126: 0 | C126: 0 | D126: H2 | E126: 0 | F126: 0 | G126: H2 | H126: 0 | I126: 0 | U126: H2 | V126: 0 | W126: 0 | AA126: H2 | AB126: 0 | AC126: 0 | AD126: H2 | AE126: 0 | AF126: 0 | AG126: H2 | AH126: 0 | AI126: 0
A127: H2S | B127: 0 | C127: 0 | D127: H2S | E127: 0 | F127: 0 | G127: H2S | H127: 0 | I127: 0 | U127: H2S | V127: 0 | W127: 0 | AA127: H2S | AB127: 0 | AC127: 0 | AD127: H2S | AE127: 0 | AF127: 0 | AG127: H2S | AH127: 0 | AI127: 0
A128: NH3 | B128: 0 | C128: 0 | D128: NH3 | E128: 0 | F128: 0 | G128: NH3 | H128: 0 | I128: 0 | U128: NH3 | V128: 0 | W128: 0 | AA128: NH3 | AB128: 0 | AC128: 0 | AD128: NH3 | AE128: 0 | AF128: 0 | AG128: NH3 | AH128: 0 | AI128: 0
A129: SO2 | B129: 0 | C129: 0 | D129: SO2 | E129: 0 | F129: 0 | G129: SO2 | H129: 0 | I129: 0 | U129: SO2 | V129: 0 | W129: 0 | AA129: SO2 | AB129: 0 | AC129: 0 | AD129: SO2 | AE129: 0 | AF129: 0 | AG129: SO2 | AH129: 0 | AI129: 0
A130: SULFU-01 | B130: 0 | C130: 0 | D130: SULFU-01 | E130: 0 | F130: 0 | G130: SULFU-01 | H130: 0 | I130: 0 | U130: SULFU-01 | V130: 0 | W130: 0 | AA130: SULFU-01 | AB130: 0 | AC130: 0 | AD130: SULFU-01 | AE130: 0 | AF130: 0 | AG130: SULFU-01 | AH130: 0 | AI130: 0
A131: SO3 | B131: 0 | C131: 0 | D131: SO3 | E131: 0 | F131: 0 | G131: SO3 | H131: 0 | I131: 0 | U131: SO3 | V131: 0 | W131: 0 | AA131: SO3 | AB131: 0 | AC131: 0 | AD131: SO3 | AE131: 0 | AF131: 0 | AG131: SO3 | AH131: 0 | AI131: 0
A132: C | B132: 0 | C132: 0 | D132: C | E132: 0 | F132: 0 | G132: C | H132: 0 | I132: 0 | U132: C | V132: 0 | W132: 0 | AA132: C | AB132: 0 | AC132: 0 | AD132: C | AE132: 0 | AF132: 0 | AG132: C | AH132: 0 | AI132: 0
A133: S | B133: 0 | C133: 0 | D133: S | E133: 0 | F133: 0 | G133: S | H133: 0 | I133: 0 | U133: S | V133: 0 | W133: 0 | AA133: S | AB133: 0 | AC133: 0 | AD133: S | AE133: 0 | AF133: 0 | AG133: S | AH133: 0 | AI133: 0
A134: S2 | B134: 0 | C134: 0 | D134: S2 | E134: 0 | F134: 0 | G134: S2 | H134: 0 | I134: 0 | U134: S2 | V134: 0 | W134: 0 | AA134: S2 | AB134: 0 | AC134: 0 | AD134: S2 | AE134: 0 | AF134: 0 | AG134: S2 | AH134: 0 | AI134: 0
A135: S6 | B135: 0 | C135: 0 | D135: S6 | E135: 0 | F135: 0 | G135: S6 | H135: 0 | I135: 0 | U135: S6 | V135: 0 | W135: 0 | AA135: S6 | AB135: 0 | AC135: 0 | AD135: S6 | AE135: 0 | AF135: 0 | AG135: S6 | AH135: 0 | AI135: 0
A136: S8 | B136: 0 | C136: 0 | D136: S8 | E136: 0 | F136: 0 | G136: S8 | H136: 0 | I136: 0 | U136: S8 | V136: 0 | W136: 0 | AA136: S8 | AB136: 0 | AC136: 0 | AD136: S8 | AE136: 0 | AF136: 0 | AG136: S8 | AH136: 0 | AI136: 0
A137: HCL | B137: 0 | C137: 0 | D137: HCL | E137: 0 | F137: 0 | G137: HCL | H137: 0 | I137: 0 | U137: HCL | V137: 0 | W137: 0 | AA137: HCL | AB137: 0 | AC137: 0 | AD137: HCL | AE137: 0 | AF137: 0 | AG137: HCL | AH137: 0 | AI137: 0
A138: Mole Frac | D138: Mole Frac | G138: Mole Frac | U138: Mole Frac | AA138: Mole Frac | AD138: Mole Frac | AG138: Mole Frac
A139: H2O | B139: 0 | C139: 0 | D139: H2O | E139: 0 | F139: 0 | G139: H2O | H139: 0 | I139: 0 | U139: H2O | V139: 0 | W139: 0 | AA139: H2O | AB139: 0 | AC139: 0 | AD139: H2O | AE139: 0 | AF139: 0 | AG139: H2O | AH139: 0 | AI139: 0
A140: AR | B140: 0 | C140: 0 | D140: AR | E140: 0 | F140: 0 | G140: AR | H140: 0 | I140: 0 | U140: AR | V140: 0 | W140: 0 | AA140: AR | AB140: 0 | AC140: 0 | AD140: AR | AE140: 0 | AF140: 0 | AG140: AR | AH140: 0 | AI140: 0
A141: CO2 | B141: 0 | C141: 0 | D141: CO2 | E141: 0 | F141: 0 | G141: CO2 | H141: 0 | I141: 0 | U141: CO2 | V141: 0 | W141: 0 | AA141: CO2 | AB141: 0 | AC141: 0 | AD141: CO2 | AE141: 0 | AF141: 0 | AG141: CO2 | AH141: 0 | AI141: 0
A142: O2 | B142: 0 | C142: 0 | D142: O2 | E142: 0 | F142: 0 | G142: O2 | H142: 0 | I142: 0 | U142: O2 | V142: 0 | W142: 0 | AA142: O2 | AB142: 0 | AC142: 0 | AD142: O2 | AE142: 0 | AF142: 0 | AG142: O2 | AH142: 0 | AI142: 0
A143: N2 | B143: 0 | C143: 0 | D143: N2 | E143: 0 | F143: 0 | G143: N2 | H143: 0 | I143: 0 | U143: N2 | V143: 0 | W143: 0 | AA143: N2 | AB143: 0 | AC143: 0 | AD143: N2 | AE143: 0 | AF143: 0 | AG143: N2 | AH143: 0 | AI143: 0
A144: CH4 | B144: 0 | C144: 0 | D144: CH4 | E144: 0 | F144: 0 | G144: CH4 | H144: 0 | I144: 0 | U144: CH4 | V144: 0 | W144: 0 | AA144: CH4 | AB144: 0 | AC144: 0 | AD144: CH4 | AE144: 0 | AF144: 0 | AG144: CH4 | AH144: 0 | AI144: 0
A145: CO | B145: 0 | C145: 0 | D145: CO | E145: 0 | F145: 0 | G145: CO | H145: 0 | I145: 0 | U145: CO | V145: 0 | W145: 0 | AA145: CO | AB145: 0 | AC145: 0 | AD145: CO | AE145: 0 | AF145: 0 | AG145: CO | AH145: 0 | AI145: 0
A146: COS | B146: 0 | C146: 0 | D146: COS | E146: 0 | F146: 0 | G146: COS | H146: 0 | I146: 0 | U146: COS | V146: 0 | W146: 0 | AA146: COS | AB146: 0 | AC146: 0 | AD146: COS | AE146: 0 | AF146: 0 | AG146: COS | AH146: 0 | AI146: 0
A147: H2 | B147: 0 | C147: 0 | D147: H2 | E147: 0 | F147: 0 | G147: H2 | H147: 0 | I147: 0 | U147: H2 | V147: 0 | W147: 0 | AA147: H2 | AB147: 0 | AC147: 0 | AD147: H2 | AE147: 0 | AF147: 0 | AG147: H2 | AH147: 0 | AI147: 0
A148: H2S | B148: 0 | C148: 0 | D148: H2S | E148: 0 | F148: 0 | G148: H2S | H148: 0 | I148: 0 | U148: H2S | V148: 0 | W148: 0 | AA148: H2S | AB148: 0 | AC148: 0 | AD148: H2S | AE148: 0 | AF148: 0 | AG148: H2S | AH148: 0 | AI148: 0
A149: NH3 | B149: 0 | C149: 0 | D149: NH3 | E149: 0 | F149: 0 | G149: NH3 | H149: 0 | I149: 0 | U149: NH3 | V149: 0 | W149: 0 | AA149: NH3 | AB149: 0 | AC149: 0 | AD149: NH3 | AE149: 0 | AF149: 0 | AG149: NH3 | AH149: 0 | AI149: 0
A150: SO2 | B150: 0 | C150: 0 | D150: SO2 | E150: 0 | F150: 0 | G150: SO2 | H150: 0 | I150: 0 | U150: SO2 | V150: 0 | W150: 0 | AA150: SO2 | AB150: 0 | AC150: 0 | AD150: SO2 | AE150: 0 | AF150: 0 | AG150: SO2 | AH150: 0 | AI150: 0
A151: SULFU-01 | B151: 0 | C151: 0 | D151: SULFU-01 | E151: 0 | F151: 0 | G151: SULFU-01 | H151: 0 | I151: 0 | U151: SULFU-01 | V151: 0 | W151: 0 | AA151: SULFU-01 | AB151: 0 | AC151: 0 | AD151: SULFU-01 | AE151: 0 | AF151: 0 | AG151: SULFU-01 | AH151: 0 | AI151: 0
A152: SO3 | B152: 0 | C152: 0 | D152: SO3 | E152: 0 | F152: 0 | G152: SO3 | H152: 0 | I152: 0 | U152: SO3 | V152: 0 | W152: 0 | AA152: SO3 | AB152: 0 | AC152: 0 | AD152: SO3 | AE152: 0 | AF152: 0 | AG152: SO3 | AH152: 0 | AI152: 0
A153: C | B153: 0 | C153: 0 | D153: C | E153: 0 | F153: 0 | G153: C | H153: 0 | I153: 0 | U153: C | V153: 0 | W153: 0 | AA153: C | AB153: 0 | AC153: 0 | AD153: C | AE153: 0 | AF153: 0 | AG153: C | AH153: 0 | AI153: 0
A154: S | B154: 0 | C154: 0 | D154: S | E154: 0 | F154: 0 | G154: S | H154: 0 | I154: 0 | U154: S | V154: 0 | W154: 0 | AA154: S | AB154: 0 | AC154: 0 | AD154: S | AE154: 0 | AF154: 0 | AG154: S | AH154: 0 | AI154: 0
A155: S2 | B155: 0 | C155: 0 | D155: S2 | E155: 0 | F155: 0 | G155: S2 | H155: 0 | I155: 0 | U155: S2 | V155: 0 | W155: 0 | AA155: S2 | AB155: 0 | AC155: 0 | AD155: S2 | AE155: 0 | AF155: 0 | AG155: S2 | AH155: 0 | AI155: 0
A156: S6 | B156: 0 | C156: 0 | D156: S6 | E156: 0 | F156: 0 | G156: S6 | H156: 0 | I156: 0 | U156: S6 | V156: 0 | W156: 0 | AA156: S6 | AB156: 0 | AC156: 0 | AD156: S6 | AE156: 0 | AF156: 0 | AG156: S6 | AH156: 0 | AI156: 0
A157: S8 | B157: 0 | C157: 0 | D157: S8 | E157: 0 | F157: 0 | G157: S8 | H157: 0 | I157: 0 | U157: S8 | V157: 0 | W157: 0 | AA157: S8 | AB157: 0 | AC157: 0 | AD157: S8 | AE157: 0 | AF157: 0 | AG157: S8 | AH157: 0 | AI157: 0
A158: HCL | B158: 0 | C158: 0 | D158: HCL | E158: 0 | F158: 0 | G158: HCL | H158: 0 | I158: 0 | U158: HCL | V158: 0 | W158: 0 | AA158: HCL | AB158: 0 | AC158: 0 | AD158: HCL | AE158: 0 | AF158: 0 | AG158: HCL | AH158: 0 | AI158: 0
A159: Mass Flow lb/hr | D159: Mass Flow lb/hr | G159: Mass Flow lb/hr | U159: Mass Flow lb/hr | AA159: Mass Flow lb/hr | AD159: Mass Flow lb/hr | AG159: Mass Flow lb/hr
A160: H2O | B160: 0 | C160: 0 | D160: H2O | E160: 0 | F160: 0 | G160: H2O | H160: 0 | I160: 0 | U160: H2O | V160: 0 | W160: 0 | AA160: H2O | AB160: 0 | AC160: 0 | AD160: H2O | AE160: 0 | AF160: 0 | AG160: H2O | AH160: 0 | AI160: 0
A161: AR | B161: 0 | C161: 0 | D161: AR | E161: 0 | F161: 0 | G161: AR | H161: 0 | I161: 0 | U161: AR | V161: 0 | W161: 0 | AA161: AR | AB161: 0 | AC161: 0 | AD161: AR | AE161: 0 | AF161: 0 | AG161: AR | AH161: 0 | AI161: 0
A162: CO2 | B162: 0 | C162: 0 | D162: CO2 | E162: 0 | F162: 0 | G162: CO2 | H162: 0 | I162: 0 | U162: CO2 | V162: 0 | W162: 0 | AA162: CO2 | AB162: 0 | AC162: 0 | AD162: CO2 | AE162: 0 | AF162: 0 | AG162: CO2 | AH162: 0 | AI162: 0
A163: O2 | B163: 0 | C163: 0 | D163: O2 | E163: 0 | F163: 0 | G163: O2 | H163: 0 | I163: 0 | U163: O2 | V163: 0 | W163: 0 | AA163: O2 | AB163: 0 | AC163: 0 | AD163: O2 | AE163: 0 | AF163: 0 | AG163: O2 | AH163: 0 | AI163: 0
A164: N2 | B164: 0 | C164: 0 | D164: N2 | E164: 0 | F164: 0 | G164: N2 | H164: 0 | I164: 0 | U164: N2 | V164: 0 | W164: 0 | AA164: N2 | AB164: 0 | AC164: 0 | AD164: N2 | AE164: 0 | AF164: 0 | AG164: N2 | AH164: 0 | AI164: 0
A165: CH4 | B165: 0 | C165: 0 | D165: CH4 | E165: 0 | F165: 0 | G165: CH4 | H165: 0 | I165: 0 | U165: CH4 | V165: 0 | W165: 0 | AA165: CH4 | AB165: 0 | AC165: 0 | AD165: CH4 | AE165: 0 | AF165: 0 | AG165: CH4 | AH165: 0 | AI165: 0
A166: CO | B166: 0 | C166: 0 | D166: CO | E166: 0 | F166: 0 | G166: CO | H166: 0 | I166: 0 | U166: CO | V166: 0 | W166: 0 | AA166: CO | AB166: 0 | AC166: 0 | AD166: CO | AE166: 0 | AF166: 0 | AG166: CO | AH166: 0 | AI166: 0
A167: COS | B167: 0 | C167: 0 | D167: COS | E167: 0 | F167: 0 | G167: COS | H167: 0 | I167: 0 | U167: COS | V167: 0 | W167: 0 | AA167: COS | AB167: 0 | AC167: 0 | AD167: COS | AE167: 0 | AF167: 0 | AG167: COS | AH167: 0 | AI167: 0
A168: H2 | B168: 0 | C168: 0 | D168: H2 | E168: 0 | F168: 0 | G168: H2 | H168: 0 | I168: 0 | U168: H2 | V168: 0 | W168: 0 | AA168: H2 | AB168: 0 | AC168: 0 | AD168: H2 | AE168: 0 | AF168: 0 | AG168: H2 | AH168: 0 | AI168: 0
A169: H2S | B169: 0 | C169: 0 | D169: H2S | E169: 0 | F169: 0 | G169: H2S | H169: 0 | I169: 0 | U169: H2S | V169: 0 | W169: 0 | AA169: H2S | AB169: 0 | AC169: 0 | AD169: H2S | AE169: 0 | AF169: 0 | AG169: H2S | AH169: 0 | AI169: 0
A170: NH3 | B170: 0 | C170: 0 | D170: NH3 | E170: 0 | F170: 0 | G170: NH3 | H170: 0 | I170: 0 | U170: NH3 | V170: 0 | W170: 0 | AA170: NH3 | AB170: 0 | AC170: 0 | AD170: NH3 | AE170: 0 | AF170: 0 | AG170: NH3 | AH170: 0 | AI170: 0
A171: SO2 | B171: 0 | C171: 0 | D171: SO2 | E171: 0 | F171: 0 | G171: SO2 | H171: 0 | I171: 0 | U171: SO2 | V171: 0 | W171: 0 | AA171: SO2 | AB171: 0 | AC171: 0 | AD171: SO2 | AE171: 0 | AF171: 0 | AG171: SO2 | AH171: 0 | AI171: 0
A172: SULFU-01 | B172: 0 | C172: 0 | D172: SULFU-01 | E172: 0 | F172: 0 | G172: SULFU-01 | H172: 0 | I172: 0 | U172: SULFU-01 | V172: 0 | W172: 0 | AA172: SULFU-01 | AB172: 0 | AC172: 0 | AD172: SULFU-01 | AE172: 0 | AF172: 0 | AG172: SULFU-01 | AH172: 0 | AI172: 0
A173: SO3 | B173: 0 | C173: 0 | D173: SO3 | E173: 0 | F173: 0 | G173: SO3 | H173: 0 | I173: 0 | U173: SO3 | V173: 0 | W173: 0 | AA173: SO3 | AB173: 0 | AC173: 0 | AD173: SO3 | AE173: 0 | AF173: 0 | AG173: SO3 | AH173: 0 | AI173: 0
A174: C | B174: 0 | C174: 0 | D174: C | E174: 0 | F174: 0 | G174: C | H174: 0 | I174: 0 | U174: C | V174: 0 | W174: 0 | AA174: C | AB174: 0 | AC174: 0 | AD174: C | AE174: 0 | AF174: 0 | AG174: C | AH174: 0 | AI174: 0
A175: S | B175: 0 | C175: 0 | D175: S | E175: 0 | F175: 0 | G175: S | H175: 0 | I175: 0 | U175: S | V175: 0 | W175: 0 | AA175: S | AB175: 0 | AC175: 0 | AD175: S | AE175: 0 | AF175: 0 | AG175: S | AH175: 0 | AI175: 0
A176: S2 | B176: 0 | C176: 0 | D176: S2 | E176: 0 | F176: 0 | G176: S2 | H176: 0 | I176: 0 | U176: S2 | V176: 0 | W176: 0 | AA176: S2 | AB176: 0 | AC176: 0 | AD176: S2 | AE176: 0 | AF176: 0 | AG176: S2 | AH176: 0 | AI176: 0
A177: S6 | B177: 0 | C177: 0 | D177: S6 | E177: 0 | F177: 0 | G177: S6 | H177: 0 | I177: 0 | U177: S6 | V177: 0 | W177: 0 | AA177: S6 | AB177: 0 | AC177: 0 | AD177: S6 | AE177: 0 | AF177: 0 | AG177: S6 | AH177: 0 | AI177: 0
A178: S8 | B178: 0 | C178: 0 | D178: S8 | E178: 0 | F178: 0 | G178: S8 | H178: 0 | I178: 0 | U178: S8 | V178: 0 | W178: 0 | AA178: S8 | AB178: 0 | AC178: 0 | AD178: S8 | AE178: 0 | AF178: 0 | AG178: S8 | AH178: 0 | AI178: 0
A179: HCL | B179: 0 | C179: 0 | D179: HCL | E179: 0 | F179: 0 | G179: HCL | H179: 0 | I179: 0 | U179: HCL | V179: 0 | W179: 0 | AA179: HCL | AB179: 0 | AC179: 0 | AD179: HCL | AE179: 0 | AF179: 0 | AG179: HCL | AH179: 0 | AI179: 0
A180: Mass Frac | D180: Mass Frac | G180: Mass Frac | U180: Mass Frac | AA180: Mass Frac | AD180: Mass Frac | AG180: Mass Frac
A181: H2O | D181: H2O | G181: H2O | U181: H2O | AA181: H2O | AD181: H2O | AG181: H2O
A182: AR | D182: AR | G182: AR | U182: AR | AA182: AR | AD182: AR | AG182: AR
A183: CO2 | D183: CO2 | G183: CO2 | U183: CO2 | AA183: CO2 | AD183: CO2 | AG183: CO2
A184: O2 | D184: O2 | G184: O2 | U184: O2 | AA184: O2 | AD184: O2 | AG184: O2
A185: N2 | D185: N2 | G185: N2 | U185: N2 | AA185: N2 | AD185: N2 | AG185: N2
A186: CH4 | D186: CH4 | G186: CH4 | U186: CH4 | AA186: CH4 | AD186: CH4 | AG186: CH4
A187: CO | D187: CO | G187: CO | U187: CO | AA187: CO | AD187: CO | AG187: CO
A188: COS | D188: COS | G188: COS | U188: COS | AA188: COS | AD188: COS | AG188: COS
A189: H2 | D189: H2 | G189: H2 | U189: H2 | AA189: H2 | AD189: H2 | AG189: H2
A190: H2S | D190: H2S | G190: H2S | U190: H2S | AA190: H2S | AD190: H2S | AG190: H2S
A191: NH3 | D191: NH3 | G191: NH3 | U191: NH3 | AA191: NH3 | AD191: NH3 | AG191: NH3
A192: SO2 | D192: SO2 | G192: SO2 | U192: SO2 | AA192: SO2 | AD192: SO2 | AG192: SO2
A193: SULFU-01 | D193: SULFU-01 | G193: SULFU-01 | U193: SULFU-01 | AA193: SULFU-01 | AD193: SULFU-01 | AG193: SULFU-01
A194: SO3 | D194: SO3 | G194: SO3 | U194: SO3 | AA194: SO3 | AD194: SO3 | AG194: SO3
A195: C | D195: C | G195: C | U195: C | AA195: C | AD195: C | AG195: C
A196: S | D196: S | G196: S | U196: S | AA196: S | AD196: S | AG196: S
A197: S2 | D197: S2 | G197: S2 | U197: S2 | AA197: S2 | AD197: S2 | AG197: S2
A198: S6 | D198: S6 | G198: S6 | U198: S6 | AA198: S6 | AD198: S6 | AG198: S6
A199: S8 | D199: S8 | G199: S8 | U199: S8 | AA199: S8 | AD199: S8 | AG199: S8
A200: HCL | D200: HCL | G200: HCL | U200: HCL | AA200: HCL | AD200: HCL | AG200: HCL
A201: Total Flow lbmol/hr | B201: 0 | C201: 0 | D201: Total Flow lbmol/hr | E201: 0 | F201: 0 | G201: Total Flow lbmol/hr | H201: 0 | I201: 0 | U201: Total Flow lbmol/hr | V201: 0 | W201: 0 | AA201: Total Flow lbmol/hr | AB201: 0 | AC201: 0 | AD201: Total Flow lbmol/hr | AE201: 0 | AF201: 0 | AG201: Total Flow lbmol/hr | AH201: 0 | AI201: 0
... 110 more rows

Sheet Supp Data 2 (hidden)
A1: Fuel Gas Ratio Calculation
A2: Fuel gas Out | H2: Mixed Gas in to FT
B3: 201S7 | C3: 204S21B | D3: 303S2 | E3: 301S1 | H3: 201S3
B4: A200M1 | C4: P308M1 | D4: P308M1 | E4: P308M1 | H4: P201F
B5: P201S6 | C5: P204S4 | D5: P303F | E5: P301F | H5: P201M1
B6: VAPOR | C6: VAPOR | D6: VAPOR | E6: VAPOR | H6: VAPOR
A8: Substream: MIXED | G8: Substream: MIXED | S8: Calculate the Fuel Product Ratios | AA8: Calculate Water output
A9: Mole Flow lbmol/hr | G9: Mole Flow lbmol/hr | K9: Fuel Gas Total Mole Flows | L9: Flow/H2 | S9: JetFuel | T9: Naphtha | AA9: Water 1 | AB9: Water 2 | AJ9: Calculate CO2 Flows | AT9: Calculate Fuel Gas Flow and Distribution | AZ9: Calculate LPG flow
A10: H2 | B10: 5.756224 | C10: 0.7561791 | D10: 0 | E10: 0 | G10: H2 | H10: 76729.02 | K10: =B10+D10+E10 -> 5.756224 | L10: =K10/$H$10 -> 7.502016838e-05 | M10: =$E$6* | N10: =CONCATENATE(M10,L10) -> =$E$6*7.50201683795779E-05 | S10: 0 | T10: 0 | U10: =S10/$H$14 -> 0 | V10: =T10/$H$14 -> 0 | W10: =$E$10* | X10: =CONCATENATE(W10,U10) -> =$E$10*0 | Y10: =CONCATENATE(W10,V10) -> =$E$10*0 | AA10: 0.02252455 | AB10: 0.00665393 | AC10: =AA10/$H$14 -> 2.75087807e-07 | AD10: =AB10/$H$14 -> 8.12631112e-08 | AE10: =$E$9* | AF10: =CONCATENATE(AE10,AC10) -> =$E$9*2.75087806973289E-07 | AG10: =CONCATENATE(AE10,AD10) -> =$E$9*8.1263111203277E-08 | AJ10: 0 | AK10: 0 | AL10: =AJ10/$H$14 -> 0 | AM10: =AK10/$H$14 -> 0 | AN10: =$E$9* | AO10: =CONCATENATE(AN10,AL10) -> =$E$9*0 | AP10: =CONCATENATE(AN10,AM10) -> =$E$9*0 | AT10: 1236.18041 | AU10: 2856.67793 | AV10: =CONCATENATE(AU10,AT10) -> 2856.677931236.18041 | AZ10: 0.7561791 | BA10: =AZ10/$S$101 -> 0.0002687808091 | BB10: =$P$96* | BC10: =CONCATENATE(BB10,BA10) -> =$P$96*0.000268780809118666
A11: N2 | B11: 2.624195 | C11: 0.5090249 | D11: 0 | E11: 0 | G11: N2 | H11: 8809.705 | K11: =B11+D11+E11 -> 2.624195 | L11: =K11/$H$10 -> 3.420081476e-05 | M11: =$E$6* | N11: =CONCATENATE(M11,L11) -> =$E$6*3.42008147634363E-05 | S11: 0 | T11: 0 | U11: =S11/$H$14 -> 0 | V11: 0 | W11: =$E$10* | X11: =$E$10*0 | Y11: =CONCATENATE(W11,V11) -> =$E$10*0 | AA11: 0.00455918 | AB11: 0.00289504 | AC11: =AA11/$H$14 -> 5.568035001e-08 | AD11: 3.535654229e-08 | AE11: =$E$9* | AF11: =CONCATENATE(AE11,AC11) -> =$E$9*5.56803500090558E-08 | AG11: =CONCATENATE(AE11,AD11) -> =$E$9*3.53565422927406E-08 | AJ11: 0 | AK11: 0 | AL11: =AJ11/$H$14 -> 0 | AM11: 0 | AN11: =$E$9* | AO11: =CONCATENATE(AN11,AL11) -> =$E$9*0 | AP11: =CONCATENATE(AN11,AM11) -> =$E$9*0 | AT11: 867.929612 | AU11: 2005.69055 | AZ11: 0.5090249 | BA11: =AZ11/$S$101 -> 0.0001809308463 | BB11: =$P$96* | BC11: =CONCATENATE(BB11,BA11) -> =$P$96*0.00018093084625527
A12: O2 | B12: 0 | C12: 0 | D12: 0 | E12: 0 | G12: O2 | H12: 0 | K12: 0 | L12: 0 | M12: =$E$6* | N12: =$E$6*0 | S12: 0 | T12: 0 | U12: 0 | V12: 0 | W12: =$E$10* | X12: =$E$10*0 | Y12: =$E$10*0 | AA12: 0 | AB12: 0 | AC12: 0 | AD12: 0 | AE12: =$E$9* | AF12: =$E$9*0 | AG12: =$E$9*0 | AJ12: 0 | AK12: 0 | AL12: 0 | AM12: 0 | AN12: =$E$9* | AO12: =$E$9*0 | AP12: =$E$9*0 | AT12: 0 | AU12: 0 | AZ12: 0 | BA12: 0 | BB12: =$P$96* | BC12: =$P$96*0
A13: H2S | B13: 2.78464e-07 | C13: 1.64007e-07 | D13: 0 | E13: 0 | G13: H2S | H13: 0.000415786 | K13: 2.78464e-07 | L13: 3.629187496e-12 | M13: =$E$6* | N13: =$E$6*3.62918749646483E-12 | S13: 0 | T13: 0 | U13: 0 | V13: 0 | W13: =$E$10* | X13: =$E$10*0 | Y13: =$E$10*0 | AA13: 5.456e-07 | AB13: 0 | AC13: 6.663303262e-12 | AD13: 0 | AE13: =$E$9* | AF13: =$E$9*6.66330326175778E-12 | AG13: =$E$9*0 | AJ13: 0 | AK13: 0 | AL13: 0 | AM13: 0 | AN13: =$E$9* | AO13: =$E$9*0 | AP13: =$E$9*0 | AT13: 0 | AU13: 0 | AZ13: 1.6401e-07 | BA13: 5.829669255e-11 | BB13: =$P$96* | BC13: =$P$96*5.82966925475096E-11
A14: CO | B14: 0.797695 | C14: 0.1490233 | D14: 0 | E14: 0 | G14: CO | H14: 81881.31 | K14: 0.797695 | L14: 1.039626207e-05 | M14: =$E$6* | N14: =$E$6*1.03962620661648E-05 | S14: 0 | T14: 0 | U14: 0 | V14: 0 | W14: =$E$10* | X14: =$E$10*0 | Y14: =$E$10*0 | AA14: 0.00114365 | AB14: 0.00061317 | AC14: 1.396716784e-08 | AD14: 7.488522106e-09 | AE14: =$E$9* | AF14: =$E$9*1.39671678433088E-08 | AG14: =$E$9*7.48852210596045E-09 | AJ14: 0 | AK14: 0 | AL14: 0 | AM14: 0 | AN14: =$E$9* | AO14: =$E$9*0 | AP14: =$E$9*0 | AT14: 228.889682 | AU14: 528.939059 | AZ14: 0.14902335 | BA14: 5.296974829e-05 | BB14: =$P$96* | BC14: =$P$96*5.29697482918719E-05
A15: CO2 | B15: 19.73487 | C15: 7.774214 | D15: 0 | E15: 0 | G15: CO2 | H15: 1399.639 | K15: 19.73487 | L15: 0.0002572021642 | M15: =$E$6* | N15: =$E$6*0.000257202164187683 | S15: 0 | T15: 0 | U15: =S15/$H$14 -> 0 | V15: =T15/$H$14 -> 0 | W15: =$E$10* | X15: =$E$10*0 | Y15: =$E$10*0 | AA15: 3.6428266 | AB15: 0.10692469 | AC15: 4.448910991e-05 | AD15: 1.305849772e-06 | AE15: =$E$9* | AF15: =$E$9*4.44891099079876E-05 | AG15: =$E$9*1.30584977206642E-06 | AJ15: 37863.4983 | AK15: 1199.03874 | AL15: 0.462419303 | AM15: 0.0146436194 | AN15: =$E$9* | AO15: =$E$9*0.462419303013105 | AP15: =$E$9*0.0146436194047213 | AT15: 1.81984869 | AU15: 4.20547123 | AZ15: 7.77421401 | BA15: 0.002763312993 | BB15: =$P$96* | BC15: =$P$96*0.00276331299274137
A16: H2O | B16: 0.3898164 | C16: 9.298647 | D16: 0 | E16: 0 | G16: H2O | H16: 9004.714898 | K16: 0.3898164 | L16: 5.080429803e-06 | M16: =$E$6* | N16: =$E$6*5.08042980348244E-06 | S16: 0 | T16: 0 | U16: 0 | V16: 0 | W16: =$E$10* | X16: =$E$10*0 | Y16: =$E$10*0 | AA16: 14157.4888 | AB16: 4070.98705 | AC16: 0.1729025684 | AD16: 0.04971814752 | AE16: =$E$9* | AF16: =$E$9*0.172902568363892 | AG16: =$E$9*0.0497181475235313 | AJ16: 0 | AK16: 0 | AL16: 0 | AM16: 0 | AN16: =$E$9* | AO16: =$E$9*0 | AP16: =$E$9*0 | AT16: 11.6248041 | AU16: 24.5202913 | AZ16: 9.29864701 | BA16: 0.00330516655 | BB16: =$P$96* | BC16: =$P$96*0.00330516654990421
A17: NH3 | B17: 0 | C17: 0 | D17: 0 | E17: 0 | G17: NH3 | H17: 0 | K17: 0 | L17: 0 | M17: =$E$6* | N17: =$E$6*0 | S17: 0 | T17: 0 | U17: 0 | V17: 0 | W17: =$E$10* | X17: =$E$10*0 | Y17: =$E$10*0 | AA17: 0 | AB17: 12.1194135 | AC17: 0 | AD17: 0.0001480119639 | AE17: =$E$9* | AF17: =$E$9*0 | AG17: =$E$9*0.000148011963902385 | AJ17: 0 | AK17: 0 | AL17: 0 | AM17: 0 | AN17: =$E$9* | AO17: =$E$9*0 | AP17: =$E$9*0 | AT17: 1.10193957 | AU17: 2.53827303 | AZ17: 0 | BA17: 0 | BB17: =$P$96* | BC17: =$P$96*0
A18: HCL | B18: 0 | C18: 0 | D18: 0 | E18: 0 | G18: HCL | H18: 0 | K18: 0 | L18: 0 | M18: =$E$6* | N18: =$E$6*0 | S18: 0 | T18: 0 | U18: 0 | V18: 0 | W18: =$E$10* | X18: =$E$10*0 | Y18: =$E$10*0 | AA18: 0 | AB18: 0 | AC18: 0 | AD18: 0 | AE18: =$E$9* | AF18: =$E$9*0 | AG18: =$E$9*0 | AJ18: 0 | AK18: 0 | AL18: 0 | AM18: 0 | AN18: =$E$9* | AO18: =$E$9*0 | AP18: =$E$9*0 | AT18: 0 | AU18: 0 | AZ18: 0 | BA18: 0 | BB18: =$P$96* | BC18: =$P$96*0
A19: C | B19: 0 | C19: 0 | D19: 0 | E19: 0 | G19: C | H19: 0 | K19: 0 | L19: 0 | M19: =$E$6* | N19: =$E$6*0 | S19: 0 | T19: 0 | U19: 0 | V19: 0 | W19: =$E$10* | X19: =$E$10*0 | Y19: =$E$10*0 | AA19: 0 | AB19: 0 | AC19: 0 | AD19: 0 | AE19: =$E$9* | AF19: =$E$9*0 | AG19: =$E$9*0 | AJ19: 0 | AK19: 0 | AL19: 0 | AM19: 0 | AN19: =$E$9* | AO19: =$E$9*0 | AP19: =$E$9*0 | AT19: 0 | AU19: 0 | AZ19: 0 | BA19: 0 | BB19: =$P$96* | BC19: =$P$96*0
A20: HCN | B20: 0 | C20: 0 | D20: 0 | E20: 0 | G20: HCN | H20: 0 | K20: 0 | L20: 0 | M20: =$E$6* | N20: =$E$6*0 | S20: 0 | T20: 0 | U20: 0 | V20: 0 | W20: =$E$10* | X20: =$E$10*0 | Y20: =$E$10*0 | AA20: 0 | AB20: 6.0839e-06 | AC20: 0 | AD20: 7.430144926e-11 | AE20: =$E$9* | AF20: =$E$9*0 | AG20: =$E$9*7.43014492562466E-11 | AJ20: 0 | AK20: 0 | AL20: 0 | AM20: 0 | AN20: =$E$9* | AO20: =$E$9*0 | AP20: =$E$9*0 | AT20: 0.00417389 | AU20: 0.0096454 | AZ20: 0 | BA20: 0 | BB20: =$P$96* | BC20: =$P$96*0
A21: SULFUR | B21: 0 | C21: 0 | D21: 0 | E21: 0 | G21: SULFUR | H21: 0 | K21: 0 | L21: 0 | M21: =$E$6* | N21: =$E$6*0 | S21: 0 | T21: 0 | U21: 0 | V21: 0 | W21: =$E$10* | X21: =$E$10*0 | Y21: =$E$10*0 | AA21: 0 | AB21: 0 | AC21: 0 | AD21: 0 | AE21: =$E$9* | AF21: =$E$9*0 | AG21: =$E$9*0 | AJ21: 0 | AK21: 0 | AL21: 0 | AM21: 0 | AN21: =$E$9* | AO21: =$E$9*0 | AP21: =$E$9*0 | AT21: 0 | AU21: 0 | AZ21: 0 | BA21: 0 | BB21: =$P$96* | BC21: =$P$96*0
A22: COS | B22: 0 | C22: 0 | D22: 0 | E22: 0 | G22: COS | H22: 0 | K22: 0 | L22: 0 | M22: =$E$6* | N22: =$E$6*0 | S22: 0 | T22: 0 | U22: 0 | V22: 0 | W22: =$E$10* | X22: =$E$10*0 | Y22: =$E$10*0 | AA22: 0 | AB22: 0 | AC22: 0 | AD22: 0 | AE22: =$E$9* | AF22: =$E$9*0 | AG22: =$E$9*0 | AJ22: 0 | AK22: 0 | AL22: 0 | AM22: 0 | AN22: =$E$9* | AO22: =$E$9*0 | AP22: =$E$9*0 | AT22: 0 | AU22: 0 | AZ22: 0 | BA22: 0 | BB22: =$P$96* | BC22: =$P$96*0
A23: CH4 | B23: 1.19635 | C23: 0.3480743 | D23: 29.90588 | E23: 8.55379 | G23: CH4 | H23: 2015.015 | K23: 39.65602 | L23: 0.000516832093 | M23: =$E$6* | N23: =$E$6*0.00051683209299428 | S23: 0 | T23: 0 | U23: 0 | V23: 0 | W23: =$E$10* | X23: =$E$10*0 | Y23: =$E$10*0 | AA23: 0.01244423 | AB23: 0.03861531 | AC23: 1.519788826e-07 | AD23: 4.716010284e-07 | AE23: =$E$9* | AF23: =$E$9*1.51978882604589E-07 | AG23: =$E$9*4.71601028366547E-07 | AJ23: 0 | AK23: 0 | AL23: 0 | AM23: 0 | AN23: =$E$9* | AO23: =$E$9*0 | AP23: =$E$9*0 | AT23: 1401.21688 | AU23: 3238.05917 | AZ23: 0.34807431 | BA23: 0.0001237216086 | BB23: =$P$96* | BC23: =$P$96*0.00012372160864433
A24: C2H4 | B24: 0.6055797 | C24: 3.066218 | D24: 0 | E24: 0 | G24: C2H4 | H24: 728.3391 | K24: 0.6055797 | L24: 7.892446691e-06 | M24: =$E$6* | N24: =$E$6*7.89244669096517E-06 | S24: 0 | T24: 0 | U24: 0 | V24: 0 | W24: =$E$10* | X24: =$E$10*0 | Y24: =$E$10*0 | AA24: 0.00690962 | AB24: 1.7632e-07 | AC24: 8.438580184e-08 | AD24: 2.153360761e-12 | AE24: =$E$9* | AF24: =$E$9*8.4385801839272E-08 | AG24: =$E$9*2.15336076083785E-12 | AJ24: 0 | AK24: 0 | AL24: 0 | AM24: 0 | AN24: =$E$9* | AO24: =$E$9*0 | AP24: =$E$9*0 | AT24: 0.00422174 | AU24: 0.00975598 | AZ24: 3.06621816 | BA24: 0.00108987487 | BB24: =$P$96* | BC24: =$P$96*0.00108987486956351
A25: C2H6 | B25: 0.1481668 | C25: 15.03627 | D25: 41.09071 | E25: 4.56361 | G25: C2H6 | H25: 152.2978 | K25: 45.8024868 | L25: 0.0005969382484 | M25: =$E$6* | N25: =$E$6*0.00059693824839676 | S25: 0 | T25: 0 | U25: 0 | V25: 0 | W25: =$E$10* | X25: =$E$10*0 | Y25: =$E$10*0 | AA25: 0.00103982 | AB25: 5.1232e-06 | AC25: 1.26991129e-08 | AD25: 6.256861303e-11 | AE25: =$E$9* | AF25: =$E$9*1.26991128989021E-08 | AG25: =$E$9*6.25686130326933E-11 | AJ25: 0 | AK25: 0 | AL25: 0 | AM25: 0 | AN25: =$E$9* | AO25: =$E$9*0 | AP25: =$E$9*0 | AT25: 0.18221023 | AU25: 0.42106793 | AZ25: 15.0362745 | BA25: 0.005344583084 | BB25: =$P$96* | BC25: =$P$96*0.00534458308387573
A26: C3H6 | B26: 0.2561052 | C26: 306.9828 | D26: 0 | E26: 0 | G26: C3H6 | H26: 15.95843 | K26: 0.2561052 | L26: 3.337787971e-06 | M26: =$E$6* | N26: =$E$6*3.33778797122653E-06 | S26: 0 | T26: 0 | U26: 0 | V26: 0 | W26: =$E$10* | X26: =$E$10*0 | Y26: =$E$10*0 | AA26: 0.0006699 | AB26: 2.1334e-10 | AC26: 8.181354206e-09 | AD26: 2.605478588e-15 | AE26: =$E$9* | AF26: =$E$9*8.18135420647276E-09 | AG26: =$E$9*2.60547858845932E-15 | AJ26: 0 | AK26: 0 | AL26: 0 | AM26: 0 | AN26: =$E$9* | AO26: =$E$9*0 | AP26: =$E$9*0 | AT26: 1.5748e-05 | AU26: 3.6393e-05 | AZ26: 306.98284 | BA26: 0.1091158115 | BB26: =$P$96* | BC26: =$P$96*0.10911581148004
A27: C3H8 | B27: 0.0461361 | C27: 54.52741 | D27: 38.01609 | E27: 93.27261 | G27: C3H8 | H27: 2.075374 | K27: 131.3348361 | L27: 0.00171167097 | M27: =$E$6* | N27: =$E$6*0.00171167097012317 | S27: 0 | T27: 0 | U27: 0 | V27: 0 | W27: =$E$10* | X27: =$E$10*0 | Y27: =$E$10*0 | AA27: 3.0839e-05 | AB27: 2.4115e-10 | AC27: 3.766305156e-10 | AD27: 2.945116535e-15 | AE27: =$E$9* | AF27: =$E$9*3.76630515559656E-10 | AG27: =$E$9*2.94511653514093E-15 | AJ27: 0 | AK27: 0 | AL27: 0 | AM27: 0 | AN27: =$E$9* | AO27: =$E$9*0 | AP27: =$E$9*0 | AT27: 6.7327e-05 | AU27: 0.00015558 | AZ27: 54.5274099 | BA27: 0.01938154777 | BB27: =$P$96* | BC27: =$P$96*0.0193815477736256
A28: IC4H8 | B28: 0.0118114 | C28: 12.32829 | D28: 0 | E28: 0 | G28: IC4H8 | H28: 0.0469225 | K28: 0.0118114 | L28: 1.539365419e-07 | M28: =$E$6* | N28: =$E$6*1.53936541871641E-07 | S28: 0 | T28: 0 | U28: 0 | V28: 0 | W28: =$E$10* | X28: =$E$10*0 | Y28: =$E$10*0 | AA28: 2.1583e-06 | AB28: 1.5382e-14 | AC28: 2.635888459e-11 | AD28: 1.878572778e-19 | AE28: =$E$9* | AF28: =$E$9*2.63588845855055E-11 | AG28: =$E$9*1.87857277808574E-19 | AJ28: 0 | AK28: 0 | AL28: 0 | AM28: 0 | AN28: =$E$9* | AO28: =$E$9*0 | AP28: =$E$9*0 | AT28: 1.2413e-08 | AU28: 2.8685e-08 | AZ28: 12.3282879 | BA28: 0.004382040176 | BB28: =$P$96* | BC28: =$P$96*0.00438204017647389
A29: NC4H8 | B29: 0.2256455 | C29: 234.1597 | D29: 0 | E29: 0 | G29: NC4H8 | H29: 0.8581759 | K29: 0.2256455 | L29: 2.9408104e-06 | M29: =$E$6* | N29: =$E$6*2.94081040002857E-06 | S29: 0 | T29: 0 | U29: 0 | V29: 0 | W29: =$E$10* | X29: =$E$10*0 | Y29: =$E$10*0 | AA29: 4.666e-05 | AB29: 7.8512e-15 | AC29: 5.698492122e-10 | AD29: 9.588512934e-20 | AE29: =$E$9* | AF29: =$E$9*5.69849212231705E-10 | AG29: =$E$9*9.58851293414822E-20 | AJ29: 0 | AK29: 0 | AL29: 0 | AM29: 0 | AN29: =$E$9* | AO29: =$E$9*0 | AP29: =$E$9*0 | AT29: 5.6146e-09 | AU29: 1.2975e-08 | AZ29: 234.159727 | BA29: 0.08323112988 | BB29: =$P$96* | BC29: =$P$96*0.0832311298818839
A30: IC4H10 | B30: 0.00293503 | C30: 3.077185 | D30: 21.2579 | E30: 93.70987 | G30: IC4H10 | H30: 0.0166637 | K30: 114.970705 | L30: 0.001498399237 | M30: =$E$6* | N30: =$E$6*0.00149839923708135 | S30: 0 | T30: 0 | U30: 0 | V30: 0 | W30: =$E$10* | X30: =$E$10*0 | Y30: =$E$10*0 | AA30: 6.5975e-08 | AB30: 2.5567e-15 | AC30: 8.057394294e-13 | AD30: 3.12244638e-20 | AE30: =$E$9* | AF30: =$E$9*8.05739429425347E-13 | AG30: =$E$9*3.12244638001029E-20 | AJ30: 0 | AK30: 0 | AL30: 0 | AM30: 0 | AN30: =$E$9* | AO30: =$E$9*0 | AP30: =$E$9*0 | AT30: 1.7197e-08 | AU30: 3.9741e-08 | AZ30: 3.0771854 | BA30: 0.001093773131 | BB30: =$P$96* | BC30: =$P$96*0.00109377313075718
A31: NC4H10 | B31: 0.0583581 | C31: 58.51356 | D31: 20.5875 | E31: 97.25424 | G31: NC4H10 | H31: 0.2707582 | K31: 117.9000981 | L31: 0.001536577661 | M31: =$E$6* | N31: =$E$6*0.00153657766122909 | S31: 0 | T31: 0 | U31: 0 | V31: 0 | W31: =$E$10* | X31: =$E$10*0 | Y31: =$E$10*0 | AA31: 3.3089e-06 | AB31: 1.4743e-14 | AC31: 4.041093138e-11 | AD31: 1.800532991e-19 | AE31: =$E$9* | AF31: =$E$9*4.04109313834867E-11 | AG31: =$E$9*1.80053299098415E-19 | AJ31: 0 | AK31: 0 | AL31: 0 | AM31: 0 | AN31: =$E$9* | AO31: =$E$9*0 | AP31: =$E$9*0 | AT31: 3.7062e-08 | AU31: 8.5647e-08 | AZ31: 58.5135556 | BA31: 0.02079840717 | BB31: =$P$96* | BC31: =$P$96*0.0207984071744089
A32: C5H10 | B32: 0.2107998 | C32: 0 | D32: 0 | E32: 0 | G32: C5H10 | H32: 0.0611686 | K32: 0.2107998 | L32: 2.747328195e-06 | M32: =$E$6* | N32: =$E$6*2.74732819472997E-06 | S32: 0 | T32: 0 | U32: 0 | V32: 0 | W32: =$E$10* | X32: =$E$10*0 | Y32: =$E$10*0 | AA32: 6.3777e-05 | AB32: 0 | AC32: 7.788956967e-10 | AD32: 0 | AE32: =$E$9* | AF32: =$E$9*7.78895696710275E-10 | AG32: =$E$9*0 | AJ32: 0 | AK32: 0 | AL32: 0 | AM32: 0 | AN32: =$E$9* | AO32: =$E$9*0 | AP32: =$E$9*0 | AT32: 0 | AU32: 0 | AZ32: 0 | BA32: 0 | BB32: =$P$96* | BC32: =$P$96*0
A33: NC5H12 | B33: 0.0670879 | C33: 0 | D33: 0 | E33: 0 | G33: NC5H12 | H33: 0.0117241 | K33: 0.0670879 | L33: 8.743484538e-07 | M33: =$E$6* | N33: =$E$6*8.74348453818386E-07 | S33: 0 | T33: 0 | U33: 0 | V33: 0 | W33: =$E$10* | X33: =$E$10*0 | Y33: =$E$10*0 | AA33: 1.3994e-07 | AB33: 2.6189e-19 | AC33: 1.709059125e-12 | AD33: 3.198409991e-24 | AE33: =$E$9* | AF33: =$E$9*1.70905912472578E-12 | AG33: =$E$9*3.1984099912422E-24 | AJ33: 0 | AK33: 0 | AL33: 0 | AM33: 0 | AN33: =$E$9* | AO33: =$E$9*0 | AP33: =$E$9*0 | AT33: 1.3144e-11 | AU33: 3.0373e-11 | AZ33: 0 | BA33: 0 | BB33: =$P$96* | BC33: =$P$96*0
A34: IC5H12 | B34: 0.00726216 | C34: 0 | D34: 0 | E34: 0 | G34: IC5H12 | H34: 0.00276122 | K34: 0.00726216 | L34: 9.464684939e-08 | M34: =$E$6* | N34: =$E$6*9.46468493928373E-08 | S34: 0 | T34: 0 | U34: 0 | V34: 0 | W34: =$E$10* | X34: =$E$10*0 | Y34: =$E$10*0 | AA34: 2.0315e-08 | AB34: 4.7873e-19 | AC34: 2.481030164e-13 | AD34: 5.846633377e-24 | AE34: =$E$9* | AF34: =$E$9*2.4810301642707E-13 | AG34: =$E$9*5.84663337701852E-24 | AJ34: 0 | AK34: 0 | AL34: 0 | AM34: 0 | AN34: =$E$9* | AO34: =$E$9*0 | AP34: =$E$9*0 | AT34: 1.9393e-11 | AU34: 4.4816e-11 | AZ34: 0 | BA34: 0 | BB34: =$P$96* | BC34: =$P$96*0
A35: C6H12 | B35: 0.2046386 | C35: 0 | D35: 0 | E35: 0 | G35: C6H12 | H35: 0.00313005 | K35: 0.2046386 | L35: 2.667030023e-06 | M35: =$E$6* | N35: =$E$6*2.66703002332103E-06 | S35: 0 | T35: 0 | U35: 0 | V35: 0 | W35: =$E$10* | X35: =$E$10*0 | Y35: =$E$10*0 | AA35: 5.3716e-08 | AB35: 0 | AC35: 6.560227236e-13 | AD35: 0 | AE35: =$E$9* | AF35: =$E$9*6.56022723622766E-13 | AG35: =$E$9*0 | AJ35: 0 | AK35: 0 | AL35: 0 | AM35: 0 | AN35: =$E$9* | AO35: =$E$9*0 | AP35: =$E$9*0 | AT35: 0 | AU35: 0 | AZ35: 0 | BA35: 0 | BB35: =$P$96* | BC35: =$P$96*0
A36: NC6H14 | B36: 0.0627162 | C36: 0 | D36: 0 | E36: 0 | G36: NC6H14 | H36: 0.000631781 | K36: 0.0627162 | L36: 8.173726186e-07 | M36: =$E$6* | N36: =$E$6*8.17372618599846E-07 | S36: 0 | T36: 0 | U36: 0 | V36: 0 | W36: =$E$10* | X36: =$E$10*0 | Y36: =$E$10*0 | AA36: 2.9454e-09 | AB36: 0 | AC36: 3.597157886e-14 | AD36: 0 | AE36: =$E$9* | AF36: =$E$9*3.59715788621359E-14 | AG36: =$E$9*0 | AJ36: 0 | AK36: 0 | AL36: 0 | AM36: 0 | AN36: =$E$9* | AO36: =$E$9*0 | AP36: =$E$9*0 | AT36: 0 | AU36: 0 | AZ36: 0 | BA36: 0 | BB36: =$P$96* | BC36: =$P$96*0
A37: IC6H14 | B37: 0.00677864 | C37: 0 | D37: 0 | E37: 0 | G37: IC6H14 | H37: 0.00015397 | K37: 0.00677864 | L37: 8.834519195e-08 | M37: =$E$6* | N37: =$E$6*8.83451919495388E-08 | S37: 0 | T37: 0 | U37: 0 | V37: 0 | W37: =$E$10* | X37: =$E$10*0 | Y37: =$E$10*0 | AA37: 3.0197e-10 | AB37: 0 | AC37: 3.687898985e-15 | AD37: 0 | AE37: =$E$9* | AF37: =$E$9*3.68789898451796E-15 | AG37: =$E$9*0 | AJ37: 0 | AK37: 0 | AL37: 0 | AM37: 0 | AN37: =$E$9* | AO37: =$E$9*0 | AP37: =$E$9*0 | AT37: 0 | AU37: 0 | AZ37: 0 | BA37: 0 | BB37: =$P$96* | BC37: =$P$96*0
A38: C7H14 | B38: 0.1732706 | C38: 0 | D38: 0 | E38: 0 | G38: C7H14 | H38: 8.52966e-05 | K38: 0.1732706 | L38: 2.258214689e-06 | M38: =$E$6* | N38: =$E$6*2.25821468852333E-06 | S38: 0 | T38: 0 | U38: 0 | V38: 0 | W38: =$E$10* | X38: =$E$10*0 | Y38: =$E$10*0 | AA38: 7.0989e-10 | AB38: 0 | AC38: 8.669744048e-15 | AD38: 0 | AE38: =$E$9* | AF38: =$E$9*8.66974404781751E-15 | AG38: =$E$9*0 | AJ38: 0 | AK38: 0 | AL38: 0 | AM38: 0 | AN38: =$E$9* | AO38: =$E$9*0 | AP38: =$E$9*0 | AT38: 0 | AU38: 0 | AZ38: 0 | BA38: 0 | BB38: =$P$96* | BC38: =$P$96*0
A39: C7H16 | B39: 0.0753488 | C39: 0 | D39: 0 | E39: 0 | G39: C7H16 | H39: 4.46324e-05 | K39: 0.0753488 | L39: 9.820117603e-07 | M39: =$E$6* | N39: =$E$6*9.82011760348301E-07 | S39: 0 | T39: 0 | U39: 0 | V39: 0 | W39: =$E$10* | X39: =$E$10*0 | Y39: =$E$10*0 | AA39: 6.275e-11 | AB39: 0 | AC39: 7.663531519e-16 | AD39: 0 | AE39: =$E$9* | AF39: =$E$9*7.66353151897545E-16 | AG39: =$E$9*0 | AJ39: 0 | AK39: 0 | AL39: 0 | AM39: 0 | AN39: =$E$9* | AO39: =$E$9*0 | AP39: =$E$9*0 | AT39: 0 | AU39: 0 | AZ39: 0 | BA39: 0 | BB39: =$P$96* | BC39: =$P$96*0
A40: C8H16 | B40: 0.1525707 | C40: 0 | D40: 0 | E40: 0 | G40: C8H16 | H40: 4.38731e-06 | K40: 0.1525707 | L40: 1.988435406e-06 | M40: =$E$6* | N40: =$E$6*1.98843540553496E-06 | S40: 0 | T40: 0 | U40: 0 | V40: 0 | W40: =$E$10* | X40: =$E$10*0 | Y40: =$E$10*0 | AA40: 1.1372e-11 | AB40: 0 | AC40: 1.388839529e-16 | AD40: 0 | AE40: =$E$9* | AF40: =$E$9*1.38883952882532E-16 | AG40: =$E$9*0 | AJ40: 0 | AK40: 0 | AL40: 0 | AM40: 0 | AN40: =$E$9* | AO40: =$E$9*0 | AP40: =$E$9*0 | AT40: 0 | AU40: 0 | AZ40: 0 | BA40: 0 | BB40: =$P$96* | BC40: =$P$96*0
A41: C8H18 | B41: 0.0657011 | C41: 0 | D41: 0 | E41: 0 | G41: C8H18 | H41: 1.35272e-06 | K41: 0.0657011 | L41: 8.562744578e-07 | M41: =$E$6* | N41: =$E$6*8.56274457825735E-07 | S41: 0 | T41: 0 | U41: 0 | V41: 0 | W41: =$E$10* | X41: =$E$10*0 | Y41: =$E$10*0 | AA41: 3.7181e-13 | AB41: 0 | AC41: 4.540840883e-18 | AD41: 0 | AE41: =$E$9* | AF41: =$E$9*4.5408408829805E-18 | AG41: =$E$9*0 | AJ41: 0 | AK41: 0 | AL41: 0 | AM41: 0 | AN41: =$E$9* | AO41: =$E$9*0 | AP41: =$E$9*0 | AT41: 0 | AU41: 0 | AZ41: 0 | BA41: 0 | BB41: =$P$96* | BC41: =$P$96*0
A42: C9H18 | B42: 0.1318808 | C42: 0 | D42: 0 | E42: 0 | G42: C9H18 | H42: 1.34754e-07 | K42: 0.1318808 | L42: 1.718786451e-06 | M42: =$E$6* | N42: =$E$6*1.71878645133223E-06 | S42: 0 | T42: 0 | U42: 0 | V42: 0 | W42: =$E$10* | X42: =CONCATENATE(W42,U42) -> =$E$10*0 | Y42: =$E$10*0 | AA42: 1.6103e-14 | AB42: 0 | AC42: 1.966627061e-19 | AD42: 0 | AE42: =$E$9* | AF42: =$E$9*1.96662706055875E-19 | AG42: =$E$9*0 | AJ42: 0 | AK42: 0 | AL42: 0 | AM42: 0 | AN42: =$E$9* | AO42: =$E$9*0 | AP42: =$E$9*0 | AT42: 0 | AU42: 0 | AZ42: 0 | BA42: 0 | BB42: =$P$96* | BC42: =$P$96*0
A43: C9H20 | B43: 0.0567266 | C43: 0 | D43: 0 | E43: 0 | G43: C9H20 | H43: 3.11414e-08 | K43: 0.0567266 | L43: 7.393108892e-07 | M43: =$E$6* | N43: =$E$6*7.39310889152501E-07 | S43: 0 | T43: 0 | U43: 0 | V43: 0 | W43: =$E$10* | X43: =$E$10*0 | Y43: =$E$10*0 | AA43: 2.1091e-15 | AB43: 0 | AC43: 2.575801486e-20 | AD43: 0 | AE43: =$E$9* | AF43: =$E$9*2.57580148632209E-20 | AG43: =$E$9*0 | AJ43: 0 | AK43: 0 | AL43: 0 | AM43: 0 | AN43: =$E$9* | AO43: =$E$9*0 | AP43: =$E$9*0 | AT43: 0 | AU43: 0 | AZ43: 0 | BA43: 0 | BB43: =$P$96* | BC43: =$P$96*0
A44: C10H20 | B44: 0.1120787 | C44: 0 | D44: 0 | E44: 0 | G44: C10H20 | H44: 1.95251e-09 | K44: 0.1120787 | L44: 1.460708087e-06 | M44: =$E$6* | N44: =$E$6*1.46070808671869E-06 | S44: 0 | T44: 0 | U44: 0 | V44: 0 | W44: =$E$10* | X44: =$E$10*0 | Y44: =$E$10*0 | AA44: 3.5545e-16 | AB44: 0 | AC44: 4.341039488e-21 | AD44: 0 | AE44: =$E$9* | AF44: =$E$9*4.34103948752163E-21 | AG44: =$E$9*0 | AJ44: 0 | AK44: 0 | AL44: 0 | AM44: 0 | AN44: =$E$9* | AO44: =$E$9*0 | AP44: =$E$9*0 | AT44: 0 | AU44: 0 | AZ44: 0 | BA44: 0 | BB44: =$P$96* | BC44: =$P$96*0
A45: C10H22 | B45: 0.0484697 | C45: 0 | D45: 0 | E45: 0 | G45: C10H22 | H45: 1.19512e-09 | K45: 0.0484697 | L45: 6.316997141e-07 | M45: =$E$6* | N45: =$E$6*6.31699714136842E-07 | S45: 0 | T45: 0 | U45: 0 | V45: 0 | W45: =$E$10* | X45: =$E$10*0 | Y45: =$E$10*0 | AA45: 4.782e-18 | AB45: 0 | AC45: 5.840160593e-23 | AD45: 0 | AE45: =$E$9* | AF45: =$E$9*5.8401605934248E-23 | AG45: =$E$9*0 | AJ45: 0 | AK45: 0 | AL45: 0 | AM45: 0 | AN45: =$E$9* | AO45: =$E$9*0 | AP45: =$E$9*0 | AT45: 0 | AU45: 0 | AZ45: 0 | BA45: 0 | BB45: =$P$96* | BC45: =$P$96*0
A46: C11H22 | B46: 0.0939281 | C46: 0 | D46: 0 | E46: 0 | G46: C11H22 | H46: 5.6765e-11 | K46: 0.0939281 | L46: 1.224153521e-06 | M46: =$E$6* | N46: =$E$6*1.2241535210537E-06 | S46: 0 | T46: 0 | U46: 0 | V46: 0 | W46: =$E$10* | X46: =$E$10*0 | Y46: =$E$10*0 | AA46: 1.557e-19 | AB46: 0 | AC46: 1.901532841e-24 | AD46: 0 | AE46: =$E$9* | AF46: =$E$9*1.90153284064459E-24 | AG46: =$E$9*0 | AJ46: 0 | AK46: 0 | AL46: 0 | AM46: 0 | AN46: =$E$9* | AO46: =$E$9*0 | AP46: =$E$9*0 | AT46: 0 | AU46: 0 | AZ46: 0 | BA46: 0 | BB46: =$P$96* | BC46: =$P$96*0
A47: C11H24 | B47: 0.0402103 | C47: 0 | D47: 0 | E47: 0 | G47: C11H24 | H47: 2.4591e-11 | K47: 0.0402103 | L47: 5.240559569e-07 | M47: =$E$6* | N47: =$E$6*5.24055956924772E-07 | S47: 0 | T47: 0 | U47: 0 | V47: 0 | W47: =$E$10* | X47: =$E$10*0 | Y47: =$E$10*0 | AA47: 8.1329e-21 | AB47: 0 | AC47: 9.932547489e-26 | AD47: 0 | AE47: =$E$9* | AF47: =$E$9*9.93254748855386E-26 | AG47: =$E$9*0 | AJ47: 0 | AK47: 0 | AL47: 0 | AM47: 0 | AN47: =$E$9* | AO47: =$E$9*0 | AP47: =$E$9*0 | AT47: 0 | AU47: 0 | AZ47: 0 | BA47: 0 | BB47: =$P$96* | BC47: =$P$96*0
A48: C12H24 | B48: 0.0778622 | C48: 0 | D48: 0 | E48: 0 | G48: C12H24 | H48: 9.9498e-13 | K48: 0.0778622 | L48: 1.014768597e-06 | M48: =$E$6* | N48: =$E$6*1.01476859733123E-06 | S48: 0 | T48: 0 | U48: 0 | V48: 0 | W48: =$E$10* | X48: =$E$10*0 | Y48: =$E$10*0 | AA48: 3.8603e-22 | AB48: 0 | AC48: 4.714506888e-27 | AD48: 0 | AE48: =$E$9* | AF48: =$E$9*4.71450688807983E-27 | AG48: =$E$9*0 | AJ48: 0 | AK48: 0 | AL48: 0 | AM48: 0 | AN48: =$E$9* | AO48: =$E$9*0 | AP48: =$E$9*0 | AT48: 0 | AU48: 0 | AZ48: 0 | BA48: 0 | BB48: =$P$96* | BC48: =$P$96*0
A49: C12H26 | B49: 0.0332866 | C49: 0 | D49: 0 | E49: 0 | G49: C12H26 | H49: 4.0349e-13 | K49: 0.0332866 | L49: 4.338202156e-07 | M49: =$E$6* | N49: =$E$6*4.3382021561073E-07 | S49: 900.591034 | T49: 0 | U49: 0.01099873749 | V49: 0 | W49: =$E$10* | X49: =CONCATENATE(W49,U49) -> =$E$10*0.0109987374896664 | Y49: =$E$10*0 | AA49: 1.5836e-22 | AB49: 0 | AC49: 1.934018887e-27 | AD49: 0 | AE49: =$E$9* | AF49: =$E$9*1.9340188866055E-27 | AG49: =$E$9*0 | AJ49: 0 | AK49: 0 | AL49: 0 | AM49: 0 | AN49: =$E$9* | AO49: =$E$9*0 | AP49: =$E$9*0 | AT49: 0 | AU49: 0 | AZ49: 0 | BA49: 0 | BB49: =$P$96* | BC49: =$P$96*0
A50: C13H26 | B50: 0.0638182 | C50: 0 | D50: 0 | E50: 0 | G50: C13H26 | H50: 2.1307e-14 | K50: 0.0638182 | L50: 8.317348508e-07 | M50: =$E$6* | N50: =$E$6*8.3173485077745E-07 | S50: 0 | T50: 0 | U50: 0 | V50: 0 | W50: =$E$10* | X50: =$E$10*0 | Y50: =$E$10*0 | AA50: 1.307e-22 | AB50: 0 | AC50: 1.59621286e-27 | AD50: 0 | AE50: =$E$9* | AF50: =$E$9*1.59621285980891E-27 | AG50: =$E$9*0 | AJ50: 0 | AK50: 0 | AL50: 0 | AM50: 0 | AN50: =$E$9* | AO50: =$E$9*0 | AP50: =$E$9*0 | AT50: 0 | AU50: 0 | AZ50: 0 | BA50: 0 | BB50: =$P$96* | BC50: =$P$96*0
A51: C13H28 | B51: 0.0273222 | C51: 0 | D51: 0 | E51: 0 | G51: C13H28 | H51: 2.356e-15 | K51: 0.0273222 | L51: 3.560869147e-07 | M51: =$E$6* | N51: =$E$6*3.56086914703198E-07 | S51: 1912.77612 | T51: 0 | U51: 0.02336035073 | V51: 0 | W51: =$E$10* | X51: =$E$10*0.0233603507320535 | Y51: =$E$10*0 | AA51: 4.3279e-23 | AB51: 0 | AC51: 5.28557738e-28 | AD51: 0 | AE51: =$E$9* | AF51: =$E$9*5.28557738023488E-28 | AG51: =$E$9*0 | AJ51: 0 | AK51: 0 | AL51: 0 | AM51: 0 | AN51: =$E$9* | AO51: =$E$9*0 | AP51: =$E$9*0 | AT51: 0 | AU51: 0 | AZ51: 0 | BA51: 0 | BB51: =$P$96* | BC51: =$P$96*0
A52: C14H28 | B52: 0.0517144 | C52: 0 | D52: 0 | E52: 0 | G52: C14H28 | H52: 4.1868e-16 | K52: 0.0517144 | L52: 6.739874952e-07 | M52: =$E$6* | N52: =$E$6*6.73987495213675E-07 | S52: 0 | T52: 0 | U52: 0 | V52: 0 | W52: =$E$10* | X52: =$E$10*0 | Y52: =$E$10*0 | AA52: 4.359e-23 | AB52: 0 | AC52: 5.323559186e-28 | AD52: 0 | AE52: =$E$9* | AF52: =$E$9*5.32355918585084E-28 | AG52: =$E$9*0 | AJ52: 0 | AK52: 0 | AL52: 0 | AM52: 0 | AN52: =$E$9* | AO52: =$E$9*0 | AP52: =$E$9*0 | AT52: 0 | AU52: 0 | AZ52: 0 | BA52: 0 | BB52: =$P$96* | BC52: =$P$96*0
A53: C14H30 | B53: 0.0220755 | C53: 0 | D53: 0 | E53: 0 | G53: C14H30 | H53: 1.474e-17 | K53: 0.0220755 | L53: 2.877073107e-07 | M53: =$E$6* | N53: =$E$6*2.87707310741099E-07 | S53: 0 | T53: 0 | U53: 0 | V53: 0 | W53: =$E$10* | X53: =$E$10*0 | Y53: =$E$10*0 | AA53: 1.157e-23 | AB53: 0 | AC53: 1.413020871e-28 | AD53: 0 | AE53: =$E$9* | AF53: =$E$9*1.41302087130751E-28 | AG53: =$E$9*0 | AJ53: 0 | AK53: 0 | AL53: 0 | AM53: 0 | AN53: =$E$9* | AO53: =$E$9*0 | AP53: =$E$9*0 | AT53: 0 | AU53: 0 | AZ53: 0 | BA53: 0 | BB53: =$P$96* | BC53: =$P$96*0
A54: C15H30 | B54: 0.0414637 | C54: 0 | D54: 0 | E54: 0 | G54: C15H30 | H54: 9.7488e-18 | K54: 0.0414637 | L54: 5.403913669e-07 | M54: =$E$6* | N54: =$E$6*5.40391366916976E-07 | S54: 0 | T54: 0 | U54: 0 | V54: 0 | W54: =$E$10* | X54: =$E$10*0 | Y54: =$E$10*0 | AA54: 1.5013e-23 | AB54: 0 | AC54: 1.833507549e-28 | AD54: 0 | AE54: =$E$9* | AF54: =$E$9*1.8335075489144E-28 | AG54: =$E$9*0 | AJ54: 0 | AK54: 0 | AL54: 0 | AM54: 0 | AN54: =$E$9* | AO54: =$E$9*0 | AP54: =$E$9*0 | AT54: 0 | AU54: 0 | AZ54: 0 | BA54: 0 | BB54: =$P$96* | BC54: =$P$96*0
A55: C15H32 | B55: 0.0177449 | C55: 0 | D55: 0 | E55: 0 | G55: C15H32 | H55: 6.4498e-19 | K55: 0.0177449 | L55: 2.312671268e-07 | M55: =$E$6* | N55: =$E$6*2.31267126831543E-07 | S55: 0 | T55: 0 | U55: 0 | V55: 0 | W55: =$E$10* | X55: =$E$10*0 | Y55: =$E$10*0 | AA55: 4.5744e-24 | AB55: 0 | AC55: 5.586622881e-29 | AD55: 0 | AE55: =$E$9* | AF55: =$E$9*5.58662288133886E-29 | AG55: =$E$9*0 | AJ55: 0 | AK55: 0 | AL55: 0 | AM55: 0 | AN55: =$E$9* | AO55: =$E$9*0 | AP55: =$E$9*0 | AT55: 0 | AU55: 0 | AZ55: 0 | BA55: 0 | BB55: =$P$96* | BC55: =$P$96*0
A56: C16H32 | B56: 0.0326936 | C56: 0 | D56: 0 | E56: 0 | G56: C16H32 | H56: 3.3431e-19 | K56: 0.0326936 | L56: 4.260917186e-07 | M56: =$E$6* | N56: =$E$6*4.26091718622237E-07 | S56: 0 | T56: 0 | U56: 0 | V56: 0 | W56: =$E$10* | X56: =$E$10*0 | Y56: =$E$10*0 | AA56: 5.4415e-24 | AB56: 0 | AC56: 6.645594703e-29 | AD56: 0 | AE56: =$E$9* | AF56: =$E$9*6.64559470286931E-29 | AG56: =$E$9*0 | AJ56: 0 | AK56: 0 | AL56: 0 | AM56: 0 | AN56: =$E$9* | AO56: =$E$9*0 | AP56: =$E$9*0 | AT56: 0 | AU56: 0 | AZ56: 0 | BA56: 0 | BB56: =$P$96* | BC56: =$P$96*0
A57: C16H34 | B57: 0.0141449 | C57: 0 | D57: 0 | E57: 0 | G57: C16H34 | H57: 2.9523e-20 | K57: 0.0141449 | L57: 1.84348764e-07 | M57: =$E$6* | N57: =$E$6*1.84348764000896E-07 | S57: 0 | T57: 0 | U57: 0 | V57: 0 | W57: =$E$10* | X57: =$E$10*0 | Y57: =$E$10*0 | AA57: 1.8406e-24 | AB57: 0 | AC57: 2.247887827e-29 | AD57: 0 | AE57: =$E$9* | AF57: =$E$9*2.24788782690458E-29 | AG57: =$E$9*0 | AJ57: 0 | AK57: 0 | AL57: 0 | AM57: 0 | AN57: =$E$9* | AO57: =$E$9*0 | AP57: =$E$9*0 | AT57: 0 | AU57: 0 | AZ57: 0 | BA57: 0 | BB57: =$P$96* | BC57: =$P$96*0
A58: C17H34 | B58: 0.0258344 | C58: 0 | D58: 0 | E58: 0 | G58: C17H34 | H58: 1.8053e-21 | K58: 0.0258344 | L58: 3.36696598e-07 | M58: =$E$6* | N58: =$E$6*3.36696597975577E-07 | S58: 0 | T58: 0 | U58: 0 | V58: 0 | W58: =$E$10* | X58: =$E$10*0 | Y58: =$E$10*0 | AA58: 1.4935e-24 | AB58: 0 | AC58: 1.823981566e-29 | AD58: 0 | AE58: =$E$9* | AF58: =$E$9*1.82398156551233E-29 | AG58: =$E$9*0 | AJ58: 0 | AK58: 0 | AL58: 0 | AM58: 0 | AN58: =$E$9* | AO58: =$E$9*0 | AP58: =$E$9*0 | AT58: 0 | AU58: 0 | AZ58: 0 | BA58: 0 | BB58: =$P$96* | BC58: =$P$96*0
A59: C17H36 | B59: 0.010884 | C59: 0 | D59: 0 | E59: 0 | G59: C17H36 | H59: 7.966e-22 | K59: 0.010884 | L59: 1.418498503e-07 | M59: =$E$6* | N59: =$E$6*1.41849850291324E-07 | S59: 0 | T59: 0 | U59: 0 | V59: 0 | W59: =$E$10* | X59: =$E$10*0 | Y59: =$E$10*0 | AA59: 6.107e-25 | AB59: 0 | AC59: 7.458356492e-30 | AD59: 0 | AE59: =$E$9* | AF59: =$E$9*7.45835649185388E-30 | AG59: =$E$9*0 | AJ59: 0 | AK59: 0 | AL59: 0 | AM59: 0 | AN59: =$E$9* | AO59: =$E$9*0 | AP59: =$E$9*0 | AT59: 0 | AU59: 0 | AZ59: 0 | BA59: 0 | BB59: =$P$96* | BC59: =$P$96*0
A60: C18H36 | B60: 0.0193557 | C60: 0 | D60: 0 | E60: 0 | G60: C18H36 | H60: 5.5109e-22 | K60: 0.0193557 | L60: 2.522604876e-07 | M60: =$E$6* | N60: =$E$6*2.52260487622545E-07 | S60: 0 | T60: 0 | U60: 0 | V60: 0 | W60: =$E$10* | X60: =$E$10*0 | Y60: =$E$10*0 | AA60: 7.4758e-25 | AB60: 0 | AC60: 9.130044451e-30 | AD60: 0 | AE60: =$E$9* | AF60: =$E$9*9.13004445092537E-30 | AG60: =$E$9*0 | AJ60: 0 | AK60: 0 | AL60: 0 | AM60: 0 | AN60: =$E$9* | AO60: =$E$9*0 | AP60: =$E$9*0 | AT60: 0 | AU60: 0 | AZ60: 0 | BA60: 0 | BB60: =$P$96* | BC60: =$P$96*0
A61: C18H38 | B61: 0.00827747 | C61: 0 | D61: 0 | E61: 0 | G61: C18H38 | H61: 8.3341e-23 | K61: 0.00827747 | L61: 1.078792613e-07 | M61: =$E$6* | N61: =$E$6*1.07879261327722E-07 | S61: 0 | T61: 0 | U61: 0 | V61: 0 | W61: =$E$10* | X61: =$E$10*0 | Y61: =$E$10*0 | AA61: 2.6285e-25 | AB61: 0 | AC61: 3.210134279e-30 | AD61: 0 | AE61: =$E$9* | AF61: =$E$9*3.21013427850629E-30 | AG61: =$E$9*0 | AJ61: 0 | AK61: 0 | AL61: 0 | AM61: 0 | AN61: =$E$9* | AO61: =$E$9*0 | AP61: =$E$9*0 | AT61: 0 | AU61: 0 | AZ61: 0 | BA61: 0 | BB61: =$P$96* | BC61: =$P$96*0
A62: C19H38 | B62: 0.0148133 | C62: 0 | D62: 0 | E62: 0 | G62: C19H38 | H62: 5.4545e-25 | K62: 0.0148133 | L62: 1.9305994e-07 | M62: =$E$6* | N62: =$E$6*1.93059940033119E-07 | S62: 0 | T62: 0 | U62: 0 | V62: 0 | W62: =$E$10* | X62: =$E$10*0 | Y62: =$E$10*0 | AA62: 1.4996e-25 | AB62: 0 | AC62: 1.831431373e-30 | AD62: 0 | AE62: =$E$9* | AF62: =$E$9*1.83143137304472E-30 | AG62: =$E$9*0 | AJ62: 0 | AK62: 0 | AL62: 0 | AM62: 0 | AN62: =$E$9* | AO62: =$E$9*0 | AP62: =$E$9*0 | AT62: 0 | AU62: 0 | AZ62: 0 | BA62: 0 | BB62: =$P$96* | BC62: =$P$96*0
A63: C19H40 | B63: 0.00613736 | C63: 0 | D63: 0 | E63: 0 | G63: C19H40 | H63: 4.1702e-24 | K63: 0.00613736 | L63: 7.998746758e-08 | M63: =$E$6* | N63: =$E$6*7.99874675839728E-08 | S63: 0 | T63: 0 | U63: 0 | V63: 0 | W63: =$E$10* | X63: =$E$10*0 | Y63: =$E$10*0 | AA63: 9.7441e-26 | AB63: 0 | AC63: 1.19002737e-30 | AD63: 0 | AE63: =$E$9* | AF63: =$E$9*1.19002737010436E-30 | AG63: =$E$9*0 | AJ63: 0 | AK63: 0 | AL63: 0 | AM63: 0 | AN63: =$E$9* | AO63: =$E$9*0 | AP63: =$E$9*0 | AT63: 0 | AU63: 0 | AZ63: 0 | BA63: 0 | BB63: =$P$96* | BC63: =$P$96*0
A64: C20H40 | B64: 0.0107441 | C64: 0 | D64: 0 | E64: 0 | G64: C20H40 | H64: 6.5698e-27 | K64: 0.0107441 | L64: 1.400265506e-07 | M64: =$E$6* | N64: =$E$6*1.40026550580211E-07 | S64: 0 | T64: 0 | U64: 0 | V64: 0 | W64: =$E$10* | X64: =$E$10*0 | Y64: =$E$10*0 | AA64: 4.2732e-26 | AB64: 0 | AC64: 5.218773368e-31 | AD64: 0 | AE64: =$E$9* | AF64: =$E$9*5.21877336842803E-31 | AG64: =$E$9*0 | AJ64: 0 | AK64: 0 | AL64: 0 | AM64: 0 | AN64: =$E$9* | AO64: =$E$9*0 | AP64: =$E$9*0 | AT64: 0 | AU64: 0 | AZ64: 0 | BA64: 0 | BB64: =$P$96* | BC64: =$P$96*0
A65: C20H42 | B65: 0.00441827 | C65: 0 | D65: 0 | E65: 0 | G65: C20H42 | H65: 4.1162e-27 | K65: 0.00441827 | L65: 5.758277637e-08 | M65: =$E$6* | N65: =$E$6*5.75827763732679E-08 | S65: 0 | T65: 0 | U65: 0 | V65: 0 | W65: =$E$10* | X65: =$E$10*0 | Y65: =$E$10*0 | AA65: 1.7956e-26 | AB65: 0 | AC65: 2.19293023e-31 | AD65: 0 | AE65: =$E$9* | AF65: =$E$9*2.19293023035416E-31 | AG65: =$E$9*0 | AJ65: 0 | AK65: 0 | AL65: 0 | AM65: 0 | AN65: =$E$9* | AO65: =$E$9*0 | AP65: =$E$9*0 | AT65: 0 | AU65: 0 | AZ65: 0 | BA65: 0 | BB65: =$P$96* | BC65: =$P$96*0
A66: ALKYLATE | B66: 0 | C66: 0 | D66: 0 | E66: 0 | G66: ALKYLATE | H66: 0 | K66: 0 | L66: 0 | M66: =$E$6* | N66: =$E$6*0 | S66: 0 | T66: 0 | U66: 0 | V66: 0 | W66: =$E$10* | X66: =$E$10*0 | Y66: =$E$10*0 | AA66: 0 | AB66: 0 | AC66: 0 | AD66: 0 | AE66: =$E$9* | AF66: =$E$9*0 | AG66: =$E$9*0 | AJ66: 0 | AK66: 0 | AL66: 0 | AM66: 0 | AN66: =$E$9* | AO66: =$E$9*0 | AP66: =$E$9*0 | AT66: 0 | AU66: 0 | AZ66: 0 | BA66: 0 | BB66: =$P$96* | BC66: =$P$96*0
A67: ISOMERAT | B67: 0 | C67: 0 | D67: 0 | E67: 0 | G67: ISOMERAT | H67: 0 | K67: 0 | L67: 0 | M67: =$E$6* | N67: =$E$6*0 | S67: 0 | T67: 0 | U67: 0 | V67: 0 | W67: =$E$10* | X67: =$E$10*0 | Y67: =$E$10*0 | AA67: 0 | AB67: 0 | AC67: 0 | AD67: 0 | AE67: =$E$9* | AF67: =$E$9*0 | AG67: =$E$9*0 | AJ67: 0 | AK67: 0 | AL67: 0 | AM67: 0 | AN67: =$E$9* | AO67: =$E$9*0 | AP67: =$E$9*0 | AT67: 0 | AU67: 0 | AZ67: 0 | BA67: 0 | BB67: =$P$96* | BC67: =$P$96*0
A68: REFORMAT | B68: 0 | C68: 0 | D68: 0 | E68: 0 | G68: REFORMAT | H68: 0 | K68: 0 | L68: 0 | M68: =$E$6* | N68: =$E$6*0 | S68: 0 | T68: 0 | U68: 0 | V68: 0 | W68: =$E$10* | X68: =$E$10*0 | Y68: =$E$10*0 | AA68: 0 | AB68: 0 | AC68: 0 | AD68: 0 | AE68: =$E$9* | AF68: =$E$9*0 | AG68: =$E$9*0 | AJ68: 0 | AK68: 0 | AL68: 0 | AM68: 0 | AN68: =$E$9* | AO68: =$E$9*0 | AP68: =$E$9*0 | AT68: 0 | AU68: 0 | AZ68: 0 | BA68: 0 | BB68: =$P$96* | BC68: =$P$96*0
A69: C7-300HC | B69: 0 | C69: 0 | D69: 0 | E69: 0 | G69: C7-300HC | H69: 0 | K69: 0 | L69: 0 | M69: =$E$6* | N69: =$E$6*0 | S69: 0 | T69: 60.6670018 | U69: 0 | V69: 0.0007409139131 | W69: =$E$10* | X69: =$E$10*0 | Y69: =$E$10*0.000740913913077356 | AA69: 0 | AB69: 0 | AC69: 0 | AD69: 0 | AE69: =$E$9* | AF69: =$E$9*0 | AG69: =$E$9*0 | AJ69: 0 | AK69: 0 | AL69: 0 | AM69: 0 | AN69: =$E$9* | AO69: =$E$9*0 | AP69: =$E$9*0 | AT69: 0 | AU69: 0 | AZ69: 0 | BA69: 0 | BB69: =$P$96* | BC69: =$P$96*0
A70: 3-350HC | B70: 0 | C70: 0 | D70: 0 | E70: 0 | G70: 3-350HC | H70: 0 | K70: 0 | L70: 0 | M70: =$E$6* | N70: =$E$6*0 | S70: 0 | T70: 33.1868281 | U70: 0 | V70: 0.0004053040688 | W70: =$E$10* | X70: =$E$10*0 | Y70: =$E$10*0.000405304068779554 | AA70: 0 | AB70: 0 | AC70: 0 | AD70: 0 | AE70: =$E$9* | AF70: =$E$9*0 | AG70: =$E$9*0 | AJ70: 0 | AK70: 0 | AL70: 0 | AM70: 0 | AN70: =$E$9* | AO70: =$E$9*0 | AP70: =$E$9*0 | AT70: 0 | AU70: 0 | AZ70: 0 | BA70: 0 | BB70: =$P$96* | BC70: =$P$96*0
A71: 350-5HC | B71: 0 | C71: 0 | D71: 0 | E71: 0 | G71: 350-5HC | H71: 0 | K71: 0 | L71: 0 | M71: =$E$6* | N71: =$E$6*0 | S71: 0 | T71: 0 | U71: 0 | V71: 0 | W71: =$E$10* | X71: =$E$10*0 | Y71: =$E$10*0 | AA71: 0 | AB71: 0 | AC71: 0 | AD71: 0 | AE71: =$E$9* | AF71: =$E$9*0 | AG71: =$E$9*0 | AJ71: 0 | AK71: 0 | AL71: 0 | AM71: 0 | AN71: =$E$9* | AO71: =$E$9*0 | AP71: =$E$9*0 | AT71: 0 | AU71: 0 | AZ71: 0 | BA71: 0 | BB71: =$P$96* | BC71: =$P$96*0
A72: 500+HC | B72: 0 | C72: 0 | D72: 0 | E72: 0 | G72: 500+HC | H72: 0 | K72: 0 | L72: 0 | M72: =$E$6* | N72: =$E$6*0 | S72: 0 | T72: 0 | U72: 0 | V72: 0 | W72: =$E$10* | X72: =$E$10*0 | Y72: =$E$10*0 | AA72: 0 | AB72: 0 | AC72: 0 | AD72: 0 | AE72: =$E$9* | AF72: =$E$9*0 | AG72: =$E$9*0 | AJ72: 0 | AK72: 0 | AL72: 0 | AM72: 0 | AN72: =$E$9* | AO72: =$E$9*0 | AP72: =$E$9*0 | AT72: 0 | AU72: 0 | AZ72: 0 | BA72: 0 | BB72: =$P$96* | BC72: =$P$96*0
A73: C7-300HT | B73: 0 | C73: 0 | D73: 0 | E73: 0 | G73: C7-300HT | H73: 0 | K73: 0 | L73: 0 | M73: =$E$6* | N73: =$E$6*0 | S73: 0 | T73: 0 | U73: 0 | V73: 0 | W73: =$E$10* | X73: =$E$10*0 | Y73: =$E$10*0 | AA73: 0 | AB73: 0 | AC73: 0 | AD73: 0 | AE73: =$E$9* | AF73: =$E$9*0 | AG73: =$E$9*0 | AJ73: 0 | AK73: 0 | AL73: 0 | AM73: 0 | AN73: =$E$9* | AO73: =$E$9*0 | AP73: =$E$9*0 | AT73: 0 | AU73: 0 | AZ73: 0 | BA73: 0 | BB73: =$P$96* | BC73: =$P$96*0
A74: 3-350HT | B74: 0 | C74: 0 | D74: 0 | E74: 0 | G74: 3-350HT | H74: 0 | K74: 0 | L74: 0 | M74: =$E$6* | N74: =$E$6*0 | S74: 0 | T74: 0 | U74: 0 | V74: 0 | W74: =$E$10* | X74: =CONCATENATE(W74,U74) -> =$E$10*0 | Y74: =$E$10*0 | AA74: 0 | AB74: 0 | AC74: 0 | AD74: 0 | AE74: =$E$9* | AF74: =$E$9*0 | AG74: =$E$9*0 | AJ74: 0 | AK74: 0 | AL74: 0 | AM74: 0 | AN74: =$E$9* | AO74: =$E$9*0 | AP74: =$E$9*0 | AT74: 0 | AU74: 0 | AZ74: 0 | BA74: 0 | BB74: =$P$96* | BC74: =$P$96*0
A75: 350-5HT | B75: 0 | C75: 0 | D75: 0 | E75: 0 | G75: 350-5HT | H75: 0 | K75: =B75+D75+E75 -> 0 | L75: =K75/$H$10 -> 0 | M75: =$E$6* | N75: =CONCATENATE(M75,L75) -> =$E$6*0 | S75: 0 | T75: 0 | U75: =S75/$H$14 -> 0 | V75: 0 | W75: =$E$10* | X75: =$E$10*0 | Y75: =CONCATENATE(W75,V75) -> =$E$10*0 | AA75: 0 | AB75: 0 | AC75: =AA75/$H$14 -> 0 | AD75: 0 | AE75: =$E$9* | AF75: =CONCATENATE(AE75,AC75) -> =$E$9*0 | AG75: =CONCATENATE(AE75,AD75) -> =$E$9*0 | AJ75: 0 | AK75: 0 | AL75: =AJ75/$H$14 -> 0 | AM75: 0 | AN75: =$E$9* | AO75: =CONCATENATE(AN75,AL75) -> =$E$9*0 | AP75: =CONCATENATE(AN75,AM75) -> =$E$9*0 | AT75: 0 | AU75: 0 | AZ75: 0 | BA75: =AZ75/$S$101 -> 0 | BB75: =$P$96* | BC75: =CONCATENATE(BB75,BA75) -> =$P$96*0
A76: 500+HT | B76: 0 | C76: 0 | D76: 0 | E76: 0 | G76: 500+HT | H76: 0 | K76: 0 | L76: 0 | M76: =$E$6* | N76: =$E$6*0 | S76: 0 | T76: 0 | U76: 0 | V76: 0 | W76: =$E$10* | X76: =$E$10*0 | Y76: =$E$10*0 | AA76: 0 | AB76: 0 | AC76: 0 | AD76: 0 | AE76: =$E$9* | AF76: =$E$9*0 | AG76: =$E$9*0 | AJ76: 0 | AK76: 0 | AL76: 0 | AM76: 0 | AN76: =$E$9* | AO76: =$E$9*0 | AP76: =$E$9*0 | AT76: 0 | AU76: 0 | AZ76: 0 | BA76: 0 | BB76: =$P$96* | BC76: =$P$96*0
A77: OXVAP | B77: 0.0506931 | C77: 0 | D77: 0 | E77: 0 | G77: OXVAP | H77: 0 | K77: 0.0506931 | L77: 6.606770163e-07 | M77: =$E$6* | N77: =$E$6*6.60677016336192E-07 | S77: 0 | T77: 0 | U77: 0 | V77: 0 | W77: =$E$10* | X77: =$E$10*0 | Y77: =$E$10*0 | AA77: 46.5522647 | AB77: 0 | AC77: 0.0005685334626 | AD77: 0 | AE77: =$E$9* | AF77: =$E$9*0.000568533462642452 | AG77: =$E$9*0 | AJ77: 0 | AK77: 0 | AL77: 0 | AM77: 0 | AN77: =$E$9* | AO77: =$E$9*0 | AP77: =$E$9*0 | AT77: 0 | AU77: 0 | AZ77: 0 | BA77: 0 | BB77: =$P$96* | BC77: =$P$96*0
A78: OXHC | B78: 0.2300152 | C78: 0 | D78: 0 | E78: 0 | G78: OXHC | H78: 1.47796e-07 | K78: 0.2300152 | L78: 2.997760169e-06 | M78: =$E$6* | N78: =$E$6*2.99776016948998E-06 | S78: 0 | T78: 0 | U78: 0 | V78: 0 | W78: =$E$10* | X78: =$E$10*0 | Y78: =$E$10*0 | AA78: 0.00025805 | AB78: 0 | AC78: 3.151512842e-09 | AD78: 0 | AE78: =$E$9* | AF78: =$E$9*3.15151284218584E-09 | AG78: =$E$9*0 | AJ78: 0 | AK78: 0 | AL78: 0 | AM78: 0 | AN78: =$E$9* | AO78: =$E$9*0 | AP78: =$E$9*0 | AT78: 0 | AU78: 0 | AZ78: 0 | BA78: 0 | BB78: =$P$96* | BC78: =$P$96*0
A79: OXH2O | B79: 0.18298 | C79: 0 | D79: 0 | E79: 0 | G79: OXH2O | H79: 0 | K79: 0.18298 | L79: 2.38475612e-06 | M79: =$E$6* | N79: =$E$6*2.38475611965329E-06 | S79: 0 | T79: 0 | U79: 0 | V79: 0 | W79: =$E$10* | X79: =$E$10*0 | Y79: =$E$10*0 | AA79: 168.032915 | AB79: 0 | AC79: 0.002052152256 | AD79: 0 | AE79: =$E$9* | AF79: =$E$9*0.00205215225550251 | AG79: =$E$9*0 | AJ79: 0 | AK79: 0 | AL79: 0 | AM79: 0 | AN79: =$E$9* | AO79: =$E$9*0 | AP79: =$E$9*0 | AT79: 0 | AU79: 0 | AZ79: 0 | BA79: 0 | BB79: =$P$96* | BC79: =$P$96*0
A80: C5N | B80: 0 | C80: 0 | D80: 0 | E80: 0 | G80: C5N | H80: 0 | K80: 0 | L80: 0 | M80: =$E$6* | N80: =$E$6*0 | S80: 0 | T80: 0 | U80: 0 | V80: 0 | W80: =$E$10* | X80: =$E$10*0 | Y80: =$E$10*0 | AA80: 0 | AB80: 0 | AC80: 0 | AD80: 0 | AE80: =$E$9* | AF80: =$E$9*0 | AG80: =$E$9*0 | AJ80: 0 | AK80: 0 | AL80: 0 | AM80: 0 | AN80: =$E$9* | AO80: =$E$9*0 | AP80: =$E$9*0 | AT80: 0 | AU80: 0 | AZ80: 0 | BA80: 0 | BB80: =$P$96* | BC80: =$P$96*0
A81: C6N | B81: 0 | C81: 0 | D81: 0 | E81: 0 | G81: C6N | H81: 0 | K81: 0 | L81: 0 | M81: =$E$6* | N81: =$E$6*0 | S81: 0 | T81: 0 | U81: 0 | V81: 0 | W81: =$E$10* | X81: =$E$10*0 | Y81: =$E$10*0 | AA81: 0 | AB81: 0 | AC81: 0 | AD81: 0 | AE81: =$E$9* | AF81: =$E$9*0 | AG81: =$E$9*0 | AJ81: 0 | AK81: 0 | AL81: 0 | AM81: 0 | AN81: =$E$9* | AO81: =$E$9*0 | AP81: =$E$9*0 | AT81: 0 | AU81: 0 | AZ81: 0 | BA81: 0 | BB81: =$P$96* | BC81: =$P$96*0
A82: C7N | B82: 0 | C82: 0 | D82: 0 | E82: 0 | G82: C7N | H82: 0 | K82: 0 | L82: 0 | M82: =$E$6* | N82: =$E$6*0 | S82: 0 | T82: 0 | U82: 0 | V82: 0 | W82: =$E$10* | X82: =$E$10*0 | Y82: =$E$10*0 | AA82: 0 | AB82: 0 | AC82: 0 | AD82: 0 | AE82: =$E$9* | AF82: =$E$9*0 | AG82: =$E$9*0 | AJ82: 0 | AK82: 0 | AL82: 0 | AM82: 0 | AN82: =$E$9* | AO82: =$E$9*0 | AP82: =$E$9*0 | AT82: 0 | AU82: 0 | AZ82: 0 | BA82: 0 | BB82: =$P$96* | BC82: =$P$96*0
A83: C8N | B83: 0 | C83: 0 | D83: 0 | E83: 0 | G83: C8N | H83: 0 | K83: 0 | L83: 0 | M83: =$E$6* | N83: =$E$6*0 | S83: 0 | T83: 0 | U83: 0 | V83: 0 | W83: =$E$10* | X83: =$E$10*0 | Y83: =$E$10*0 | AA83: 0 | AB83: 0 | AC83: 0 | AD83: 0 | AE83: =$E$9* | AF83: =$E$9*0 | AG83: =$E$9*0 | AJ83: 0 | AK83: 0 | AL83: 0 | AM83: 0 | AN83: =$E$9* | AO83: =$E$9*0 | AP83: =$E$9*0 | AT83: 0 | AU83: 0 | AZ83: 0 | BA83: 0 | BB83: =$P$96* | BC83: =$P$96*0
A84: C9N | B84: 0 | C84: 0 | D84: 0 | E84: 0 | G84: C9N | H84: 0 | K84: 0 | L84: 0 | M84: =$E$6* | N84: =$E$6*0 | S84: 0 | T84: 0 | U84: 0 | V84: 0 | W84: =$E$10* | X84: =$E$10*0 | Y84: =$E$10*0 | AA84: 0 | AB84: 0 | AC84: 0 | AD84: 0 | AE84: =$E$9* | AF84: =$E$9*0 | AG84: =$E$9*0 | AJ84: 0 | AK84: 0 | AL84: 0 | AM84: 0 | AN84: =$E$9* | AO84: =$E$9*0 | AP84: =$E$9*0 | AT84: 0 | AU84: 0 | AZ84: 0 | BA84: 0 | BB84: =$P$96* | BC84: =$P$96*0
A85: C10N | B85: 0 | C85: 0 | D85: 0 | E85: 0 | G85: C10N | H85: 0 | K85: 0 | L85: 0 | M85: =$E$6* | N85: =$E$6*0 | S85: 0 | T85: 0 | U85: 0 | V85: 0 | W85: =$E$10* | X85: =$E$10*0 | Y85: =$E$10*0 | AA85: 0 | AB85: 0 | AC85: 0 | AD85: 0 | AE85: =$E$9* | AF85: =$E$9*0 | AG85: =$E$9*0 | AJ85: 0 | AK85: 0 | AL85: 0 | AM85: 0 | AN85: =$E$9* | AO85: =$E$9*0 | AP85: =$E$9*0 | AT85: 0 | AU85: 0 | AZ85: 0 | BA85: 0 | BB85: =$P$96* | BC85: =$P$96*0
A86: C6A | B86: 0 | C86: 0 | D86: 0 | E86: 0 | G86: C6A | H86: 0 | K86: 0 | L86: 0 | M86: =$E$6* | N86: =$E$6*0 | S86: 0 | T86: 0 | U86: 0 | V86: 0 | W86: =$E$10* | X86: =$E$10*0 | Y86: =$E$10*0 | AA86: 0 | AB86: 0 | AC86: 0 | AD86: 0 | AE86: =$E$9* | AF86: =$E$9*0 | AG86: =$E$9*0 | AJ86: 0 | AK86: 0 | AL86: 0 | AM86: 0 | AN86: =$E$9* | AO86: =$E$9*0 | AP86: =$E$9*0 | AT86: 0 | AU86: 0 | AZ86: 0 | BA86: 0 | BB86: =$P$96* | BC86: =$P$96*0
A87: C7A | B87: 0 | C87: 0 | D87: 0 | E87: 0 | G87: C7A | H87: 0 | K87: 0 | L87: 0 | M87: =$E$6* | N87: =$E$6*0 | S87: 0 | T87: 0 | U87: 0 | V87: 0 | W87: =$E$10* | X87: =$E$10*0 | Y87: =$E$10*0 | AA87: 0 | AB87: 0 | AC87: 0 | AD87: 0 | AE87: =$E$9* | AF87: =$E$9*0 | AG87: =$E$9*0 | AJ87: 0 | AK87: 0 | AL87: 0 | AM87: 0 | AN87: =$E$9* | AO87: =$E$9*0 | AP87: =$E$9*0 | AT87: 0 | AU87: 0 | AZ87: 0 | BA87: 0 | BB87: =$P$96* | BC87: =$P$96*0
A88: C8A | B88: 0 | C88: 0 | D88: 0 | E88: 0 | G88: C8A | H88: 0 | K88: 0 | L88: 0 | M88: =$E$6* | N88: =$E$6*0 | S88: 0 | T88: 0 | U88: 0 | V88: 0 | W88: =$E$10* | X88: =$E$10*0 | Y88: =$E$10*0 | AA88: 0 | AB88: 0 | AC88: 0 | AD88: 0 | AE88: =$E$9* | AF88: =$E$9*0 | AG88: =$E$9*0 | AJ88: 0 | AK88: 0 | AL88: 0 | AM88: 0 | AN88: =$E$9* | AO88: =$E$9*0 | AP88: =$E$9*0 | AT88: 0 | AU88: 0 | AZ88: 0 | BA88: 0 | BB88: =$P$96* | BC88: =$P$96*0
A89: C9A | B89: 0 | C89: 0 | D89: 0 | E89: 0 | G89: C9A | H89: 0 | K89: 0 | L89: 0 | M89: =$E$6* | N89: =$E$6*0 | S89: 0 | T89: 0 | U89: 0 | V89: 0 | W89: =$E$10* | X89: =$E$10*0 | Y89: =$E$10*0 | AA89: 0 | AB89: 0 | AC89: 0 | AD89: 0 | AE89: =$E$9* | AF89: =$E$9*0 | AG89: =$E$9*0 | AJ89: 0 | AK89: 0 | AL89: 0 | AM89: 0 | AN89: =$E$9* | AO89: =$E$9*0 | AP89: =$E$9*0 | AT89: 0 | AU89: 0 | AZ89: 0 | BA89: 0 | BB89: =$P$96* | BC89: =$P$96*0
A90: C10AP | B90: 0 | C90: 0 | D90: 0 | E90: 0 | G90: C10AP | H90: 0 | K90: 0 | L90: 0 | M90: =$E$6* | N90: =$E$6*0 | S90: 0 | T90: 0 | U90: 0 | V90: 0 | W90: =$E$10* | X90: =$E$10*0 | Y90: =$E$10*0 | AA90: 0 | AB90: 0 | AC90: 0 | AD90: 0 | AE90: =$E$9* | AF90: =$E$9*0 | AG90: =$E$9*0 | AJ90: 0 | AK90: 0 | AL90: 0 | AM90: 0 | AN90: =$E$9* | AO90: =$E$9*0 | AP90: =$E$9*0 | AT90: 0 | AU90: 0 | AZ90: 0 | BA90: 0 | BB90: =$P$96* | BC90: =$P$96*0
A91: C21OP | B91: 0.0125727 | C91: 0 | D91: 0 | E91: 0 | G91: C21OP | H91: 1.3355e-27 | K91: 0.0125727 | L91: 1.638584723e-07 | M91: =$E$6* | N91: =$E$6*1.63858472322467E-07 | S91: 0 | T91: 0 | U91: 0 | V91: 0 | W91: =$E$10* | X91: =$E$10*0 | Y91: =$E$10*0 | AA91: 2.961e-26 | AB91: 0 | AC91: 3.616209853e-31 | AD91: 0 | AE91: =$E$9* | AF91: =$E$9*3.61620985301774E-31 | AG91: =$E$9*0 | AJ91: 0 | AK91: 0 | AL91: 0 | AM91: 0 | AN91: =$E$9* | AO91: =$E$9*0 | AP91: =$E$9*0 | AT91: 0 | AU91: 0 | AZ91: 0 | BA91: 0 | BB91: =$P$96* | BC91: =$P$96*0
A92: C22OP | B92: 0.0102238 | C92: 0 | D92: 0 | E92: 0 | G92: C22OP | H92: 4.7769e-29 | K92: 0.0102238 | L92: 1.332455439e-07 | M92: =$E$6* | N92: =$E$6*1.33245543863326E-07 | S92: 0 | T92: 0 | U92: 0 | V92: 0 | W92: =$E$10* | X92: =$E$10*0 | Y92: =$E$10*0 | AA92: 1.1518e-26 | AB92: 0 | AC92: 1.406670216e-31 | AD92: 0 | AE92: =$E$9* | AF92: =$E$9*1.40667021570612E-31 | AG92: =$E$9*0 | AJ92: 0 | AK92: 0 | AL92: 0 | AM92: 0 | AN92: =$E$9* | AO92: =$E$9*0 | AP92: =$E$9*0 | AT92: 0 | AU92: 0 | AZ92: 0 | BA92: 0 | BB92: =$P$96* | BC92: =$P$96*0
A93: C23OP | B93: 0.00816935 | C93: 0 | D93: 0 | E93: 0 | G93: C23OP | H93: 0 | K93: 0.00816935 | L93: 1.064701465e-07 | M93: =$E$6* | N93: =$E$6*1.06470146497375E-07 | S93: 0 | T93: 0 | U93: 0 | V93: 0 | W93: =$E$10* | X93: =$E$10*0 | Y93: =$E$10*0 | AA93: 4.526e-27 | AB93: 0 | AC93: 5.527512933e-32 | AD93: 0 | AE93: =$E$9* | AF93: =$E$9*5.52751293304907E-32 | AG93: =$E$9*0 | AJ93: 0 | AK93: 0 | AL93: 0 | AM93: 0 | AN93: =$E$9* | AO93: =$E$9*0 | AP93: =$E$9*0 | AT93: 0 | AU93: 0 | AZ93: 0 | BA93: 0 | BB93: =$P$96* | BC93: =$P$96*0
A94: C24OP | B94: 0.00644251 | C94: 0 | D94: 0 | E94: 0 | G94: C24OP | H94: 0 | K94: 0.00644251 | L94: 8.396445048e-08 | M94: =$E$6* | N94: =$E$6*8.39644504777984E-08 | S94: 0 | T94: 0 | U94: 0 | V94: 0 | W94: =$E$10* | X94: =$E$10*0 | Y94: =$E$10*0 | AA94: 1.8091e-27 | AB94: 0 | AC94: 2.209417509e-32 | AD94: 0 | AE94: =$E$9* | AF94: =$E$9*2.20941750931928E-32 | AG94: =$E$9*0 | AJ94: 0 | AK94: 0 | AL94: 0 | AM94: 0 | AN94: =$E$9* | AO94: =$E$9*0 | AP94: =$E$9*0 | AT94: 0 | AU94: 0 | AZ94: 0 | BA94: 0 | BB94: =$P$96* | BC94: =$P$96*0
A95: C25OP | B95: 0.00502908 | C95: 0 | D95: 0 | E95: 0 | G95: C25OP | H95: 0 | K95: 0.00502908 | L95: 6.554338893e-08 | M95: =$E$6* | N95: =$E$6*6.55433889289867E-08 | S95: 0 | T95: 0 | U95: =S95/$H$14 -> 0 | V95: =T95/$H$14 -> 0 | W95: =$E$10* | X95: =$E$10*0 | Y95: =$E$10*0 | AA95: 7.3521e-28 | AB95: 0 | AC95: 8.978972124e-33 | AD95: 0 | AE95: =$E$9* | AF95: =$E$9*8.97897212440788E-33 | AG95: =$E$9*0 | AJ95: 0 | AK95: 0 | AL95: 0 | AM95: 0 | AN95: =$E$9* | AO95: =$E$9*0 | AP95: =$E$9*0 | AT95: 0 | AU95: 0 | AZ95: 0 | BA95: 0 | BB95: =$P$96* | BC95: =$P$96*0
A96: C26OP | B96: 0.00387685 | C96: 0 | D96: 0 | E96: 0 | G96: C26OP | H96: 0 | K96: 0.00387685 | L96: 5.052651526e-08 | M96: =$E$6* | N96: =$E$6*5.05265152611098E-08 | S96: 0 | T96: 0 | U96: 0 | V96: 0 | W96: =$E$10* | X96: =$E$10*0 | Y96: =$E$10*0 | AA96: 2.9803e-28 | AB96: 0 | AC96: 3.639780556e-33 | AD96: 0 | AE96: =$E$9* | AF96: =$E$9*3.63978055553825E-33 | AG96: =$E$9*0 | AJ96: 0 | AK96: 0 | AL96: 0 | AM96: 0 | AN96: =$E$9* | AO96: =$E$9*0 | AP96: =$E$9*0 | AT96: 0 | AU96: 0 | AZ96: 0 | BA96: 0 | BB96: =$P$96* | BC96: =$P$96*0
A97: C27OP | B97: 0.00298181 | C97: 0 | D97: 0 | E97: 0 | G97: C27OP | H97: 0 | K97: 0.00298181 | L97: 3.886156763e-08 | M97: =$E$6* | N97: =$E$6*3.88615676311257E-08 | S97: 0 | T97: 0 | U97: 0 | V97: 0 | W97: =$E$10* | X97: =$E$10*0 | Y97: =$E$10*0 | AA97: 1.2424e-28 | AB97: 0 | AC97: 1.517318177e-33 | AD97: 0 | AE97: =$E$9* | AF97: =$E$9*1.51731817676097E-33 | AG97: =$E$9*0 | AJ97: 0 | AK97: 0 | AL97: 0 | AM97: 0 | AN97: =$E$9* | AO97: =$E$9*0 | AP97: =$E$9*0 | AT97: 0 | AU97: 0 | AZ97: 0 | BA97: 0 | BB97: =$P$96* | BC97: =$P$96*0
A98: C28OP | B98: 0.00228623 | C98: 0 | D98: 0 | E98: 0 | G98: C28OP | H98: 0 | K98: 0.00228623 | L98: 2.979615796e-08 | M98: =$E$6* | N98: =$E$6*2.97961579595308E-08 | S98: 0 | T98: 0 | U98: 0 | V98: 0 | W98: =$E$10* | X98: =$E$10*0 | Y98: =$E$10*0 | AA98: 5.2954e-29 | AB98: 0 | AC98: 6.467165706e-34 | AD98: 0 | AE98: =$E$9* | AF98: =$E$9*6.46716570606894E-34 | AG98: =$E$9*0 | AJ98: 0 | AK98: 0 | AL98: 0 | AM98: 0 | AN98: =$E$9* | AO98: =$E$9*0 | AP98: =$E$9*0 | AT98: 0 | AU98: 0 | AZ98: 0 | BA98: 0 | BB98: =$P$96* | BC98: =$P$96*0
A99: C29OP | B99: 0.00174519 | C99: 0 | D99: 0 | E99: 0 | G99: C29OP | H99: 0 | K99: 0.00174519 | L99: 2.274484934e-08 | M99: =$E$6* | N99: =$E$6*2.27448493412271E-08 | S99: 0 | T99: 0 | U99: 0 | V99: 0 | W99: =$E$10* | X99: =$E$10*0 | Y99: =$E$10*0 | AA99: 2.2422e-29 | AB99: 0 | AC99: 2.738353844e-34 | AD99: 0 | AE99: =$E$9* | AF99: =$E$9*2.73835384411901E-34 | AG99: =$E$9*0 | AJ99: 0 | AK99: 0 | AL99: 0 | AM99: 0 | AN99: =$E$9* | AO99: =$E$9*0 | AP99: =$E$9*0 | AT99: 0 | AU99: 0 | AZ99: 0 | BA99: 0 | BB99: =$P$96* | BC99: =$P$96*0
A100: C30WAX | B100: 0.000340474 | C100: 0 | D100: 0 | E100: 0 | G100: C30WAX | H100: 0 | K100: 0.000340474 | L100: 4.437356296e-09 | M100: =$E$6* | N100: =$E$6*4.43735629622273E-09 | S100: 0 | T100: 0 | U100: 0 | V100: 0 | W100: =$E$10* | X100: =$E$10*0 | Y100: =$E$10*0 | AA100: 1.4298e-34 | AB100: 0 | AC100: 1.746186034e-39 | AD100: 0 | AE100: =$E$9* | AF100: =$E$9*1.7461860343954E-39 | AG100: =$E$9*0 | AJ100: 0 | AK100: 0 | AL100: 0 | AM100: 0 | AN100: =$E$9* | AO100: =$E$9*0 | AP100: =$E$9*0 | AT100: 0 | AU100: 0 | AZ100: 0 | BA100: 0 | BB100: =$P$96* | BC100: =$P$96*0
A101: Mole Frac | G101: Mole Frac | S101: 2813.367154 | T101: 93.8538299 | W101: =$E$10* | X101: =$E$10* | Y101: =$E$10* | AA101: 17111.36143 | AB101: 4083.262177 | AC101: 0.2089776218 | AD101: 0.04986806119 | AE101: =$E$9* | AF101: =$E$9*0.208977621762275 | AG101: =$E$9*0.0498680611854387 | AJ101: =SUM(AJ10:AJ100) -> 37863.4983 | AK101: =SUM(AK10:AK100) -> 1199.03874
A102: H2 | B102: 0.1675108 | C102: 0.00107028 | D102: 0 | E102: 0 | G102: H2 | H102: 0.4250684
A103: N2 | B103: 0.0763662 | C103: 0.000720461 | D103: 0 | E103: 0 | G103: N2 | H103: 0.0488045
A104: O2 | B104: 0 | C104: 0 | D104: 0 | E104: 0 | G104: O2 | H104: 0
A105: H2S | B105: 8.10353e-09 | C105: 2.3213e-10 | D105: 0 | E105: 0 | G105: H2S | H105: 2.3034e-09
A106: CO | B106: 0.0232135 | C106: 0.000210924 | D106: 0 | E106: 0 | G106: CO | H106: 0.4536114
A107: CO2 | B107: 0.5743007 | C107: 0.0110034 | D107: 0 | E107: 0 | G107: CO2 | H107: 0.00775381
A108: H2O | B108: 0.0113439 | C108: 0.013161 | D108: 0 | E108: 0 | G108: H2O | H108: 0.0486133
A109: NH3 | B109: 0 | C109: 0 | D109: 0 | E109: 0 | G109: NH3 | H109: 0
A110: HCL | B110: 0 | C110: 0 | D110: 0 | E110: 0 | G110: HCL | H110: 0
A111: C | B111: 0 | C111: 0 | D111: 0 | E111: 0 | G111: C | H111: 0
A112: HCN | B112: 0 | C112: 0 | D112: 0 | E112: 0 | G112: HCN | H112: 0
A113: SULFUR | B113: 0 | C113: 0 | D113: 0 | E113: 0 | G113: SULFUR | H113: 0
A114: COS | B114: 0 | C114: 0 | D114: 0 | E114: 0 | G114: COS | H114: 0
A115: CH4 | B115: 0.0348147 | C115: 0.000492656 | D115: 0.1982385 | E115: 0.0287663 | G115: CH4 | H115: 0.0111629
A116: C2H4 | B116: 0.0176228 | C116: 0.00433985 | D116: 0 | E116: 0 | G116: C2H4 | H116: 0.0040349
A117: C2H6 | B117: 0.00431177 | C117: 0.0212819 | D117: 0.2723799 | E117: 0.0153473 | G117: C2H6 | H117: 0.000843709
A118: C3H6 | B118: 0.00745287 | C118: 0.4344958 | D118: 0 | E118: 0 | G118: C3H6 | H118: 8.84076e-05
A119: C3H8 | B119: 0.0013426 | C119: 0.0771767 | D119: 0.2519991 | E119: 0.3136752 | G119: C3H8 | H119: 1.14973e-05
A120: IC4H8 | B120: 0.000343724 | C120: 0.0174491 | D120: 0 | E120: 0 | G120: IC4H8 | H120: 2.59944e-07
A121: NC4H8 | B121: 0.00656647 | C121: 0.3314238 | D121: 0 | E121: 0 | G121: NC4H8 | H121: 4.75418e-06
A122: IC4H10 | B122: 8.54118e-05 | C122: 0.00435537 | D122: 0.1409132 | E122: 0.3151457 | G122: IC4H10 | H122: 9.23149e-08
A123: NC4H10 | B123: 0.00169827 | C123: 0.0828186 | D123: 0.1364693 | E123: 0.3270654 | G123: NC4H10 | H123: 1.49996e-06
A124: C5H10 | B124: 0.00613445 | C124: 0 | D124: 0 | E124: 0 | G124: C5H10 | H124: 3.38866e-07
A125: NC5H12 | B125: 0.00195231 | C125: 0 | D125: 0 | E125: 0 | G125: NC5H12 | H125: 6.49503e-08
A126: IC5H12 | B126: 0.000211335 | C126: 0 | D126: 0 | E126: 0 | G126: IC5H12 | H126: 1.52968e-08
A127: C6H12 | B127: 0.00595515 | C127: 0 | D127: 0 | E127: 0 | G127: C6H12 | H127: 1.734e-08
A128: NC6H14 | B128: 0.00182509 | C128: 0 | D128: 0 | E128: 0 | G128: NC6H14 | H128: 3.49998e-09
A129: IC6H14 | B129: 0.000197264 | C129: 0 | D129: 0 | E129: 0 | G129: IC6H14 | H129: 8.5297e-10
A130: C7H14 | B130: 0.00504232 | C130: 0 | D130: 0 | E130: 0 | G130: C7H14 | H130: 4.7253e-10
A131: C7H16 | B131: 0.00219271 | C131: 0 | D131: 0 | E131: 0 | G131: C7H16 | H131: 2.4726e-10
A132: C8H16 | B132: 0.00443993 | C132: 0 | D132: 0 | E132: 0 | G132: C8H16 | H132: 2.4305e-11
A133: C8H18 | B133: 0.00191196 | C133: 0 | D133: 0 | E133: 0 | G133: C8H18 | H133: 7.4939e-12
A134: C9H18 | B134: 0.00383784 | C134: 0 | D134: 0 | E134: 0 | G134: C9H18 | H134: 7.4652e-13
A135: C9H20 | B135: 0.00165079 | C135: 0 | D135: 0 | E135: 0 | G135: C9H20 | H135: 1.7252e-13
A136: C10H20 | B136: 0.00326158 | C136: 0 | D136: 0 | E136: 0 | G136: C10H20 | H136: 1.0817e-14
A137: C10H22 | B137: 0.00141051 | C137: 0 | D137: 0 | E137: 0 | G137: C10H22 | H137: 6.6208e-15
A138: C11H22 | B138: 0.00273339 | C138: 0 | D138: 0 | E138: 0 | G138: C11H22 | H138: 3.1447e-16
A139: C11H24 | B139: 0.00117015 | C139: 0 | D139: 0 | E139: 0 | G139: C11H24 | H139: 1.3623e-16
A140: C12H24 | B140: 0.00226585 | C140: 0 | D140: 0 | E140: 0 | G140: C12H24 | H140: 5.512e-18
A141: C12H26 | B141: 0.000968668 | C141: 0 | D141: 0 | E141: 0 | G141: C12H26 | H141: 2.2353e-18
A142: C13H26 | B142: 0.00185716 | C142: 0 | D142: 0 | E142: 0 | G142: C13H26 | H142: 1.1804e-19
A143: C13H28 | B143: 0.000795098 | C143: 0 | D143: 0 | E143: 0 | G143: C13H28 | H143: 1.3052e-20
A144: C14H28 | B144: 0.00150493 | C144: 0 | D144: 0 | E144: 0 | G144: C14H28 | H144: 2.3194e-21
A145: C14H30 | B145: 0.000642417 | C145: 0 | D145: 0 | E145: 0 | G145: C14H30 | H145: 8.166e-23
A146: C15H30 | B146: 0.00120663 | C146: 0 | D146: 0 | E146: 0 | G146: C15H30 | H146: 5.4007e-23
A147: C15H32 | B147: 0.000516392 | C147: 0 | D147: 0 | E147: 0 | G147: C15H32 | H147: 3.5731e-24
A148: C16H32 | B148: 0.000951411 | C148: 0 | D148: 0 | E148: 0 | G148: C16H32 | H148: 1.852e-24
A149: C16H34 | B149: 0.000411629 | C149: 0 | D149: 0 | E149: 0 | G149: C16H34 | H149: 1.6355e-25
A150: C17H34 | B150: 0.000751803 | C150: 0 | D150: 0 | E150: 0 | G150: C17H34 | H150: 1.0001e-26
A151: C17H36 | B151: 0.000316735 | C151: 0 | D151: 0 | E151: 0 | G151: C17H36 | H151: 4.413e-27
A152: C18H36 | B152: 0.000563268 | C152: 0 | D152: 0 | E152: 0 | G152: C18H36 | H152: 3.053e-27
A153: C18H38 | B153: 0.000240881 | C153: 0 | D153: 0 | E153: 0 | G153: C18H38 | H153: 4.617e-28
A154: C19H38 | B154: 0.00043108 | C154: 0 | D154: 0 | E154: 0 | G154: C19H38 | H154: 3.0217e-30
A155: C19H40 | B155: 0.000178602 | C155: 0 | D155: 0 | E155: 0 | G155: C19H40 | H155: 2.3102e-29
A156: C20H40 | B156: 0.000312663 | C156: 0 | D156: 0 | E156: 0 | G156: C20H40 | H156: 3.6396e-32
A157: C20H42 | B157: 0.000128575 | C157: 0 | D157: 0 | E157: 0 | G157: C20H42 | H157: 2.2803e-32
A158: ALKYLATE | B158: 0 | C158: 0 | D158: 0 | E158: 0 | G158: ALKYLATE | H158: 0
A159: ISOMERAT | B159: 0 | C159: 0 | D159: 0 | E159: 0 | G159: ISOMERAT | H159: 0
A160: REFORMAT | B160: 0 | C160: 0 | D160: 0 | E160: 0 | G160: REFORMAT | H160: 0
A161: C7-300HC | B161: 0 | C161: 0 | D161: 0 | E161: 0 | G161: C7-300HC | H161: 0
A162: 3-350HC | B162: 0 | C162: 0 | D162: 0 | E162: 0 | G162: 3-350HC | H162: 0
A163: 350-5HC | B163: 0 | C163: 0 | D163: 0 | E163: 0 | G163: 350-5HC | H163: 0
A164: 500+HC | B164: 0 | C164: 0 | D164: 0 | E164: 0 | G164: 500+HC | H164: 0
A165: C7-300HT | B165: 0 | C165: 0 | D165: 0 | E165: 0 | G165: C7-300HT | H165: 0
A166: 3-350HT | B166: 0 | C166: 0 | D166: 0 | E166: 0 | G166: 3-350HT | H166: 0
A167: 350-5HT | B167: 0 | C167: 0 | D167: 0 | E167: 0 | G167: 350-5HT | H167: 0
A168: 500+HT | B168: 0 | C168: 0 | D168: 0 | E168: 0 | G168: 500+HT | H168: 0
A169: OXVAP | B169: 0.00147521 | C169: 0 | D169: 0 | E169: 0 | G169: OXVAP | H169: 0
A170: OXHC | B170: 0.00669363 | C170: 0 | D170: 0 | E170: 0 | G170: OXHC | H170: 8.1877e-13
A171: OXH2O | B171: 0.00532487 | C171: 0 | D171: 0 | E171: 0 | G171: OXH2O | H171: 0
A172: C5N | B172: 0 | C172: 0 | D172: 0 | E172: 0 | G172: C5N | H172: 0
A173: C6N | B173: 0 | C173: 0 | D173: 0 | E173: 0 | G173: C6N | H173: 0
A174: C7N | B174: 0 | C174: 0 | D174: 0 | E174: 0 | G174: C7N | H174: 0
A175: C8N | B175: 0 | C175: 0 | D175: 0 | E175: 0 | G175: C8N | H175: 0
A176: C9N | B176: 0 | C176: 0 | D176: 0 | E176: 0 | G176: C9N | H176: 0
A177: C10N | B177: 0 | C177: 0 | D177: 0 | E177: 0 | G177: C10N | H177: 0
A178: C6A | B178: 0 | C178: 0 | D178: 0 | E178: 0 | G178: C6A | H178: 0
A179: C7A | B179: 0 | C179: 0 | D179: 0 | E179: 0 | G179: C7A | H179: 0
A180: C8A | B180: 0 | C180: 0 | D180: 0 | E180: 0 | G180: C8A | H180: 0
A181: C9A | B181: 0 | C181: 0 | D181: 0 | E181: 0 | G181: C9A | H181: 0
A182: C10AP | B182: 0 | C182: 0 | D182: 0 | E182: 0 | G182: C10AP | H182: 0
A183: C21OP | B183: 0.000365877 | C183: 0 | D183: 0 | E183: 0 | G183: C21OP | H183: 7.3985e-33
A184: C22OP | B184: 0.000297523 | C184: 0 | D184: 0 | E184: 0 | G184: C22OP | H184: 2.6463e-34
A185: C23OP | B185: 0.000237735 | C185: 0 | D185: 0 | E185: 0 | G185: C23OP | H185: 0
A186: C24OP | B186: 0.000187482 | C186: 0 | D186: 0 | E186: 0 | G186: C24OP | H186: 0
A187: C25OP | B187: 0.00014635 | C187: 0 | D187: 0 | E187: 0 | G187: C25OP | H187: 0
A188: C26OP | B188: 0.00011282 | C188: 0 | D188: 0 | E188: 0 | G188: C26OP | H188: 0
A189: C27OP | B189: 8.67732e-05 | C189: 0 | D189: 0 | E189: 0 | G189: C27OP | H189: 0
A190: C28OP | B190: 6.65312e-05 | C190: 0 | D190: 0 | E190: 0 | G190: C28OP | H190: 0
A191: C29OP | B191: 5.07865e-05 | C191: 0 | D191: 0 | E191: 0 | G191: C29OP | H191: 0
A192: C30WAX | B192: 9.90806e-06 | C192: 0 | D192: 0 | E192: 0 | G192: C30WAX | H192: 0
A193: Mass Flow lb/hr | G193: Mass Flow lb/hr
A194: H2 | B194: 11.6034 | C194: 1.524306 | D194: 0 | E194: 0 | G194: H2 | H194: 154670
A195: N2 | B195: 73.51262 | C195: 14.25952 | D195: 0 | E195: 0 | G195: N2 | H195: 246790
A196: O2 | B196: 0 | C196: 0 | D196: 0 | E196: 0 | G196: O2 | H196: 0
A197: H2S | B197: 9.48888e-06 | C197: 5.58866e-06 | D197: 0 | E197: 0 | G197: H2S | H197: 0.0141682
A198: CO | B198: 22.34375 | C198: 4.174204 | D198: 0 | E198: 0 | G198: CO | H198: 2293530
A199: CO2 | B199: 868.5277 | C199: 342.1416 | D199: 0 | E199: 0 | G199: CO2 | H199: 61597.84
A200: H2O | B200: 7.022621 | C200: 167.517 | D200: 0 | E200: 0 | G200: H2O | H200: 158087
A201: NH3 | B201: 0 | C201: 0 | D201: 0 | E201: 0 | G201: NH3 | H201: 0
... 381 more rows

Sheet Supp Data 3 (hidden)
A1: Review Product Distribution of FT Plant
B2: 204S14 | C2: 201S23 | D2: 201S3
B3: P204H3 | C3: P201S3 | D3: P201F | L3: =D9-G9*D13 -> 128349.8236
B4: P204S2 | C4: P201S2 | D4: P201M1
B5: VAPOR | C5: MIXED | D5: VAPOR
A7: Substream: MIXED
A8: Mole Flow lbmol/hr
A9: H2 | B9: 26848.61 | C9: 26848.65 | D9: 76729.02 | E9: =B9/C9 -> 0.9999985102 | G9: =IF(D9=0,0,((C9-D9)/($D$13-$C$13))) -> -0.6304345109 | H9: -0.6304345109 | I9: = | J9: *(E6 | K9: + | L9: *0.96628425949707*$E$10) | M9: =CONCATENATE(I9,E9,J9,K9,H9,L9) -> =0.999998510167178*(E6+-0.630434510871698*0.96628425949707*$E$10) | P9: =H9*P13 -> 51620.80362
A10: N2 | B10: 8806.585 | C10: 8806.572 | D10: 8809.705 | E10: =B10/C10 -> 1.000001476 | G10: =IF(D10=0,0,((C10-D10)/($D$13-$C$13))) -> -3.959776807e-05 | H10: -3.959776807e-05 | I10: = | J10: *(E7 | K10: + | L10: *0.96628425949707*$E$10) | M10: =CONCATENATE(I10,E10,J10,K10,H10,L10) -> =1.0000014761703*(E7+-3.95977680711051E-05*0.96628425949707*$E$10)
A11: O2 | B11: 0 | C11: 0 | D11: 0 | E11: 0 | G11: 0 | H11: 0 | I11: = | J11: *(E8 | K11: + | L11: *0.96628425949707*$E$10) | M11: =0*(E8+0*0.96628425949707*$E$10)
A12: H2S | B12: 0.000410481 | C12: 0.000415344 | D12: 0.000415786 | E12: =B12/C12 -> 0.988291633 | G12: -5.586407114e-12 | H12: -5.586407114e-12 | I12: = | J12: *(E9 | K12: + | L12: *0.96628425949707*$E$10) | M12: =0.988291632959667*(E9+-5.58640711376647E-12*0.96628425949707*$E$10)
A13: CO | B13: 2760.673 | C13: 2760.689 | D13: 81881.31 | E13: 0.9999942043 | G13: -1 | H13: -1 | I13: = | J13: *(E10 | K13: + | L13: =(1-0.96628425949707)*$E$10 | M13: =CONCATENATE(L13) -> =(1-0.96628425949707)*$E$10 | P13: =G13*D13 -> -81881.31
A14: CO2 | B14: 112.5786 | C14: 37979.68 | D14: 1399.639 | E14: 0.002964179793 | G14: 0.462332582 | H14: 0.462332582 | I14: = | J14: *(E11 | K14: + | L14: *0.96628425949707*$E$10) | M14: =0.00296417979298404*(E11+0.462332582045836*0.96628425949707*$E$10) | O14: =0.00296417979298404*(D14+0.462332582045836*0.96628425949707*$D$13) -> 112.5786
A15: H2O | B15: 0 | C15: 14137.73 | D15: 8775.195 | E15: 0 | G15: 0.06777670514 | H15: 0.06777670514 | I15: = | J15: *(E12 | K15: + | L15: *0.96628425949707*$E$10) | M15: =0*(E12+0.0677767051398649*0.96628425949707*$E$10)
A16: NH3 | B16: 0 | C16: 0 | D16: 0 | E16: 0 | G16: 0 | H16: 0 | I16: = | J16: *(E13 | K16: + | L16: *0.96628425949707*$E$10) | M16: =0*(E13+0*0.96628425949707*$E$10)
A17: HCL | B17: 0 | C17: 0 | D17: 0 | E17: 0 | G17: 0 | H17: 0 | I17: = | J17: *(E14 | K17: + | L17: *0.96628425949707*$E$10) | M17: =0*(E14+0*0.96628425949707*$E$10)
A18: C | B18: 0 | C18: 0 | D18: 0 | E18: 0 | G18: 0 | H18: 0 | I18: = | J18: *(E15 | K18: + | L18: *0.96628425949707*$E$10) | M18: =0*(E15+0*0.96628425949707*$E$10)
A19: HCN | B19: 0 | C19: 0 | D19: 0 | E19: 0 | G19: 0 | H19: 0 | I19: = | J19: *(E16 | K19: + | L19: *0.96628425949707*$E$10) | M19: =0*(E16+0*0.96628425949707*$E$10)
A20: SULFUR | B20: 0 | C20: 0 | D20: 0 | E20: 0 | G20: 0 | H20: 0 | I20: = | J20: *(E17 | K20: + | L20: *0.96628425949707*$E$10) | M20: =0*(E17+0*0.96628425949707*$E$10)
A21: COS | B21: 0 | C21: 0 | D21: 0 | E21: 0 | G21: 0 | H21: 0 | I21: = | J21: *(E18 | K21: + | L21: *0.96628425949707*$E$10) | M21: =0*(E18+0*0.96628425949707*$E$10)
A22: CH4 | B22: 2908.299 | C22: 2908.351 | D22: 2015.015 | E22: 0.9999821205 | G22: 0.01129081128 | H22: 0.01129081128 | I22: = | J22: *(E19 | K22: + | L22: *0.96628425949707*$E$10) | M22: =0.999982120452449*(E19+0.0112908112791481*0.96628425949707*$E$10)
A23: C2H4 | B23: 1077.437 | C23: 1080.294 | D23: 728.3391 | E23: 0.9973553496 | G23: 0.004448333387 | H23: 0.004448333387 | I23: = | J23: *(E20 | K23: + | L23: *0.96628425949707*$E$10) | M23: =0.997355349562249*(E20+0.00444833338706985*0.96628425949707*$E$10)
A24: C2H6 | B24: 225.2951 | C24: 240.281 | D24: 152.2978 | E24: 0.9376317728 | G24: 0.001112013517 | H24: 0.001112013517 | I24: = | J24: *(E21 | K24: + | L24: *0.96628425949707*$E$10) | M24: =0.937631772799347*(E21+0.00111201351667854*0.96628425949707*$E$10)
A25: C3H6 | B25: 23.60741 | C25: 330.3878 | D25: 15.95843 | E25: 0.07145363721 | G25: 0.003974050836 | H25: 0.003974050836 | I25: = | J25: *(E22 | K25: + | L25: *0.96628425949707*$E$10) | M25: =0.071453637210575*(E22+0.00397405083562223*0.96628425949707*$E$10)
A26: C3H8 | B26: 3.070114 | C26: 57.55904 | D26: 2.075374 | E26: 0.05333851989 | G26: 0.0007012541775 | H26: 0.0007012541775 | I26: = | J26: *(E23 | K26: + | L26: *0.96628425949707*$E$10) | M26: =0.0533385198919231*(E23+0.00070125417746658*0.96628425949707*$E$10)
A27: IC4H8 | B27: 0.0694127 | C27: 12.38403 | D27: 0.0469225 | E27: 0.005605017107 | G27: 0.0001559278396 | H27: 0.0001559278396 | I27: = | J27: *(E24 | K27: + | L27: *0.96628425949707*$E$10) | M27: =0.00560501710670921*(E24+0.000155927839595698*0.96628425949707*$E$10)
A28: NC4H8 | B28: 1.269505 | C28: 235.1656 | D28: 0.8581759 | E28: 0.005398344826 | G28: 0.00296139516 | H28: 0.00296139516 | I28: = | J28: *(E25 | K28: + | L28: *0.96628425949707*$E$10) | M28: =0.00539834482594393*(E25+0.00296139516018207*0.96628425949707*$E$10)
A29: IC4H10 | B29: 0.0246507 | C29: 3.098505 | D29: 0.0166637 | E29: 0.007955675398 | G29: 3.895117684e-05 | H29: 3.895117684e-05 | I29: = | J29: *(E26 | K29: + | L29: *0.96628425949707*$E$10) | M29: =0.00795567539829692*(E26+3.89511768366934E-05*0.96628425949707*$E$10)
A30: NC4H10 | B30: 0.4005343 | C30: 58.84084 | D30: 0.2707582 | E30: 0.006807079913 | G30: 0.0007402631711 | H30: 0.0007402631711 | I30: = | J30: *(E27 | K30: + | L30: *0.96628425949707*$E$10) | M30: =0.00680707991252334*(E27+0.000740263171089115*0.96628425949707*$E$10)
A31: C5H10 | B31: 0.0904872 | C31: 192.7549 | D31: 0.0611686 | E31: 0.0004694417626 | G31: 0.002435442606 | H31: 0.002435442606 | I31: = | J31: *(E28 | K31: + | L31: *0.96628425949707*$E$10) | M31: =0.000469441762569979*(E28+0.00243544260604325*0.96628425949707*$E$10)
A32: NC5H12 | B32: 0.0173436 | C32: 57.7929 | D32: 0.0117241 | E32: 0.0003000991471 | G32: 0.0007302922445 | H32: 0.0007302922445 | I32: = | J32: *(E29 | K32: + | L32: *0.96628425949707*$E$10) | M32: =0.000300099147127069*(E29+0.000730292244546463*0.96628425949707*$E$10)
A33: IC5H12 | B33: 0.00408469 | C33: 6.421397 | D33: 0.00276122 | E33: 0.0006361061308 | G33: 8.11246891e-05 | H33: 8.11246891e-05 | I33: = | J33: *(E30 | K33: + | L33: *0.96628425949707*$E$10) | M33: =0.000636106130799887*(E30+8.11246890996975E-05*0.96628425949707*$E$10)
A34: C6H12 | B34: 0.0046303 | C34: 160.6066 | D34: 0.00313005 | E34: 2.883007299e-05 | G34: 0.002029856034 | H34: 0.002029856034 | I34: = | J34: *(E31 | K34: + | L34: *0.96628425949707*$E$10) | M34: =2.88300729857926E-05*(E31+0.00202985603399144*0.96628425949707*$E$10)
A35: NC6H14 | B35: 0.000934597 | C35: 48.16368 | D35: 0.000631781 | E35: 1.940460114e-05 | G35: 0.0006087294009 | H35: 0.0006087294009 | I35: = | J35: *(E32 | K35: + | L35: *0.96628425949707*$E$10) | M35: =1.94046011434342E-05*(E32+0.000608729400885263*0.96628425949707*$E$10)
A36: IC6H14 | B36: 0.000227768 | C36: 5.355071 | D36: 0.00015397 | E36: 4.253314288e-05 | G36: 6.768042215e-05 | H36: 6.768042215e-05 | I36: = | J36: *(E33 | K36: + | L36: *0.96628425949707*$E$10) | M36: =4.25331428845668E-05*(E33+6.76804221493661E-05*0.96628425949707*$E$10)
A37: C7H14 | B37: 0.00012618 | C37: 124.7082 | D37: 8.52966e-05 | E37: 1.01180195e-06 | G37: 0.001576177147 | H37: 0.001576177147 | I37: = | J37: *(E34 | K37: + | L37: *0.96628425949707*$E$10) | M37: =1.01180195047318E-06*(E34+0.00157617714733811*0.96628425949707*$E$10)
A38: C7H16 | B38: 6.6025e-05 | C38: 53.4223 | D38: 4.46324e-05 | E38: 1.235907102e-06 | G38: 0.0006752001525 | H38: 0.0006752001525 | I38: = | J38: *(E35 | K38: + | L38: *0.96628425949707*$E$10) | M38: =1.2359071024647E-06*(E35+0.000675200152531664*0.96628425949707*$E$10)
A39: C8H16 | B39: 6.49017e-06 | C39: 103.7653 | D39: 4.38731e-06 | E39: 6.254663168e-08 | G39: 0.00131148232 | H39: 0.00131148232 | I39: = | J39: *(E36 | K39: + | L39: *0.96628425949707*$E$10) | M39: =6.2546631677449E-08*(E36+0.00131148232030042*0.96628425949707*$E$10)
A40: C8H18 | B40: 2.00109e-06 | C40: 44.439 | D40: 1.35272e-06 | E40: 4.503004118e-08 | G40: 0.0005616613986 | H40: 0.0005616613986 | I40: = | J40: *(E37 | K40: + | L40: *0.96628425949707*$E$10) | M40: =4.50300411800446E-08*(E37+0.00056166139857876*0.96628425949707*$E$10)
A41: C9H18 | B41: 1.99343e-07 | C41: 86.17835 | D41: 1.34754e-07 | E41: 2.313144775e-09 | G41: 0.001089202142 | H41: 0.001089202142 | I41: = | J41: *(E38 | K41: + | L41: *0.96628425949707*$E$10) | M41: =2.31314477476071E-09*(E38+0.00108920214194535*0.96628425949707*$E$10)
A42: C9H20 | B42: 4.60676e-08 | C42: 36.90244 | D42: 3.11414e-08 | E42: 1.248361897e-09 | G42: 0.0004664073601 | H42: 0.0004664073601 | I42: = | J42: *(E39 | K42: + | L42: *0.96628425949707*$E$10) | M42: =1.2483618969369E-09*(E39+0.00046640736008453*0.96628425949707*$E$10)
A43: C10H20 | B43: 2.88836e-09 | C43: 71.46088 | D43: 1.95251e-09 | E43: 4.041875779e-11 | G43: 0.0009031890687 | H43: 0.0009031890687 | I43: = | J43: *(E40 | K43: + | L43: *0.96628425949707*$E$10) | M43: =4.04187577874776E-11*(E40+0.000903189068726438*0.96628425949707*$E$10)
A44: C10H22 | B44: 1.76795e-09 | C44: 30.56618 | D44: 1.19512e-09 | E44: 5.78400703e-11 | G44: 0.0003863238131 | H44: 0.0003863238131 | I44: = | J44: *(E41 | K44: + | L44: *0.96628425949707*$E$10) | M44: =5.78400702999197E-11*(E41+0.000386323813090457*0.96628425949707*$E$10)
A45: C11H22 | B45: 8.3972e-11 | C45: 59.03652 | D45: 5.6765e-11 | E45: 1.422373812e-12 | G45: 0.0007461584509 | H45: 0.0007461584509 | I45: = | J45: *(E42 | K45: + | L45: *0.96628425949707*$E$10) | M45: =1.42237381200653E-12*(E42+0.000746158450904262*0.96628425949707*$E$10)
A46: C11H24 | B46: 3.6377e-11 | C46: 25.26735 | D46: 2.4591e-11 | E46: 1.439684019e-12 | G46: 0.000319352271 | H46: 0.000319352271 | I46: = | J46: *(E43 | K46: + | L46: *0.96628425949707*$E$10) | M46: =1.43968401909975E-12*(E43+0.000319352271008786*0.96628425949707*$E$10)
A47: C12H24 | B47: 1.4719e-12 | C47: 48.59093 | D47: 9.9498e-13 | E47: 3.029166143e-14 | G47: 0.0006141373688 | H47: 0.0006141373688 | I47: = | J47: *(E44 | K47: + | L47: *0.96628425949707*$E$10) | M47: =3.02916614273487E-14*(E44+0.000614137368815634*0.96628425949707*$E$10)
A48: C12H26 | B48: 5.9689e-13 | C48: 20.78451 | D48: 4.0349e-13 | E48: 2.871802126e-14 | G48: 0.0002626939695 | H48: 0.0002626939695 | I48: = | J48: *(E45 | K48: + | L48: *0.96628425949707*$E$10) | M48: =2.87180212571766E-14*(E45+0.000262693969502585*0.96628425949707*$E$10)
A49: C13H26 | B49: 3.152e-14 | C49: 39.77942 | D49: 2.1307e-14 | E49: 7.923695217e-16 | G49: 0.0005027693097 | H49: 0.0005027693097 | I49: = | J49: *(E46 | K49: + | L49: *0.96628425949707*$E$10) | M49: =7.92369521727567E-16*(E46+0.000502769309659488*0.96628425949707*$E$10)
A50: C13H28 | B50: 3.4852e-15 | C50: 17.00453 | D50: 2.356e-15 | E50: 2.049571497e-16 | G50: 0.0002149190664 | H50: 0.0002149190664 | I50: = | J50: *(E47 | K50: + | L50: *0.96628425949707*$E$10) | M50: =2.04957149653651E-16*(E47+0.000214919066421382*0.96628425949707*$E$10)
A51: C14H28 | B51: 6.1936e-16 | C51: 32.32005 | D51: 4.1868e-16 | E51: 1.916333669e-17 | G51: 0.0004084908535 | H51: 0.0004084908535 | I51: = | J51: *(E48 | K51: + | L51: *0.96628425949707*$E$10) | M51: =1.91633366903826E-17*(E48+0.000408490853478008*0.96628425949707*$E$10)
A52: C14H30 | B52: 2.1806e-17 | C52: 13.75454 | D52: 1.474e-17 | E52: 1.58536745e-18 | G52: 0.0001738426699 | H52: 0.0001738426699 | I52: = | J52: *(E49 | K52: + | L52: *0.96628425949707*$E$10) | M52: =1.58536744958392E-18*(E49+0.000173842669915344*0.96628425949707*$E$10)
A53: C15H30 | B53: 1.4421e-17 | C53: 26.02923 | D53: 9.7488e-18 | E53: 5.540309875e-19 | G53: 0.0003289816191 | H53: 0.0003289816191 | I53: = | J53: *(E50 | K53: + | L53: *0.96628425949707*$E$10) | M53: =5.54030987470624E-19*(E50+0.000328981619090174*0.96628425949707*$E$10)
A54: C15H32 | B54: 9.5412e-19 | C54: 11.10544 | D54: 6.4498e-19 | E54: 8.591465084e-20 | G54: 0.0001403608801 | H54: 0.0001403608801 | I54: = | J54: *(E51 | K54: + | L54: *0.96628425949707*$E$10) | M54: =8.59146508377876E-20*(E51+0.000140360880130099*0.96628425949707*$E$10)
A55: C16H32 | B55: 4.9455e-19 | C55: 20.68554 | D55: 3.3431e-19 | E55: 2.39080053e-20 | G55: 0.0002614430946 | H55: 0.0002614430946 | I55: = | J55: *(E52 | K55: + | L55: *0.96628425949707*$E$10) | M55: =2.39080053022546E-20*(E52+0.000261443094588451*0.96628425949707*$E$10)
A56: C16H34 | B56: 4.3673e-20 | C56: 8.903845 | D56: 2.9523e-20 | E56: 4.904959599e-21 | G56: 0.0001125350748 | H56: 0.0001125350748 | I56: = | J56: *(E53 | K56: + | L56: *0.96628425949707*$E$10) | M56: =4.90495959891485E-21*(E53+0.00011253507476894*0.96628425949707*$E$10)
A57: C17H34 | B57: 2.6706e-21 | C57: 16.32576 | D57: 1.8053e-21 | E57: 1.635819711e-22 | G57: 0.0002063401398 | H57: 0.0002063401398 | I57: = | J57: *(E54 | K57: + | L57: *0.96628425949707*$E$10) | M57: =1.63581971069034E-22*(E54+0.000206340139822714*0.96628425949707*$E$10)
A58: C17H36 | B58: 1.1784e-21 | C58: 6.912891 | D58: 7.966e-22 | E58: 1.704641372e-22 | G58: 8.737154629e-05 | H58: 8.737154629e-05 | I58: = | J58: *(E55 | K58: + | L58: *0.96628425949707*$E$10) | M58: =1.70464137218423E-22*(E55+8.73715462875348E-05*0.96628425949707*$E$10)
A59: C18H36 | B59: 8.1524e-22 | C59: 12.48677 | D59: 5.5109e-22 | E59: 6.528830114e-23 | G59: 0.0001578194135 | H59: 0.0001578194135 | I59: = | J59: *(E56 | K59: + | L59: *0.96628425949707*$E$10) | M59: =6.52883011379244E-23*(E56+0.000157819413475028*0.96628425949707*$E$10)
A60: C18H38 | B60: 1.2329e-22 | C60: 5.316476 | D60: 8.3341e-23 | E60: 2.319017334e-23 | G60: 6.719456866e-05 | H60: 6.719456866e-05 | I60: = | J60: *(E57 | K60: + | L60: *0.96628425949707*$E$10) | M60: =2.31901733403856E-23*(E57+6.71945686573921E-05*0.96628425949707*$E$10)
A61: C19H38 | B61: 8.0688e-25 | C61: 9.494023 | D61: 5.4545e-25 | E61: 8.498820784e-26 | G61: 0.0001199942933 | H61: 0.0001199942933 | I61: = | J61: *(E58 | K61: + | L61: *0.96628425949707*$E$10) | M61: =8.49882078440299E-26*(E58+0.000119994293270271*0.96628425949707*$E$10)
A62: C19H40 | B62: 6.169e-24 | C62: 3.98644 | D62: 4.1702e-24 | E62: 1.547496011e-24 | G62: 5.038433659e-05 | H62: 5.038433659e-05 | I62: = | J62: *(E59 | K62: + | L62: *0.96628425949707*$E$10) | M62: =1.54749601147891E-24*(E59+5.03843365941225E-05*0.96628425949707*$E$10)
A63: C20H40 | B63: 9.7188e-27 | C63: 6.94135 | D63: 6.5698e-27 | E63: 1.400131098e-27 | G63: 8.77312376e-05 | H63: 8.77312376e-05 | I63: = | J63: *(E60 | K63: + | L63: *0.96628425949707*$E$10) | M63: =1.40013109841745E-27*(E60+8.77312375998667E-05*0.96628425949707*$E$10)
A64: C20H42 | B64: 6.0891e-27 | C64: 2.879007 | D64: 4.1162e-27 | E64: 2.115000068e-27 | G64: 3.638756829e-05 | H64: 3.638756829e-05 | I64: = | J64: *(E61 | K64: + | L64: *0.96628425949707*$E$10) | M64: =2.11500006773169E-27*(E61+3.63875682927211E-05*0.96628425949707*$E$10)
A65: ALKYLATE | B65: 0 | C65: 0 | D65: 0 | E65: 0 | G65: 0 | H65: 0 | I65: = | J65: *(E62 | K65: + | L65: *0.96628425949707*$E$10) | M65: =0*(E62+0*0.96628425949707*$E$10)
A66: ISOMERAT | B66: 0 | C66: 0 | D66: 0 | E66: 0 | G66: 0 | H66: 0 | I66: = | J66: *(E63 | K66: + | L66: *0.96628425949707*$E$10) | M66: =0*(E63+0*0.96628425949707*$E$10)
A67: REFORMAT | B67: 0 | C67: 0 | D67: 0 | E67: 0 | G67: 0 | H67: 0 | I67: = | J67: *(E64 | K67: + | L67: *0.96628425949707*$E$10) | M67: =0*(E64+0*0.96628425949707*$E$10)
A68: C7-300HC | B68: 0 | C68: 0 | D68: 0 | E68: 0 | G68: 0 | H68: 0 | I68: = | J68: *(E65 | K68: + | L68: *0.96628425949707*$E$10) | M68: =0*(E65+0*0.96628425949707*$E$10)
A69: 3-350HC | B69: 0 | C69: 0 | D69: 0 | E69: 0 | G69: 0 | H69: 0 | I69: = | J69: *(E66 | K69: + | L69: *0.96628425949707*$E$10) | M69: =0*(E66+0*0.96628425949707*$E$10)
A70: 350-5HC | B70: 0 | C70: 0 | D70: 0 | E70: 0 | G70: 0 | H70: 0 | I70: = | J70: *(E67 | K70: + | L70: *0.96628425949707*$E$10) | M70: =0*(E67+0*0.96628425949707*$E$10)
A71: 500+HC | B71: 0 | C71: 0 | D71: 0 | E71: 0 | G71: 0 | H71: 0 | I71: = | J71: *(E68 | K71: + | L71: *0.96628425949707*$E$10) | M71: =0*(E68+0*0.96628425949707*$E$10)
A72: C7-300HT | B72: 0 | C72: 0 | D72: 0 | E72: 0 | G72: 0 | H72: 0 | I72: = | J72: *(E69 | K72: + | L72: *0.96628425949707*$E$10) | M72: =0*(E69+0*0.96628425949707*$E$10)
A73: 3-350HT | B73: 0 | C73: 0 | D73: 0 | E73: 0 | G73: 0 | H73: 0 | I73: = | J73: *(E70 | K73: + | L73: *0.96628425949707*$E$10) | M73: =0*(E70+0*0.96628425949707*$E$10)
A74: 350-5HT | B74: 0 | C74: 0 | D74: 0 | E74: 0 | G74: =IF(D74=0,0,((C74-D74)/($D$13-$C$13))) -> 0 | H74: 0 | I74: = | J74: *(E71 | K74: + | L74: *0.96628425949707*$E$10) | M74: =CONCATENATE(I74,E74,J74,K74,H74,L74) -> =0*(E71+0*0.96628425949707*$E$10)
A75: 500+HT | B75: 0 | C75: 0 | D75: 0 | E75: 0 | G75: 0 | H75: 0 | I75: = | J75: *(E72 | K75: + | L75: *0.96628425949707*$E$10) | M75: =0*(E72+0*0.96628425949707*$E$10)
A76: OXVAP | B76: 0 | C76: 46.46551 | D76: 0 | E76: =B76/C76 -> 0 | G76: 0 | H76: 0 | I76: = | J76: *(E73 | K76: + | L76: *0.96628425949707*$E$10) | M76: =0*(E73+0*0.96628425949707*$E$10)
A77: OXHC | B77: 2.18636e-07 | C77: 157.5533 | D77: 1.47796e-07 | E77: 1.387695466e-09 | G77: 0.001991305147 | H77: 0.001991305147 | I77: = | J77: *(E74 | K77: + | L77: *0.96628425949707*$E$10) | M77: =1.38769546559799E-09*(E74+0.00199130514726627*0.96628425949707*$E$10)
A78: OXH2O | B78: 0 | C78: 0 | D78: 0 | E78: 0 | G78: 0 | H78: 0 | I78: = | J78: *(E75 | K78: + | L78: *0.96628425949707*$E$10) | M78: =0*(E75+0*0.96628425949707*$E$10)
A79: C5N | B79: 0 | C79: 0 | D79: 0 | E79: 0 | G79: 0 | H79: 0 | I79: = | J79: *(E76 | K79: + | L79: *0.96628425949707*$E$10) | M79: =0*(E76+0*0.96628425949707*$E$10)
A80: C6N | B80: 0 | C80: 0 | D80: 0 | E80: 0 | G80: 0 | H80: 0 | I80: = | J80: *(E77 | K80: + | L80: *0.96628425949707*$E$10) | M80: =0*(E77+0*0.96628425949707*$E$10)
A81: C7N | B81: 0 | C81: 0 | D81: 0 | E81: 0 | G81: 0 | H81: 0 | I81: = | J81: *(E78 | K81: + | L81: *0.96628425949707*$E$10) | M81: =0*(E78+0*0.96628425949707*$E$10)
A82: C8N | B82: 0 | C82: 0 | D82: 0 | E82: 0 | G82: 0 | H82: 0 | I82: = | J82: *(E79 | K82: + | L82: *0.96628425949707*$E$10) | M82: =0*(E79+0*0.96628425949707*$E$10)
A83: C9N | B83: 0 | C83: 0 | D83: 0 | E83: 0 | G83: 0 | H83: 0 | I83: = | J83: *(E80 | K83: + | L83: *0.96628425949707*$E$10) | M83: =0*(E80+0*0.96628425949707*$E$10)
A84: C10N | B84: 0 | C84: 0 | D84: 0 | E84: 0 | G84: 0 | H84: 0 | I84: = | J84: *(E81 | K84: + | L84: *0.96628425949707*$E$10) | M84: =0*(E81+0*0.96628425949707*$E$10)
A85: C6A | B85: 0 | C85: 0 | D85: 0 | E85: 0 | G85: 0 | H85: 0 | I85: = | J85: *(E82 | K85: + | L85: *0.96628425949707*$E$10) | M85: =0*(E82+0*0.96628425949707*$E$10)
A86: C7A | B86: 0 | C86: 0 | D86: 0 | E86: 0 | G86: 0 | H86: 0 | I86: = | J86: *(E83 | K86: + | L86: *0.96628425949707*$E$10) | M86: =0*(E83+0*0.96628425949707*$E$10)
A87: C8A | B87: 0 | C87: 0 | D87: 0 | E87: 0 | G87: 0 | H87: 0 | I87: = | J87: *(E84 | K87: + | L87: *0.96628425949707*$E$10) | M87: =0*(E84+0*0.96628425949707*$E$10)
A88: C9A | B88: 0 | C88: 0 | D88: 0 | E88: 0 | G88: 0 | H88: 0 | I88: = | J88: *(E85 | K88: + | L88: *0.96628425949707*$E$10) | M88: =0*(E85+0*0.96628425949707*$E$10)
A89: C10AP | B89: 0 | C89: 0 | D89: 0 | E89: 0 | G89: 0 | H89: 0 | I89: = | J89: *(E86 | K89: + | L89: *0.96628425949707*$E$10) | M89: =0*(E86+0*0.96628425949707*$E$10)
A90: C21OP | B90: 1.9756e-27 | C90: 8.230148 | D90: 1.3355e-27 | E90: 2.40044286e-28 | G90: 0.0001040202655 | H90: 0.0001040202655 | I90: = | J90: *(E87 | K90: + | L90: *0.96628425949707*$E$10) | M90: =2.40044285959378E-28*(E87+0.00010402026546278*0.96628425949707*$E$10)
A91: C22OP | B91: 7.0664e-29 | C91: 6.745688 | D91: 4.7769e-29 | E91: 1.04754326e-29 | G91: 8.525827925e-05 | H91: 8.525827925e-05 | I91: = | J91: *(E88 | K91: + | L91: *0.96628425949707*$E$10) | M91: =1.04754326022787E-29*(E88+8.52582792544058E-05*0.96628425949707*$E$10)
A92: C23OP | B92: 0 | C92: 5.433339 | D92: 0 | E92: 0 | G92: 0 | H92: 0 | I92: = | J92: *(E89 | K92: + | L92: *0.96628425949707*$E$10) | M92: =0*(E89+0*0.96628425949707*$E$10)
A93: C24OP | B93: 0 | C93: 4.318863 | D93: 0 | E93: 0 | G93: 0 | H93: 0 | I93: = | J93: *(E90 | K93: + | L93: *0.96628425949707*$E$10) | M93: =0*(E90+0*0.96628425949707*$E$10)
A94: C25OP | B94: 0 | C94: 3.397712 | D94: 0 | E94: 0 | G94: 0 | H94: 0 | I94: = | J94: *(E91 | K94: + | L94: *0.96628425949707*$E$10) | M94: =0*(E91+0*0.96628425949707*$E$10)
A95: C26OP | B95: 0 | C95: 2.63984 | D95: 0 | E95: 0 | G95: 0 | H95: 0 | I95: = | J95: *(E92 | K95: + | L95: *0.96628425949707*$E$10) | M95: =0*(E92+0*0.96628425949707*$E$10)
A96: C27OP | B96: 0 | C96: 2.045818 | D96: 0 | E96: 0 | G96: 0 | H96: 0 | I96: = | J96: *(E93 | K96: + | L96: *0.96628425949707*$E$10) | M96: =0*(E93+0*0.96628425949707*$E$10)
A97: C28OP | B97: 0 | C97: 1.580562 | D97: 0 | E97: 0 | G97: 0 | H97: 0 | I97: = | J97: *(E94 | K97: + | L97: *0.96628425949707*$E$10) | M97: =0*(E94+0*0.96628425949707*$E$10)
A98: C29OP | B98: 0 | C98: 1.21512 | D98: 0 | E98: 0 | G98: 0 | H98: 0 | I98: = | J98: *(E95 | K98: + | L98: *0.96628425949707*$E$10) | M98: =0*(E95+0*0.96628425949707*$E$10)
A99: C30WAX | B99: 0 | C99: 0.2783476 | D99: 0 | E99: 0 | G99: 0 | H99: 0 | I99: = | J99: *(E96 | K99: + | L99: *0.96628425949707*$E$10) | M99: =0*(E96+0*0.96628425949707*$E$10)
A100: Mole Frac
A101: H2 | B101: 0.6277728 | C101: 0.2764774 | D101: 0.4250684 | E101: 2.27061163
A102: N2 | B102: 0.2059151 | C102: 0.0906868 | D102: 0.0488045 | E102: 2.270618216
A103: O2 | B103: 0 | C103: 0 | D103: 0
A104: H2S | B104: 9.59785e-09 | C104: 4.27706e-09 | D104: 2.3034e-09 | E104: 2.244029777
A105: CO | B105: 0.0645499 | C105: 0.0284285 | D105: 0.4536114 | E105: 2.270605203
A106: CO2 | B106: 0.00263231 | C106: 0.3911007 | D106: 0.00775381 | E106: 0.00673051723
A107: H2O | B107: 0 | C107: 0.1455851 | D107: 0.0486133 | E107: 0
A108: NH3 | B108: 0 | C108: 0 | D108: 0
A109: HCL | B109: 0 | C109: 0 | D109: 0
A110: C | B110: 0 | C110: 0 | D110: 0
A111: HCN | B111: 0 | C111: 0 | D111: 0
A112: SULFUR | B112: 0 | C112: 0 | D112: 0
A113: COS | B113: 0 | C113: 0 | D113: 0
A114: CH4 | B114: 0.0680017 | C114: 0.0299491 | D114: 0.0111629 | E114: 2.270575744
A115: C2H4 | B115: 0.0251925 | C115: 0.0111244 | D115: 0.0040349 | E115: 2.264616519
A116: C2H6 | B116: 0.00526784 | C116: 0.00247433 | D116: 0.000843709 | E116: 2.128996536
A117: C3H6 | B117: 0.000551987 | C117: 0.00340221 | D117: 8.84076e-05 | E117: 0.1622436593
A118: C3H8 | B118: 7.17853e-05 | C118: 0.000592722 | D118: 1.14973e-05 | E118: 0.1211112461
A119: IC4H8 | B119: 1.62301e-06 | C119: 0.000127526 | D119: 2.59944e-07 | E119: 0.01272689491
A120: NC4H8 | B120: 2.96835e-05 | C120: 0.00242165 | D120: 4.75418e-06 | E120: 0.01225755167
A121: IC4H10 | B121: 5.76383e-07 | C121: 3.19073e-05 | D121: 9.23149e-08 | E121: 0.01806429877
A122: NC4H10 | B122: 9.36527e-06 | C122: 0.000605921 | D122: 1.49996e-06 | E122: 0.01545625585
A123: C5H10 | B123: 2.11577e-06 | C123: 0.00198492 | D123: 3.38866e-07 | E123: 0.001065922052
A124: NC5H12 | B124: 4.05528e-07 | C124: 0.00059513 | D124: 6.49503e-08 | E124: 0.0006814107842
A125: IC5H12 | B125: 9.5508e-08 | C125: 6.61252e-05 | D125: 1.52968e-08 | E125: 0.001444351019
A126: C6H12 | B126: 1.08265e-07 | C126: 0.00165387 | D126: 1.734e-08 | E126: 6.546161427e-05
A127: NC6H14 | B127: 2.18527e-08 | C127: 0.000495972 | D127: 3.49998e-09 | E127: 4.406035018e-05
A128: IC6H14 | B128: 5.32567e-09 | C128: 5.51445e-05 | D128: 8.5297e-10 | E128: 9.657663049e-05
A129: C7H14 | B129: 2.95033e-09 | C129: 0.0012842 | D129: 4.7253e-10 | E129: 2.297406946e-06
A130: C7H16 | B130: 1.54379e-09 | C130: 0.000550123 | D130: 2.4726e-10 | E130: 2.806263327e-06
A131: C8H16 | B131: 1.5175e-10 | C131: 0.00106854 | D131: 2.4305e-11 | E131: 1.42016209e-07
A132: C8H18 | B132: 4.6789e-11 | C132: 0.000457616 | D132: 7.4939e-12 | E132: 1.022451138e-07
A133: C9H18 | B133: 4.661e-12 | C133: 0.000887433 | D133: 7.4652e-13 | E133: 5.252227492e-09
A134: C9H20 | B134: 1.0772e-12 | C134: 0.000380008 | D134: 1.7252e-13 | E134: 2.834677165e-09
A135: C10H20 | B135: 6.7535e-14 | C135: 0.000735878 | D135: 1.0817e-14 | E135: 9.177472353e-11
A136: C10H22 | B136: 4.1338e-14 | C136: 0.000314759 | D136: 6.6208e-15 | E136: 1.313322256e-10
A137: C11H22 | B137: 1.9634e-15 | C137: 0.000607936 | D137: 3.1447e-16 | E137: 3.229616275e-12
A138: C11H24 | B138: 8.5057e-16 | C138: 0.000260194 | D138: 1.3623e-16 | E138: =B138/C138 -> 3.268983912e-12
A139: C12H24 | B139: 3.4415e-17 | C139: 0.000500371 | D139: 5.512e-18 | E139: 6.877896601e-14
A140: C12H26 | B140: 1.3956e-17 | C140: 0.000214031 | D140: 2.2353e-18 | E140: 6.520550761e-14
A141: C13H26 | B141: 7.37e-19 | C141: 0.000409634 | D141: 1.1804e-19 | E141: 1.799167061e-15
A142: C13H28 | B142: 8.1492e-20 | C142: 0.000175106 | D142: 1.3052e-20 | E142: 4.653866801e-16
A143: C14H28 | B143: 1.4482e-20 | C143: 0.00033282 | D143: 2.3194e-21 | E143: 4.351301004e-17
A144: C14H30 | B144: 5.0986e-22 | C144: 0.000141639 | D144: 8.166e-23 | E144: 3.599714768e-18
A145: C15H30 | B145: 3.372e-22 | C145: 0.000268039 | D145: 5.4007e-23 | E145: 1.258025884e-18
A146: C15H32 | B146: 2.2309e-23 | C146: 0.00011436 | D146: 3.5731e-24 | E146: 1.9507695e-19
A147: C16H32 | B147: 1.1564e-23 | C147: 0.000213012 | D147: 1.852e-24 | E147: 5.428802133e-20
A148: C16H34 | B148: 1.0212e-24 | C148: 9.16885e-05 | D148: 1.6355e-25 | E148: 1.113771084e-20
A149: C17H34 | B149: 6.2444e-26 | C149: 0.000168117 | D149: 1.0001e-26 | E149: 3.714318005e-22
A150: C17H36 | B150: 2.7553e-26 | C150: 7.11864e-05 | D150: 4.413e-27 | E150: 3.870542688e-22
A151: C18H36 | B151: 1.9062e-26 | C151: 0.000128584 | D151: 3.053e-27 | E151: 1.482455049e-22
A152: C18H38 | B152: 2.8827e-27 | C152: 5.47471e-05 | D152: 4.617e-28 | E152: 5.265484382e-23
A153: C19H38 | B153: 1.8867e-29 | C153: 9.77659e-05 | D153: 3.0217e-30 | E153: 1.929813974e-25
A154: C19H40 | B154: 1.4424e-28 | C154: 4.10509e-05 | D154: 2.3102e-29 | E154: 3.513686667e-24
A155: C20H40 | B155: 2.2724e-31 | C155: 7.14795e-05 | D155: 3.6396e-32 | E155: 3.179093306e-27
A156: C20H42 | B156: 1.4237e-31 | C156: 2.9647e-05 | D156: 2.2803e-32 | E156: 4.802172227e-27
A157: ALKYLATE | B157: 0 | C157: 0 | D157: 0
A158: ISOMERAT | B158: 0 | C158: 0 | D158: 0
A159: REFORMAT | B159: 0 | C159: 0 | D159: 0
A160: C7-300HC | B160: 0 | C160: 0 | D160: 0
A161: 3-350HC | B161: 0 | C161: 0 | D161: 0
A162: 350-5HC | B162: 0 | C162: 0 | D162: 0
A163: 500+HC | B163: 0 | C163: 0 | D163: 0
A164: C7-300HT | B164: 0 | C164: 0 | D164: 0
A165: 3-350HT | B165: 0 | C165: 0 | D165: 0
A166: 350-5HT | B166: 0 | C166: 0 | D166: 0
A167: 500+HT | B167: 0 | C167: 0 | D167: 0
A168: OXVAP | B168: 0 | C168: 0.000478485 | D168: 0 | E168: 0
A169: OXHC | B169: 5.1121e-12 | C169: 0.00162243 | D169: 8.1877e-13 | E169: 3.150890948e-09
A170: OXH2O | B170: 0 | C170: 0 | D170: 0
A171: C5N | B171: 0 | C171: 0 | D171: 0
A172: C6N | B172: 0 | C172: 0 | D172: 0
A173: C7N | B173: 0 | C173: 0 | D173: 0
A174: C8N | B174: 0 | C174: 0 | D174: 0
A175: C9N | B175: 0 | C175: 0 | D175: 0
A176: C10N | B176: 0 | C176: 0 | D176: 0
A177: C6A | B177: 0 | C177: 0 | D177: 0
A178: C7A | B178: 0 | C178: 0 | D178: 0
A179: C8A | B179: 0 | C179: 0 | D179: 0
A180: C9A | B180: 0 | C180: 0 | D180: 0
A181: C10AP | B181: 0 | C181: 0 | D181: 0
A182: C21OP | B182: 4.6194e-32 | C182: 8.4751e-05 | D182: 7.3985e-33 | E182: 5.450555156e-28
A183: C22OP | B183: 1.6523e-33 | C183: 6.94646e-05 | D183: 2.6463e-34 | E183: 2.378621629e-29
A184: C23OP | B184: 0 | C184: 5.59505e-05 | D184: 0 | E184: 0
A185: C24OP | B185: 0 | C185: 4.44741e-05 | D185: 0 | E185: 0
A186: C25OP | B186: 0 | C186: 3.49884e-05 | D186: 0 | E186: 0
A187: C26OP | B187: 0 | C187: 2.71841e-05 | D187: 0 | E187: 0
A188: C27OP | B188: 0 | C188: 2.10671e-05 | D188: 0 | E188: 0
A189: C28OP | B189: 0 | C189: 1.6276e-05 | D189: 0 | E189: 0
A190: C29OP | B190: 0 | C190: 1.25129e-05 | D190: 0 | E190: 0
A191: C30WAX | B191: 0 | C191: 2.86632e-06 | D191: 0 | E191: 0
A192: Mass Flow lb/hr
A193: H2 | B193: 54121.43 | C193: 54121.5 | D193: 154670 | E193: 0.9999987066
A194: N2 | B194: 246702 | C194: 246702 | D194: 246790 | E194: 1
A195: O2 | B195: 0 | C195: 0 | D195: 0
A196: H2S | B196: 0.0139874 | C196: 0.0141531 | D196: 0.0141682 | E196: 0.9882923176
A197: CO | B197: 77327.56 | C197: 77328.01 | D197: 2293530 | E197: 0.9999941806
A198: CO2 | B198: 4954.563 | C198: 1671480 | D198: 61597.84 | E198: 0.002964177256
A199: H2O | B199: 0 | C199: 254694 | D199: 158087 | E199: 0
A200: NH3 | B200: 0 | C200: 0 | D200: 0
A201: HCL | B201: 0 | C201: 0 | D201: 0
... 380 more rows

Sheet LHV-Ref (hidden)
A1: Component | B1: LHV, Btu/lb | C1: lb-mol/hr | D1: MW | E1: Flow, lb/hr | G1: MMBtu/hr | K1: Fuel Gas To GT | N1: Syngas to GT | R1: Total | T1: Fuel Gas To GT - CCAT TRIG
A2: Extract
K3: lb-mol/hr | L3: lb/hr | M3: MMBtu/hr | N3: lb-mol/hr | O3: lb/hr | P3: MMBtu/hr | R3: MMBtu/hr | T3: lb-mol/hr | U3: lb/hr | V3: MMBtu/hr
A4: H2 | B4: 51573 | C4: =FT!R6 -> 7741.892679 | D4: 2.015800003 | E4: =C4*D4 -> 15606.10729 | F4: lb/hr | G4: =E4*B4/1000000 -> 804.8537711 | K4: =FT!AA6 -> 5234.026971 | L4: =K4*D4 -> 10550.75159 | M4: =L4*B4/1000000 -> 544.1339115 | N4: =Syngas!Q26 -> 0 | O4: =N4*D4 -> 0 | P4: =O4*B4/1000000 -> 0 | R4: =P4+M4 -> 544.1339115 | T4: =VLOOKUP(A4,$D$127:$F$160,3,FALSE) -> 12298.32995 | U4: =T4*$D4 -> 24790.97354 | V4: =U4*B4/1000000 -> 1278.544879
A5: N2 | B5: 0 | C5: =FT!R7 -> 2786.659147 | D5: 28.0134 | E5: 78063.79735 | F5: lb/hr | G5: 0 | K5: =FT!AA7 -> 1883.964263 | L5: =K5*D5 -> 52776.24449 | M5: 0 | N5: =Syngas!Q22 -> 0 | O5: =N5*D5 -> 0 | P5: 0 | R5: =P5+M5 -> 0 | T5: =VLOOKUP(A5,$D$127:$F$160,3,FALSE) -> 842.8680711 | U5: =T5*$D5 -> 23611.60042 | V5: =U5*B5/1000000 -> 0
A6: O2 | B6: 0 | C6: =FT!R8 -> 1.716188018e-19 | D6: 31.9988 | E6: 5.491595715e-18 | F6: lb/hr | G6: 0 | K6: =FT!AA8 -> 1.160255605e-19 | L6: 3.712678706e-18 | M6: 0 | N6: =Syngas!Q21 -> 0 | O6: 0 | P6: 0 | R6: 0 | T6: 1.400678003e-12 | U6: 4.482001527e-11 | V6: 0
A7: H2S | B7: 6534 | C7: =FT!R9 -> 0 | D7: 34.0763144 | E7: 0 | F7: lb/hr | G7: 0 | K7: =FT!AA9 -> 0 | L7: 0 | M7: 0 | N7: =Syngas!Q27 -> 0 | O7: 0 | P7: 0 | R7: 0 | T7: 4.661070772e-08 | U7: 1.58832113e-06 | V7: 1.037809027e-08
A8: CO | B8: 4344 | C8: =FT!R10 -> 631.7899058 | D8: 28.01039996 | E8: 17696.68795 | F8: lb/hr | G8: 76.87441246 | K8: =FT!AA10 -> 427.1313933 | L8: 11964.12116 | M8: 51.97214233 | N8: =Syngas!Q24 -> 0 | O8: 0 | P8: 0 | R8: 51.97214233 | T8: 5410.944211 | U8: 151562.7115 | V8: 658.3884188
A9: CO2 | B9: 0 | C9: =FT!R11 -> 3.457566567 | D9: 44.00980011 | E9: 152.1668135 | F9: lb/hr | G9: 0 | K9: =FT!AA11 -> 2.33754166 | L9: 102.8747412 | M9: 0 | N9: =Syngas!Q20 -> 0 | O9: 0 | P9: 0 | R9: 0 | T9: 1170.139094 | U9: 51497.58765 | V9: 0
A10: H2O | B10: 0 | C10: =FT!R12 -> 42.86883913 | D10: 18.01519997 | E10: 772.2907093 | F10: lb/hr | G10: 0 | K10: =FT!AA12 -> 28.98214552 | L10: 522.1191471 | M10: 0 | N10: =Syngas!Q18 -> 0 | O10: 0 | P10: 0 | R10: 0 | T10: 1211.578246 | U10: 21826.82437 | V10: 0
A11: NH3 | B11: 7998 | C11: =FT!R13 -> 3.520010304 | D11: 17.031 | E11: 59.94929549 | F11: lb/hr | G11: 0.4794744654 | K11: =FT!AA13 -> 2.37975772 | L11: 40.52965373 | M11: 0.3241561706 | N11: =Syngas!Q28 -> 0 | O11: 0 | P11: 0 | R11: 0.3241561706 | T11: 0.7180259017 | U11: 12.22869913 | V11: 0.09780513566
A12: HCL | B12: 0 | C12: =FT!R14 -> 0 | D12: 36.46094 | E12: 0 | F12: lb/hr | G12: 0 | K12: =FT!AA14 -> 0 | L12: 0 | M12: 0 | N12: =Syngas!Q37 -> 0 | O12: 0 | P12: 0 | R12: 0 | T12: 0 | U12: 0 | V12: 0
A13: C | B13: 14650 | C13: =FT!R15 -> 0 | D13: 12.0107 | E13: 0 | F13: lb/hr | G13: 0 | K13: =FT!AA15 -> 0 | L13: 0 | M13: 0 | N13: =Syngas!Q32 -> 0 | O13: 0 | P13: 0 | R13: 0
A14: HCN | B14: 9915 | C14: =FT!R16 -> 0 | D14: 27.0253 | E14: 0 | F14: lb/hr | G14: 0 | K14: =FT!AA16 -> 0 | L14: 0 | M14: 0 | N14: 0 | O14: 0 | P14: 0 | R14: 0
A15: S | B15: 0 | C15: =FT!R17 -> 0 | D15: 32.065 | E15: 0 | F15: lb/hr | G15: 0 | K15: =FT!AA17 -> 0 | L15: 0 | M15: 0 | N15: =Syngas!Q33 -> 0 | O15: 0 | P15: 0 | R15: 0
A16: COS | B16: 0 | C16: =FT!R18 -> 0 | D16: 60.075 | E16: 0 | F16: lb/hr | G16: 0 | K16: =FT!AA18 -> 0 | L16: 0 | M16: 0 | N16: =Syngas!Q25 -> 0 | O16: 0 | P16: 0 | R16: 0
A17: CH4 | B17: 21509 | C17: =FT!R19 -> 2912.621816 | D17: 16.04260003 | E17: 46726.02684 | F17: lb/hr | G17: 1005.030111 | K17: =FT!AA19 -> 1969.123285 | L17: 31589.85727 | M17: 679.4662401 | N17: =Syngas!Q23 -> 0 | O17: 0 | P17: 0 | R17: 679.4662401 | T17: =VLOOKUP(A17,$D$127:$F$160,3,FALSE) -> 11.34184994 | U17: 181.9527623 | V17: 3.913621964
A18: C2H4 | B18: 20275 | C18: =FT!R20 -> 0.01317958083 | D18: 28.05359994 | E18: 0.3697346881 | F18: lb/hr | G18: 0.007496370801 | K18: =FT!AA20 -> 0.008910260632 | L18: 0.2499648871 | M18: 0.005068038087 | N18: 0 | O18: 0 | P18: 0 | R18: 0.005068038087
A19: C2H6 | B19: 20424 | C19: =FT!R21 -> 0.5376005087 | D19: 30.06939996 | E19: 16.16532472 | F19: lb/hr | G19: 0.330160592 | K19: =FT!AA21 -> 0.3634531863 | L19: 10.92881923 | M19: 0.2232102039 | N19: 0 | O19: 0 | P19: 0 | R19: 0.2232102039 | T19: =FT!AJ21 -> 0 | U19: =T19*M19 -> 0 | V19: =U19*K19/1000000 -> 0
A20: C3H6 | B20: 19675 | C20: =FT!R22 -> 1.106592212e-06 | D20: 42.08039994 | E20: 4.656584284e-05 | F20: lb/hr | G20: 9.161829578e-07 | K20: =FT!AA22 -> 7.481288779e-07 | L20: 3.148156238e-05 | M20: 6.193997399e-07 | N20: 0 | O20: 0 | P20: 0 | R20: 6.193997399e-07 | T20: =FT!AJ22 -> 0 | U20: 0 | V20: 0
A21: C3H8 | B21: 19920 | C21: =FT!R23 -> 0.0001766106133 | D21: 44.09619999 | E21: 0.007787856924 | F21: lb/hr | G21: 0.0001551341099 | K21: =FT!AA23 -> 0.0001194003523 | L21: 0.005265101814 | M21: 0.0001048808281 | N21: 0 | O21: 0 | P21: 0 | R21: 0.0001048808281 | T21: =FT!AJ23 -> 0 | U21: 0 | V21: 0
A22: IC4H8 | B22: 19469 | C22: =FT!R24 -> 1.06349448e-10 | D22: 56.10720701 | E22: 5.966970493e-09 | F22: lb/hr | G22: 1.161709485e-10 | K22: =FT!AA24 -> 7.189919858e-11 | L22: 4.034063219e-09 | M22: 7.853917681e-11 | N22: 0 | O22: 0 | P22: 0 | R22: 7.853917681e-11 | T22: =FT!AJ24 -> 0 | U22: 0 | V22: 0
A23: NC4H8 | B23: 19342 | C23: =FT!R25 -> 4.71761695e-11 | D23: 56.10720019 | E23: 2.646922787e-09 | F23: lb/hr | G23: 5.119678054e-11 | K23: =FT!AA25 -> 3.189418322e-11 | L23: 1.789493323e-09 | M23: 3.461237985e-11 | N23: 0 | O23: 0 | P23: 0 | R23: 3.461237985e-11 | T23: =FT!AJ25 -> 0 | U23: 0 | V23: 0
A24: IC4H10 | B24: 19656 | C24: =FT!R26 -> 6.215667599e-08 | D24: 58.1230036 | E24: 3.612732702e-06 | F24: lb/hr | G24: 7.101187399e-08 | K24: =FT!AA26 -> 4.202198765e-08 | L24: 2.44244414e-06 | M24: 4.800868201e-08 | N24: 0 | O24: 0 | P24: 0 | R24: 4.800868201e-08 | T24: =FT!AJ26 -> 0 | U24: 0 | V24: 0
